Workbook

Sheet INSTRUCCIONES
C6: MODELO DE COSTOS PARA LA DETERMINACION DEL CARGO MÓVIL
C7: OPERADOR ENTEL PERU S.A.
C8: MARZO DE 2017
C13: NOTA 1: EL PRESENTE ARCHIVO CORRESPONDE AL MODELO DE COSTOS PRESENTADO POR EL OPERADOR ENTEL PARA
C14: SUSTENTAR SU PROPUESTA DE CARGO DE TERMINACIÓN MÓVIL
C15: NOTA 2: LAS CELDAS EN COLOR AMARILLO CORRESPONDEN A INFORMACION CONFIDENCIAL.

Sheet Portada
H2: Modelo Cargo de Terminación Móvil | R2: Desarrollado por:
H3: Organización del Modelo
B6: Organización del Modelo

Sheet Panel de Control
F2: =Portada!$H$2 -> Modelo Cargo de Terminación Móvil
F3: Parámetros Generales
B6: Parámetros
D8: id | E8: item | G8: =INDEX(añomes,n°mes) -> 201606
D9: 1 | E9: Fecha de Corte de Cálculo | F9: [mes-año] | G9: 2016-06-01
D10: 2 | E10: N° Mes Fecha de Corte | F10: [N°] | G10: =VLOOKUP($G$9,$F$210:$G$305,2,FALSE) -> 30 | H10: n°mes
D11: 3 | E11: Tasa de Costo de Capital | F11: [%] | G11: =3.6%*18%*(1-28%)+(3.1%+0.95*8.06%)*(1-18%) -> 0.092873 | H11: tcc
D12: 4 | E12: Tipo de Cambio Dólar | F12: [S/.] | G12: 3.303 | H12: p.usd
D13: 5 | E13: Over Head | F13: [%] | G13: 0 | H13: t.over
C16: Cargo de Terminación Móvil
G18: =INDEX(añomes,n°mes) -> 201606
D19: Tarifas
E20: Cargo Terminación Móvil | F20: [US cents/minuto] | G20: =IF(ISERROR(Cálculo.Tarifario!I632*100),"",Cálculo.Tarifario!I632*100) -> 1.702441044
D21: Demanda y Cobertura
E22: Demanda de Datos | F22: [MByte/mes/usuario]
E23: Onnet | F23: [min/mes/usuario] | G23: =+Dda.Resumen!L63 -> 384.6153846
E24: Offnet | F24: [min/mes/usuario] | G24: =+SUM(Dda.Resumen!L61:L62,Dda.Resumen!L64) -> 64.33946488
E25: Entrante | F25: [min/mes/usuario] | G25: =SUM(Dda.Resumen!L65:L68) -> 97.21989967
E26: SMS | F26: [SMS/mes/usuario] | G26: =+Dda.Resumen!L107 -> 8605.701563
E27: Abonados Totales | F27: [usuario] | G27: =SUM(Dda.Resumen!L14:L19) -> 69819
E28: Abonados de Datos | F28: [usuario] | G28: =+Dda.Resumen!L13 -> 20800
D29: Red
E30: EB Totales | F30: [#]
C33: Evolución del Cargo de Terminación Móvil
F36: Fecha de Corte | G36: Cargo
F37: 2015-01-01 | G37: 2.527882818
F38: 2015-02-01 | G38: 2.094390725
F39: 2015-03-01 | G39: 1.751719949
F40: 2015-04-01 | G40: 1.502658283
F41: 2015-05-01 | G41: 1.332546216
F42: 2015-06-01 | G42: 1.194273367
F43: 2015-07-01 | G43: 1.073369843
F44: 2015-08-01 | G44: 0.9705348288
F45: 2015-09-01 | G45: 0.9024168283
F46: 2015-10-01 | G46: 0.8396621995
F47: 2015-11-01 | G47: 0.8085202969
F48: 2015-12-01 | G48: 0.7781801401
F49: 2016-01-01 | G49: 0.7378966714
F50: 2016-02-01 | G50: 0.7082691049
F51: 2016-03-01 | G51: 0.6646615232
F52: 2016-04-01 | G52: 0.632322203
F53: 2016-05-01 | G53: 0.6001583898
F54: 2016-06-01 | G54: 0.5837311635
F55: 2016-07-01 | G55: 0.5636442162
F56: 2016-08-01 | G56: 0.5419750202
F57: 2016-09-01 | G57: 0.506538821
F58: 2016-10-01 | G58: 0.4801918142
F59: 2016-11-01 | G59: 0.4554686096
F60: 2016-12-01 | G60: 0.4308163348
F61: 2017-01-01 | G61: 0.4088327937
F62: 2017-02-01 | G62: 0.3879765126
F63: 2017-03-01 | G63: 0.3758427658
F64: 2017-04-01 | G64: 0.3641250188
F65: 2017-05-01 | G65: 0.3515241488
F66: 2017-06-01 | G66: 0.3358985396
F67: 2017-07-01 | G67: 0.32257252
F68: 2017-08-01 | G68: 0.3137725606
F69: 2017-09-01 | G69: 0.3051571147
F70: 2017-10-01 | G70: 0.2994047125
F71: 2017-11-01 | G71: 0.2922229188
F72: 2017-12-01 | G72: 0.2862139241
F73: 2018-01-01 | G73: 0.2796466191
F74: 2018-02-01 | G74: 0.2737985795
F75: 2018-03-01 | G75: 0.2701224638
F76: 2018-04-01 | G76: 0.2648461478
F77: 2018-05-01 | G77: 0.260180525
F78: 2018-06-01 | G78: 0.2546148178
F79: 2018-07-01 | G79: 0.2519844908
F80: 2018-08-01 | G80: 0.2487018223
F81: 2018-09-01 | G81: 0.2447922574
F82: 2018-10-01 | G82: 0.2408774157
F83: 2018-11-01 | G83: 0.2368821308
F84: 2018-12-01 | G84: 0.2332820895
F85: 2019-01-01 | G85: 0.2314165468
F86: 2019-02-01 | G86: 0.2285245865
F87: 2019-03-01 | G87: 0.2257736675
F88: 2019-04-01 | G88: 0.2220689725
F89: 2019-05-01 | G89: 0.2209687525
F90: 2019-06-01 | G90: 0.2184844628
B96: Departamentos
D98: N° | E98: Departamento
D99: 1 | E99: Amazonas
D100: 2 | E100: Ancash
D101: 3 | E101: Apurímac
D102: 4 | E102: Arequipa
D103: 5 | E103: Ayacucho
D104: 6 | E104: Cajamarca
D105: 7 | E105: Callao
D106: 8 | E106: Cusco
D107: 9 | E107: Huancavelica
D108: 10 | E108: Huánuco
D109: 11 | E109: Ica
D110: 12 | E110: Junín
D111: 13 | E111: La Libertad
D112: 14 | E112: Lambayeque
D113: 15 | E113: Lima
D114: 16 | E114: Loreto
D115: 17 | E115: Madre de Dios
D116: 18 | E116: Moquegua
D117: 19 | E117: Pasco
D118: 20 | E118: Piura
D119: 21 | E119: Puno
D120: 22 | E120: San Martín
D121: 23 | E121: Tacna
D122: 24 | E122: Tumbes
D123: 25 | E123: Ucayali
D125: reg.n | E125: reg.nom
B127: Servicios Empresa Eficiente
D130: id | E130: Servicios Provistos | G130: Seleccionado | I130: Voz
D131: 1 | E131: Servicio Móvil | G131: 1 | I131: 0
D132: =+D131+1 -> 2 | E132: Cargo de Acceso Móvil | G132: 1 | I132: 1
D133: 3 | E133: Servicio On-Net Móvil | G133: 1 | I133: 1
D134: 4 | E134: libre | G134: 1 | I134: 0
D135: 5 | E135: libre | G135: 1 | I135: 0
D136: 6 | E136: Conexión Móvil | G136: 1 | I136: 0
D137: 7 | E137: BAM e Internet Móvil | G137: 1 | I137: 0
D138: 8 | E138: SMS | G138: 1 | I138: 0
D139: 9 | E139: MMS | G139: 1 | I139: 0
D140: 10 | E140: libre | G140: 1 | I140: 0
D141: 11 | E141: libre | G141: 1 | I141: 0
D142: 12 | E142: libre | G142: 1 | I142: 0
D143: 13 | E143: libre | G143: 1 | I143: 0
D144: 14 | E144: libre | G144: 1 | I144: 0
D145: 15 | E145: libre | G145: 1 | I145: 0
D146: 16 | E146: libre | G146: 1 | I146: 0
D147: 17 | E147: libre | G147: 1 | I147: 0
D148: 18 | E148: libre | G148: 1 | I148: 0
D149: 19 | E149: libre | G149: 1 | I149: 0
D150: 20 | E150: libre | G150: 1 | I150: 0
E152: lista.serv.prov.ee | I152: lista.serv.prov.voz
B155: Demandas por Servicios
D158: id | E158: Demandas por Servicios | F158: Servicios Provistos | G158: Unidad | I158: Seleccionado
D159: 1 | E159: Postpago | F159: Servicio Móvil | G159: [abonado] | I159: =INDEX($G$131:$G$150,MATCH($F159,lista.serv.prov.ee,0)) -> 1
D160: =+D159+1 -> 2 | E160: Prepago | F160: Servicio Móvil | G160: [abonado] | I160: 1
D161: 3 | E161: Control | F161: Servicio Móvil | G161: [abonado] | I161: 1
D162: 4 | E162: Tráfico Móvil Voz entrante desde otras móviles | F162: Cargo de Acceso Móvil | G162: [minutos] | I162: 1
D163: 5 | E163: Tráfico Móvil Voz entrante desde redes fijas | F163: Cargo de Acceso Móvil | G163: [minutos] | I163: 1
D164: 6 | E164: Tráfico Móvil Voz entrante desde públicos | F164: Cargo de Acceso Móvil | G164: [minutos] | I164: 1
D165: 7 | E165: Tráfico Móvil Voz entrante desde LDI | F165: Cargo de Acceso Móvil | G165: [minutos] | I165: 1
D166: 8 | E166: Tráfico on-net | F166: Servicio On-Net Móvil | G166: [minutos] | I166: 1
D167: 9 | E167: Tráfico Móvil Voz saliente a otras móviles | F167: Cargo de Acceso Móvil | G167: [minutos] | I167: 1
D168: 10 | E168: Tráfico Móvil Voz saliente a redes fijas | F168: Cargo de Acceso Móvil | G168: [minutos] | I168: 1
D169: 11 | E169: Tráfico Móvil Voz saliente a LDI | F169: Cargo de Acceso Móvil | G169: [minutos] | I169: 1
D170: 12 | E170: libre | F170: libre | G170: [-] | I170: 1
D171: 13 | E171: libre | F171: libre | G171: [-] | I171: 1
D172: 14 | E172: SMS saliente a otras móviles | F172: SMS | G172: [SMS] | I172: 1
D173: 15 | E173: SMS on-net | F173: SMS | G173: [SMS] | I173: 1
D174: 16 | E174: SMS entrante desde otras móviles | F174: SMS | G174: [SMS] | I174: 1
D175: 17 | E175: libre | F175: libre | G175: [-] | I175: 1
D176: 18 | E176: libre | F176: libre | G176: [-] | I176: 1
D177: 19 | E177: libre | F177: libre | G177: [-] | I177: 1
D178: 20 | E178: Conexiones Móvil Datos banda ancha e internet móvil | F178: Conexión Móvil | G178: [Conexión] | I178: 1
D179: 21 | E179: Tráfico Móvil Datos banda ancha e internet móvil Bajada | F179: BAM e Internet Móvil | G179: [TByte] | I179: 1
D180: 22 | E180: Tráfico Móvil Datos banda ancha e internet móvil Subida | F180: BAM e Internet Móvil | G180: [TByte] | I180: 1
D181: 23 | E181: libre | F181: libre | G181: [-] | I181: 1
D182: 24 | E182: libre | F182: libre | G182: [-] | I182: 1
D183: 25 | E183: libre | F183: libre | G183: libre | I183: 1
D184: 26 | E184: libre | F184: libre | G184: libre | I184: 1
D185: 27 | E185: libre | F185: libre | G185: libre | I185: 1
D186: 28 | E186: libre | F186: libre | G186: libre | I186: 1
D187: 29 | E187: libre | F187: libre | G187: libre | I187: 1
D188: 30 | E188: libre | F188: libre | G188: libre | I188: 1
D189: 31 | E189: libre | F189: libre | G189: libre | I189: 1
D190: 32 | E190: libre | F190: libre | G190: libre | I190: 1
D191: 33 | E191: libre | F191: libre | G191: libre | I191: 1
D192: 34 | E192: libre | F192: libre | G192: libre | I192: 1
D193: 35 | E193: libre | F193: libre | G193: libre | I193: 1
D194: 36 | E194: libre | F194: libre | G194: libre | I194: 1
D195: 37 | E195: libre | F195: libre | G195: libre | I195: 1
D196: 38 | E196: libre | F196: libre | G196: libre | I196: 1
D197: 39 | E197: libre | F197: libre | G197: libre | I197: 1
D198: 40 | E198: libre | F198: libre | G198: libre | I198: 1
D199: 41 | E199: libre | F199: libre | G199: libre | I199: 1
D200: 42 | E200: libre | F200: libre | G200: libre | I200: 1
D201: 43 | E201: libre | F201: libre | G201: libre | I201: 1
D202: 44 | E202: libre | F202: libre | G202: libre | I202: 1
D203: 45 | E203: libre | F203: libre | G203: libre | I203: 1
E205: dda.serv.ee | F205: serv.prov.ee | G205: uni.serv.ee | I205: sel.serv.ee
B207: Fechas de Corte
D209: id | E209: Fecha de Corte de Cálculo | F209: Fecha de Corte de Cálculo | G209: N°
D210: 1 | E210: 201401 | F210: 2014-01-01 | G210: 1
D211: 2 | E211: 201402 | F211: 2014-02-01 | G211: 2
D212: 3 | E212: 201403 | F212: 2014-03-01 | G212: 3
D213: 4 | E213: 201404 | F213: 2014-04-01 | G213: 4
D214: 5 | E214: 201405 | F214: 2014-05-01 | G214: 5
D215: 6 | E215: 201406 | F215: 2014-06-01 | G215: 6
D216: 7 | E216: 201407 | F216: 2014-07-01 | G216: 7
D217: 8 | E217: 201408 | F217: 2014-08-01 | G217: 8
D218: 9 | E218: 201409 | F218: 2014-09-01 | G218: 9
D219: 10 | E219: 201410 | F219: 2014-10-01 | G219: 10
D220: 11 | E220: 201411 | F220: 2014-11-01 | G220: 11
D221: 12 | E221: 201412 | F221: 2014-12-01 | G221: 12
D222: 13 | E222: 201501 | F222: 2015-01-01 | G222: 13
D223: 14 | E223: 201502 | F223: 2015-02-01 | G223: 14
D224: 15 | E224: 201503 | F224: 2015-03-01 | G224: 15
D225: 16 | E225: 201504 | F225: 2015-04-01 | G225: 16
D226: 17 | E226: 201505 | F226: 2015-05-01 | G226: 17
D227: 18 | E227: 201506 | F227: 2015-06-01 | G227: 18
D228: 19 | E228: 201507 | F228: 2015-07-01 | G228: 19
D229: 20 | E229: 201508 | F229: 2015-08-01 | G229: 20
... 77 more rows

Sheet Dda.Resumen
E2: ='Panel de Control'!$F$2 -> Modelo Cargo de Terminación Móvil
E3: Variables de Demanda de Servicios
B6: Abonados a nivel nacional por tipo cliente y tecnología
B8: Abonados | F8: EOP | H8: AVG | J8: Distribución | L8: EOP | N8: AVG | P8: Distribución
C9: id | D9: Tipo | F9: =INDEX(añomes,n°mes) -> 201606 | H9: =INDEX(añomes,n°mes) -> 201606 | J9: =INDEX(añomes,n°mes) -> 201606 | L9: Últimos 12 meses | N9: Últimos 12 meses | P9: Últimos 12 meses
C10: 1 | D10: Abonados 2G | E10: [Abo/mes] | F10: =F$13*$J10 -> 3120 | G10: [Abo/mes] | H10: =H$13*$J10 -> 3120 | I10: [%] | J10: =INDEX(distr.tec,$C10,n°mes) -> 0.15 | K10: [Abo/año] | L10: =L$13*$P10 -> 3120 | M10: [Abo/año] | N10: =N$13*$P10 -> 3120 | O10: [%] | P10: =AVERAGE(INDEX(distr.tec,$C10,n°mes-11):INDEX(distr.tec,$C10,n°mes)) -> 0.15
C11: 2 | D11: Abonados 3G | E11: [Abo/mes] | F11: =F$13*$J11 -> 15600 | G11: [Abo/mes] | H11: =H$13*$J11 -> 15600 | I11: [%] | J11: =INDEX(distr.tec,$C11,n°mes) -> 0.75 | K11: [Abo/año] | L11: =L$13*$P11 -> 15600 | M11: [Abo/año] | N11: =N$13*$P11 -> 15600 | O11: [%] | P11: =AVERAGE(INDEX(distr.tec,$C11,n°mes-11):INDEX(distr.tec,$C11,n°mes)) -> 0.75
C12: 3 | D12: Abonados 4G | E12: [Abo/mes] | F12: =F$13*$J12 -> 2080 | G12: [Abo/mes] | H12: =H$13*$J12 -> 2080 | I12: [%] | J12: =INDEX(distr.tec,$C12,n°mes) -> 0.1 | K12: [Abo/año] | L12: =L$13*$P12 -> 2080 | M12: [Abo/año] | N12: 2080 | O12: [%] | P12: =AVERAGE(INDEX(distr.tec,$C12,n°mes-11):INDEX(distr.tec,$C12,n°mes)) -> 0.1
C13: 4 | D13: Abonados GSM/3G/4G | E13: [Abo/mes] | F13: =+INDEX(abo.mov.tot.eop,n°mes) -> 20800 | G13: [Abo/mes] | H13: =INDEX(abo.mov.tot.avg,n°mes) -> 20800 | I13: [%] | J13: =SUM(J10:J12) -> 1 | K13: [Abo/año] | L13: =+INDEX(abo.mov.tot.eop,n°mes) -> 20800 | M13: [Abo/año] | N13: =(INDEX(abo.mov.tot.eop,n°mes)+INDEX(abo.mov.tot.eop,n°mes-12))/2 -> 20800 | O13: [%] | P13: =SUM(P10:P12) -> 1
C14: 5 | D14: Abonados GSM/3G/4G Prepago | E14: [Abo/mes] | F14: =INDEX(abo.mov.pre.eop,n°mes) -> 13000 | G14: [Abo/mes] | H14: =INDEX(abo.mov.pre.avg,n°mes) -> 13000 | K14: [Abo/año] | L14: =INDEX(abo.mov.pre.eop,n°mes) -> 13000 | M14: [Abo/año] | N14: =(INDEX(abo.mov.pre.eop,n°mes)+INDEX(abo.mov.pre.eop,n°mes-12))/2 -> 13000
C15: 6 | D15: Abonados GSM/3G/4G Control | E15: [Abo/mes] | F15: =INDEX(abo.mov.con.eop,n°mes) -> 5200 | G15: [Abo/mes] | H15: =INDEX(abo.mov.con.avg,n°mes) -> 5200 | K15: [Abo/año] | L15: =INDEX(abo.mov.con.eop,n°mes) -> 5200 | M15: [Abo/año] | N15: =(INDEX(abo.mov.con.eop,n°mes)+INDEX(abo.mov.con.eop,n°mes-12))/2 -> 5200
C16: 7 | D16: Abonados GSM/3G/4G Postpago | E16: [Abo/mes] | F16: =INDEX(abo.mov.pos.eop,n°mes) -> 2600 | G16: [Abo/mes] | H16: =INDEX(abo.mov.pos.avg,n°mes) -> 2600 | K16: [Abo/año] | L16: =INDEX(abo.mov.pos.eop,n°mes) -> 2600 | M16: [Abo/año] | N16: =(INDEX(abo.mov.pos.eop,n°mes)+INDEX(abo.mov.pos.eop,n°mes-12))/2 -> 2600
C17: 8 | D17: Abonados iDEN | E17: [Abo/mes] | F17: =INDEX(abo.iden.tot.eop,n°mes) -> 24960 | G17: [Abo/mes] | H17: =INDEX(abo.iden.tot.avg,n°mes) -> 24960 | K17: [Abo/año] | L17: =INDEX(abo.iden.tot.eop,n°mes) -> 24960 | M17: [Abo/año] | N17: =(INDEX(abo.iden.tot.eop,n°mes)+INDEX(abo.iden.tot.eop,n°mes-12))/2 -> 24960
C18: 9 | D18: Abonados Fijo Móvil | E18: [Abo/mes] | F18: =INDEX(abo.fmo.pre.eop,n°mes) -> 2080 | G18: [Abo/mes] | H18: =INDEX(abo.fmo.pre.avg,n°mes) -> 2080 | K18: [Abo/año] | L18: =INDEX(abo.fmo.pre.eop,n°mes) -> 2080 | M18: [Abo/año] | N18: =(INDEX(abo.fmo.pre.eop,n°mes)+INDEX(abo.fmo.pre.eop,n°mes-12))/2 -> 2080
C19: 10 | D19: Abonados Banda Ancha Móvil | E19: [Abo/mes] | F19: =INDEX(abo.bam.tot.eop,n°mes) -> 21979 | G19: [Abo/mes] | H19: =INDEX(abo.bam.tot.avg,n°mes) -> 21840.5 | K19: [Abo/año] | L19: =INDEX(abo.bam.tot.eop,n°mes) -> 21979 | M19: [Abo/año] | N19: =(INDEX(abo.bam.tot.eop,n°mes)+INDEX(abo.bam.tot.eop,n°mes-12))/2 -> 28589.5
B20: Abonados 2G | F20: EOP | H20: AVG | J20: Distribución | L20: EOP | N20: AVG | P20: Distribución
C21: id | D21: Tipo | F21: =INDEX(añomes,n°mes) -> 201606 | H21: =INDEX(añomes,n°mes) -> 201606 | J21: =INDEX(añomes,n°mes) -> 201606 | L21: Últimos 12 meses | N21: Últimos 12 meses | P21: Últimos 12 meses
C22: 1 | D22: Prepago | E22: [Abo/mes] | F22: =F$25*$J22 -> 1950 | G22: [Abo/mes] | H22: =H$25*$J22 -> 1950 | I22: [%] | J22: =H14/H$13 -> 0.625 | K22: [Abo/año] | L22: =L$25*$P22 -> 1950 | M22: [Abo/año] | N22: =N$25*$J22 -> 1950 | O22: [%] | P22: =L14/L$13 -> 0.625
C23: 2 | D23: Control | E23: [Abo/mes] | F23: =F$25*$J23 -> 780 | G23: [Abo/mes] | H23: 780 | I23: [%] | J23: =H15/H$13 -> 0.25 | K23: [Abo/año] | L23: =L$25*$P23 -> 780 | M23: [Abo/año] | N23: =N$25*$J23 -> 780 | O23: [%] | P23: =L15/L$13 -> 0.25
C24: 3 | D24: Postpago | E24: [Abo/mes] | F24: 390 | G24: [Abo/mes] | H24: 390 | I24: [%] | J24: =H16/H$13 -> 0.125 | K24: [Abo/año] | L24: =L$25*$P24 -> 390 | M24: [Abo/año] | N24: =N$25*$J24 -> 390 | O24: [%] | P24: =L16/L$13 -> 0.125
C25: 4 | D25: Total | E25: [Abo/mes] | F25: =F10 -> 3120 | G25: [Abo/mes] | H25: =+H10 -> 3120 | I25: [%] | J25: =SUM(J22:J24) -> 1 | K25: [Abo/año] | L25: =L10 -> 3120 | M25: [Abo/año] | N25: =+N10 -> 3120 | O25: [%] | P25: =SUM(P22:P24) -> 1
B26: Abonados 3G | F26: EOP | H26: AVG | J26: Distribución | L26: EOP | N26: AVG | P26: Distribución
C27: id | D27: Tipo | F27: =INDEX(añomes,n°mes) -> 201606 | H27: =INDEX(añomes,n°mes) -> 201606 | J27: =INDEX(añomes,n°mes) -> 201606 | L27: Últimos 12 meses | N27: Últimos 12 meses | P27: Últimos 12 meses
C28: 1 | D28: Prepago | E28: [Abo/mes] | F28: =F$31*$J28 -> 9750 | G28: [Abo/mes] | H28: =H$31*$J28 -> 9750 | I28: [%] | J28: =H14/H$13 -> 0.625 | K28: [Abo/año] | L28: =L$31*$P28 -> 9750 | M28: [Abo/año] | N28: =N$31*$P28 -> 9750 | O28: [%] | P28: =L14/L$13 -> 0.625
C29: 2 | D29: Control | E29: [Abo/mes] | F29: =F$31*$J29 -> 3900 | G29: [Abo/mes] | H29: 3900 | I29: [%] | J29: =H15/H$13 -> 0.25 | K29: [Abo/año] | L29: =L$31*$P29 -> 3900 | M29: [Abo/año] | N29: =N$31*$P29 -> 3900 | O29: [%] | P29: =L15/L$13 -> 0.25
C30: 3 | D30: Postpago | E30: [Abo/mes] | F30: =F$31*$J30 -> 1950 | G30: [Abo/mes] | H30: =H$31*$J30 -> 1950 | I30: [%] | J30: 0.125 | K30: [Abo/año] | L30: 1950 | M30: [Abo/año] | N30: =N$31*$P30 -> 1950 | O30: [%] | P30: =L16/L$13 -> 0.125
C31: 4 | D31: Total | E31: [Abo/mes] | F31: =F11 -> 15600 | G31: [Abo/mes] | H31: =H11 -> 15600 | I31: [%] | J31: =SUM(J28:J30) -> 1 | K31: [Abo/año] | L31: =L11 -> 15600 | M31: [Abo/año] | N31: =N11 -> 15600 | O31: [%] | P31: =SUM(P28:P30) -> 1
B32: Abonados 4G | F32: EOP | H32: AVG | J32: Distribución | L32: EOP | N32: AVG | P32: Distribución
C33: id | D33: Tipo | F33: =INDEX(añomes,n°mes) -> 201606 | H33: =INDEX(añomes,n°mes) -> 201606 | J33: =INDEX(añomes,n°mes) -> 201606 | L33: Últimos 12 meses | N33: Últimos 12 meses | P33: Últimos 12 meses
C34: 1 | D34: Prepago | E34: [Abo/mes] | F34: =F$37*$J34 -> 1300 | G34: [Abo/mes] | H34: =H$37*$J34 -> 1300 | I34: [%] | J34: =H14/H$13 -> 0.625 | K34: [Abo/año] | L34: =L$37*$P34 -> 1300 | M34: [Abo/año] | N34: =N$37*$P34 -> 1300 | O34: [%] | P34: =L14/L$13 -> 0.625
C35: 2 | D35: Control | E35: [Abo/mes] | F35: =F$37*$J35 -> 520 | G35: [Abo/mes] | H35: =H$37*$J35 -> 520 | I35: [%] | J35: =H15/H$13 -> 0.25 | K35: [Abo/año] | L35: =L$37*$P35 -> 520 | M35: [Abo/año] | N35: =N$37*$P35 -> 520 | O35: [%] | P35: =L15/L$13 -> 0.25
C36: 3 | D36: Postpago | E36: [Abo/mes] | F36: =F$37*$J36 -> 260 | G36: [Abo/mes] | H36: =H$37*$J36 -> 260 | I36: [%] | J36: 0.125 | K36: [Abo/año] | L36: =L$37*$P36 -> 260 | M36: [Abo/año] | N36: 260 | O36: [%] | P36: =L16/L$13 -> 0.125
C37: 4 | D37: Total | E37: [Abo/mes] | F37: =F12 -> 2080 | G37: [Abo/mes] | H37: =H12 -> 2080 | I37: [%] | J37: =SUM(J34:J36) -> 1 | K37: [Abo/año] | L37: =L12 -> 2080 | M37: [Abo/año] | N37: =N12 -> 2080 | O37: [%] | P37: =SUM(P34:P36) -> 1
B38: Abonados iDEN | F38: EOP | H38: AVG | J38: Distribución | L38: EOP | N38: AVG | P38: Distribución
C39: id | D39: Tipo | F39: =INDEX(añomes,n°mes) -> 201606 | H39: =INDEX(añomes,n°mes) -> 201606 | J39: =INDEX(añomes,n°mes) -> 201606 | L39: Últimos 12 meses | N39: Últimos 12 meses | P39: Últimos 12 meses
C40: 1 | D40: Prepago | E40: [Abo/mes] | F40: =INDEX(abo.iden.pre.eop,n°mes) -> 9100 | G40: [Abo/mes] | H40: =INDEX(abo.iden.pre.avg,n°mes) -> 9100 | I40: [%] | J40: =H40/H$43 -> 0.3645833333 | K40: [Abo/año] | L40: =INDEX(abo.iden.pre.eop,n°mes) -> 9100 | M40: [Abo/año] | N40: =(INDEX(abo.iden.pre.eop,n°mes)+INDEX(abo.iden.pre.eop,n°mes-12))/2 -> 9100 | O40: [%] | P40: =N40/N$43 -> 0.3645833333
C41: 2 | D41: Control | E41: [Abo/mes] | F41: =INDEX(abo.iden.con.eop,n°mes) -> 6500 | G41: [Abo/mes] | H41: =INDEX(abo.iden.con.avg,n°mes) -> 6500 | I41: [%] | J41: =H41/H$43 -> 0.2604166667 | K41: [Abo/año] | L41: =INDEX(abo.iden.con.eop,n°mes) -> 6500 | M41: [Abo/año] | N41: =(INDEX(abo.iden.con.eop,n°mes)+INDEX(abo.iden.con.eop,n°mes-12))/2 -> 6500 | O41: [%] | P41: =N41/N$43 -> 0.2604166667
C42: 3 | D42: Postpago | E42: [Abo/mes] | F42: =INDEX(abo.iden.pos.eop,n°mes) -> 9360 | G42: [Abo/mes] | H42: =INDEX(abo.iden.pos.avg,n°mes) -> 9360 | I42: [%] | J42: =H42/H$43 -> 0.375 | K42: [Abo/año] | L42: =INDEX(abo.iden.pos.eop,n°mes) -> 9360 | M42: [Abo/año] | N42: =(INDEX(abo.iden.pos.eop,n°mes)+INDEX(abo.iden.pos.eop,n°mes-12))/2 -> 9360 | O42: [%] | P42: =N42/N$43 -> 0.375
C43: 4 | D43: Total | E43: [Abo/mes] | F43: =INDEX(abo.iden.tot.eop,n°mes) -> 24960 | G43: [Abo/mes] | H43: =INDEX(abo.iden.tot.avg,n°mes) -> 24960 | I43: [%] | J43: =SUM(J40:J42) -> 1 | K43: [Abo/año] | L43: =INDEX(abo.iden.tot.eop,n°mes) -> 24960 | M43: [Abo/año] | N43: =(INDEX(abo.iden.tot.eop,n°mes)+INDEX(abo.iden.tot.eop,n°mes-12))/2 -> 24960 | O43: [%] | P43: =SUM(P40:P42) -> 1
B44: Abonados Fijo Móvil | F44: EOP | H44: AVG | J44: Distribución | L44: EOP | N44: AVG | P44: Distribución
C45: id | D45: Tipo | F45: =INDEX(añomes,n°mes) -> 201606 | H45: =INDEX(añomes,n°mes) -> 201606 | J45: =INDEX(añomes,n°mes) -> 201606 | L45: Últimos 12 meses | N45: Últimos 12 meses | P45: Últimos 12 meses
C46: 1 | D46: Prepago | E46: [Abo/mes] | F46: =INDEX(abo.fmo.pre.eop,n°mes) -> 2080 | G46: [Abo/mes] | H46: =INDEX(abo.fmo.pre.avg,n°mes) -> 2080 | I46: [%] | J46: =H46/H$49 -> 1 | K46: [Abo/año] | L46: =INDEX(abo.fmo.pre.eop,n°mes) -> 2080 | M46: [Abo/año] | N46: =(INDEX(abo.fmo.pre.eop,n°mes)+INDEX(abo.fmo.pre.eop,n°mes-12))/2 -> 2080 | O46: [%] | P46: =N46/N$49 -> 1
C47: 2 | D47: Control | E47: [Abo/mes] | G47: [Abo/mes] | I47: [%] | J47: =H47/H$49 -> 0 | K47: [Abo/año] | M47: [Abo/año] | O47: [%] | P47: =N47/N$49 -> 0
C48: 3 | D48: Postpago | E48: [Abo/mes] | G48: [Abo/mes] | I48: [%] | J48: =H48/H$49 -> 0 | K48: [Abo/año] | M48: [Abo/año] | O48: [%] | P48: =N48/N$49 -> 0
C49: 4 | D49: Total | E49: [Abo/mes] | F49: =SUM(F46:F48) -> 2080 | G49: [Abo/mes] | H49: =SUM(H46:H48) -> 2080 | I49: [%] | J49: =SUM(J46:J48) -> 1 | K49: [Abo/año] | L49: =SUM(L46:L48) -> 2080 | M49: [Abo/año] | N49: =SUM(N46:N48) -> 2080 | O49: [%] | P49: =SUM(P46:P48) -> 1
B50: Abonados Banda Ancha Móvil | F50: EOP | H50: AVG | J50: Distribución | L50: EOP | N50: AVG | P50: Distribución
C51: id | D51: Tipo | F51: =INDEX(añomes,n°mes) -> 201606 | H51: =INDEX(añomes,n°mes) -> 201606 | J51: =INDEX(añomes,n°mes) -> 201606 | L51: Últimos 12 meses | N51: Últimos 12 meses | P51: Últimos 12 meses
C52: 1 | D52: Prepago | E52: [Abo/mes] | F52: =INDEX(abo.bam.pre.eop,n°mes) -> 6509 | G52: [Abo/mes] | H52: =INDEX(abo.bam.pre.avg,n°mes) -> 6370.5 | I52: [%] | J52: =H52/H$55 -> 0.2916828827 | K52: [Abo/año] | L52: =INDEX(abo.bam.pre.eop,n°mes) -> 6509 | M52: [Abo/año] | N52: =(INDEX(abo.bam.pre.eop,n°mes)+INDEX(abo.bam.pre.eop,n°mes-12))/2 -> 13119.5 | O52: [%] | P52: =N52/N$55 -> 0.4588922507
C53: 2 | D53: Control | E53: [Abo/mes] | F53: =INDEX(abo.bam.con.eop,n°mes) -> 6110 | G53: [Abo/mes] | H53: =INDEX(abo.bam.con.avg,n°mes) -> 6110 | I53: [%] | J53: =H53/H$55 -> 0.2797555001 | K53: [Abo/año] | L53: =INDEX(abo.bam.con.eop,n°mes) -> 6110 | M53: [Abo/año] | N53: =(INDEX(abo.bam.con.eop,n°mes)+INDEX(abo.bam.con.eop,n°mes-12))/2 -> 6110 | O53: [%] | P53: =N53/N$55 -> 0.2137148254
C54: 3 | D54: Postpago | E54: [Abo/mes] | F54: =INDEX(abo.bam.pos.eop,n°mes) -> 9360 | G54: [Abo/mes] | H54: =INDEX(abo.bam.pos.avg,n°mes) -> 9360 | I54: [%] | J54: =H54/H$55 -> 0.4285616172 | K54: [Abo/año] | L54: =INDEX(abo.bam.pos.eop,n°mes) -> 9360 | M54: [Abo/año] | N54: =(INDEX(abo.bam.pos.eop,n°mes)+INDEX(abo.bam.pos.eop,n°mes-12))/2 -> 9360 | O54: [%] | P54: =N54/N$55 -> 0.327392924
C55: 4 | D55: Total | E55: [Abo/mes] | F55: =INDEX(abo.bam.tot.eop,n°mes) -> 21979 | G55: [Abo/mes] | H55: =INDEX(abo.bam.tot.avg,n°mes) -> 21840.5 | I55: [%] | J55: =SUM(J52:J54) -> 1 | K55: [Abo/año] | L55: =INDEX(abo.bam.tot.eop,n°mes) -> 21979 | M55: [Abo/año] | N55: =(INDEX(abo.bam.tot.eop,n°mes)+INDEX(abo.bam.tot.eop,n°mes-12))/2 -> 28589.5 | O55: [%] | P55: =SUM(P52:P54) -> 1
B57: Tráficos de Voz a nivel nacional por tipo de origen/destino
B59: Total Tráficos | F59: MOU | H59: Tráfico Mes | J59: Distribución | L59: MOU | N59: Tráfico Año | P59: Distribución
C60: id | D60: Tipo | F60: =INDEX(añomes,n°mes) -> 201606 | H60: =INDEX(añomes,n°mes) -> 201606 | J60: =INDEX(añomes,n°mes) -> 201606 | L60: Últimos 12 meses | N60: Últimos 12 meses | P60: Últimos 12 meses
C61: 1 | D61: Saliente a Fijo | E61: [Min/Abo/Mes] | F61: =INDEX(mou.tot.sal.fijo,n°mes) -> 40.25919732 | G61: [Min/Mes] | H61: =H71+H81+H91 -> 1926000 | I61: [%] | J61: =H61/SUM($H$61:$H$64) -> 0.08967315392 | K61: [Min/Abo/Mes] | L61: =N61/($N$13+$N$17+$N$18)/12 -> 40.25919732 | M61: [Min/Año] | N61: =N71+N81+N91 -> 23112000 | O61: [%] | P61: =N61/SUM($N$61:$N$64) -> 0.08967315392
C62: 2 | D62: Saliente a Móvil (OffNet) | E62: [Min/Abo/Mes] | F62: =INDEX(mou.tot.sal.movil,n°mes) -> 3.177257525 | G62: [Min/Mes] | H62: =H72+H82+H92 -> 152000 | I62: [%] | J62: =H62/SUM($H$61:$H$64) -> 0.007077009032 | K62: [Min/Abo/Mes] | L62: =N62/($N$13+$N$17+$N$18)/12 -> 3.177257525 | M62: [Min/Año] | N62: =N72+N82+N92 -> 1824000 | O62: [%] | P62: =N62/SUM($N$61:$N$64) -> 0.007077009032
C63: 3 | D63: Saliente a Móvil (OnNet) | E63: [Min/Abo/Mes] | F63: =INDEX(mou.tot.sal.onnet,n°mes) -> 384.6153846 | G63: [Min/Mes] | H63: 18400000 | I63: [%] | J63: 0.8566905671 | K63: [Min/Abo/Mes] | L63: =N63/($N$13+$N$17+$N$18)/12 -> 384.6153846 | M63: [Min/Año] | N63: =N73+N83+N93 -> 220800000 | O63: [%] | P63: =N63/SUM($N$61:$N$64) -> 0.8566905671
C64: 4 | D64: Saliente a LDI | E64: [Min/Abo/Mes] | F64: =INDEX(mou.tot.sal.ldi,n°mes) -> 20.90301003 | G64: [Min/Mes] | H64: 1000000 | I64: [%] | J64: 0.04655926995 | K64: [Min/Abo/Mes] | L64: 20.90301003 | M64: [Min/Año] | N64: 12000000 | O64: [%] | P64: =N64/SUM($N$61:$N$64) -> 0.04655926995
C65: 5 | D65: Entrante desde Fijo | E65: [Min/Abo/Mes] | F65: =INDEX(mou.tot.ent.fijo,n°mes) -> 40.25919732 | G65: [Min/Mes] | H65: 1926000 | I65: [%] | J65: =H65/SUM($H$65:$H$68) -> 0.4141044937 | K65: [Min/Abo/Mes] | L65: 40.25919732 | M65: [Min/Año] | N65: 23112000 | O65: [%] | P65: =N65/SUM($N$65:$N$68) -> 0.4141044937
C66: 6 | D66: Entrante desde Móvil (OffNet) | E66: [Min/Abo/Mes] | F66: =INDEX(mou.tot.ent.movil,n°mes) -> 15.15468227 | G66: [Min/Mes] | H66: 725000 | I66: [%] | J66: =H66/SUM($H$65:$H$68) -> 0.1558804558 | K66: [Min/Abo/Mes] | L66: 15.15468227 | M66: [Min/Año] | N66: 8700000 | O66: [%] | P66: =N66/SUM($N$65:$N$68) -> 0.1558804558
C67: 7 | D67: Entrante desde Público (OffNet) | E67: [Min/Abo/Mes] | G67: [Min/Mes] | H67: 0 | I67: [%] | J67: =H67/SUM($H$65:$H$68) -> 0 | K67: [Min/Abo/Mes] | L67: 0 | M67: [Min/Año] | N67: 0 | O67: [%] | P67: =N67/SUM($N$65:$N$68) -> 0
C68: 8 | D68: Entrante desde LDI | E68: [Min/Abo/Mes] | F68: =INDEX(mou.tot.ent.ldi,n°mes) -> 41.80602007 | G68: [Min/Mes] | H68: 2000000 | I68: [%] | J68: 0.4300150505 | K68: [Min/Abo/Mes] | L68: 41.80602007 | M68: [Min/Año] | N68: 24000000 | O68: [%] | P68: 0.4300150505
B69: Tráficos GSM/3G/4G | F69: MOU | H69: Tráfico | J69: Distribución | L69: MOU | N69: Tráfico Año | P69: Distribución
C70: id | D70: Tipo | F70: =INDEX(añomes,n°mes) -> 201606 | H70: =INDEX(añomes,n°mes) -> 201606 | J70: =INDEX(añomes,n°mes) -> 201606 | L70: Últimos 12 meses | N70: Últimos 12 meses | P70: Últimos 12 meses
C71: 1 | D71: Saliente a Fijo | E71: [Min/Abo/Mes] | F71: =INDEX(mou.mov.sal.fijo,n°mes) -> 30.86538462 | G71: [Min/Mes] | H71: =F71*INDEX(abo.mov.tot.avg,n°mes) -> 642000 | I71: [%] | J71: =H71/SUM($H$71:$H$74) -> 0.06745268582 | K71: [Min/Abo/Mes] | L71: =N71/$N$13/12 -> 30.86538462 | M71: [Min/Año] | N71: =SUM(INDEX(traf.mov.sal.fijo,n°mes):INDEX(traf.mov.sal.fijo,n°mes-11)) -> 7704000 | O71: [%] | P71: =N71/SUM($N$71:$N$74) -> 0.06745268582
C72: 2 | D72: Saliente a Móvil (OffNet) | E72: [Min/Abo/Mes] | F72: =INDEX(mou.mov.sal.movil,n°mes) -> 1.971153846 | G72: [Min/Mes] | H72: =F72*INDEX(abo.mov.tot.avg,n°mes) -> 41000 | I72: [%] | J72: =H72/SUM($H$71:$H$74) -> 0.004307726041 | K72: [Min/Abo/Mes] | L72: =N72/$N$13/12 -> 1.971153846 | M72: [Min/Año] | N72: =SUM(INDEX(traf.mov.sal.movil,n°mes):INDEX(traf.mov.sal.movil,n°mes-11)) -> 492000 | O72: [%] | P72: =N72/SUM($N$71:$N$74) -> 0.004307726041
C73: 3 | D73: Saliente a Móvil (OnNet) | E73: [Min/Abo/Mes] | F73: =INDEX(mou.mov.sal.onnet,n°mes) -> 403.8461538 | G73: [Min/Mes] | H73: 8400000 | I73: [%] | J73: =H73/SUM($H$71:$H$74) -> 0.882558506 | K73: [Min/Abo/Mes] | L73: =N73/$N$13/12 -> 403.8461538 | M73: [Min/Año] | N73: =SUM(INDEX(traf.mov.sal.onnet,n°mes):INDEX(traf.mov.sal.onnet,n°mes-11)) -> 100800000 | O73: [%] | P73: =N73/SUM($N$71:$N$74) -> 0.882558506
C74: 4 | D74: Saliente a LDI | E74: [Min/Abo/Mes] | F74: =INDEX(mou.mov.sal.ldi,n°mes) -> 20.90301003 | G74: [Min/Mes] | H74: 434782.6087 | I74: [%] | J74: =H74/SUM($H$71:$H$74) -> 0.04568108209 | K74: [Min/Abo/Mes] | L74: 20.90301003 | M74: [Min/Año] | N74: =SUM(INDEX(traf.mov.sal.ldi,n°mes):INDEX(traf.mov.sal.ldi,n°mes-11)) -> 5217391.304 | O74: [%] | P74: 0.04568108209
C75: 5 | D75: Entrante desde Fijo | E75: [Min/Abo/Mes] | F75: =INDEX(mou.mov.ent.fijo,n°mes) -> 30.86538462 | G75: [Min/Mes] | H75: 642000 | I75: [%] | J75: =H75/SUM($H$75:$H$78) -> 0.2982488032 | K75: [Min/Abo/Mes] | L75: 30.86538462 | M75: [Min/Año] | N75: =SUM(INDEX(traf.mov.ent.fijo,n°mes):INDEX(traf.mov.ent.fijo,n°mes-11)) -> 7704000 | O75: [%] | P75: =N75/SUM($N$75:$N$78) -> 0.2982488032
C76: 6 | D76: Entrante desde Móvil (OffNet) | E76: [Min/Abo/Mes] | F76: =INDEX(mou.mov.ent.movil,n°mes) -> 30.81730769 | G76: [Min/Mes] | H76: 641000 | I76: [%] | J76: =H76/SUM($H$75:$H$78) -> 0.2977842412 | K76: [Min/Abo/Mes] | L76: 30.81730769 | M76: [Min/Año] | N76: =SUM(INDEX(traf.mov.ent.movil,n°mes):INDEX(traf.mov.ent.movil,n°mes-11)) -> 7692000 | O76: [%] | P76: =N76/SUM($N$75:$N$78) -> 0.2977842412
C77: 7 | D77: Entrante desde Público (OffNet) | E77: [Min/Abo/Mes] | G77: [Min/Mes] | H77: 0 | I77: [%] | J77: =H77/SUM($H$75:$H$78) -> 0 | K77: [Min/Abo/Mes] | L77: 0 | M77: [Min/Año] | O77: [%] | P77: =N77/SUM($N$75:$N$78) -> 0
C78: 8 | D78: Entrante desde LDI | E78: [Min/Abo/Mes] | F78: =INDEX(mou.mov.ent.ldi,n°mes) -> 41.80602007 | G78: [Min/Mes] | H78: 869565.2174 | I78: [%] | J78: 0.4039669555 | K78: [Min/Abo/Mes] | L78: 41.80602007 | M78: [Min/Año] | N78: =SUM(INDEX(traf.mov.ent.ldi,n°mes):INDEX(traf.mov.ent.ldi,n°mes-11)) -> 10434782.61 | O78: [%] | P78: 0.4039669555
B79: Tráficos iDEN | F79: MOU | H79: Tráfico | J79: Distribución | L79: MOU | N79: Tráfico Año | P79: Distribución
C80: id | D80: Tipo | F80: =INDEX(añomes,n°mes) -> 201606 | H80: =INDEX(añomes,n°mes) -> 201606 | J80: =INDEX(añomes,n°mes) -> 201606 | L80: Últimos 12 meses | N80: Últimos 12 meses | P80: Últimos 12 meses
C81: 1 | D81: Saliente a Fijo | E81: [Min/Abo/Mes] | F81: =INDEX(mou.iden.sal.fijo,n°mes) -> 25.72115385 | G81: [Min/Mes] | H81: =F81*INDEX(abo.iden.tot.avg,n°mes) -> 642000 | I81: [%] | J81: =H81/SUM($H$81:$H$84) -> 0.06684200282 | K81: [Min/Abo/Mes] | L81: =N81/$N$17/12 -> 25.72115385 | M81: [Min/Año] | N81: =SUM(INDEX(traf.iden.sal.fijo,n°mes):INDEX(traf.iden.sal.fijo,n°mes-11)) -> 7704000 | O81: [%] | P81: =N81/SUM($N$81:$N$84) -> 0.06684200282
C82: 2 | D82: Saliente a Móvil (OffNet) | E82: [Min/Abo/Mes] | F82: =INDEX(mou.iden.sal.movil,n°mes) -> 1.642628205 | G82: [Min/Mes] | H82: 41000 | I82: [%] | J82: =H82/SUM($H$81:$H$84) -> 0.004268726037 | K82: [Min/Abo/Mes] | L82: =N82/$N$17/12 -> 1.642628205 | M82: [Min/Año] | N82: =SUM(INDEX(traf.iden.sal.movil,n°mes):INDEX(traf.iden.sal.movil,n°mes-11)) -> 492000 | O82: [%] | P82: =N82/SUM($N$81:$N$84) -> 0.004268726037
C83: 3 | D83: Saliente a Móvil (OnNet) | E83: [Min/Abo/Mes] | F83: =INDEX(mou.iden.sal.onnet,n°mes) -> 336.5384615 | G83: [Min/Mes] | H83: 8400000 | I83: [%] | J83: =H83/SUM($H$81:$H$84) -> 0.8745682611 | K83: [Min/Abo/Mes] | L83: 336.5384615 | M83: [Min/Año] | N83: =SUM(INDEX(traf.iden.sal.onnet,n°mes):INDEX(traf.iden.sal.onnet,n°mes-11)) -> 100800000 | O83: [%] | P83: =N83/SUM($N$81:$N$84) -> 0.8745682611
C84: 4 | D84: Saliente a LDI | E84: [Min/Abo/Mes] | F84: =INDEX(mou.iden.sal.ldi,n°mes) -> 20.90301003 | G84: [Min/Mes] | H84: 521739.1304 | I84: [%] | J84: 0.05432101001 | K84: [Min/Abo/Mes] | L84: 20.90301003 | M84: [Min/Año] | N84: =SUM(INDEX(traf.iden.sal.ldi,n°mes):INDEX(traf.iden.sal.ldi,n°mes-11)) -> 6260869.565 | O84: [%] | P84: 0.05432101001
C85: 5 | D85: Entrante desde Fijo | E85: [Min/Abo/Mes] | F85: =INDEX(mou.iden.ent.fijo,n°mes) -> 25.72115385 | G85: [Min/Mes] | H85: 642000 | I85: [%] | J85: =H85/SUM($H$85:$H$88) -> 0.3716399879 | K85: [Min/Abo/Mes] | L85: 25.72115385 | M85: [Min/Año] | N85: =SUM(INDEX(traf.iden.ent.fijo,n°mes):INDEX(traf.iden.ent.fijo,n°mes-11)) -> 7704000 | O85: [%] | P85: =N85/SUM($N$85:$N$88) -> 0.3716399879
C86: 6 | D86: Entrante desde Móvil (OffNet) | E86: [Min/Abo/Mes] | F86: =INDEX(mou.iden.ent.movil,n°mes) -> 1.682692308 | G86: [Min/Mes] | H86: 42000 | I86: [%] | J86: =H86/SUM($H$85:$H$88) -> 0.02431289641 | K86: [Min/Abo/Mes] | L86: 1.682692308 | M86: [Min/Año] | N86: =SUM(INDEX(traf.iden.ent.movil,n°mes):INDEX(traf.iden.ent.movil,n°mes-11)) -> 504000 | O86: [%] | P86: =N86/SUM($N$85:$N$88) -> 0.02431289641
C87: 7 | D87: Entrante desde Público (OffNet) | E87: [Min/Abo/Mes] | G87: [Min/Mes] | H87: 0 | I87: [%] | J87: =H87/SUM($H$85:$H$88) -> 0 | K87: [Min/Abo/Mes] | L87: 0 | M87: [Min/Año] | O87: [%] | P87: =N87/SUM($N$85:$N$88) -> 0
C88: 8 | D88: Entrante desde LDI | E88: [Min/Abo/Mes] | F88: =INDEX(mou.iden.ent.ldi,n°mes) -> 41.80602007 | G88: [Min/Mes] | H88: 1043478.261 | I88: [%] | J88: 0.6040471157 | K88: [Min/Abo/Mes] | L88: 41.80602007 | M88: [Min/Año] | N88: =SUM(INDEX(traf.iden.ent.ldi,n°mes):INDEX(traf.iden.ent.ldi,n°mes-11)) -> 12521739.13 | O88: [%] | P88: =N88/SUM($N$85:$N$88) -> 0.6040471157
B89: Tráficos Fijo Móvil | F89: MOU | H89: Tráfico | J89: Distribución | L89: MOU | N89: Tráfico Año | P89: Distribución
C90: id | D90: Tipo | F90: =INDEX(añomes,n°mes) -> 201606 | H90: =INDEX(añomes,n°mes) -> 201606 | J90: =INDEX(añomes,n°mes) -> 201606 | L90: Últimos 12 meses | N90: Últimos 12 meses | P90: Últimos 12 meses
C91: 1 | D91: Saliente a Fijo | E91: [Min/Abo/Mes] | F91: =INDEX(mou.fmo.sal.fijo,n°mes) -> 308.6538462 | G91: [Min/Mes] | H91: =F91*INDEX(abo.fmo.pre.avg,n°mes) -> 642000 | I91: [%] | J91: =H91/SUM($H$91:$H$94) -> 0.2725561134 | K91: [Min/Abo/Mes] | L91: =N91/$N$18/12 -> 308.6538462 | M91: [Min/Año] | N91: =SUM(INDEX(traf.fmo.sal.fijo,n°mes):INDEX(traf.fmo.sal.fijo,n°mes-11)) -> 7704000 | O91: [%] | P91: =N91/SUM($N$91:$N$94) -> 0.2725561134
C92: 2 | D92: Saliente a Móvil (OffNet) | E92: [Min/Abo/Mes] | F92: =INDEX(mou.fmo.sal.movil,n°mes) -> 33.65384615 | G92: [Min/Mes] | H92: 70000 | I92: [%] | J92: =H92/SUM($H$91:$H$94) -> 0.02971795629 | K92: [Min/Abo/Mes] | L92: =N92/$N$18/12 -> 33.65384615 | M92: [Min/Año] | N92: =SUM(INDEX(traf.fmo.sal.movil,n°mes):INDEX(traf.fmo.sal.movil,n°mes-11)) -> 840000 | O92: [%] | P92: =N92/SUM($N$91:$N$94) -> 0.02971795629
C93: 3 | D93: Saliente a Móvil (OnNet) | E93: [Min/Abo/Mes] | F93: =INDEX(mou.fmo.sal.onnet,n°mes) -> 769.2307692 | G93: [Min/Mes] | H93: 1600000 | I93: [%] | J93: 0.6792675724 | K93: [Min/Abo/Mes] | L93: 769.2307692 | M93: [Min/Año] | N93: =SUM(INDEX(traf.fmo.sal.onnet,n°mes):INDEX(traf.fmo.sal.onnet,n°mes-11)) -> 19200000 | O93: [%] | P93: 0.6792675724
C94: 4 | D94: Saliente a LDI | E94: [Min/Abo/Mes] | F94: =INDEX(mou.fmo.sal.ldi,n°mes) -> 20.90301003 | G94: [Min/Mes] | H94: 43478.26087 | I94: [%] | J94: =H94/SUM($H$91:$H$94) -> 0.01845835794 | K94: [Min/Abo/Mes] | L94: 20.90301003 | M94: [Min/Año] | N94: =SUM(INDEX(traf.fmo.sal.ldi,n°mes):INDEX(traf.fmo.sal.ldi,n°mes-11)) -> 521739.1304 | O94: [%] | P94: 0.01845835794
C95: 5 | D95: Entrante desde Fijo | E95: [Min/Abo/Mes] | F95: =INDEX(mou.fmo.ent.fijo,n°mes) -> 308.6538462 | G95: [Min/Mes] | H95: 642000 | I95: [%] | J95: =H95/SUM($H$95:$H$98) -> 0.8327317843 | K95: [Min/Abo/Mes] | L95: 308.6538462 | M95: [Min/Año] | N95: =SUM(INDEX(traf.fmo.ent.fijo,n°mes):INDEX(traf.fmo.ent.fijo,n°mes-11)) -> 7704000 | O95: [%] | P95: =N95/SUM($N$95:$N$98) -> 0.8327317843
C96: 6 | D96: Entrante desde Móvil (OffNet) | E96: [Min/Abo/Mes] | F96: =INDEX(mou.fmo.ent.movil,n°mes) -> 20.19230769 | G96: [Min/Mes] | H96: 42000 | I96: [%] | J96: =H96/SUM($H$95:$H$98) -> 0.05447778028 | K96: [Min/Abo/Mes] | L96: 20.19230769 | M96: [Min/Año] | N96: =SUM(INDEX(traf.fmo.ent.movil,n°mes):INDEX(traf.fmo.ent.movil,n°mes-11)) -> 504000 | O96: [%] | P96: =N96/SUM($N$95:$N$98) -> 0.05447778028
C97: 7 | D97: Entrante desde Público (OffNet) | E97: [Min/Abo/Mes] | G97: [Min/Mes] | H97: 0 | I97: [%] | J97: =H97/SUM($H$95:$H$98) -> 0 | K97: [Min/Abo/Mes] | L97: 0 | M97: [Min/Año] | O97: [%] | P97: 0
C98: 8 | D98: Entrante desde LDI | E98: [Min/Abo/Mes] | F98: =INDEX(mou.fmo.ent.ldi,n°mes) -> 41.80602007 | G98: [Min/Mes] | H98: 86956.52174 | I98: [%] | J98: 0.1127904354 | K98: [Min/Abo/Mes] | L98: 41.80602007 | M98: [Min/Año] | N98: =SUM(INDEX(traf.fmo.ent.ldi,n°mes):INDEX(traf.fmo.ent.ldi,n°mes-11)) -> 1043478.261 | O98: [%] | P98: 0.1127904354
B100: Tráfico SMS
B102: Mensajería | F102: SMS/Abo | H102: Tráfico | J102: Distribución | L102: SMS/Abo | N102: Tráfico Año
C103: id | D103: SMS | F103: =INDEX(añomes,n°mes) -> 201606 | H103: =INDEX(añomes,n°mes) -> 201606 | J103: =INDEX(añomes,n°mes) -> 201606 | L103: Últimos 12 meses | N103: Últimos 12 meses
C104: 1 | D104: SMS OnNet | E104: [SMS/Abo/Mes] | F104: =INDEX(sms.uni.onnet,n°mes) -> 22.81975962 | G104: [Mensajes] | H104: =INDEX(sms.onnet,n°mes) -> 474651 | I104: [%] | J104: =+H104/H$107 -> 0.002062783595 | K104: [Min/Abo/Mes] | L104: =N104/$N$13/12 -> 27.34039663 | M104: [SMS/Año] | N104: =SUM(INDEX(sms.onnet,n°mes-11):INDEX(sms.onnet,n°mes)) -> 6824163
C105: 2 | D105: SMS OffNet | E105: [SMS/Abo/Mes] | F105: =INDEX(sms.uni.offnet,n°mes) -> 6721.910048 | G105: [Mensajes] | H105: =INDEX(sms.offnet,n°mes) -> 139815729 | I105: [%] | J105: =+H105/H$107 -> 0.6076245328 | K105: [Min/Abo/Mes] | L105: =N105/$N$13/12 -> 5056.89248 | M105: [SMS/Año] | N105: =SUM(INDEX(sms.offnet,n°mes-11):INDEX(sms.offnet,n°mes)) -> 1262200363
C106: 3 | D106: SMS Entrante | E106: [SMS/Abo/Mes] | F106: =INDEX(sms.uni.entrada,n°mes) -> 4317.874952 | G106: [Mensajes] | H106: =INDEX(sms.entrada,n°mes) -> 89811799 | I106: [%] | J106: 0.3903126837 | K106: [Min/Abo/Mes] | L106: 3521.468686 | M106: [SMS/Año] | N106: =SUM(INDEX(sms.entrada,n°mes-11):INDEX(sms.entrada,n°mes)) -> 878958584
C107: 3 | D107: SMS Total | E107: [SMS/Abo/Mes] | F107: =SUM(F104:F106) -> 11062.60476 | G107: [Mensajes] | H107: =SUM(H104:H106) -> 230102179 | I107: [%] | J107: 1 | K107: [Min/Abo/Mes] | L107: 8605.701563 | M107: [SMS/Año] | N107: =SUM(N104:N106) -> 2147983110
B109: Tráficos de Datos a nivel nacional por tipo de origen/destino
B111: Datos Móviles | F111: BOU | H111: Tráfico | J111: Distribución | L111: BOU | N111: Tráfico Año
C112: id | D112: Tipo | F112: =INDEX(añomes,n°mes) -> 201606 | H112: =INDEX(añomes,n°mes) -> 201606 | J112: =INDEX(añomes,n°mes) -> 201606 | L112: Últimos 12 meses | N112: Últimos 12 meses
C113: 1 | D113: DL | E113: [MB/Abo/Mes] | F113: =INDEX(bou.mov.dl,n°mes) -> 11298.07692 | G113: [MB/mes] | H113: =F113*INDEX(abo.mov.tot.avg,n°mes) -> 235000000 | I113: [%] | J113: =+H113/H$115 -> 0.5 | K113: [MB/Abo/Mes] | L113: =N113/$N$13/12 -> 11298.07692 | M113: [MB/Año] | N113: =SUM(INDEX(datos.mov.dl,n°mes-11):INDEX(datos.mov.dl,n°mes)) -> 2820000000
C114: 2 | D114: UL | E114: [MB/Abo/Mes] | F114: =INDEX(bou.mov.ul,n°mes) -> 11298.07692 | G114: [MB/mes] | H114: =F114*INDEX(abo.mov.tot.avg,n°mes) -> 235000000 | I114: [%] | J114: =+H114/H$115 -> 0.5 | K114: [MB/Abo/Mes] | L114: =N114/$N$13/12 -> 11298.07692 | M114: [MB/Año] | N114: =SUM(INDEX(datos.mov.ul,n°mes-11):INDEX(datos.mov.ul,n°mes)) -> 2820000000
C115: 3 | D115: DL+UL | E115: [MB/Abo/Mes] | F115: =SUM(F113:F114) -> 22596.15385 | G115: [MB/mes] | H115: =F115*INDEX(abo.mov.tot.avg,n°mes) -> 470000000 | I115: [%] | J115: 1 | K115: [MB/Abo/Mes] | L115: =N115/$N$13/12 -> 22596.15385 | M115: [MB/Año] | N115: =SUM(N113:N114) -> 5640000000
B116: Banda Ancha Móvil | F116: BOU | H116: Tráfico | J116: Distribución | L116: BOU | N116: Tráfico Año
C117: id | D117: Tipo | F117: =INDEX(añomes,n°mes) -> 201606 | H117: =INDEX(añomes,n°mes) -> 201606 | J117: =INDEX(añomes,n°mes) -> 201606 | L117: Últimos 12 meses | N117: Últimos 12 meses
C118: 1 | D118: DL | E118: [MB/Abo/Mes] | F118: =INDEX(bou.bam.dl,n°mes) -> 1877.2464 | G118: [MB/mes] | H118: =F118*INDEX(abo.bam.tot.avg,n°mes) -> 41000000 | I118: [%] | J118: =+H118/H$120 -> 0.7961165049 | K118: [MB/Abo/Mes] | L118: =N118/$N$19/12 -> 1434.092936 | M118: [MB/Año] | N118: =SUM(INDEX(datos.bam.dl,n°mes-11):INDEX(datos.bam.dl,n°mes)) -> 492000000
C119: 2 | D119: UL | E119: [MB/Abo/Mes] | F119: =INDEX(bou.bam.ul,n°mes) -> 480.7582244 | G119: [MB/mes] | H119: =F119*INDEX(abo.bam.tot.avg,n°mes) -> 10500000 | I119: [%] | J119: =+H119/H$120 -> 0.2038834951 | K119: [MB/Abo/Mes] | L119: =N119/$N$19/12 -> 367.2677032 | M119: [MB/Año] | N119: =SUM(INDEX(datos.bam.ul,n°mes-11):INDEX(datos.bam.ul,n°mes)) -> 126000000
C120: 3 | D120: DL+UL | E120: [MB/Abo/Mes] | F120: =SUM(F118:F119) -> 2358.004624 | G120: [MB/mes] | H120: =F120*INDEX(abo.bam.tot.avg,n°mes) -> 51500000 | I120: [%] | J120: 1 | K120: [MB/Abo/Mes] | L120: =N120/$N$19/12 -> 1801.360639 | M120: [MB/Año] | N120: =SUM(N118:N119) -> 618000000

Sheet Dda.Series
F2: ='Panel de Control'!$F$2 -> Modelo Cargo de Terminación Móvil
F3: Estadísticas de Demanda y Proyección
B6: Abonados por Departamento
B7: Incluye: GSM/3G/4G + iDEN + BAM + Fijo-Móvil
B9: Abonados por Departamento EOP
B11: id | C11: Departamento | E11: 201401 | F11: 201402 | G11: 201403 | H11: 201404 | I11: 201405 | J11: 201406 | K11: 201407 | L11: 201408 | M11: 201409 | N11: 201410 | O11: 201411 | P11: 201412 | Q11: 201501 | R11: 201502 | S11: 201503 | T11: 201504 | U11: 201505 | V11: 201506 | W11: 201507 | X11: 201508 | Y11: 201509 | Z11: 201510 | AA11: 201511 | AB11: 201512 | AC11: 201601 | AD11: 201602 | AE11: 201603 | AF11: 201604 | AG11: 201605 | AH11: 201606 | AI11: 201607 | AJ11: 201608 | AK11: 201609 | AL11: 201610 | AM11: 201611 | AN11: 201612 | AO11: 201701 | AP11: 201702 | AQ11: 201703 | AR11: 201704 | AS11: 201705 | AT11: 201706 | AU11: 201707 | AV11: 201708 | AW11: 201709 | AX11: 201710 | AY11: 201711 | AZ11: 201712 | BA11: 201801 | BB11: 201802 | BC11: 201803 | BD11: 201804 | BE11: 201805 | BF11: 201806 | BG11: 201807 | BH11: 201808 | BI11: 201809 | BJ11: 201810 | BK11: 201811 | BL11: 201812 | BM11: 201901 | BN11: 201902 | BO11: 201903 | BP11: 201904 | BQ11: 201905 | BR11: 201906 | BS11: 201907 | BT11: 201908 | BU11: 201909 | BV11: 201910 | BW11: 201911 | BX11: 201912 | BY11: 202001 | BZ11: 202002 | CA11: 202003 | CB11: 202004 | CC11: 202005 | CD11: 202006 | CE11: 202007 | CF11: 202008 | CG11: 202009 | CH11: 202010 | CI11: 202011 | CJ11: 202012 | CK11: 202101 | CL11: 202102 | CM11: 202103 | CN11: 202104 | CO11: 202105 | CP11: 202106 | CQ11: 202107 | CR11: 202108 | CS11: 202109 | CT11: 202110 | CU11: 202111 | CV11: 202112
B12: 1 | C12: Amazonas | D12: [Abonados] | E12: =E111+E256+E392+E528 -> 2440 | F12: 2440 | G12: 2440 | H12: 2438 | I12: 2437 | J12: 2435 | K12: 2435 | L12: 2435 | M12: 2435 | N12: 2435 | O12: 2435 | P12: 2435 | Q12: 2435 | R12: 2439 | S12: 2443 | T12: 2451 | U12: 2452 | V12: 2459 | W12: 2466 | X12: 2470 | Y12: 2471 | Z12: 2471 | AA12: 2456 | AB12: 2452 | AC12: 2458 | AD12: 2462 | AE12: 2474 | AF12: 2483 | AG12: 2470 | AH12: 2484 | AI12: 2497 | AJ12: 2508 | AK12: 2526 | AL12: 2527.92708 | AM12: 2529.85416 | AN12: 2531.781239 | AO12: 2533.708319 | AP12: 2535.635399 | AQ12: 2537.562479 | AR12: 2539.489559 | AS12: 2541.416638 | AT12: 2543.343718 | AU12: 2545.270798 | AV12: 2547.197878 | AW12: 2549.124958 | AX12: 2551.052037 | AY12: 2552.979117 | AZ12: 2554.906197 | BA12: 2556.833277 | BB12: 2558.760357 | BC12: 2560.687436 | BD12: 2562.614516 | BE12: 2564.541596 | BF12: 2566.468676 | BG12: 2568.395756 | BH12: 2570.322835 | BI12: 2572.249915 | BJ12: 2574.176995 | BK12: 2576.104075 | BL12: 2578.031154 | BM12: 2579.958234 | BN12: 2581.885314 | BO12: 2583.812394 | BP12: 2585.739474 | BQ12: =BQ111+BQ256+BQ392+BQ528 -> 2587.666553 | BR12: 2589.593633 | BS12: 2591.520713 | BT12: 2593.447793 | BU12: 2595.374873 | BV12: 2597.301952 | BW12: 2599.229032 | BX12: 2601.156112 | BY12: 2603.083192 | BZ12: 2605.010272 | CA12: 2606.937351 | CB12: 2608.864431 | CC12: 2610.791511 | CD12: 2612.718591 | CE12: 2614.645671 | CF12: 2616.57275 | CG12: 2618.49983 | CH12: 2620.42691 | CI12: 2622.35399 | CJ12: 2624.28107 | CK12: 2626.208149 | CL12: 2628.135229 | CM12: 2630.062309 | CN12: 2631.989389 | CO12: 2633.916469 | CP12: 2635.843548 | CQ12: 2637.770628 | CR12: 2639.697708 | CS12: 2641.624788 | CT12: 2643.551868 | CU12: 2645.478947 | CV12: 2647.406027
B13: 2 | C13: Ancash | D13: [Abonados] | E13: 7399 | F13: 7206 | G13: 7071 | H13: 6846 | I13: 5930 | J13: 4567 | K13: 4027 | L13: 2556 | M13: 2527 | N13: 2549 | O13: 2525 | P13: 2517 | Q13: 2554 | R13: 2627 | S13: 2738 | T13: 2847 | U13: 2972 | V13: 3177 | W13: 3466 | X13: 3486 | Y13: 3408 | Z13: 3233 | AA13: 2706 | AB13: 2668 | AC13: 2690 | AD13: 2706 | AE13: 2677 | AF13: 2721 | AG13: 2635 | AH13: 2626 | AI13: 2624 | AJ13: 2593 | AK13: 2600 | AL13: 2588.738724 | AM13: 2578.246031 | AN13: 2568.469467 | AO13: 2559.360155 | AP13: 2550.872554 | AQ13: 2542.964234 | AR13: 2535.595658 | AS13: 2528.729988 | AT13: 2522.332902 | AU13: 2516.372417 | AV13: 2510.818737 | AW13: 2505.644096 | AX13: 2500.822625 | AY13: 2496.330221 | AZ13: 2492.144423 | BA13: 2488.244307 | BB13: 2484.610375 | BC13: 2481.224459 | BD13: 2478.069632 | BE13: 2475.130123 | BF13: 2472.391236 | BG13: 2469.839278 | BH13: 2467.461492 | BI13: 2465.24599 | BJ13: 2463.181696 | BK13: 2461.258291 | BL13: 2459.466158 | BM13: 2457.796339 | BN13: 2456.240485 | BO13: 2454.790819 | BP13: 2453.440092 | BQ13: 2452.181553 | BR13: 2451.008909 | BS13: 2449.916299 | BT13: 2448.898259 | BU13: 2447.949701 | BV13: 2447.065881 | BW13: 2446.242383 | BX13: 2445.475089 | BY13: 2444.760162 | BZ13: 2444.09403 | CA13: 2443.473361 | CB13: 2442.895052 | CC13: 2442.356214 | CD13: 2441.854151 | CE13: 2441.386354 | CF13: 2440.950484 | CG13: 2440.544363 | CH13: 2440.165959 | CI13: 2439.813382 | CJ13: 2439.484868 | CK13: 2439.178775 | CL13: 2438.893573 | CM13: 2438.627836 | CN13: 2438.380235 | CO13: 2438.149534 | CP13: 2437.934578 | CQ13: 2437.734292 | CR13: 2437.547676 | CS13: 2437.373797 | CT13: 2437.211785 | CU13: 2437.06083 | CV13: 2436.920178
B14: 3 | C14: Apurímac | D14: [Abonados] | E14: 2440 | F14: 2440 | G14: 2438 | H14: 2438 | I14: 2435 | J14: 2435 | K14: 2435 | L14: 2435 | M14: 2435 | N14: 2435 | O14: 2435 | P14: 2437 | Q14: 2437 | R14: 2438 | S14: 2441 | T14: 2446 | U14: 2447 | V14: 2450 | W14: 2448 | X14: 2451 | Y14: 2456 | Z14: 2457 | AA14: 2449 | AB14: 2449 | AC14: 2446 | AD14: 2442 | AE14: 2443 | AF14: 2445 | AG14: 2446 | AH14: 2453 | AI14: 2454 | AJ14: 2459 | AK14: 2463 | AL14: 2463.546176 | AM14: 2464.092352 | AN14: 2464.638528 | AO14: 2465.184703 | AP14: 2465.730879 | AQ14: 2466.277055 | AR14: 2466.823231 | AS14: 2467.369407 | AT14: 2467.915583 | AU14: 2468.461759 | AV14: 2469.007934 | AW14: 2469.55411 | AX14: 2470.100286 | AY14: 2470.646462 | AZ14: 2471.192638 | BA14: 2471.738814 | BB14: 2472.28499 | BC14: 2472.831165 | BD14: 2473.377341 | BE14: 2473.923517 | BF14: 2474.469693 | BG14: 2475.015869 | BH14: 2475.562045 | BI14: 2476.108221 | BJ14: 2476.654397 | BK14: 2477.200572 | BL14: 2477.746748 | BM14: 2478.292924 | BN14: 2478.8391 | BO14: 2479.385276 | BP14: 2479.931452 | BQ14: 2480.477628 | BR14: 2481.023803 | BS14: 2481.569979 | BT14: 2482.116155 | BU14: 2482.662331 | BV14: 2483.208507 | BW14: 2483.754683 | BX14: 2484.300859 | BY14: 2484.847034 | BZ14: 2485.39321 | CA14: 2485.939386 | CB14: 2486.485562 | CC14: 2487.031738 | CD14: 2487.577914 | CE14: 2488.12409 | CF14: 2488.670265 | CG14: 2489.216441 | CH14: 2489.762617 | CI14: 2490.308793 | CJ14: 2490.854969 | CK14: 2491.401145 | CL14: 2491.947321 | CM14: 2492.493496 | CN14: 2493.039672 | CO14: 2493.585848 | CP14: 2494.132024 | CQ14: 2494.6782 | CR14: 2495.224376 | CS14: 2495.770552 | CT14: 2496.316728 | CU14: 2496.862903 | CV14: 2497.409079
B15: 4 | C15: Arequipa | D15: [Abonados] | E15: 4982 | F15: 4907 | G15: 4876 | H15: 4671 | I15: 4231 | J15: 3671 | K15: 3430 | L15: 2551 | M15: 2535 | N15: 2574 | O15: 2543 | P15: 2556 | Q15: 2591 | R15: 2679 | S15: 2828 | T15: 2986 | U15: 3152 | V15: 3468 | W15: 3627 | X15: 3973 | Y15: 4165 | Z15: 3936 | AA15: 3170 | AB15: 2984 | AC15: 2952 | AD15: 2891 | AE15: 2858 | AF15: 2906 | AG15: 2714 | AH15: 2721 | AI15: 2707 | AJ15: 2695 | AK15: 2721 | AL15: 2712.472803 | AM15: 2704.199848 | AN15: 2696.173554 | AO15: 2688.386567 | AP15: 2680.831751 | AQ15: 2673.502186 | AR15: 2666.391154 | AS15: 2659.49214 | AT15: 2652.798823 | AU15: 2646.30507 | AV15: 2640.00493 | AW15: 2633.892632 | AX15: 2627.962574 | AY15: 2622.209322 | AZ15: 2616.627606 | BA15: 2611.212311 | BB15: 2605.958475 | BC15: 2600.861285 | BD15: 2595.916068 | BE15: 2591.118296 | BF15: 2586.46357 | BG15: 2581.947627 | BH15: 2577.566329 | BI15: 2573.315661 | BJ15: 2569.191727 | BK15: 2565.190751 | BL15: 2561.309065 | BM15: 2557.543113 | BN15: 2553.889444 | BO15: 2550.344711 | BP15: =BP114+BP259+BP395+BP531 -> 2546.905665 | BQ15: 2543.569156 | BR15: 2540.332126 | BS15: 2537.19161 | BT15: 2534.144729 | BU15: 2531.188691 | BV15: 2528.32079 | BW15: 2525.538395 | BX15: 2522.838959 | BY15: 2520.220008 | BZ15: 2517.679142 | CA15: 2515.214032 | CB15: 2512.822421 | CC15: 2510.502116 | CD15: 2508.250992 | CE15: 2506.066987 | CF15: 2503.948098 | CG15: 2501.892385 | CH15: 2499.897963 | CI15: 2497.963006 | CJ15: 2496.08574 | CK15: 2494.264446 | CL15: 2492.497455 | CM15: 2490.783147 | CN15: 2489.119951 | CO15: 2487.506345 | CP15: 2485.940848 | CQ15: 2484.422028 | CR15: 2482.948492 | CS15: 2481.518889 | CT15: 2480.131911 | CU15: 2478.786287 | CV15: 2477.480782
B16: 5 | C16: Ayacucho | D16: [Abonados] | E16: =E115+E260+E396+E532 -> 2451 | F16: 2451 | G16: 2446 | H16: 2444 | I16: 2442 | J16: 2437 | K16: 2438 | L16: 2438 | M16: 2437 | N16: 2437 | O16: 2436 | P16: 2435 | Q16: 2435 | R16: 2438 | S16: 2438 | T16: 2438 | U16: 2441 | V16: 2444 | W16: 2447 | X16: 2451 | Y16: 2454 | Z16: 2458 | AA16: 2449 | AB16: 2448 | AC16: 2457 | AD16: 2458 | AE16: 2453 | AF16: 2461 | AG16: 2457 | AH16: 2461 | AI16: 2468 | AJ16: 2465 | AK16: 2468 | AL16: 2468.756455 | AM16: 2469.51291 | AN16: 2470.269365 | AO16: 2471.025821 | AP16: 2471.782276 | AQ16: 2472.538731 | AR16: 2473.295186 | AS16: 2474.051641 | AT16: 2474.808096 | AU16: 2475.564551 | AV16: 2476.321007 | AW16: 2477.077462 | AX16: 2477.833917 | AY16: 2478.590372 | AZ16: 2479.346827 | BA16: 2480.103282 | BB16: 2480.859737 | BC16: 2481.616193 | BD16: 2482.372648 | BE16: 2483.129103 | BF16: 2483.885558 | BG16: 2484.642013 | BH16: 2485.398468 | BI16: 2486.154923 | BJ16: 2486.911379 | BK16: 2487.667834 | BL16: 2488.424289 | BM16: 2489.180744 | BN16: 2489.937199 | BO16: 2490.693654 | BP16: 2491.450109 | BQ16: 2492.206565 | BR16: 2492.96302 | BS16: 2493.719475 | BT16: 2494.47593 | BU16: 2495.232385 | BV16: 2495.98884 | BW16: 2496.745295 | BX16: 2497.501751 | BY16: 2498.258206 | BZ16: 2499.014661 | CA16: 2499.771116 | CB16: 2500.527571 | CC16: 2501.284026 | CD16: 2502.040481 | CE16: 2502.796937 | CF16: 2503.553392 | CG16: 2504.309847 | CH16: 2505.066302 | CI16: 2505.822757 | CJ16: 2506.579212 | CK16: 2507.335667 | CL16: 2508.092123 | CM16: 2508.848578 | CN16: 2509.605033 | CO16: 2510.361488 | CP16: 2511.117943 | CQ16: 2511.874398 | CR16: 2512.630853 | CS16: 2513.387309 | CT16: 2514.143764 | CU16: 2514.900219 | CV16: 2515.656674
B17: 6 | C17: Cajamarca | D17: [Abonados] | E17: 2525 | F17: 2516 | G17: 2514 | H17: 2509 | I17: 2490 | J17: 2471 | K17: 2467 | L17: 2442 | M17: 2442 | N17: 2445 | O17: 2446 | P17: 2444 | Q17: 2456 | R17: 2502 | S17: 2570 | T17: 2628 | U17: 2688 | V17: 2750 | W17: 2848 | X17: 2880 | Y17: 2883 | Z17: 2828 | AA17: 2596 | AB17: 2620 | AC17: 2678 | AD17: 2648 | AE17: 2634 | AF17: 2632 | AG17: 2557 | AH17: 2566 | AI17: 2581 | AJ17: 2578 | AK17: 2586 | AL17: 2592.396056 | AM17: 2598.792112 | AN17: 2605.188168 | AO17: 2611.584225 | AP17: 2617.980281 | AQ17: 2624.376337 | AR17: 2630.772393 | AS17: 2637.168449 | AT17: 2643.564505 | AU17: 2649.960561 | AV17: 2656.356618 | AW17: 2662.752674 | AX17: 2669.14873 | AY17: 2675.544786 | AZ17: 2681.940842 | BA17: 2688.336898 | BB17: 2694.732955 | BC17: 2701.129011 | BD17: 2707.525067 | BE17: 2713.921123 | BF17: 2720.317179 | BG17: 2726.713235 | BH17: 2733.109291 | BI17: 2739.505348 | BJ17: 2745.901404 | BK17: 2752.29746 | BL17: 2758.693516 | BM17: 2765.089572 | BN17: 2771.485628 | BO17: 2777.881684 | BP17: 2784.277741 | BQ17: 2790.673797 | BR17: 2797.069853 | BS17: 2803.465909 | BT17: 2809.861965 | BU17: 2816.258021 | BV17: 2822.654078 | BW17: 2829.050134 | BX17: 2835.44619 | BY17: 2841.842246 | BZ17: 2848.238302 | CA17: 2854.634358 | CB17: 2861.030414 | CC17: 2867.426471 | CD17: 2873.822527 | CE17: 2880.218583 | CF17: 2886.614639 | CG17: 2893.010695 | CH17: 2899.406751 | CI17: 2905.802807 | CJ17: 2912.198864 | CK17: 2918.59492 | CL17: 2924.990976 | CM17: 2931.387032 | CN17: 2937.783088 | CO17: 2944.179144 | CP17: 2950.575201 | CQ17: 2956.971257 | CR17: 2963.367313 | CS17: 2969.763369 | CT17: 2976.159425 | CU17: 2982.555481 | CV17: 2988.951537
B18: 7 | C18: Callao | D18: [Abonados] | E18: 34043 | F18: 30832 | G18: 28132 | H18: 24632 | I18: 19500 | J18: 11800 | K18: 9554 | L18: 2860 | M18: 2750 | N18: 2828 | O18: 2720 | P18: 2683 | Q18: 2732 | R18: 2883 | S18: 3016 | T18: 3171 | U18: 3341 | V18: 3496 | W18: 3697 | X18: 3845 | Y18: 4033 | Z18: 3782 | AA18: 3108 | AB18: 3047 | AC18: 3059 | AD18: 3067 | AE18: 3101 | AF18: 3111 | AG18: 2781 | AH18: 2762 | AI18: 2778 | AJ18: 2781 | AK18: 2813 | AL18: 2775.370856 | AM18: 2741.487617 | AN18: 2710.977388 | AO18: 2683.50439 | AP18: 2658.766275 | AQ18: 2636.49079 | AR18: 2616.432784 | AS18: 2598.371513 | AT18: 2582.108206 | AU18: 2567.463878 | AV18: 2554.277364 | AW18: 2542.403541 | AX18: 2531.711733 | AY18: 2522.084273 | AZ18: 2513.415208 | BA18: 2505.609131 | BB18: 2498.580133 | BC18: 2492.250858 | BD18: 2486.551649 | BE18: 2481.419786 | BF18: 2476.798789 | BG18: 2472.637803 | BH18: 2468.891035 | BI18: 2465.51725 | BJ18: 2462.479319 | BK18: 2459.743808 | BL18: 2457.280611 | BM18: 2455.062621 | BN18: 2453.065427 | BO18: 2451.26705 | BP18: 2449.647698 | BQ18: 2448.189549 | BR18: 2446.876555 | BS18: 2445.694268 | BT18: 2444.629675 | BU18: 2443.67106 | BV18: 2442.807873 | BW18: 2442.030615 | BX18: 2441.330732 | BY18: 2440.70052 | BZ18: 2440.133044 | CA18: 2439.62206 | CB18: 2439.161943 | CC18: 2438.74763 | CD18: 2438.374561 | CE18: 2438.03863 | CF18: 2437.736141 | CG18: 2437.463763 | CH18: 2437.218501 | CI18: 2436.997653 | CJ18: 2436.798791 | CK18: 2436.619725 | CL18: 2436.458485 | CM18: 2436.313295 | CN18: 2436.182559 | CO18: 2436.064838 | CP18: 2435.958835 | CQ18: 2435.863385 | CR18: 2435.777437 | CS18: 2435.700045 | CT18: 2435.630357 | CU18: 2435.567606 | CV18: 2435.511102
B19: 8 | C19: Cusco | D19: [Abonados] | E19: 2804 | F19: 2790 | G19: 2777 | H19: 2660 | I19: 2613 | J19: 2561 | K19: 2531 | L19: 2479 | M19: 2481 | N19: 2496 | O19: 2480 | P19: 2472 | Q19: 2477 | R19: 2494 | S19: 2515 | T19: 2529 | U19: 2563 | V19: 2595 | W19: 2628 | X19: 2669 | Y19: 2721 | Z19: 2711 | AA19: 2625 | AB19: 2605 | AC19: 2626 | AD19: 2614 | AE19: 2622 | AF19: 2649 | AG19: 2566 | AH19: 2582 | AI19: 2597 | AJ19: 2598 | AK19: 2608 | AL19: 2609.919038 | AM19: 2611.859364 | AN19: 2613.821213 | AO19: 2615.804825 | AP19: 2617.81044 | AQ19: 2619.838303 | AR19: 2621.88866 | AS19: 2623.961761 | AT19: 2626.057859 | AU19: 2628.177207 | AV19: 2630.320066 | AW19: 2632.486694 | AX19: 2634.677356 | AY19: 2636.892319 | AZ19: 2639.131851 | BA19: 2641.396226 | BB19: 2643.685719 | BC19: 2646.000609 | BD19: 2648.341177 | BE19: 2650.707708 | BF19: 2653.10049 | BG19: 2655.519815 | BH19: 2657.965977 | BI19: 2660.439274 | BJ19: 2662.940006 | BK19: 2665.468477 | BL19: 2668.024997 | BM19: 2670.609875 | BN19: 2673.223426 | BO19: 2675.865969 | BP19: =BP118+BP263+BP399+BP535 -> 2678.537825 | BQ19: 2681.239319 | BR19: 2683.970779 | BS19: 2686.732539 | BT19: 2689.524935 | BU19: 2692.348306 | BV19: 2695.202995 | BW19: 2698.089351 | BX19: 2701.007724 | BY19: 2703.95847 | BZ19: 2706.941947 | CA19: 2709.95852 | CB19: 2713.008554 | CC19: 2716.092422 | CD19: 2719.210498 | CE19: 2722.363162 | CF19: 2725.550797 | CG19: 2728.773792 | CH19: 2732.032539 | CI19: 2735.327434 | CJ19: 2738.658879 | CK19: 2742.027278 | CL19: 2745.433042 | CM19: 2748.876584 | CN19: 2752.358326 | CO19: 2755.878689 | CP19: 2759.438102 | CQ19: 2763.036999 | CR19: 2766.675818 | CS19: 2770.355 | CT19: 2774.074995 | CU19: 2777.836255 | CV19: =CV118+CV263+CV399+CV535 -> 2781.639237
B20: 9 | C20: Huancavelica | D20: [Abonados] | E20: =E119+E264+E400+E536 -> 2443 | F20: 2442 | G20: 2441 | H20: 2441 | I20: 2438 | J20: 2438 | K20: 2438 | L20: 2435 | M20: 2437 | N20: 2437 | O20: 2437 | P20: 2437 | Q20: 2436 | R20: 2436 | S20: 2439 | T20: 2441 | U20: 2444 | V20: 2453 | W20: 2460 | X20: 2463 | Y20: 2469 | Z20: 2470 | AA20: 2453 | AB20: 2451 | AC20: 2460 | AD20: 2458 | AE20: 2454 | AF20: 2458 | AG20: 2452 | AH20: 2449 | AI20: 2452 | AJ20: 2450 | AK20: 2452 | AL20: 2452.678009 | AM20: 2453.356019 | AN20: 2454.034028 | AO20: 2454.712037 | AP20: 2455.390046 | AQ20: 2456.068056 | AR20: 2456.746065 | AS20: 2457.424074 | AT20: 2458.102083 | AU20: 2458.780093 | AV20: 2459.458102 | AW20: 2460.136111 | AX20: 2460.81412 | AY20: 2461.49213 | AZ20: 2462.170139 | BA20: 2462.848148 | BB20: 2463.526157 | BC20: 2464.204167 | BD20: 2464.882176 | BE20: 2465.560185 | BF20: 2466.238194 | BG20: 2466.916204 | BH20: 2467.594213 | BI20: 2468.272222 | BJ20: 2468.950232 | BK20: 2469.628241 | BL20: 2470.30625 | BM20: 2470.984259 | BN20: 2471.662269 | BO20: 2472.340278 | BP20: 2473.018287 | BQ20: =BQ119+BQ264+BQ400+BQ536 -> 2473.696296 | BR20: 2474.374306 | BS20: 2475.052315 | BT20: 2475.730324 | BU20: 2476.408333 | BV20: 2477.086343 | BW20: 2477.764352 | BX20: 2478.442361 | BY20: 2479.12037 | BZ20: 2479.79838 | CA20: 2480.476389 | CB20: 2481.154398 | CC20: 2481.832408 | CD20: 2482.510417 | CE20: 2483.188426 | CF20: 2483.866435 | CG20: 2484.544445 | CH20: 2485.222454 | CI20: 2485.900463 | CJ20: 2486.578472 | CK20: 2487.256482 | CL20: 2487.934491 | CM20: 2488.6125 | CN20: 2489.290509 | CO20: 2489.968519 | CP20: 2490.646528 | CQ20: 2491.324537 | CR20: 2492.002546 | CS20: 2492.680556 | CT20: 2493.358565 | CU20: 2494.036574 | CV20: 2494.714583
B21: 10 | C21: Huánuco | D21: [Abonados] | E21: 2486 | F21: 2483 | G21: 2480 | H21: 2467 | I21: 2460 | J21: 2445 | K21: 2440 | L21: 2438 | M21: 2438 | N21: 2438 | O21: 2435 | P21: 2435 | Q21: 2435 | R21: 2439 | S21: 2443 | T21: 2445 | U21: 2447 | V21: 2451 | W21: 2455 | X21: 2458 | Y21: 2465 | Z21: 2470 | AA21: 2461 | AB21: 2478 | AC21: 2505 | AD21: 2512 | AE21: 2505 | AF21: 2501 | AG21: 2475 | AH21: 2478 | AI21: 2484 | AJ21: 2499 | AK21: 2509 | AL21: 2510.296819 | AM21: 2511.593637 | AN21: 2512.890456 | AO21: 2514.187274 | AP21: 2515.484093 | AQ21: 2516.780911 | AR21: 2518.07773 | AS21: 2519.374549 | AT21: 2520.671367 | AU21: 2521.968186 | AV21: 2523.265004 | AW21: 2524.561823 | AX21: 2525.858641 | AY21: 2527.15546 | AZ21: 2528.452279 | BA21: 2529.749097 | BB21: 2531.045916 | BC21: 2532.342734 | BD21: 2533.639553 | BE21: 2534.936371 | BF21: 2536.23319 | BG21: 2537.530009 | BH21: 2538.826827 | BI21: 2540.123646 | BJ21: 2541.420464 | BK21: 2542.717283 | BL21: 2544.014101 | BM21: 2545.31092 | BN21: 2546.607739 | BO21: 2547.904557 | BP21: 2549.201376 | BQ21: 2550.498194 | BR21: 2551.795013 | BS21: 2553.091831 | BT21: 2554.38865 | BU21: 2555.685469 | BV21: 2556.982287 | BW21: 2558.279106 | BX21: 2559.575924 | BY21: 2560.872743 | BZ21: 2562.169561 | CA21: 2563.46638 | CB21: 2564.763199 | CC21: 2566.060017 | CD21: 2567.356836 | CE21: 2568.653654 | CF21: 2569.950473 | CG21: 2571.247291 | CH21: 2572.54411 | CI21: 2573.840929 | CJ21: 2575.137747 | CK21: 2576.434566 | CL21: 2577.731384 | CM21: 2579.028203 | CN21: 2580.325021 | CO21: 2581.62184 | CP21: 2582.918659 | CQ21: 2584.215477 | CR21: 2585.512296 | CS21: 2586.809114 | CT21: 2588.105933 | CU21: 2589.402752 | CV21: 2590.69957
B22: 11 | C22: Ica | D22: [Abonados] | E22: 12332 | F22: 11318 | G22: 10498 | H22: 9424 | I22: 7886 | J22: 6020 | K22: 5366 | L22: 2645 | M22: 2597 | N22: 2630 | O22: 2598 | P22: 2580 | Q22: 2593 | R22: 2743 | S22: 2905 | T22: 3068 | U22: 3215 | V22: 3342 | W22: 3468 | X22: 3587 | Y22: 3703 | Z22: 3487 | AA22: 2946 | AB22: 2923 | AC22: 2935 | AD22: 2901 | AE22: 2839 | AF22: 2847 | AG22: 2697 | AH22: 2727 | AI22: 2750 | AJ22: 2711 | AK22: 2691 | AL22: 2672.560822 | AM22: 2655.449781 | AN22: 2639.571216 | AO22: 2624.836352 | AP22: 2611.162812 | AQ22: 2598.47415 | AR22: 2586.699427 | AS22: 2575.772815 | AT22: 2565.633225 | AU22: 2556.22397 | AV22: 2547.492445 | AW22: 2539.389834 | AX22: 2531.870839 | AY22: 2524.893423 | AZ22: 2518.418576 | BA22: 2512.410099 | BB22: 2506.834401 | BC22: 2501.66031 | BD22: 2496.858899 | BE22: 2492.403323 | BF22: 2488.268675 | BG22: 2484.431836 | BH22: 2480.871358 | BI22: 2477.567334 | BJ22: 2474.501292 | BK22: 2471.656092 | BL22: 2469.015825 | BM22: 2466.565732 | BN22: 2464.292114 | BO22: 2462.182261 | BP22: 2460.224376 | BQ22: 2458.407513 | BR22: 2456.721516 | BS22: 2455.156958 | BT22: 2453.705092 | BU22: 2452.357801 | BV22: 2451.107552 | BW22: 2449.947357 | BX22: 2448.870728 | BY22: 2447.871647 | BZ22: 2446.944527 | CA22: 2446.084186 | CB22: 2445.285814 | CC22: 2444.544947 | CD22: 2443.857443 | CE22: 2443.219459 | CF22: 2442.627427 | CG22: 2442.078039 | CH22: 2441.568222 | CI22: 2441.095125 | CJ22: 2440.656105 | CK22: 2440.248707 | CL22: 2439.870653 | CM22: 2439.51983 | CN22: 2439.194275 | CO22: 2438.89217 | CP22: 2438.611824 | CQ22: 2438.351672 | CR22: 2438.110257 | CS22: 2437.886232 | CT22: 2437.678342 | CU22: 2437.485426 | CV22: 2437.306406
B23: 12 | C23: Junín | D23: [Abonados] | E23: 3193 | F23: 3167 | G23: 3148 | H23: 3140 | I23: 3114 | J23: 2911 | K23: 2811 | L23: 2496 | M23: 2491 | N23: 2507 | O23: 2503 | P23: 2502 | Q23: 2536 | R23: 2688 | S23: 2857 | T23: 3001 | U23: 3115 | V23: 3275 | W23: 3355 | X23: 3452 | Y23: 3459 | Z23: 3285 | AA23: 2793 | AB23: 2718 | AC23: 2730 | AD23: 2718 | AE23: 2709 | AF23: 2726 | AG23: 2611 | AH23: 2615 | AI23: 2625 | AJ23: 2627 | AK23: 2650 | AL23: 2648.102046 | AM23: 2646.220846 | AN23: 2644.356253 | AO23: 2642.50812 | AP23: 2640.676301 | AQ23: 2638.860654 | AR23: 2637.061034 | AS23: 2635.277301 | AT23: 2633.509314 | AU23: 2631.756935 | AV23: 2630.020024 | AW23: 2628.298447 | AX23: 2626.592067 | AY23: 2624.900751 | AZ23: 2623.224365 | BA23: 2621.562778 | BB23: 2619.915859 | BC23: 2618.283478 | BD23: 2616.665508 | BE23: 2615.06182 | BF23: 2613.472289 | BG23: 2611.89679 | BH23: 2610.335199 | BI23: 2608.787394 | BJ23: 2607.253252 | BK23: 2605.732653 | BL23: 2604.225477 | BM23: 2602.731606 | BN23: 2601.250923 | BO23: 2599.78331 | BP23: =BP122+BP267+BP403+BP539 -> 2598.328654 | BQ23: 2596.886838 | BR23: 2595.45775 | BS23: 2594.041278 | BT23: 2592.637311 | BU23: 2591.245737 | BV23: 2589.866447 | BW23: 2588.499333 | BX23: 2587.144288 | BY23: 2585.801205 | BZ23: 2584.469978 | CA23: 2583.150502 | CB23: 2581.842675 | CC23: 2580.546393 | CD23: 2579.261554 | CE23: 2577.988057 | CF23: 2576.725802 | CG23: 2575.47469 | CH23: 2574.234622 | CI23: 2573.005501 | CJ23: 2571.787231 | CK23: 2570.579715 | CL23: 2569.382858 | CM23: 2568.196568 | CN23: 2567.020749 | CO23: 2565.85531 | CP23: 2564.700159 | CQ23: 2563.555206 | CR23: 2562.42036 | CS23: 2561.295532 | CT23: 2560.180633 | CU23: 2559.075577 | CV23: 2557.980276
B24: 13 | C24: La Libertad | D24: [Abonados] | E24: =E123+E268+E404+E540 -> 6435 | F24: 6324 | G24: 6250 | H24: 6057 | I24: 5125 | J24: 4064 | K24: 3777 | L24: 2587 | M24: 2553 | N24: 2590 | O24: 2555 | P24: 2558 | Q24: 2608 | R24: 2764 | S24: 2922 | T24: 3039 | U24: 3122 | V24: 3363 | W24: 3652 | X24: 3699 | Y24: 3681 | Z24: 3470 | AA24: 2842 | AB24: 2814 | AC24: 2868 | AD24: 2849 | AE24: 2863 | AF24: 2874 | AG24: 2692 | AH24: 2708 | AI24: 2720 | AJ24: 2696 | AK24: 2707 | AL24: 2693.731024 | AM24: 2681.109348 | AN24: 2669.103395 | AO24: 2657.683129 | AP24: 2646.819978 | AQ24: 2636.486764 | AR24: 2626.657635 | AS24: 2617.308 | AT24: 2608.414469 | AU24: 2599.954791 | AV24: 2591.907801 | AW24: 2584.253367 | AX24: 2576.97234 | AY24: 2570.046503 | AZ24: 2563.45853 | BA24: 2557.191937 | BB24: 2551.231048 | BC24: 2545.560948 | BD24: 2540.167454 | BE24: 2535.03707 | BF24: 2530.156961 | BG24: 2525.514919 | BH24: 2521.09933 | BI24: 2516.899146 | BJ24: 2512.90386 | BK24: 2509.103476 | BL24: 2505.488486 | BM24: 2502.049846 | BN24: 2498.778953 | BO24: 2495.667624 | BP24: 2492.708076 | BQ24: 2489.892903 | BR24: 2487.215062 | BS24: 2484.667855 | BT24: 2482.244908 | BU24: 2479.940159 | BV24: 2477.747843 | BW24: 2475.662475 | BX24: 2473.678838 | BY24: 2471.791968 | BZ24: 2469.997145 | CA24: 2468.28988 | CB24: 2466.665899 | CC24: 2465.121142 | CD24: 2463.651742 | CE24: 2462.254024 | CF24: 2460.924491 | CG24: 2459.659817 | CH24: 2458.456837 | CI24: 2457.312542 | CJ24: 2456.224069 | CK24: 2455.188695 | CL24: 2454.20383 | CM24: 2453.26701 | CN24: 2452.37589 | CO24: 2451.528242 | CP24: 2450.721945 | CQ24: 2449.954981 | CR24: 2449.225432 | CS24: 2448.531473 | CT24: 2447.871367 | CU24: 2447.243463 | CV24: 2446.64619
B25: 14 | C25: Lambayeque | D25: [Abonados] | E25: 4386 | F25: 4334 | G25: 4290 | H25: 4170 | I25: 3699 | J25: 3275 | K25: 3078 | L25: 2496 | M25: 2494 | N25: 2507 | O25: 2489 | P25: 2487 | Q25: 2497 | R25: 2592 | S25: 2700 | T25: 2751 | U25: 2816 | V25: 2950 | W25: 3149 | X25: 3197 | Y25: 3155 | Z25: 3062 | AA25: 2696 | AB25: 2657 | AC25: 2677 | AD25: 2664 | AE25: 2648 | AF25: 2645 | AG25: 2556 | AH25: 2563 | AI25: 2569 | AJ25: 2577 | AK25: 2584 | AL25: 2577.41774 | AM25: 2571.12626 | AN25: 2565.112714 | AO25: 2559.364824 | AP25: 2553.870854 | AQ25: 2548.619587 | AR25: 2543.600301 | AS25: 2538.802748 | AT25: 2534.217133 | AU25: 2529.834093 | AV25: 2525.64468 | AW25: 2521.640339 | AX25: 2517.812895 | AY25: 2514.154532 | AZ25: 2510.657783 | BA25: 2507.315507 | BB25: 2504.12088 | BC25: 2501.067379 | BD25: 2498.148771 | BE25: 2495.359096 | BF25: 2492.692658 | BG25: 2490.144013 | BH25: 2487.707958 | BI25: 2485.379519 | BJ25: 2483.153941 | BK25: 2481.026681 | BL25: 2478.993396 | BM25: 2477.049933 | BN25: 2475.192325 | BO25: 2473.416779 | BP25: 2471.719671 | BQ25: 2470.097534 | BR25: 2468.547057 | BS25: 2467.065074 | BT25: 2465.648559 | BU25: 2464.294621 | BV25: 2463.000495 | BW25: 2461.763539 | BX25: 2460.581226 | BY25: 2459.451144 | BZ25: 2458.370984 | CA25: 2457.338542 | CB25: 2456.351709 | CC25: 2455.408471 | CD25: 2454.506902 | CE25: 2453.64516 | CF25: 2452.821487 | CG25: 2452.034201 | CH25: 2451.281694 | CI25: 2450.56243 | CJ25: 2449.87494 | CK25: 2449.217821 | CL25: 2448.589732 | CM25: 2447.989388 | CN25: 2447.415566 | CO25: 2446.867093 | CP25: 2446.342849 | CQ25: 2445.841765 | CR25: 2445.362817 | CS25: 2444.905026 | CT25: 2444.46746 | CU25: 2444.049223 | CV25: 2443.649462
B26: 15 | C26: Lima | D26: [Abonados] | E26: 208434 | F26: 186956 | G26: 171503 | H26: 149281 | I26: 116640 | J26: 64098 | K26: 49074 | L26: 6228 | M26: 5424 | N26: 6265 | O26: 5163 | P26: 5090 | Q26: 5639 | R26: 7342 | S26: 8703 | T26: 10317 | U26: 12073 | V26: 13882 | W26: 15301 | X26: 16957 | Y26: 18147 | Z26: 15594 | AA26: 9006 | AB26: 8533 | AC26: 9168 | AD26: 8793 | AE26: 8859 | AF26: 8965 | AG26: 5986 | AH26: 6097 | AI26: 6265 | AJ26: 6440 | AK26: 6778 | AL26: 6406.857724 | AM26: 6067.432369 | AN26: 5757.013484 | AO26: 5473.122246 | AP26: 5213.491666 | AQ26: 4976.048489 | AR26: 4758.89663 | AS26: 4560.302045 | AT26: 4378.678872 | AU26: 4212.576777 | AV26: 4060.669364 | AW26: 3921.743592 | AX26: 3794.690081 | AY26: 3678.494255 | AZ26: 3572.228243 | BA26: 3475.043468 | BB26: 3386.163869 | BC26: 3304.879705 | BD26: 3230.541889 | BE26: 3162.556803 | BF26: 3100.381559 | BG26: 3043.51966 | BH26: 2991.517041 | BI26: 2943.958441 | BJ26: 2900.464084 | BK26: 2860.686649 | BL26: 2824.308497 | BM26: 2791.039135 | BN26: 2760.612891 | BO26: 2732.786801 | BP26: 2707.338661 | BQ26: 2684.065258 | BR26: 2662.780743 | BS26: 2643.315152 | BT26: 2625.513043 | BU26: 2609.232259 | BV26: 2594.342792 | BW26: 2580.725742 | BX26: 2568.272372 | BY26: 2556.883238 | BZ26: 2546.467391 | CA26: 2536.941657 | CB26: 2528.22997 | CC26: 2520.262762 | CD26: 2512.976413 | CE26: 2506.312737 | CF26: 2500.218523 | CG26: 2494.645106 | CH26: 2489.547979 | CI26: 2484.886441 | CJ26: 2480.623266 | CK26: 2476.724412 | CL26: 2473.158745 | CM26: 2469.897791 | CN26: 2466.91551 | CO26: 2464.188088 | CP26: 2461.693744 | CQ26: 2459.412562 | CR26: 2457.326323 | CS26: 2455.41837 | CT26: 2453.673465 | CU26: 2452.077676 | CV26: 2450.618259
B27: 16 | C27: Loreto | D27: [Abonados] | E27: 2454 | F27: 2452 | G27: 2452 | H27: 2448 | I27: 2437 | J27: 2436 | K27: 2436 | L27: 2435 | M27: 2435 | N27: 2435 | O27: 2435 | P27: 2436 | Q27: 2436 | R27: 2438 | S27: 2444 | T27: 2444 | U27: 2445 | V27: 2451 | W27: 2453 | X27: 2452 | Y27: 2464 | Z27: 2471 | AA27: 2485 | AB27: 2502 | AC27: 2523 | AD27: 2553 | AE27: 2559 | AF27: 2576 | AG27: 2521 | AH27: 2527 | AI27: 2542 | AJ27: 2555 | AK27: 2556 | AL27: 2559.937082 | AM27: 2563.874163 | AN27: 2567.811245 | AO27: 2571.748327 | AP27: 2575.685409 | AQ27: 2579.62249 | AR27: 2583.559572 | AS27: 2587.496654 | AT27: 2591.433736 | AU27: 2595.370817 | AV27: 2599.307899 | AW27: 2603.244981 | AX27: 2607.182063 | AY27: 2611.119144 | AZ27: 2615.056226 | BA27: 2618.993308 | BB27: 2622.93039 | BC27: 2626.867471 | BD27: 2630.804553 | BE27: 2634.741635 | BF27: 2638.678717 | BG27: 2642.615798 | BH27: 2646.55288 | BI27: 2650.489962 | BJ27: 2654.427044 | BK27: 2658.364125 | BL27: 2662.301207 | BM27: 2666.238289 | BN27: 2670.175371 | BO27: 2674.112452 | BP27: =BP126+BP271+BP407+BP543 -> 2678.049534 | BQ27: 2681.986616 | BR27: 2685.923698 | BS27: 2689.860779 | BT27: 2693.797861 | BU27: 2697.734943 | BV27: 2701.672025 | BW27: 2705.609106 | BX27: 2709.546188 | BY27: 2713.48327 | BZ27: 2717.420352 | CA27: 2721.357433 | CB27: 2725.294515 | CC27: 2729.231597 | CD27: 2733.168679 | CE27: 2737.10576 | CF27: 2741.042842 | CG27: 2744.979924 | CH27: 2748.917005 | CI27: 2752.854087 | CJ27: 2756.791169 | CK27: 2760.728251 | CL27: 2764.665332 | CM27: 2768.602414 | CN27: 2772.539496 | CO27: 2776.476578 | CP27: 2780.413659 | CQ27: 2784.350741 | CR27: 2788.287823 | CS27: 2792.224905 | CT27: 2796.161986 | CU27: 2800.099068 | CV27: =CV126+CV271+CV407+CV543 -> 2804.03615
B28: 17 | C28: Madre de Dios | D28: [Abonados] | E28: =E127+E272+E408+E544 -> 2438 | F28: 2438 | G28: 2436 | H28: 2436 | I28: 2435 | J28: 2435 | K28: 2435 | L28: 2435 | M28: 2435 | N28: 2435 | O28: 2435 | P28: 2435 | Q28: 2435 | R28: 2435 | S28: 2435 | T28: 2435 | U28: 2435 | V28: 2436 | W28: 2437 | X28: 2439 | Y28: 2442 | Z28: 2443 | AA28: 2446 | AB28: 2447 | AC28: 2454 | AD28: 2453 | AE28: 2456 | AF28: 2457 | AG28: 2452 | AH28: 2458 | AI28: 2463 | AJ28: 2463 | AK28: 2461 | AL28: 2461.793748 | AM28: 2462.587496 | AN28: 2463.381244 | AO28: 2464.174993 | AP28: 2464.968741 | AQ28: 2465.762489 | AR28: 2466.556237 | AS28: 2467.349985 | AT28: 2468.143733 | AU28: 2468.937482 | AV28: 2469.73123 | AW28: 2470.524978 | AX28: 2471.318726 | AY28: 2472.112474 | AZ28: 2472.906222 | BA28: 2473.699971 | BB28: 2474.493719 | BC28: 2475.287467 | BD28: 2476.081215 | BE28: 2476.874963 | BF28: 2477.668711 | BG28: 2478.46246 | BH28: 2479.256208 | BI28: 2480.049956 | BJ28: 2480.843704 | BK28: 2481.637452 | BL28: 2482.4312 | BM28: 2483.224948 | BN28: 2484.018697 | BO28: 2484.812445 | BP28: 2485.606193 | BQ28: =BQ127+BQ272+BQ408+BQ544 -> 2486.399941 | BR28: 2487.193689 | BS28: 2487.987437 | BT28: 2488.781186 | BU28: 2489.574934 | BV28: 2490.368682 | BW28: 2491.16243 | BX28: 2491.956178 | BY28: 2492.749926 | BZ28: 2493.543675 | CA28: 2494.337423 | CB28: 2495.131171 | CC28: 2495.924919 | CD28: 2496.718667 | CE28: 2497.512415 | CF28: 2498.306164 | CG28: 2499.099912 | CH28: 2499.89366 | CI28: 2500.687408 | CJ28: 2501.481156 | CK28: 2502.274904 | CL28: 2503.068652 | CM28: 2503.862401 | CN28: 2504.656149 | CO28: 2505.449897 | CP28: 2506.243645 | CQ28: 2507.037393 | CR28: 2507.831141 | CS28: 2508.62489 | CT28: 2509.418638 | CU28: 2510.212386 | CV28: 2511.006134
B29: 18 | C29: Moquegua | D29: [Abonados] | E29: 2797 | F29: 2780 | G29: 2770 | H29: 2721 | I29: 2676 | J29: 2579 | K29: 2559 | L29: 2450 | M29: 2447 | N29: 2452 | O29: 2446 | P29: 2450 | Q29: 2459 | R29: 2474 | S29: 2479 | T29: 2493 | U29: 2496 | V29: 2520 | W29: 2533 | X29: 2549 | Y29: 2545 | Z29: 2535 | AA29: 2478 | AB29: 2469 | AC29: 2468 | AD29: 2471 | AE29: 2472 | AF29: 2497 | AG29: 2475 | AH29: 2478 | AI29: 2479 | AJ29: 2474 | AK29: 2479 | AL29: 2477.374836 | AM29: 2475.809699 | AN29: 2474.30237 | AO29: 2472.850716 | AP29: 2471.452679 | AQ29: 2470.10628 | AR29: 2468.80961 | AS29: 2467.560834 | AT29: 2466.358182 | AU29: 2465.19995 | AV29: 2464.084499 | AW29: 2463.010247 | AX29: 2461.975673 | AY29: 2460.979312 | AZ29: 2460.019752 | BA29: 2459.095634 | BB29: 2458.205649 | BC29: 2457.348535 | BD29: 2456.52308 | BE29: 2455.728113 | BF29: 2454.962509 | BG29: 2454.225183 | BH29: 2453.515091 | BI29: 2452.831226 | BJ29: 2452.17262 | BK29: 2451.53834 | BL29: 2450.927487 | BM29: 2450.339197 | BN29: 2449.772635 | BO29: 2449.227 | BP29: 2448.701518 | BQ29: 2448.195445 | BR29: 2447.708064 | BS29: 2447.238685 | BT29: 2446.786642 | BU29: 2446.351296 | BV29: 2445.93203 | BW29: 2445.528249 | BX29: 2445.139383 | BY29: 2444.764879 | BZ29: 2444.404208 | CA29: 2444.056859 | CB29: 2443.722339 | CC29: 2443.400174 | CD29: 2443.089909 | CE29: 2442.791104 | CF29: 2442.503335 | CG29: 2442.226196 | CH29: 2441.959292 | CI29: 2441.702247 | CJ29: 2441.454696 | CK29: 2441.216288 | CL29: 2440.986686 | CM29: 2440.765565 | CN29: 2440.55261 | CO29: 2440.347522 | CP29: 2440.150008 | CQ29: 2439.95979 | CR29: 2439.776597 | CS29: 2439.600171 | CT29: 2439.430261 | CU29: 2439.266627 | CV29: 2439.109037
B30: 19 | C30: Pasco | D30: [Abonados] | E30: 2437 | F30: 2436 | G30: 2436 | H30: 2436 | I30: 2436 | J30: 2436 | K30: 2436 | L30: 2435 | M30: 2435 | N30: 2435 | O30: 2435 | P30: 2435 | Q30: 2435 | R30: 2436 | S30: 2440 | T30: 2442 | U30: 2444 | V30: 2443 | W30: 2446 | X30: 2446 | Y30: 2446 | Z30: 2450 | AA30: 2443 | AB30: 2442 | AC30: 2451 | AD30: 2454 | AE30: 2454 | AF30: 2461 | AG30: 2448 | AH30: 2450 | AI30: 2451 | AJ30: 2455 | AK30: 2458 | AL30: 2458.669085 | AM30: 2459.33817 | AN30: 2460.007255 | AO30: 2460.676341 | AP30: 2461.345426 | AQ30: 2462.014511 | AR30: 2462.683596 | AS30: 2463.352681 | AT30: 2464.021766 | AU30: 2464.690851 | AV30: 2465.359937 | AW30: 2466.029022 | AX30: 2466.698107 | AY30: 2467.367192 | AZ30: 2468.036277 | BA30: 2468.705362 | BB30: 2469.374448 | BC30: 2470.043533 | BD30: 2470.712618 | BE30: 2471.381703 | BF30: 2472.050788 | BG30: 2472.719873 | BH30: 2473.388958 | BI30: 2474.058044 | BJ30: 2474.727129 | BK30: 2475.396214 | BL30: 2476.065299 | BM30: 2476.734384 | BN30: 2477.403469 | BO30: 2478.072554 | BP30: 2478.74164 | BQ30: 2479.410725 | BR30: 2480.07981 | BS30: 2480.748895 | BT30: 2481.41798 | BU30: 2482.087065 | BV30: 2482.75615 | BW30: 2483.425236 | BX30: 2484.094321 | BY30: 2484.763406 | BZ30: 2485.432491 | CA30: 2486.101576 | CB30: 2486.770661 | CC30: 2487.439746 | CD30: 2488.108832 | CE30: 2488.777917 | CF30: 2489.447002 | CG30: 2490.116087 | CH30: 2490.785172 | CI30: 2491.454257 | CJ30: 2492.123343 | CK30: 2492.792428 | CL30: 2493.461513 | CM30: 2494.130598 | CN30: 2494.799683 | CO30: 2495.468768 | CP30: 2496.137853 | CQ30: 2496.806939 | CR30: 2497.476024 | CS30: 2498.145109 | CT30: 2498.814194 | CU30: 2499.483279 | CV30: 2500.152364
B31: 20 | C31: Piura | D31: [Abonados] | E31: 7270 | F31: 7094 | G31: 7002 | H31: 6704 | I31: 5872 | J31: 4752 | K31: 4214 | L31: 2725 | M31: 2657 | N31: 2736 | O31: 2650 | P31: 2633 | Q31: 2641 | R31: 2826 | S31: 2950 | T31: 3094 | U31: 3217 | V31: 3551 | W31: 3948 | X31: 4027 | Y31: 3911 | Z31: 3643 | AA31: 2941 | AB31: 2866 | AC31: 2894 | AD31: 2858 | AE31: 2865 | AF31: 2928 | AG31: 2742 | AH31: 2785 | AI31: 2805 | AJ31: 2817 | AK31: 2836 | AL31: 2814.536763 | AM31: 2794.222331 | AN31: 2774.995214 | AO31: 2756.797214 | AP31: 2739.573249 | AQ31: 2723.271185 | AR31: 2707.841677 | AS31: 2693.238022 | AT31: 2679.416018 | AU31: 2666.333826 | AV31: 2653.951849 | AW31: 2642.232609 | AX31: 2631.140633 | AY31: 2620.642346 | AZ31: 2610.705973 | BA31: 2601.301437 | BB31: 2592.400272 | BC31: 2583.975536 | BD31: 2576.001727 | BE31: 2568.454711 | BF31: 2561.311644 | BG31: 2554.550904 | BH31: 2548.152027 | BI31: 2542.095646 | BJ31: 2536.363429 | BK31: 2530.938024 | BL31: 2525.80301 | BM31: 2520.942845 | BN31: 2516.342816 | BO31: 2511.989 | BP31: =BP130+BP275+BP411+BP547 -> 2507.868219 | BQ31: 2503.968 | BR31: 2500.276537 | BS31: 2496.782658 | BT31: 2493.475785 | BU31: 2490.345911 | BV31: 2487.383561 | BW31: 2484.579768 | BX31: 2481.926047 | BY31: 2479.414364 | BZ31: 2477.037117 | CA31: 2474.78711 | CB31: 2472.657534 | CC31: 2470.641942 | CD31: 2468.734232 | CE31: 2466.928632 | CF31: 2465.219675 | CG31: 2463.602188 | CH31: 2462.071277 | CI31: 2460.622306 | CJ31: 2459.250891 | CK31: 2457.952879 | CL31: 2456.724343 | CM31: 2455.561563 | CN31: 2454.46102 | CO31: 2453.419383 | CP31: 2452.433499 | CQ31: 2451.500383 | CR31: 2450.617212 | CS31: 2449.781312 | CT31: 2448.990153 | CU31: 2448.24134 | CV31: 2447.532607
B32: 21 | C32: Puno | D32: [Abonados] | E32: =E131+E276+E412+E548 -> 3009 | F32: 2991 | G32: 2981 | H32: 2941 | I32: 2884 | J32: 2804 | K32: 2756 | L32: 2490 | M32: 2479 | N32: 2492 | O32: 2478 | P32: 2471 | Q32: 2476 | R32: 2499 | S32: 2520 | T32: 2545 | U32: 2567 | V32: 2620 | W32: 2634 | X32: 2665 | Y32: 2671 | Z32: 2645 | AA32: 2546 | AB32: 2531 | AC32: 2541 | AD32: 2551 | AE32: 2553 | AF32: 2577 | AG32: 2524 | AH32: 2524 | AI32: 2531 | AJ32: 2542 | AK32: 2556 | AL32: 2552.354749 | AM32: 2548.819315 | AN32: 2545.390389 | AO32: 2542.064764 | AP32: 2538.839326 | AQ32: 2535.711058 | AR32: 2532.677033 | AS32: 2529.73441 | AT32: 2526.880437 | AU32: 2524.112443 | AV32: 2521.427838 | AW32: 2518.824109 | AX32: 2516.298821 | AY32: 2513.849609 | AZ32: 2511.474182 | BA32: 2509.170318 | BB32: 2506.93586 | BC32: 2504.768717 | BD32: 2502.666862 | BE32: 2500.628327 | BF32: 2498.651205 | BG32: 2496.733646 | BH32: 2494.873856 | BI32: 2493.070094 | BJ32: 2491.320671 | BK32: 2489.623953 | BL32: 2487.978349 | BM32: 2486.382321 | BN32: 2484.834375 | BO32: 2483.333063 | BP32: 2481.876979 | BQ32: 2480.464761 | BR32: 2479.095088 | BS32: 2477.766677 | BT32: 2476.478286 | BU32: 2475.22871 | BV32: 2474.016778 | BW32: 2472.841357 | BX32: 2471.701346 | BY32: 2470.59568 | BZ32: 2469.523323 | CA32: 2468.483272 | CB32: 2467.474554 | CC32: 2466.496224 | CD32: 2465.547367 | CE32: 2464.627096 | CF32: 2463.734549 | CG32: 2462.868891 | CH32: 2462.029311 | CI32: 2461.215025 | CJ32: 2460.42527 | CK32: 2459.659307 | CL32: 2458.91642 | CM32: 2458.195913 | CN32: 2457.497112 | CO32: 2456.819363 | CP32: 2456.162032 | CQ32: 2455.524504 | CR32: 2454.906182 | CS32: 2454.306487 | CT32: 2453.724859 | CU32: 2453.160753 | CV32: 2452.613642
B33: 22 | C33: San Martín | D33: [Abonados] | E33: 2444 | F33: 2442 | G33: 2441 | H33: 2441 | I33: 2441 | J33: 2437 | K33: 2436 | L33: 2435 | M33: 2435 | N33: 2435 | O33: 2435 | P33: 2435 | Q33: 2435 | R33: 2437 | S33: 2437 | T33: 2441 | U33: 2450 | V33: 2453 | W33: 2460 | X33: 2460 | Y33: 2459 | Z33: 2463 | AA33: 2444 | AB33: 2445 | AC33: 2461 | AD33: 2466 | AE33: 2460 | AF33: 2455 | AG33: 2447 | AH33: 2455 | AI33: 2470 | AJ33: 2486 | AK33: 2502 | AL33: 2503.108998 | AM33: 2504.217997 | AN33: 2505.326995 | AO33: 2506.435994 | AP33: 2507.544992 | AQ33: 2508.65399 | AR33: 2509.762989 | AS33: 2510.871987 | AT33: 2511.980986 | AU33: 2513.089984 | AV33: 2514.198983 | AW33: 2515.307981 | AX33: 2516.416979 | AY33: 2517.525978 | AZ33: 2518.634976 | BA33: 2519.743975 | BB33: 2520.852973 | BC33: 2521.961971 | BD33: 2523.07097 | BE33: 2524.179968 | BF33: 2525.288967 | BG33: 2526.397965 | BH33: 2527.506964 | BI33: 2528.615962 | BJ33: 2529.72496 | BK33: 2530.833959 | BL33: 2531.942957 | BM33: 2533.051956 | BN33: 2534.160954 | BO33: 2535.269952 | BP33: 2536.378951 | BQ33: 2537.487949 | BR33: 2538.596948 | BS33: 2539.705946 | BT33: 2540.814945 | BU33: 2541.923943 | BV33: 2543.032941 | BW33: 2544.14194 | BX33: 2545.250938 | BY33: 2546.359937 | BZ33: 2547.468935 | CA33: 2548.577933 | CB33: 2549.686932 | CC33: 2550.79593 | CD33: 2551.904929 | CE33: 2553.013927 | CF33: 2554.122926 | CG33: 2555.231924 | CH33: 2556.340922 | CI33: 2557.449921 | CJ33: 2558.558919 | CK33: 2559.667918 | CL33: 2560.776916 | CM33: 2561.885914 | CN33: 2562.994913 | CO33: 2564.103911 | CP33: 2565.21291 | CQ33: 2566.321908 | CR33: 2567.430907 | CS33: 2568.539905 | CT33: 2569.648903 | CU33: 2570.757902 | CV33: 2571.8669
B34: 23 | C34: Tacna | D34: [Abonados] | E34: 3041 | F34: 2975 | G34: 2958 | H34: 2882 | I34: 2804 | J34: 2711 | K34: 2655 | L34: 2459 | M34: 2457 | N34: 2463 | O34: 2456 | P34: 2460 | Q34: 2471 | R34: 2491 | S34: 2501 | T34: 2515 | U34: 2531 | V34: 2590 | W34: 2599 | X34: 2595 | Y34: 2560 | Z34: 2548 | AA34: 2482 | AB34: 2484 | AC34: 2508 | AD34: 2505 | AE34: 2503 | AF34: 2503 | AG34: 2473 | AH34: 2476 | AI34: 2472 | AJ34: 2483 | AK34: 2486 | AL34: 2483.468284 | AM34: 2481.062245 | AN34: 2478.775647 | AO34: 2476.602558 | AP34: 2474.537345 | AQ34: 2472.574652 | AR34: 2470.70939 | AS34: 2468.936722 | AT34: 2467.252052 | AU34: 2465.651012 | AV34: 2464.12945 | AW34: 2462.68342 | AX34: 2461.309174 | AY34: 2460.003147 | AZ34: 2458.761953 | BA34: 2457.582374 | BB34: 2456.461352 | BC34: 2455.395978 | BD34: 2454.383491 | BE34: 2453.421265 | BF34: 2452.506806 | BG34: 2451.637742 | BH34: 2450.81182 | BI34: 2450.026897 | BJ34: 2449.28094 | BK34: 2448.572012 | BL34: 2447.898277 | BM34: 2447.257988 | BN34: 2446.649483 | BO34: 2446.071185 | BP34: 2445.521595 | BQ34: 2444.999287 | BR34: 2444.502907 | BS34: 2444.031169 | BT34: 2443.582848 | BU34: 2443.156783 | BV34: 2442.751868 | BW34: 2442.367053 | BX34: 2442.001342 | BY34: 2441.653785 | BZ34: 2441.323481 | CA34: 2441.009574 | CB34: 2440.71125 | CC34: 2440.427735 | CD34: 2440.158294 | CE34: 2439.902228 | CF34: 2439.658874 | CG34: 2439.427601 | CH34: 2439.207808 | CI34: 2438.998926 | CJ34: 2438.800414 | CK34: 2438.611755 | CL34: 2438.432462 | CM34: 2438.26207 | CN34: 2438.100136 | CO34: 2437.94624 | CP34: 2437.799985 | CQ34: 2437.660989 | CR34: 2437.528894 | CS34: 2437.403356 | CT34: 2437.284049 | CU34: 2437.170666 | CV34: 2437.062911
B35: 24 | C35: Tumbes | D35: [Abonados] | E35: 2834 | F35: 2810 | G35: 2796 | H35: 2770 | I35: 2700 | J35: 2592 | K35: 2558 | L35: 2440 | M35: 2441 | N35: 2443 | O35: 2443 | P35: 2442 | Q35: 2444 | R35: 2467 | S35: 2469 | T35: 2476 | U35: 2488 | V35: 2513 | W35: 2535 | X35: 2537 | Y35: 2534 | Z35: 2511 | AA35: 2467 | AB35: 2470 | AC35: 2471 | AD35: 2468 | AE35: 2465 | AF35: 2465 | AG35: 2449 | AH35: 2451 | AI35: 2451 | AJ35: 2453 | AK35: 2460 | AL35: 2458.675417 | AM35: 2457.421014 | AN35: 2456.233074 | AO35: 2455.108075 | AP35: 2454.042682 | AQ35: 2453.033737 | AR35: 2452.078249 | AS35: 2451.173386 | AT35: 2450.316466 | AU35: 2449.504949 | AV35: 2448.736428 | AW35: 2448.008626 | AX35: 2447.319386 | AY35: 2446.666664 | AZ35: 2446.048525 | BA35: 2445.463137 | BB35: 2444.908765 | BC35: 2444.383766 | BD35: 2443.886583 | BE35: 2443.415742 | BF35: 2442.969848 | BG35: 2442.547578 | BH35: 2442.147683 | BI35: 2441.768974 | BJ35: 2441.410332 | BK35: 2441.070691 | BL35: 2440.749045 | BM35: 2440.444442 | BN35: 2440.155977 | BO35: 2439.882796 | BP35: =BP134+BP279+BP415+BP551 -> 2439.624089 | BQ35: 2439.37909 | BR35: 2439.147071 | BS35: 2438.927345 | BT35: 2438.719261 | BU35: 2438.522202 | BV35: 2438.335584 | BW35: 2438.158854 | BX35: 2437.991487 | BY35: 2437.832988 | BZ35: 2437.682887 | CA35: 2437.540739 | CB35: 2437.406122 | CC35: 2437.278638 | CD35: 2437.157908 | CE35: 2437.043575 | CF35: 2436.935299 | CG35: 2436.832761 | CH35: 2436.735655 | CI35: 2436.643694 | CJ35: 2436.556606 | CK35: 2436.474131 | CL35: 2436.396027 | CM35: 2436.322061 | CN35: 2436.252014 | CO35: 2436.185678 | CP35: 2436.122857 | CQ35: 2436.063364 | CR35: 2436.007023 | CS35: 2435.953668 | CT35: 2435.903139 | CU35: 2435.855288 | CV35: =CV134+CV279+CV415+CV551 -> 2435.809972
B36: 25 | C36: Ucayali | D36: [Abonados] | E36: =E135+E280+E416+E552 -> 2456 | F36: 2454 | G36: 2450 | H36: 2447 | I36: 2445 | J36: 2440 | K36: 2437 | L36: 2436 | M36: 2435 | N36: 2436 | O36: 2436 | P36: 2436 | Q36: 2436 | R36: 2436 | S36: 2439 | T36: 2439 | U36: 2450 | V36: 2473 | W36: 2496 | X36: 2505 | Y36: 2508 | Z36: 2501 | AA36: 2489 | AB36: 2486 | AC36: 2490 | AD36: 2487 | AE36: 2493 | AF36: 2504 | AG36: 2480 | AH36: 2487 | AI36: 2498 | AJ36: 2496 | AK36: 2506 | AL36: 2508.24812 | AM36: 2510.496241 | AN36: 2512.744361 | AO36: 2514.992481 | AP36: 2517.240602 | AQ36: 2519.488722 | AR36: 2521.736842 | AS36: 2523.984962 | AT36: 2526.233083 | AU36: 2528.481203 | AV36: 2530.729323 | AW36: 2532.977444 | AX36: 2535.225564 | AY36: 2537.473684 | AZ36: 2539.721805 | BA36: 2541.969925 | BB36: 2544.218045 | BC36: 2546.466165 | BD36: 2548.714286 | BE36: 2550.962406 | BF36: 2553.210526 | BG36: 2555.458647 | BH36: 2557.706767 | BI36: 2559.954887 | BJ36: 2562.203008 | BK36: 2564.451128 | BL36: 2566.699248 | BM36: 2568.947368 | BN36: 2571.195489 | BO36: 2573.443609 | BP36: 2575.691729 | BQ36: =BQ135+BQ280+BQ416+BQ552 -> 2577.93985 | BR36: 2580.18797 | BS36: 2582.43609 | BT36: 2584.684211 | BU36: 2586.932331 | BV36: 2589.180451 | BW36: 2591.428571 | BX36: 2593.676692 | BY36: 2595.924812 | BZ36: 2598.172932 | CA36: 2600.421053 | CB36: 2602.669173 | CC36: 2604.917293 | CD36: 2607.165414 | CE36: 2609.413534 | CF36: 2611.661654 | CG36: 2613.909774 | CH36: 2616.157895 | CI36: 2618.406015 | CJ36: 2620.654135 | CK36: 2622.902256 | CL36: 2625.150376 | CM36: 2627.398496 | CN36: 2629.646617 | CO36: 2631.894737 | CP36: 2634.142857 | CQ36: 2636.390977 | CR36: 2638.639098 | CS36: 2640.887218 | CT36: 2643.135338 | CU36: 2645.383459 | CV36: 2647.631579 | CW36: abo.dep.eop
B37: 26 | C37: Sin Localización | D37: [Abonados] | E37: 2435 | F37: 2436 | G37: 2436 | H37: 2436 | I37: 2435 | J37: 2438 | K37: 2435 | L37: 2435 | M37: 2435 | N37: 2435 | O37: 2435 | P37: 2435 | Q37: 2435 | R37: 2435 | S37: 2435 | T37: 2435 | U37: 2435 | V37: 2435 | W37: 2435 | X37: 2435 | Y37: 2435 | Z37: 2435 | AA37: 2435 | AB37: 2438 | AC37: 2448 | AD37: 2448 | AE37: 2442 | AF37: 2440 | AG37: 2436 | AH37: 2436 | AI37: 2436 | AJ37: 2436 | AK37: 2435 | AL37: 2436 | AM37: 2436 | AN37: 2436 | AO37: 2436 | AP37: 2436 | AQ37: 2436 | AR37: 2436 | AS37: 2436 | AT37: 2436 | AU37: 2436 | AV37: 2436 | AW37: 2436 | AX37: 2436 | AY37: 2436 | AZ37: 2436 | BA37: 2436 | BB37: 2436 | BC37: 2436 | BD37: 2436 | BE37: 2436 | BF37: 2436 | BG37: 2436 | BH37: 2436 | BI37: 2436 | BJ37: 2436 | BK37: 2436 | BL37: 2436 | BM37: 2436 | BN37: 2436 | BO37: 2436 | BP37: 2436 | BQ37: 2436 | BR37: 2436 | BS37: 2436 | BT37: 2436 | BU37: 2436 | BV37: 2436 | BW37: 2436 | BX37: 2436 | BY37: 2436 | BZ37: 2436 | CA37: 2436 | CB37: 2436 | CC37: 2436 | CD37: 2436 | CE37: 2436 | CF37: 2436 | CG37: 2436 | CH37: 2436 | CI37: 2436 | CJ37: 2436 | CK37: 2436 | CL37: 2436 | CM37: 2436 | CN37: 2436 | CO37: 2436 | CP37: 2436 | CQ37: 2436 | CR37: 2436 | CS37: 2436 | CT37: 2436 | CU37: 2436 | CV37: 2436
C39: Total EOP | D39: [Abonados] | E39: =SUM(E12:E37) -> 332408 | F39: =SUM(F12:F37) -> 305914 | G39: 286462 | H39: 258280 | I39: 215005 | J39: 147688 | K39: 127658 | L39: 68696 | M39: 67567 | N39: 68770 | O39: 67284 | P39: =SUM(P12:P37) -> 67136 | Q39: =SUM(Q12:Q37) -> 67964 | R39: 70878 | S39: 73507 | T39: 76317 | U39: 79246 | V39: 83040 | W39: 86443 | X39: 89148 | Y39: 90645 | Z39: 86359 | AA39: 74412 | AB39: 73427 | AC39: 74418 | AD39: 73897 | AE39: 73861 | AF39: 74287 | AG39: 69542 | AH39: 69819 | AI39: 70169 | AJ39: 70337 | AK39: 70891 | AL39: 70414.93845 | AM39: 69978.18133 | AN39: 69578.36826 | AO39: 69212.42445 | AP39: 68877.53606 | AQ39: 68571.12784 | AR39: 68290.84264 | AS39: 68034.52271 | AT39: 67800.19261 | AU39: 67586.0436 | AV39: 67390.41939 | AW39: 67211.8031 | AX39: 67048.80537 | AY39: 66900.15348 | AZ39: 66764.6814 | BA39: 66641.32072 | BB39: 66529.09234 | BC39: 66427.09888 | BD39: 66334.51773 | BE39: 66250.59475 | BF39: 66174.63844 | BG39: 66106.01462 | BH39: 66044.14165 | BI39: 65988.48593 | BJ39: 65938.55788 | BK39: 65893.90824 | BL39: 65854.12465 | BM39: 65818.82859 | BN39: 65787.6725 | BO39: 65760.33722 | BP39: 65736.5296 | BQ39: 65715.98032 | BR39: 65698.44191 | BS39: 65683.68694 | BT39: 65671.50633 | BU39: 65661.70786 | BV39: 65654.11475 | BW39: 65648.56436 | BX39: 65644.90707 | BY39: 65643.0052 | BZ39: 65642.73198 | CA39: 65643.97069 | CB39: 65646.61386 | CC39: =SUM(CC12:CC37) -> 65650.56247 | CD39: 65655.72525 | CE39: 65662.01812 | CF39: 65669.36353 | CG39: 65677.68996 | CH39: 65686.93146 | CI39: 65697.02714 | CJ39: 65707.92082 | CK39: 65719.56062 | CL39: 65731.89862 | CM39: 65744.89056 | CN39: 65758.49552 | CO39: 65772.67569 | CP39: 65787.39609 | CQ39: 65802.62438 | CR39: 65818.3306 | CS39: 65834.48707 | CT39: 65851.06812 | CU39: 65868.04999 | CV39: 65885.41066
B41: Abonados por Departamento AVG
B43: id | C43: Departamento | E43: 201401 | F43: 201402 | G43: 201403 | H43: 201404 | I43: 201405 | J43: 201406 | K43: 201407 | L43: 201408 | M43: 201409 | N43: 201410 | O43: 201411 | P43: 201412 | Q43: 201501 | R43: 201502 | S43: 201503 | T43: 201504 | U43: 201505 | V43: 201506 | W43: 201507 | X43: 201508 | Y43: 201509 | Z43: 201510 | AA43: 201511 | AB43: 201512 | AC43: 201601 | AD43: 201602 | AE43: 201603 | AF43: 201604 | AG43: 201605 | AH43: 201606 | AI43: 201607 | AJ43: 201608 | AK43: 201609 | AL43: 201610 | AM43: 201611 | AN43: 201612 | AO43: 201701 | AP43: 201702 | AQ43: 201703 | AR43: 201704 | AS43: 201705 | AT43: 201706 | AU43: 201707 | AV43: 201708 | AW43: 201709 | AX43: 201710 | AY43: 201711 | AZ43: 201712 | BA43: 201801 | BB43: 201802 | BC43: 201803 | BD43: 201804 | BE43: 201805 | BF43: 201806 | BG43: 201807 | BH43: 201808 | BI43: 201809 | BJ43: 201810 | BK43: 201811 | BL43: 201812 | BM43: 201901 | BN43: 201902 | BO43: 201903 | BP43: 201904 | BQ43: 201905 | BR43: 201906 | BS43: 201907 | BT43: 201908 | BU43: 201909 | BV43: 201910 | BW43: 201911 | BX43: 201912 | BY43: 202001 | BZ43: 202002 | CA43: 202003 | CB43: 202004 | CC43: 202005 | CD43: 202006 | CE43: 202007 | CF43: 202008 | CG43: 202009 | CH43: 202010 | CI43: 202011 | CJ43: 202012 | CK43: 202101 | CL43: 202102 | CM43: 202103 | CN43: 202104 | CO43: 202105 | CP43: 202106 | CQ43: 202107 | CR43: 202108 | CS43: 202109 | CT43: 202110 | CU43: 202111 | CV43: 202112
B44: 1 | C44: Amazonas | D44: [Abonados] | E44: =E12 -> 2440 | F44: =(E12+F12)/2 -> 2440 | G44: =(F12+G12)/2 -> 2440 | H44: 2439 | I44: 2437.5 | J44: 2436 | K44: 2435 | L44: 2435 | M44: 2435 | N44: 2435 | O44: 2435 | P44: 2435 | Q44: 2435 | R44: 2437 | S44: 2441 | T44: 2447 | U44: 2451.5 | V44: 2455.5 | W44: 2462.5 | X44: 2468 | Y44: 2470.5 | Z44: 2471 | AA44: 2463.5 | AB44: 2454 | AC44: 2455 | AD44: 2460 | AE44: 2468 | AF44: 2478.5 | AG44: 2476.5 | AH44: 2477 | AI44: 2490.5 | AJ44: 2502.5 | AK44: 2517 | AL44: 2526.96354 | AM44: 2528.89062 | AN44: 2530.817699 | AO44: 2532.744779 | AP44: 2534.671859 | AQ44: 2536.598939 | AR44: 2538.526019 | AS44: 2540.453098 | AT44: 2542.380178 | AU44: 2544.307258 | AV44: 2546.234338 | AW44: 2548.161418 | AX44: 2550.088497 | AY44: 2552.015577 | AZ44: 2553.942657 | BA44: 2555.869737 | BB44: 2557.796817 | BC44: 2559.723896 | BD44: 2561.650976 | BE44: 2563.578056 | BF44: 2565.505136 | BG44: 2567.432216 | BH44: 2569.359295 | BI44: 2571.286375 | BJ44: 2573.213455 | BK44: 2575.140535 | BL44: 2577.067615 | BM44: 2578.994694 | BN44: 2580.921774 | BO44: 2582.848854 | BP44: 2584.775934 | BQ44: 2586.703014 | BR44: 2588.630093 | BS44: =(BR12+BS12)/2 -> 2590.557173 | BT44: 2592.484253 | BU44: 2594.411333 | BV44: 2596.338413 | BW44: 2598.265492 | BX44: 2600.192572 | BY44: 2602.119652 | BZ44: 2604.046732 | CA44: 2605.973812 | CB44: 2607.900891 | CC44: 2609.827971 | CD44: 2611.755051 | CE44: 2613.682131 | CF44: 2615.609211 | CG44: 2617.53629 | CH44: 2619.46337 | CI44: 2621.39045 | CJ44: 2623.31753 | CK44: 2625.24461 | CL44: 2627.171689 | CM44: 2629.098769 | CN44: 2631.025849 | CO44: 2632.952929 | CP44: 2634.880008 | CQ44: 2636.807088 | CR44: 2638.734168 | CS44: 2640.661248 | CT44: 2642.588328 | CU44: 2644.515407 | CV44: 2646.442487
B45: 2 | C45: Ancash | D45: [Abonados] | E45: =E13 -> 7399 | F45: =(E13+F13)/2 -> 7302.5 | G45: 7138.5 | H45: 6958.5 | I45: 6388 | J45: 5248.5 | K45: 4297 | L45: 3291.5 | M45: 2541.5 | N45: 2538 | O45: 2537 | P45: 2521 | Q45: 2535.5 | R45: 2590.5 | S45: 2682.5 | T45: 2792.5 | U45: 2909.5 | V45: 3074.5 | W45: 3321.5 | X45: 3476 | Y45: 3447 | Z45: 3320.5 | AA45: 2969.5 | AB45: 2687 | AC45: 2679 | AD45: 2698 | AE45: 2691.5 | AF45: 2699 | AG45: 2678 | AH45: 2630.5 | AI45: 2625 | AJ45: 2608.5 | AK45: 2596.5 | AL45: 2594.369362 | AM45: 2583.492378 | AN45: 2573.357749 | AO45: 2563.914811 | AP45: 2555.116354 | AQ45: 2546.918394 | AR45: 2539.279946 | AS45: 2532.162823 | AT45: 2525.531445 | AU45: 2519.352659 | AV45: 2513.595577 | AW45: 2508.231416 | AX45: 2503.233361 | AY45: 2498.576423 | AZ45: 2494.237322 | BA45: 2490.194365 | BB45: 2486.427341 | BC45: 2482.917417 | BD45: 2479.647046 | BE45: 2476.599878 | BF45: 2473.760679 | BG45: 2471.115257 | BH45: 2468.650385 | BI45: 2466.353741 | BJ45: 2464.213843 | BK45: 2462.219993 | BL45: 2460.362225 | BM45: 2458.631249 | BN45: 2457.018412 | BO45: 2455.515652 | BP45: 2454.115456 | BQ45: 2452.810823 | BR45: 2451.595231 | BS45: 2450.462604 | BT45: 2449.407279 | BU45: 2448.42398 | BV45: 2447.507791 | BW45: 2446.654132 | BX45: 2445.858736 | BY45: 2445.117625 | BZ45: 2444.427096 | CA45: 2443.783695 | CB45: 2443.184207 | CC45: 2442.625633 | CD45: 2442.105182 | CE45: 2441.620253 | CF45: 2441.168419 | CG45: 2440.747424 | CH45: 2440.355161 | CI45: 2439.989671 | CJ45: 2439.649125 | CK45: 2439.331821 | CL45: 2439.036174 | CM45: 2438.760704 | CN45: 2438.504036 | CO45: 2438.264885 | CP45: 2438.042056 | CQ45: 2437.834435 | CR45: 2437.640984 | CS45: 2437.460737 | CT45: 2437.292791 | CU45: 2437.136308 | CV45: 2436.990504
B46: 3 | C46: Apurímac | D46: [Abonados] | E46: 2440 | F46: 2440 | G46: 2439 | H46: 2438 | I46: 2436.5 | J46: 2435 | K46: 2435 | L46: 2435 | M46: 2435 | N46: 2435 | O46: 2435 | P46: 2436 | Q46: 2437 | R46: 2437.5 | S46: 2439.5 | T46: 2443.5 | U46: 2446.5 | V46: 2448.5 | W46: 2449 | X46: 2449.5 | Y46: 2453.5 | Z46: 2456.5 | AA46: 2453 | AB46: 2449 | AC46: 2447.5 | AD46: 2444 | AE46: 2442.5 | AF46: 2444 | AG46: 2445.5 | AH46: 2449.5 | AI46: 2453.5 | AJ46: 2456.5 | AK46: 2461 | AL46: 2463.273088 | AM46: 2463.819264 | AN46: 2464.36544 | AO46: 2464.911616 | AP46: 2465.457791 | AQ46: 2466.003967 | AR46: 2466.550143 | AS46: 2467.096319 | AT46: 2467.642495 | AU46: 2468.188671 | AV46: 2468.734847 | AW46: 2469.281022 | AX46: 2469.827198 | AY46: 2470.373374 | AZ46: 2470.91955 | BA46: 2471.465726 | BB46: 2472.011902 | BC46: 2472.558078 | BD46: 2473.104253 | BE46: 2473.650429 | BF46: 2474.196605 | BG46: 2474.742781 | BH46: 2475.288957 | BI46: 2475.835133 | BJ46: 2476.381309 | BK46: 2476.927484 | BL46: 2477.47366 | BM46: 2478.019836 | BN46: 2478.566012 | BO46: 2479.112188 | BP46: 2479.658364 | BQ46: 2480.20454 | BR46: 2480.750715 | BS46: 2481.296891 | BT46: 2481.843067 | BU46: 2482.389243 | BV46: 2482.935419 | BW46: 2483.481595 | BX46: 2484.027771 | BY46: 2484.573946 | BZ46: 2485.120122 | CA46: 2485.666298 | CB46: 2486.212474 | CC46: 2486.75865 | CD46: 2487.304826 | CE46: 2487.851002 | CF46: 2488.397178 | CG46: 2488.943353 | CH46: 2489.489529 | CI46: 2490.035705 | CJ46: 2490.581881 | CK46: 2491.128057 | CL46: 2491.674233 | CM46: 2492.220409 | CN46: 2492.766584 | CO46: 2493.31276 | CP46: 2493.858936 | CQ46: 2494.405112 | CR46: 2494.951288 | CS46: 2495.497464 | CT46: 2496.04364 | CU46: 2496.589815 | CV46: 2497.135991
B47: 4 | C47: Arequipa | D47: [Abonados] | E47: 4982 | F47: 4944.5 | G47: 4891.5 | H47: 4773.5 | I47: 4451 | J47: 3951 | K47: 3550.5 | L47: 2990.5 | M47: 2543 | N47: 2554.5 | O47: 2558.5 | P47: 2549.5 | Q47: 2573.5 | R47: 2635 | S47: 2753.5 | T47: 2907 | U47: 3069 | V47: 3310 | W47: 3547.5 | X47: 3800 | Y47: 4069 | Z47: 4050.5 | AA47: 3553 | AB47: 3077 | AC47: 2968 | AD47: 2921.5 | AE47: 2874.5 | AF47: 2882 | AG47: 2810 | AH47: 2717.5 | AI47: 2714 | AJ47: 2701 | AK47: 2708 | AL47: 2716.736402 | AM47: 2708.336325 | AN47: 2700.186701 | AO47: 2692.28006 | AP47: 2684.609159 | AQ47: 2677.166969 | AR47: 2669.94667 | AS47: 2662.941647 | AT47: 2656.145482 | AU47: 2649.551947 | AV47: 2643.155 | AW47: 2636.948781 | AX47: 2630.927603 | AY47: 2625.085948 | AZ47: 2619.418464 | BA47: 2613.919959 | BB47: 2608.585393 | BC47: 2603.40988 | BD47: 2598.388677 | BE47: 2593.517182 | BF47: 2588.790933 | BG47: 2584.205599 | BH47: 2579.756978 | BI47: 2575.440995 | BJ47: 2571.253694 | BK47: 2567.191239 | BL47: 2563.249908 | BM47: 2559.426089 | BN47: 2555.716279 | BO47: 2552.117078 | BP47: 2548.625188 | BQ47: 2545.237411 | BR47: 2541.950641 | BS47: 2538.761868 | BT47: 2535.668169 | BU47: 2532.66671 | BV47: 2529.75474 | BW47: 2526.929592 | BX47: 2524.188677 | BY47: 2521.529484 | BZ47: 2518.949575 | CA47: 2516.446587 | CB47: 2514.018226 | CC47: 2511.662268 | CD47: 2509.376554 | CE47: 2507.158989 | CF47: 2505.007542 | CG47: 2502.920241 | CH47: 2500.895174 | CI47: 2498.930485 | CJ47: 2497.024373 | CK47: 2495.175093 | CL47: 2493.38095 | CM47: 2491.640301 | CN47: 2489.951549 | CO47: 2488.313148 | CP47: 2486.723596 | CQ47: 2485.181438 | CR47: 2483.68526 | CS47: 2482.233691 | CT47: 2480.8254 | CU47: 2479.459099 | CV47: 2478.133534
B48: 5 | C48: Ayacucho | D48: [Abonados] | E48: 2451 | F48: 2451 | G48: 2448.5 | H48: 2445 | I48: 2443 | J48: 2439.5 | K48: 2437.5 | L48: 2438 | M48: 2437.5 | N48: 2437 | O48: 2436.5 | P48: 2435.5 | Q48: 2435 | R48: 2436.5 | S48: 2438 | T48: 2438 | U48: 2439.5 | V48: 2442.5 | W48: 2445.5 | X48: 2449 | Y48: 2452.5 | Z48: 2456 | AA48: 2453.5 | AB48: 2448.5 | AC48: 2452.5 | AD48: 2457.5 | AE48: 2455.5 | AF48: 2457 | AG48: 2459 | AH48: 2459 | AI48: 2464.5 | AJ48: =(AI16+AJ16)/2 -> 2466.5 | AK48: 2466.5 | AL48: 2468.378228 | AM48: 2469.134683 | AN48: 2469.891138 | AO48: 2470.647593 | AP48: 2471.404048 | AQ48: 2472.160503 | AR48: 2472.916958 | AS48: 2473.673414 | AT48: 2474.429869 | AU48: 2475.186324 | AV48: 2475.942779 | AW48: 2476.699234 | AX48: 2477.455689 | AY48: 2478.212144 | AZ48: 2478.9686 | BA48: 2479.725055 | BB48: 2480.48151 | BC48: 2481.237965 | BD48: 2481.99442 | BE48: 2482.750875 | BF48: 2483.50733 | BG48: 2484.263786 | BH48: 2485.020241 | BI48: 2485.776696 | BJ48: 2486.533151 | BK48: 2487.289606 | BL48: 2488.046061 | BM48: 2488.802516 | BN48: 2489.558972 | BO48: 2490.315427 | BP48: 2491.071882 | BQ48: 2491.828337 | BR48: 2492.584792 | BS48: 2493.341247 | BT48: 2494.097702 | BU48: 2494.854158 | BV48: 2495.610613 | BW48: 2496.367068 | BX48: 2497.123523 | BY48: 2497.879978 | BZ48: 2498.636433 | CA48: 2499.392888 | CB48: 2500.149344 | CC48: 2500.905799 | CD48: 2501.662254 | CE48: 2502.418709 | CF48: 2503.175164 | CG48: 2503.931619 | CH48: 2504.688074 | CI48: 2505.44453 | CJ48: 2506.200985 | CK48: 2506.95744 | CL48: 2507.713895 | CM48: 2508.47035 | CN48: 2509.226805 | CO48: 2509.98326 | CP48: 2510.739716 | CQ48: 2511.496171 | CR48: 2512.252626 | CS48: 2513.009081 | CT48: 2513.765536 | CU48: 2514.521991 | CV48: 2515.278446
B49: 6 | C49: Cajamarca | D49: [Abonados] | E49: 2525 | F49: 2520.5 | G49: 2515 | H49: 2511.5 | I49: 2499.5 | J49: 2480.5 | K49: 2469 | L49: 2454.5 | M49: 2442 | N49: 2443.5 | O49: 2445.5 | P49: 2445 | Q49: 2450 | R49: 2479 | S49: 2536 | T49: 2599 | U49: 2658 | V49: 2719 | W49: 2799 | X49: 2864 | Y49: 2881.5 | Z49: 2855.5 | AA49: 2712 | AB49: 2608 | AC49: 2649 | AD49: 2663 | AE49: 2641 | AF49: 2633 | AG49: 2594.5 | AH49: 2561.5 | AI49: 2573.5 | AJ49: 2579.5 | AK49: 2582 | AL49: 2589.198028 | AM49: 2595.594084 | AN49: 2601.99014 | AO49: 2608.386197 | AP49: 2614.782253 | AQ49: 2621.178309 | AR49: 2627.574365 | AS49: 2633.970421 | AT49: 2640.366477 | AU49: 2646.762533 | AV49: 2653.15859 | AW49: 2659.554646 | AX49: 2665.950702 | AY49: 2672.346758 | AZ49: 2678.742814 | BA49: 2685.13887 | BB49: 2691.534926 | BC49: 2697.930983 | BD49: 2704.327039 | BE49: 2710.723095 | BF49: 2717.119151 | BG49: 2723.515207 | BH49: 2729.911263 | BI49: 2736.30732 | BJ49: 2742.703376 | BK49: 2749.099432 | BL49: 2755.495488 | BM49: 2761.891544 | BN49: 2768.2876 | BO49: 2774.683656 | BP49: 2781.079713 | BQ49: 2787.475769 | BR49: 2793.871825 | BS49: 2800.267881 | BT49: 2806.663937 | BU49: 2813.059993 | BV49: 2819.456049 | BW49: 2825.852106 | BX49: 2832.248162 | BY49: 2838.644218 | BZ49: 2845.040274 | CA49: 2851.43633 | CB49: 2857.832386 | CC49: 2864.228443 | CD49: 2870.624499 | CE49: 2877.020555 | CF49: 2883.416611 | CG49: 2889.812667 | CH49: 2896.208723 | CI49: 2902.604779 | CJ49: 2909.000836 | CK49: 2915.396892 | CL49: 2921.792948 | CM49: 2928.189004 | CN49: 2934.58506 | CO49: 2940.981116 | CP49: 2947.377172 | CQ49: 2953.773229 | CR49: 2960.169285 | CS49: 2966.565341 | CT49: 2972.961397 | CU49: 2979.357453 | CV49: 2985.753509
B50: 7 | C50: Callao | D50: [Abonados] | E50: 34043 | F50: 32437.5 | G50: 29482 | H50: 26382 | I50: 22066 | J50: 15650 | K50: 10677 | L50: 6207 | M50: 2805 | N50: 2789 | O50: 2774 | P50: 2701.5 | Q50: 2707.5 | R50: 2807.5 | S50: 2949.5 | T50: 3093.5 | U50: 3256 | V50: 3418.5 | W50: 3596.5 | X50: 3771 | Y50: 3939 | Z50: 3907.5 | AA50: 3445 | AB50: 3077.5 | AC50: 3053 | AD50: 3063 | AE50: 3084 | AF50: 3106 | AG50: 2946 | AH50: 2771.5 | AI50: 2770 | AJ50: 2779.5 | AK50: 2797 | AL50: 2794.185428 | AM50: 2758.429237 | AN50: 2726.232503 | AO50: 2697.240889 | AP50: 2671.135333 | AQ50: 2647.628533 | AR50: 2626.461787 | AS50: 2607.402149 | AT50: 2590.23986 | AU50: 2574.786042 | AV50: 2560.870621 | AW50: 2548.340452 | AX50: 2537.057637 | AY50: 2526.898003 | AZ50: 2517.749741 | BA50: 2509.512169 | BB50: 2502.094632 | BC50: 2495.415495 | BD50: 2489.401254 | BE50: 2483.985718 | BF50: 2479.109287 | BG50: 2474.718296 | BH50: 2470.764419 | BI50: 2467.204143 | BJ50: 2463.998285 | BK50: 2461.111563 | BL50: 2458.512209 | BM50: 2456.171616 | BN50: 2454.064024 | BO50: 2452.166238 | BP50: 2450.457374 | BQ50: 2448.918623 | BR50: 2447.533052 | BS50: 2446.285412 | BT50: 2445.161971 | BU50: 2444.150368 | BV50: 2443.239467 | BW50: 2442.419244 | BX50: 2441.680673 | BY50: 2441.015626 | BZ50: 2440.416782 | CA50: 2439.877552 | CB50: 2439.392002 | CC50: 2438.954787 | CD50: 2438.561096 | CE50: 2438.206596 | CF50: 2437.887386 | CG50: 2437.599952 | CH50: 2437.341132 | CI50: 2437.108077 | CJ50: 2436.898222 | CK50: 2436.709258 | CL50: 2436.539105 | CM50: 2436.38589 | CN50: 2436.247927 | CO50: 2436.123699 | CP50: 2436.011837 | CQ50: 2435.91111 | CR50: 2435.820411 | CS50: 2435.738741 | CT50: 2435.665201 | CU50: 2435.598981 | CV50: 2435.539354
B51: 8 | C51: Cusco | D51: [Abonados] | E51: 2804 | F51: 2797 | G51: 2783.5 | H51: 2718.5 | I51: 2636.5 | J51: 2587 | K51: 2546 | L51: 2505 | M51: 2480 | N51: 2488.5 | O51: 2488 | P51: 2476 | Q51: 2474.5 | R51: 2485.5 | S51: 2504.5 | T51: 2522 | U51: 2546 | V51: 2579 | W51: 2611.5 | X51: 2648.5 | Y51: 2695 | Z51: 2716 | AA51: 2668 | AB51: 2615 | AC51: 2615.5 | AD51: 2620 | AE51: 2618 | AF51: 2635.5 | AG51: 2607.5 | AH51: 2574 | AI51: 2589.5 | AJ51: 2597.5 | AK51: 2603 | AL51: 2608.959519 | AM51: 2610.889201 | AN51: 2612.840289 | AO51: 2614.813019 | AP51: 2616.807632 | AQ51: 2618.824371 | AR51: 2620.863481 | AS51: 2622.92521 | AT51: 2625.00981 | AU51: 2627.117533 | AV51: 2629.248637 | AW51: 2631.40338 | AX51: 2633.582025 | AY51: 2635.784837 | AZ51: 2638.012085 | BA51: 2640.264039 | BB51: 2642.540973 | BC51: 2644.843164 | BD51: 2647.170893 | BE51: 2649.524442 | BF51: 2651.904099 | BG51: 2654.310153 | BH51: 2656.742896 | BI51: 2659.202625 | BJ51: 2661.68964 | BK51: 2664.204241 | BL51: 2666.746737 | BM51: 2669.317436 | BN51: 2671.916651 | BO51: 2674.544698 | BP51: 2677.201897 | BQ51: 2679.888572 | BR51: 2682.605049 | BS51: 2685.351659 | BT51: 2688.128737 | BU51: 2690.93662 | BV51: 2693.77565 | BW51: 2696.646173 | BX51: 2699.548537 | BY51: 2702.483097 | BZ51: 2705.450209 | CA51: 2708.450234 | CB51: 2711.483537 | CC51: 2714.550488 | CD51: 2717.65146 | CE51: 2720.78683 | CF51: 2723.95698 | CG51: 2727.162295 | CH51: 2730.403166 | CI51: 2733.679987 | CJ51: 2736.993156 | CK51: 2740.343078 | CL51: 2743.73016 | CM51: 2747.154813 | CN51: 2750.617455 | CO51: 2754.118507 | CP51: 2757.658395 | CQ51: 2761.237551 | CR51: 2764.856408 | CS51: 2768.515409 | CT51: 2772.214998 | CU51: 2775.955625 | CV51: 2779.737746
B52: 9 | C52: Huancavelica | D52: [Abonados] | E52: 2443 | F52: 2442.5 | G52: 2441.5 | H52: 2441 | I52: 2439.5 | J52: 2438 | K52: 2438 | L52: 2436.5 | M52: 2436 | N52: 2437 | O52: 2437 | P52: 2437 | Q52: 2436.5 | R52: 2436 | S52: 2437.5 | T52: 2440 | U52: 2442.5 | V52: 2448.5 | W52: 2456.5 | X52: 2461.5 | Y52: 2466 | Z52: 2469.5 | AA52: 2461.5 | AB52: 2452 | AC52: 2455.5 | AD52: 2459 | AE52: 2456 | AF52: 2456 | AG52: 2455 | AH52: 2450.5 | AI52: =(AH20+AI20)/2 -> 2450.5 | AJ52: 2451 | AK52: 2451 | AL52: 2452.339005 | AM52: 2453.017014 | AN52: 2453.695023 | AO52: 2454.373032 | AP52: 2455.051042 | AQ52: 2455.729051 | AR52: 2456.40706 | AS52: 2457.085069 | AT52: 2457.763079 | AU52: 2458.441088 | AV52: 2459.119097 | AW52: 2459.797107 | AX52: 2460.475116 | AY52: 2461.153125 | AZ52: 2461.831134 | BA52: 2462.509144 | BB52: 2463.187153 | BC52: 2463.865162 | BD52: 2464.543171 | BE52: 2465.221181 | BF52: 2465.89919 | BG52: 2466.577199 | BH52: 2467.255208 | BI52: 2467.933218 | BJ52: 2468.611227 | BK52: 2469.289236 | BL52: 2469.967245 | BM52: 2470.645255 | BN52: 2471.323264 | BO52: 2472.001273 | BP52: 2472.679282 | BQ52: 2473.357292 | BR52: 2474.035301 | BS52: 2474.71331 | BT52: 2475.39132 | BU52: 2476.069329 | BV52: 2476.747338 | BW52: 2477.425347 | BX52: 2478.103357 | BY52: 2478.781366 | BZ52: 2479.459375 | CA52: 2480.137384 | CB52: 2480.815394 | CC52: 2481.493403 | CD52: 2482.171412 | CE52: 2482.849421 | CF52: 2483.527431 | CG52: 2484.20544 | CH52: =(CG20+CH20)/2 -> 2484.883449 | CI52: 2485.561458 | CJ52: 2486.239468 | CK52: 2486.917477 | CL52: 2487.595486 | CM52: 2488.273496 | CN52: 2488.951505 | CO52: 2489.629514 | CP52: 2490.307523 | CQ52: 2490.985533 | CR52: 2491.663542 | CS52: 2492.341551 | CT52: 2493.01956 | CU52: 2493.69757 | CV52: 2494.375579
B53: 10 | C53: Huánuco | D53: [Abonados] | E53: 2486 | F53: 2484.5 | G53: 2481.5 | H53: 2473.5 | I53: 2463.5 | J53: 2452.5 | K53: 2442.5 | L53: 2439 | M53: 2438 | N53: 2438 | O53: 2436.5 | P53: 2435 | Q53: 2435 | R53: 2437 | S53: 2441 | T53: 2444 | U53: 2446 | V53: 2449 | W53: 2453 | X53: 2456.5 | Y53: 2461.5 | Z53: 2467.5 | AA53: 2465.5 | AB53: 2469.5 | AC53: 2491.5 | AD53: 2508.5 | AE53: 2508.5 | AF53: 2503 | AG53: 2488 | AH53: 2476.5 | AI53: 2481 | AJ53: 2491.5 | AK53: 2504 | AL53: 2509.648409 | AM53: 2510.945228 | AN53: 2512.242046 | AO53: 2513.538865 | AP53: 2514.835684 | AQ53: 2516.132502 | AR53: 2517.429321 | AS53: 2518.726139 | AT53: 2520.022958 | AU53: 2521.319776 | AV53: 2522.616595 | AW53: 2523.913414 | AX53: 2525.210232 | AY53: 2526.507051 | AZ53: 2527.803869 | BA53: 2529.100688 | BB53: 2530.397506 | BC53: 2531.694325 | BD53: 2532.991144 | BE53: 2534.287962 | BF53: 2535.584781 | BG53: 2536.881599 | BH53: 2538.178418 | BI53: 2539.475236 | BJ53: 2540.772055 | BK53: 2542.068874 | BL53: 2543.365692 | BM53: 2544.662511 | BN53: 2545.959329 | BO53: 2547.256148 | BP53: 2548.552966 | BQ53: 2549.849785 | BR53: 2551.146604 | BS53: =(BR21+BS21)/2 -> 2552.443422 | BT53: 2553.740241 | BU53: 2555.037059 | BV53: 2556.333878 | BW53: 2557.630696 | BX53: 2558.927515 | BY53: 2560.224334 | BZ53: 2561.521152 | CA53: 2562.817971 | CB53: 2564.114789 | CC53: 2565.411608 | CD53: 2566.708426 | CE53: 2568.005245 | CF53: 2569.302064 | CG53: 2570.598882 | CH53: 2571.895701 | CI53: 2573.192519 | CJ53: 2574.489338 | CK53: 2575.786156 | CL53: 2577.082975 | CM53: 2578.379794 | CN53: 2579.676612 | CO53: 2580.973431 | CP53: 2582.270249 | CQ53: 2583.567068 | CR53: 2584.863887 | CS53: 2586.160705 | CT53: 2587.457524 | CU53: 2588.754342 | CV53: 2590.051161
B54: 11 | C54: Ica | D54: [Abonados] | E54: 12332 | F54: 11825 | G54: 10908 | H54: 9961 | I54: 8655 | J54: 6953 | K54: 5693 | L54: 4005.5 | M54: 2621 | N54: 2613.5 | O54: 2614 | P54: 2589 | Q54: 2586.5 | R54: 2668 | S54: 2824 | T54: 2986.5 | U54: 3141.5 | V54: 3278.5 | W54: 3405 | X54: 3527.5 | Y54: 3645 | Z54: 3595 | AA54: 3216.5 | AB54: 2934.5 | AC54: 2929 | AD54: 2918 | AE54: 2870 | AF54: 2843 | AG54: 2772 | AH54: 2712 | AI54: 2738.5 | AJ54: 2730.5 | AK54: 2701 | AL54: 2681.780411 | AM54: 2664.005302 | AN54: 2647.510499 | AO54: 2632.203784 | AP54: 2617.999582 | AQ54: 2604.818481 | AR54: 2592.586788 | AS54: 2581.236121 | AT54: 2570.70302 | AU54: 2560.928597 | AV54: 2551.858207 | AW54: 2543.44114 | AX54: 2535.630337 | AY54: 2528.382131 | AZ54: 2521.655999 | BA54: 2515.414337 | BB54: 2509.62225 | BC54: 2504.247356 | BD54: 2499.259604 | BE54: 2494.631111 | BF54: 2490.335999 | BG54: 2486.350255 | BH54: 2482.651597 | BI54: 2479.219346 | BJ54: 2476.034313 | BK54: 2473.078692 | BL54: 2470.335959 | BM54: 2467.790779 | BN54: 2465.428923 | BO54: 2463.237187 | BP54: 2461.203318 | BQ54: 2459.315945 | BR54: 2457.564515 | BS54: 2455.939237 | BT54: 2454.431025 | BU54: 2453.031446 | BV54: 2451.732676 | BW54: 2450.527455 | BX54: 2449.409042 | BY54: 2448.371187 | BZ54: 2447.408087 | CA54: 2446.514357 | CB54: 2445.685 | CC54: 2444.915381 | CD54: 2444.201195 | CE54: 2443.538451 | CF54: 2442.923443 | CG54: 2442.352733 | CH54: 2441.82313 | CI54: 2441.331673 | CJ54: 2440.875615 | CK54: 2440.452406 | CL54: 2440.05968 | CM54: 2439.695241 | CN54: 2439.357052 | CO54: 2439.043222 | CP54: 2438.751997 | CQ54: 2438.481748 | CR54: 2438.230965 | CS54: 2437.998244 | CT54: 2437.782287 | CU54: 2437.581884 | CV54: 2437.395916
B55: 12 | C55: Junín | D55: [Abonados] | E55: 3193 | F55: 3180 | G55: 3157.5 | H55: 3144 | I55: 3127 | J55: 3012.5 | K55: 2861 | L55: 2653.5 | M55: 2493.5 | N55: 2499 | O55: 2505 | P55: 2502.5 | Q55: 2519 | R55: 2612 | S55: 2772.5 | T55: 2929 | U55: 3058 | V55: 3195 | W55: 3315 | X55: 3403.5 | Y55: 3455.5 | Z55: 3372 | AA55: 3039 | AB55: 2755.5 | AC55: 2724 | AD55: 2724 | AE55: 2713.5 | AF55: 2717.5 | AG55: 2668.5 | AH55: 2613 | AI55: 2620 | AJ55: 2626 | AK55: 2638.5 | AL55: 2649.051023 | AM55: 2647.161446 | AN55: 2645.288549 | AO55: 2643.432186 | AP55: 2641.59221 | AQ55: 2639.768478 | AR55: 2637.960844 | AS55: 2636.169168 | AT55: 2634.393308 | AU55: 2632.633124 | AV55: 2630.888479 | AW55: 2629.159236 | AX55: 2627.445257 | AY55: 2625.746409 | AZ55: 2624.062558 | BA55: 2622.393572 | BB55: 2620.739319 | BC55: 2619.099669 | BD55: 2617.474493 | BE55: 2615.863664 | BF55: 2614.267055 | BG55: 2612.68454 | BH55: 2611.115995 | BI55: 2609.561297 | BJ55: 2608.020323 | BK55: 2606.492952 | BL55: 2604.979065 | BM55: 2603.478542 | BN55: 2601.991264 | BO55: 2600.517117 | BP55: 2599.055982 | BQ55: 2597.607746 | BR55: 2596.172294 | BS55: 2594.749514 | BT55: 2593.339295 | BU55: 2591.941524 | BV55: 2590.556092 | BW55: 2589.18289 | BX55: 2587.821811 | BY55: 2586.472746 | BZ55: 2585.135591 | CA55: 2583.81024 | CB55: 2582.496589 | CC55: 2581.194534 | CD55: 2579.903973 | CE55: 2578.624805 | CF55: 2577.356929 | CG55: 2576.100246 | CH55: 2574.854656 | CI55: 2573.620062 | CJ55: 2572.396366 | CK55: 2571.183473 | CL55: 2569.981287 | CM55: 2568.789713 | CN55: 2567.608658 | CO55: 2566.43803 | CP55: 2565.277735 | CQ55: 2564.127683 | CR55: 2562.987783 | CS55: 2561.857946 | CT55: 2560.738083 | CU55: 2559.628105 | CV55: 2558.527926
B56: 13 | C56: La Libertad | D56: [Abonados] | E56: 6435 | F56: 6379.5 | G56: 6287 | H56: 6153.5 | I56: 5591 | J56: 4594.5 | K56: 3920.5 | L56: 3182 | M56: 2570 | N56: 2571.5 | O56: 2572.5 | P56: 2556.5 | Q56: 2583 | R56: 2686 | S56: 2843 | T56: 2980.5 | U56: 3080.5 | V56: 3242.5 | W56: 3507.5 | X56: 3675.5 | Y56: 3690 | Z56: 3575.5 | AA56: 3156 | AB56: 2828 | AC56: 2841 | AD56: 2858.5 | AE56: 2856 | AF56: 2868.5 | AG56: 2783 | AH56: =(AG24+AH24)/2 -> 2700 | AI56: 2714 | AJ56: 2708 | AK56: 2701.5 | AL56: 2700.365512 | AM56: 2687.420186 | AN56: 2675.106372 | AO56: 2663.393262 | AP56: 2652.251554 | AQ56: 2641.653371 | AR56: 2631.572199 | AS56: 2621.982817 | AT56: 2612.861234 | AU56: 2604.18463 | AV56: 2595.931296 | AW56: 2588.080584 | AX56: 2580.612854 | AY56: 2573.509422 | AZ56: 2566.752517 | BA56: 2560.325233 | BB56: 2554.211492 | BC56: 2548.395998 | BD56: 2542.864201 | BE56: 2537.602262 | BF56: 2532.597015 | BG56: 2527.83594 | BH56: 2523.307124 | BI56: 2518.999238 | BJ56: 2514.901503 | BK56: 2511.003668 | BL56: 2507.295981 | BM56: 2503.769166 | BN56: 2500.4144 | BO56: 2497.223289 | BP56: 2494.18785 | BQ56: 2491.300489 | BR56: 2488.553982 | BS56: 2485.941458 | BT56: 2483.456381 | BU56: 2481.092533 | BV56: 2478.844001 | BW56: 2476.705159 | BX56: 2474.670657 | BY56: 2472.735403 | BZ56: 2470.894557 | CA56: 2469.143512 | CB56: 2467.477889 | CC56: 2465.893521 | CD56: 2464.386442 | CE56: 2462.952883 | CF56: 2461.589258 | CG56: 2460.292154 | CH56: 2459.058327 | CI56: 2457.884689 | CJ56: 2456.768305 | CK56: 2455.706382 | CL56: 2454.696263 | CM56: 2453.73542 | CN56: 2452.82145 | CO56: 2451.952066 | CP56: 2451.125093 | CQ56: 2450.338463 | CR56: 2449.590207 | CS56: 2448.878453 | CT56: 2448.20142 | CU56: 2447.557415 | CV56: 2446.944827
B57: 14 | C57: Lambayeque | D57: [Abonados] | E57: 4386 | F57: 4360 | G57: 4312 | H57: 4230 | I57: 3934.5 | J57: 3487 | K57: 3176.5 | L57: 2787 | M57: 2495 | N57: 2500.5 | O57: 2498 | P57: 2488 | Q57: 2492 | R57: 2544.5 | S57: 2646 | T57: 2725.5 | U57: 2783.5 | V57: 2883 | W57: 3049.5 | X57: 3173 | Y57: 3176 | Z57: 3108.5 | AA57: 2879 | AB57: 2676.5 | AC57: 2667 | AD57: 2670.5 | AE57: 2656 | AF57: 2646.5 | AG57: 2600.5 | AH57: 2559.5 | AI57: 2566 | AJ57: 2573 | AK57: 2580.5 | AL57: 2580.70887 | AM57: 2574.272 | AN57: 2568.119487 | AO57: 2562.238769 | AP57: 2556.617839 | AQ57: 2551.24522 | AR57: 2546.109944 | AS57: 2541.201524 | AT57: 2536.509941 | AU57: 2532.025613 | AV57: 2527.739387 | AW57: 2523.642509 | AX57: 2519.726617 | AY57: 2515.983714 | AZ57: 2512.406158 | BA57: 2508.986645 | BB57: 2505.718193 | BC57: 2502.594129 | BD57: 2499.608075 | BE57: 2496.753933 | BF57: 2494.025877 | BG57: 2491.418336 | BH57: 2488.925986 | BI57: 2486.543739 | BJ57: 2484.26673 | BK57: 2482.090311 | BL57: 2480.010038 | BM57: 2478.021664 | BN57: 2476.121129 | BO57: 2474.304552 | BP57: 2472.568225 | BQ57: 2470.908602 | BR57: 2469.322295 | BS57: 2467.806065 | BT57: 2466.356817 | BU57: 2464.97159 | BV57: 2463.647558 | BW57: 2462.382017 | BX57: 2461.172382 | BY57: 2460.016185 | BZ57: 2458.911064 | CA57: 2457.854763 | CB57: 2456.845126 | CC57: 2455.88009 | CD57: 2454.957686 | CE57: 2454.076031 | CF57: 2453.233324 | CG57: 2452.427844 | CH57: 2451.657947 | CI57: 2450.922062 | CJ57: 2450.218685 | CK57: 2449.546381 | CL57: 2448.903776 | CM57: 2448.28956 | CN57: 2447.702477 | CO57: 2447.14133 | CP57: 2446.604971 | CQ57: 2446.092307 | CR57: 2445.602291 | CS57: 2445.133922 | CT57: 2444.686243 | CU57: 2444.258341 | CV57: 2443.849343
B58: 15 | C58: Lima | D58: [Abonados] | E58: 208434 | F58: 197695 | G58: 179229.5 | H58: 160392 | I58: 132960.5 | J58: 90369 | K58: 56586 | L58: 27651 | M58: 5826 | N58: 5844.5 | O58: 5714 | P58: 5126.5 | Q58: 5364.5 | R58: 6490.5 | S58: 8022.5 | T58: 9510 | U58: 11195 | V58: 12977.5 | W58: 14591.5 | X58: 16129 | Y58: 17552 | Z58: 16870.5 | AA58: 12300 | AB58: 8769.5 | AC58: 8850.5 | AD58: 8980.5 | AE58: 8826 | AF58: 8912 | AG58: 7475.5 | AH58: 6041.5 | AI58: 6181 | AJ58: 6352.5 | AK58: 6609 | AL58: 6592.428862 | AM58: 6237.145046 | AN58: 5912.222926 | AO58: 5615.067865 | AP58: 5343.306956 | AQ58: 5094.770078 | AR58: 4867.472559 | AS58: 4659.599338 | AT58: 4469.490458 | AU58: 4295.627824 | AV58: 4136.62307 | AW58: 3991.206478 | AX58: 3858.216836 | AY58: 3736.592168 | AZ58: 3625.361249 | BA58: 3523.635856 | BB58: 3430.603668 | BC58: 3345.521787 | BD58: 3267.710797 | BE58: 3196.549346 | BF58: 3131.469181 | BG58: 3071.950609 | BH58: 3017.518351 | BI58: 2967.737741 | BJ58: 2922.211262 | BK58: 2880.575366 | BL58: 2842.497573 | BM58: 2807.673816 | BN58: 2775.826013 | BO58: 2746.699846 | BP58: 2720.062731 | BQ58: 2695.70196 | BR58: 2673.423001 | BS58: 2653.047948 | BT58: 2634.414097 | BU58: 2617.372651 | BV58: 2601.787525 | BW58: 2587.534267 | BX58: 2574.499057 | BY58: 2562.577805 | BZ58: 2551.675314 | CA58: 2541.704524 | CB58: 2532.585814 | CC58: 2524.246366 | CD58: 2516.619587 | CE58: 2509.644575 | CF58: 2503.26563 | CG58: 2497.431814 | CH58: 2492.096543 | CI58: 2487.21721 | CJ58: 2482.754854 | CK58: 2478.673839 | CL58: 2474.941579 | CM58: 2471.528268 | CN58: 2468.406651 | CO58: 2465.551799 | CP58: 2462.940916 | CQ58: 2460.553153 | CR58: 2458.369442 | CS58: 2456.372346 | CT58: 2454.545917 | CU58: 2452.87557 | CV58: 2451.347967
B59: 16 | C59: Loreto | D59: [Abonados] | E59: 2454 | F59: 2453 | G59: 2452 | H59: 2450 | I59: 2442.5 | J59: 2436.5 | K59: 2436 | L59: 2435.5 | M59: 2435 | N59: 2435 | O59: 2435 | P59: 2435.5 | Q59: 2436 | R59: 2437 | S59: 2441 | T59: 2444 | U59: 2444.5 | V59: 2448 | W59: 2452 | X59: 2452.5 | Y59: 2458 | Z59: 2467.5 | AA59: 2478 | AB59: 2493.5 | AC59: 2512.5 | AD59: 2538 | AE59: 2556 | AF59: 2567.5 | AG59: 2548.5 | AH59: 2524 | AI59: 2534.5 | AJ59: 2548.5 | AK59: 2555.5 | AL59: 2557.968541 | AM59: 2561.905623 | AN59: 2565.842704 | AO59: 2569.779786 | AP59: 2573.716868 | AQ59: 2577.65395 | AR59: 2581.591031 | AS59: 2585.528113 | AT59: 2589.465195 | AU59: 2593.402277 | AV59: 2597.339358 | AW59: 2601.27644 | AX59: 2605.213522 | AY59: 2609.150604 | AZ59: 2613.087685 | BA59: 2617.024767 | BB59: 2620.961849 | BC59: 2624.898931 | BD59: 2628.836012 | BE59: 2632.773094 | BF59: 2636.710176 | BG59: 2640.647258 | BH59: 2644.584339 | BI59: 2648.521421 | BJ59: 2652.458503 | BK59: 2656.395584 | BL59: 2660.332666 | BM59: 2664.269748 | BN59: 2668.20683 | BO59: 2672.143911 | BP59: 2676.080993 | BQ59: 2680.018075 | BR59: 2683.955157 | BS59: 2687.892238 | BT59: 2691.82932 | BU59: 2695.766402 | BV59: 2699.703484 | BW59: 2703.640565 | BX59: 2707.577647 | BY59: 2711.514729 | BZ59: 2715.451811 | CA59: 2719.388892 | CB59: 2723.325974 | CC59: 2727.263056 | CD59: 2731.200138 | CE59: 2735.137219 | CF59: 2739.074301 | CG59: 2743.011383 | CH59: 2746.948465 | CI59: 2750.885546 | CJ59: 2754.822628 | CK59: 2758.75971 | CL59: 2762.696792 | CM59: 2766.633873 | CN59: 2770.570955 | CO59: 2774.508037 | CP59: 2778.445119 | CQ59: 2782.3822 | CR59: 2786.319282 | CS59: 2790.256364 | CT59: 2794.193446 | CU59: 2798.130527 | CV59: 2802.067609
B60: 17 | C60: Madre de Dios | D60: [Abonados] | E60: 2438 | F60: 2438 | G60: 2437 | H60: 2436 | I60: 2435.5 | J60: 2435 | K60: 2435 | L60: 2435 | M60: 2435 | N60: 2435 | O60: 2435 | P60: 2435 | Q60: 2435 | R60: 2435 | S60: 2435 | T60: 2435 | U60: 2435 | V60: 2435.5 | W60: 2436.5 | X60: 2438 | Y60: 2440.5 | Z60: 2442.5 | AA60: 2444.5 | AB60: 2446.5 | AC60: 2450.5 | AD60: 2453.5 | AE60: 2454.5 | AF60: 2456.5 | AG60: =(AF28+AG28)/2 -> 2454.5 | AH60: 2455 | AI60: 2460.5 | AJ60: 2463 | AK60: 2462 | AL60: 2461.396874 | AM60: 2462.190622 | AN60: 2462.98437 | AO60: 2463.778119 | AP60: 2464.571867 | AQ60: 2465.365615 | AR60: 2466.159363 | AS60: 2466.953111 | AT60: 2467.746859 | AU60: 2468.540608 | AV60: 2469.334356 | AW60: 2470.128104 | AX60: 2470.921852 | AY60: 2471.7156 | AZ60: 2472.509348 | BA60: 2473.303096 | BB60: 2474.096845 | BC60: 2474.890593 | BD60: 2475.684341 | BE60: 2476.478089 | BF60: 2477.271837 | BG60: 2478.065585 | BH60: 2478.859334 | BI60: 2479.653082 | BJ60: 2480.44683 | BK60: 2481.240578 | BL60: 2482.034326 | BM60: 2482.828074 | BN60: 2483.621823 | BO60: 2484.415571 | BP60: 2485.209319 | BQ60: 2486.003067 | BR60: 2486.796815 | BS60: 2487.590563 | BT60: 2488.384312 | BU60: 2489.17806 | BV60: 2489.971808 | BW60: 2490.765556 | BX60: 2491.559304 | BY60: 2492.353052 | BZ60: 2493.1468 | CA60: 2493.940549 | CB60: 2494.734297 | CC60: 2495.528045 | CD60: 2496.321793 | CE60: 2497.115541 | CF60: 2497.909289 | CG60: 2498.703038 | CH60: 2499.496786 | CI60: 2500.290534 | CJ60: 2501.084282 | CK60: 2501.87803 | CL60: 2502.671778 | CM60: 2503.465527 | CN60: 2504.259275 | CO60: 2505.053023 | CP60: 2505.846771 | CQ60: 2506.640519 | CR60: 2507.434267 | CS60: 2508.228016 | CT60: 2509.021764 | CU60: 2509.815512 | CV60: 2510.60926
B61: 18 | C61: Moquegua | D61: [Abonados] | E61: 2797 | F61: =(E29+F29)/2 -> 2788.5 | G61: 2775 | H61: 2745.5 | I61: 2698.5 | J61: 2627.5 | K61: 2569 | L61: 2504.5 | M61: 2448.5 | N61: 2449.5 | O61: 2449 | P61: 2448 | Q61: 2454.5 | R61: 2466.5 | S61: 2476.5 | T61: 2486 | U61: 2494.5 | V61: 2508 | W61: 2526.5 | X61: 2541 | Y61: 2547 | Z61: 2540 | AA61: 2506.5 | AB61: 2473.5 | AC61: 2468.5 | AD61: 2469.5 | AE61: 2471.5 | AF61: 2484.5 | AG61: 2486 | AH61: 2476.5 | AI61: 2478.5 | AJ61: 2476.5 | AK61: 2476.5 | AL61: 2478.187418 | AM61: 2476.592267 | AN61: 2475.056034 | AO61: 2473.576543 | AP61: 2472.151697 | AQ61: 2470.779479 | AR61: 2469.457945 | AS61: 2468.185222 | AT61: 2466.959508 | AU61: 2465.779066 | AV61: 2464.642224 | AW61: 2463.547373 | AX61: 2462.49296 | AY61: 2461.477493 | AZ61: 2460.499532 | BA61: 2459.557693 | BB61: 2458.650641 | BC61: 2457.777092 | BD61: 2456.935808 | BE61: 2456.125597 | BF61: 2455.345311 | BG61: 2454.593846 | BH61: 2453.870137 | BI61: 2453.173158 | BJ61: 2452.501923 | BK61: 2451.85548 | BL61: 2451.232913 | BM61: 2450.633342 | BN61: 2450.055916 | BO61: 2449.499818 | BP61: 2448.964259 | BQ61: 2448.448481 | BR61: 2447.951754 | BS61: 2447.473374 | BT61: 2447.012663 | BU61: 2446.568969 | BV61: 2446.141663 | BW61: 2445.73014 | BX61: 2445.333816 | BY61: 2444.952131 | BZ61: 2444.584544 | CA61: 2444.230533 | CB61: 2443.889599 | CC61: 2443.561256 | CD61: 2443.245042 | CE61: 2442.940507 | CF61: 2442.64722 | CG61: 2442.364766 | CH61: =(CG29+CH29)/2 -> 2442.092744 | CI61: 2441.83077 | CJ61: 2441.578471 | CK61: 2441.335492 | CL61: 2441.101487 | CM61: 2440.876125 | CN61: 2440.659088 | CO61: 2440.450066 | CP61: 2440.248765 | CQ61: 2440.054899 | CR61: 2439.868194 | CS61: 2439.688384 | CT61: 2439.515216 | CU61: 2439.348444 | CV61: 2439.187832
B62: 19 | C62: Pasco | D62: [Abonados] | E62: 2437 | F62: 2436.5 | G62: 2436 | H62: 2436 | I62: 2436 | J62: 2436 | K62: 2436 | L62: 2435.5 | M62: 2435 | N62: 2435 | O62: 2435 | P62: 2435 | Q62: 2435 | R62: 2435.5 | S62: 2438 | T62: 2441 | U62: 2443 | V62: 2443.5 | W62: 2444.5 | X62: 2446 | Y62: 2446 | Z62: 2448 | AA62: 2446.5 | AB62: 2442.5 | AC62: 2446.5 | AD62: 2452.5 | AE62: 2454 | AF62: 2457.5 | AG62: 2454.5 | AH62: 2449 | AI62: 2450.5 | AJ62: 2453 | AK62: 2456.5 | AL62: 2458.334543 | AM62: 2459.003628 | AN62: 2459.672713 | AO62: 2460.341798 | AP62: 2461.010883 | AQ62: 2461.679968 | AR62: 2462.349053 | AS62: 2463.018139 | AT62: 2463.687224 | AU62: 2464.356309 | AV62: 2465.025394 | AW62: 2465.694479 | AX62: 2466.363564 | AY62: 2467.032649 | AZ62: 2467.701735 | BA62: 2468.37082 | BB62: 2469.039905 | BC62: 2469.70899 | BD62: 2470.378075 | BE62: 2471.04716 | BF62: 2471.716246 | BG62: 2472.385331 | BH62: 2473.054416 | BI62: 2473.723501 | BJ62: 2474.392586 | BK62: 2475.061671 | BL62: 2475.730756 | BM62: 2476.399842 | BN62: 2477.068927 | BO62: 2477.738012 | BP62: 2478.407097 | BQ62: 2479.076182 | BR62: 2479.745267 | BS62: 2480.414352 | BT62: 2481.083438 | BU62: 2481.752523 | BV62: 2482.421608 | BW62: 2483.090693 | BX62: 2483.759778 | BY62: 2484.428863 | BZ62: 2485.097948 | CA62: 2485.767034 | CB62: 2486.436119 | CC62: 2487.105204 | CD62: 2487.774289 | CE62: 2488.443374 | CF62: 2489.112459 | CG62: 2489.781544 | CH62: 2490.45063 | CI62: 2491.119715 | CJ62: 2491.7888 | CK62: 2492.457885 | CL62: 2493.12697 | CM62: 2493.796055 | CN62: 2494.465141 | CO62: 2495.134226 | CP62: 2495.803311 | CQ62: 2496.472396 | CR62: 2497.141481 | CS62: 2497.810566 | CT62: 2498.479651 | CU62: 2499.148737 | CV62: 2499.817822
B63: 20 | C63: Piura | D63: [Abonados] | E63: 7270 | F63: 7182 | G63: 7048 | H63: 6853 | I63: 6288 | J63: 5312 | K63: 4483 | L63: 3469.5 | M63: 2691 | N63: 2696.5 | O63: 2693 | P63: 2641.5 | Q63: 2637 | R63: 2733.5 | S63: 2888 | T63: 3022 | U63: 3155.5 | V63: 3384 | W63: 3749.5 | X63: 3987.5 | Y63: 3969 | Z63: 3777 | AA63: 3292 | AB63: 2903.5 | AC63: 2880 | AD63: 2876 | AE63: 2861.5 | AF63: 2896.5 | AG63: 2835 | AH63: 2763.5 | AI63: 2795 | AJ63: 2811 | AK63: 2826.5 | AL63: 2825.268382 | AM63: 2804.379547 | AN63: 2784.608772 | AO63: 2765.896214 | AP63: 2748.185232 | AQ63: 2731.422217 | AR63: 2715.556431 | AS63: 2700.53985 | AT63: 2686.32702 | AU63: 2672.874922 | AV63: 2660.142838 | AW63: 2648.092229 | AX63: 2636.686621 | AY63: 2625.891489 | AZ63: 2615.67416 | BA63: 2606.003705 | BB63: 2596.850855 | BC63: 2588.187904 | BD63: 2579.988631 | BE63: 2572.228219 | BF63: 2564.883177 | BG63: 2557.931274 | BH63: 2551.351466 | BI63: 2545.123837 | BJ63: 2539.229538 | BK63: 2533.650727 | BL63: 2528.370517 | BM63: 2523.372928 | BN63: 2518.64283 | BO63: 2514.165908 | BP63: 2509.928609 | BQ63: 2505.918109 | BR63: 2502.122269 | BS63: 2498.529597 | BT63: 2495.129221 | BU63: 2491.910848 | BV63: 2488.864736 | BW63: 2485.981664 | BX63: 2483.252908 | BY63: 2480.670205 | BZ63: 2478.22574 | CA63: 2475.912114 | CB63: 2473.722322 | CC63: 2471.649738 | CD63: 2469.688087 | CE63: 2467.831432 | CF63: 2466.074153 | CG63: 2464.410931 | CH63: 2462.836732 | CI63: 2461.346791 | CJ63: 2459.936598 | CK63: 2458.601885 | CL63: 2457.338611 | CM63: 2456.142953 | CN63: 2455.011291 | CO63: 2453.940201 | CP63: 2452.926441 | CQ63: 2451.966941 | CR63: 2451.058798 | CS63: 2450.199262 | CT63: 2449.385732 | CU63: 2448.615746 | CV63: 2447.886973
B64: 21 | C64: Puno | D64: [Abonados] | E64: 3009 | F64: 3000 | G64: 2986 | H64: 2961 | I64: 2912.5 | J64: 2844 | K64: 2780 | L64: 2623 | M64: 2484.5 | N64: 2485.5 | O64: 2485 | P64: 2474.5 | Q64: 2473.5 | R64: 2487.5 | S64: 2509.5 | T64: 2532.5 | U64: 2556 | V64: 2593.5 | W64: 2627 | X64: 2649.5 | Y64: 2668 | Z64: 2658 | AA64: 2595.5 | AB64: 2538.5 | AC64: 2536 | AD64: 2546 | AE64: 2552 | AF64: =(AE32+AF32)/2 -> 2565 | AG64: 2550.5 | AH64: 2524 | AI64: 2527.5 | AJ64: 2536.5 | AK64: 2549 | AL64: 2554.177374 | AM64: 2550.587032 | AN64: 2547.104852 | AO64: 2543.727576 | AP64: 2540.452045 | AQ64: 2537.275192 | AR64: 2534.194045 | AS64: 2531.205721 | AT64: 2528.307424 | AU64: 2525.49644 | AV64: 2522.770141 | AW64: 2520.125974 | AX64: 2517.561465 | AY64: 2515.074215 | AZ64: 2512.661896 | BA64: 2510.32225 | BB64: 2508.053089 | BC64: 2505.852288 | BD64: 2503.717789 | BE64: 2501.647594 | BF64: 2499.639766 | BG64: 2497.692426 | BH64: 2495.803751 | BI64: 2493.971975 | BJ64: 2492.195383 | BK64: 2490.472312 | BL64: 2488.801151 | BM64: 2487.180335 | BN64: 2485.608348 | BO64: 2484.083719 | BP64: 2482.605021 | BQ64: 2481.17087 | BR64: 2479.779924 | BS64: 2478.430882 | BT64: 2477.122482 | BU64: 2475.853498 | BV64: 2474.622744 | BW64: 2473.429067 | BX64: 2472.271352 | BY64: 2471.148513 | BZ64: 2470.059502 | CA64: 2469.003298 | CB64: 2467.978913 | CC64: 2466.985389 | CD64: 2466.021796 | CE64: 2465.087232 | CF64: 2464.180822 | CG64: 2463.30172 | CH64: 2462.449101 | CI64: 2461.622168 | CJ64: 2460.820148 | CK64: 2460.042289 | CL64: 2459.287864 | CM64: 2458.556166 | CN64: 2457.846512 | CO64: 2457.158237 | CP64: 2456.490697 | CQ64: 2455.843268 | CR64: 2455.215343 | CS64: 2454.606334 | CT64: 2454.015673 | CU64: 2453.442806 | CV64: 2452.887197
B65: 22 | C65: San Martín | D65: [Abonados] | E65: 2444 | F65: 2443 | G65: 2441.5 | H65: 2441 | I65: 2441 | J65: 2439 | K65: 2436.5 | L65: 2435.5 | M65: 2435 | N65: 2435 | O65: 2435 | P65: 2435 | Q65: 2435 | R65: 2436 | S65: 2437 | T65: 2439 | U65: 2445.5 | V65: 2451.5 | W65: 2456.5 | X65: 2460 | Y65: 2459.5 | Z65: 2461 | AA65: 2453.5 | AB65: 2444.5 | AC65: 2453 | AD65: 2463.5 | AE65: 2463 | AF65: 2457.5 | AG65: 2451 | AH65: 2451 | AI65: 2462.5 | AJ65: 2478 | AK65: 2494 | AL65: 2502.554499 | AM65: 2503.663498 | AN65: 2504.772496 | AO65: 2505.881494 | AP65: 2506.990493 | AQ65: 2508.099491 | AR65: 2509.20849 | AS65: 2510.317488 | AT65: 2511.426487 | AU65: 2512.535485 | AV65: 2513.644483 | AW65: 2514.753482 | AX65: 2515.86248 | AY65: 2516.971479 | AZ65: 2518.080477 | BA65: 2519.189475 | BB65: 2520.298474 | BC65: 2521.407472 | BD65: 2522.516471 | BE65: 2523.625469 | BF65: 2524.734468 | BG65: 2525.843466 | BH65: 2526.952464 | BI65: 2528.061463 | BJ65: 2529.170461 | BK65: 2530.27946 | BL65: 2531.388458 | BM65: 2532.497456 | BN65: 2533.606455 | BO65: 2534.715453 | BP65: 2535.824452 | BQ65: 2536.93345 | BR65: 2538.042449 | BS65: 2539.151447 | BT65: 2540.260445 | BU65: 2541.369444 | BV65: 2542.478442 | BW65: 2543.587441 | BX65: 2544.696439 | BY65: 2545.805437 | BZ65: 2546.914436 | CA65: 2548.023434 | CB65: 2549.132433 | CC65: 2550.241431 | CD65: 2551.350429 | CE65: 2552.459428 | CF65: 2553.568426 | CG65: 2554.677425 | CH65: 2555.786423 | CI65: 2556.895422 | CJ65: 2558.00442 | CK65: 2559.113418 | CL65: 2560.222417 | CM65: 2561.331415 | CN65: 2562.440414 | CO65: 2563.549412 | CP65: 2564.65841 | CQ65: 2565.767409 | CR65: 2566.876407 | CS65: 2567.985406 | CT65: 2569.094404 | CU65: 2570.203403 | CV65: 2571.312401
B66: 23 | C66: Tacna | D66: [Abonados] | E66: 3041 | F66: 3008 | G66: 2966.5 | H66: 2920 | I66: 2843 | J66: 2757.5 | K66: 2683 | L66: 2557 | M66: 2458 | N66: 2460 | O66: 2459.5 | P66: 2458 | Q66: 2465.5 | R66: 2481 | S66: 2496 | T66: 2508 | U66: 2523 | V66: 2560.5 | W66: 2594.5 | X66: 2597 | Y66: 2577.5 | Z66: 2554 | AA66: 2515 | AB66: 2483 | AC66: 2496 | AD66: 2506.5 | AE66: 2504 | AF66: 2503 | AG66: 2488 | AH66: 2474.5 | AI66: 2474 | AJ66: 2477.5 | AK66: 2484.5 | AL66: 2484.734142 | AM66: 2482.265264 | AN66: 2479.918946 | AO66: 2477.689102 | AP66: 2475.569951 | AQ66: 2473.555998 | AR66: 2471.642021 | AS66: 2469.823056 | AT66: 2468.094387 | AU66: 2466.451532 | AV66: 2464.890231 | AW66: 2463.406435 | AX66: 2461.996297 | AY66: 2460.65616 | AZ66: 2459.38255 | BA66: 2458.172164 | BB66: 2457.021863 | BC66: 2455.928665 | BD66: 2454.889734 | BE66: 2453.902378 | BF66: 2452.964036 | BG66: 2452.072274 | BH66: 2451.224781 | BI66: 2450.419358 | BJ66: 2449.653918 | BK66: 2448.926476 | BL66: 2448.235145 | BM66: 2447.578132 | BN66: 2446.953735 | BO66: 2446.360334 | BP66: 2445.79639 | BQ66: 2445.260441 | BR66: 2444.751097 | BS66: 2444.267038 | BT66: 2443.807008 | BU66: 2443.369815 | BV66: 2442.954325 | BW66: 2442.559461 | BX66: 2442.184198 | BY66: 2441.827563 | BZ66: 2441.488633 | CA66: 2441.166527 | CB66: 2440.860412 | CC66: 2440.569492 | CD66: 2440.293014 | CE66: 2440.030261 | CF66: 2439.780551 | CG66: 2439.543238 | CH66: 2439.317704 | CI66: 2439.103367 | CJ66: 2438.89967 | CK66: 2438.706084 | CL66: 2438.522109 | CM66: 2438.347266 | CN66: 2438.181103 | CO66: 2438.023188 | CP66: 2437.873112 | CQ66: 2437.730487 | CR66: 2437.594941 | CS66: 2437.466125 | CT66: 2437.343702 | CU66: 2437.227358 | CV66: 2437.116788
B67: 24 | C67: Tumbes | D67: [Abonados] | E67: 2834 | F67: 2822 | G67: 2803 | H67: 2783 | I67: 2735 | J67: 2646 | K67: 2575 | L67: 2499 | M67: 2440.5 | N67: 2442 | O67: 2443 | P67: 2442.5 | Q67: 2443 | R67: 2455.5 | S67: 2468 | T67: 2472.5 | U67: 2482 | V67: 2500.5 | W67: 2524 | X67: 2536 | Y67: 2535.5 | Z67: 2522.5 | AA67: 2489 | AB67: 2468.5 | AC67: 2470.5 | AD67: 2469.5 | AE67: 2466.5 | AF67: 2465 | AG67: 2457 | AH67: 2450 | AI67: 2451 | AJ67: 2452 | AK67: 2456.5 | AL67: 2459.337708 | AM67: 2458.048215 | AN67: 2456.827044 | AO67: 2455.670574 | AP67: 2454.575378 | AQ67: 2453.538209 | AR67: 2452.555993 | AS67: 2451.625818 | AT67: 2450.744926 | AU67: 2449.910708 | AV67: 2449.120689 | AW67: 2448.372527 | AX67: 2447.664006 | AY67: 2446.993025 | AZ67: 2446.357594 | BA67: 2445.755831 | BB67: 2445.185951 | BC67: 2444.646266 | BD67: 2444.135174 | BE67: 2443.651162 | BF67: 2443.192795 | BG67: 2442.758713 | BH67: 2442.347631 | BI67: 2441.958328 | BJ67: 2441.589653 | BK67: 2441.240511 | BL67: 2440.909868 | BM67: 2440.596744 | BN67: 2440.300209 | BO67: 2440.019387 | BP67: 2439.753443 | BQ67: 2439.501589 | BR67: 2439.26308 | BS67: 2439.037208 | BT67: 2438.823303 | BU67: 2438.620732 | BV67: 2438.428893 | BW67: 2438.247219 | BX67: 2438.075171 | BY67: 2437.912238 | BZ67: 2437.757938 | CA67: 2437.611813 | CB67: 2437.47343 | CC67: 2437.34238 | CD67: 2437.218273 | CE67: 2437.100741 | CF67: 2436.989437 | CG67: 2436.88403 | CH67: 2436.784208 | CI67: 2436.689674 | CJ67: 2436.60015 | CK67: 2436.515369 | CL67: 2436.435079 | CM67: 2436.359044 | CN67: 2436.287037 | CO67: 2436.218846 | CP67: 2436.154267 | CQ67: 2436.09311 | CR67: 2436.035194 | CS67: 2435.980346 | CT67: 2435.928404 | CU67: 2435.879214 | CV67: 2435.83263
B68: 25 | C68: Ucayali | D68: [Abonados] | E68: 2456 | F68: 2455 | G68: 2452 | H68: 2448.5 | I68: 2446 | J68: 2442.5 | K68: 2438.5 | L68: 2436.5 | M68: 2435.5 | N68: 2435.5 | O68: 2436 | P68: 2436 | Q68: 2436 | R68: 2436 | S68: 2437.5 | T68: 2439 | U68: 2444.5 | V68: 2461.5 | W68: 2484.5 | X68: 2500.5 | Y68: 2506.5 | Z68: 2504.5 | AA68: 2495 | AB68: 2487.5 | AC68: 2488 | AD68: 2488.5 | AE68: =(AD36+AE36)/2 -> 2490 | AF68: 2498.5 | AG68: 2492 | AH68: 2483.5 | AI68: 2492.5 | AJ68: 2497 | AK68: 2501 | AL68: 2507.12406 | AM68: 2509.37218 | AN68: 2511.620301 | AO68: 2513.868421 | AP68: 2516.116541 | AQ68: 2518.364662 | AR68: 2520.612782 | AS68: 2522.860902 | AT68: 2525.109023 | AU68: 2527.357143 | AV68: 2529.605263 | AW68: 2531.853383 | AX68: 2534.101504 | AY68: 2536.349624 | AZ68: 2538.597744 | BA68: 2540.845865 | BB68: 2543.093985 | BC68: 2545.342105 | BD68: 2547.590226 | BE68: 2549.838346 | BF68: 2552.086466 | BG68: 2554.334586 | BH68: 2556.582707 | BI68: 2558.830827 | BJ68: 2561.078947 | BK68: 2563.327068 | BL68: 2565.575188 | BM68: 2567.823308 | BN68: 2570.071429 | BO68: 2572.319549 | BP68: 2574.567669 | BQ68: 2576.815789 | BR68: 2579.06391 | BS68: 2581.31203 | BT68: 2583.56015 | BU68: 2585.808271 | BV68: 2588.056391 | BW68: 2590.304511 | BX68: 2592.552632 | BY68: 2594.800752 | BZ68: 2597.048872 | CA68: 2599.296992 | CB68: 2601.545113 | CC68: 2603.793233 | CD68: 2606.041353 | CE68: 2608.289474 | CF68: 2610.537594 | CG68: 2612.785714 | CH68: 2615.033835 | CI68: 2617.281955 | CJ68: 2619.530075 | CK68: 2621.778195 | CL68: 2624.026316 | CM68: 2626.274436 | CN68: 2628.522556 | CO68: 2630.770677 | CP68: 2633.018797 | CQ68: 2635.266917 | CR68: 2637.515038 | CS68: 2639.763158 | CT68: 2642.011278 | CU68: 2644.259398 | CV68: 2646.507519 | CW68: abo.dep.avg
B69: 26 | C69: Sin Localización | D69: [Abonados] | E69: 2435 | F69: 2435.5 | G69: 2436 | H69: 2436 | I69: 2435.5 | J69: 2436.5 | K69: 2436.5 | L69: 2435 | M69: 2435 | N69: 2435 | O69: 2435 | P69: 2435 | Q69: 2435 | R69: 2435 | S69: 2435 | T69: 2435 | U69: 2435 | V69: 2435 | W69: 2435 | X69: 2435 | Y69: 2435 | Z69: 2435 | AA69: 2435 | AB69: 2436.5 | AC69: 2443 | AD69: 2448 | AE69: 2445 | AF69: 2441 | AG69: 2438 | AH69: 2436 | AI69: 2436 | AJ69: 2436 | AK69: 2435.5 | AL69: 2435.5 | AM69: 2436 | AN69: 2436 | AO69: 2436 | AP69: 2436 | AQ69: 2436 | AR69: 2436 | AS69: 2436 | AT69: 2436 | AU69: 2436 | AV69: 2436 | AW69: 2436 | AX69: 2436 | AY69: 2436 | AZ69: 2436 | BA69: 2436 | BB69: 2436 | BC69: 2436 | BD69: 2436 | BE69: 2436 | BF69: 2436 | BG69: 2436 | BH69: 2436 | BI69: 2436 | BJ69: 2436 | BK69: 2436 | BL69: 2436 | BM69: 2436 | BN69: 2436 | BO69: 2436 | BP69: 2436 | BQ69: 2436 | BR69: 2436 | BS69: 2436 | BT69: 2436 | BU69: 2436 | BV69: 2436 | BW69: 2436 | BX69: 2436 | BY69: 2436 | BZ69: 2436 | CA69: 2436 | CB69: 2436 | CC69: 2436 | CD69: 2436 | CE69: 2436 | CF69: 2436 | CG69: 2436 | CH69: 2436 | CI69: 2436 | CJ69: 2436 | CK69: 2436 | CL69: 2436 | CM69: 2436 | CN69: 2436 | CO69: 2436 | CP69: 2436 | CQ69: 2436 | CR69: 2436 | CS69: 2436 | CT69: 2436 | CU69: 2436 | CV69: 2436
C71: Total AVG | D71: [Abonados] | E71: =SUM(E44:E69) -> 332408 | F71: =SUM(F44:F69) -> 319161 | G71: 296188 | H71: 272371 | I71: 236642.5 | J71: 181346.5 | K71: 137673 | L71: 98177 | M71: 68131.5 | N71: 68168.5 | O71: 68027 | P71: =SUM(P44:P69) -> 67210 | Q71: =SUM(Q44:Q69) -> 67550 | R71: 69421 | S71: 72192.5 | T71: 74912 | U71: 77781.5 | V71: 81143 | W71: 84741.5 | X71: 87795.5 | Y71: 89896.5 | Z71: 88502 | AA71: 80385.5 | AB71: 73919.5 | AC71: 73922.5 | AD71: 74157.5 | AE71: 73879 | AF71: 74074 | AG71: 71914.5 | AH71: 69680.5 | AI71: 69994 | AJ71: 70253 | AK71: 70614 | AL71: 70652.96923 | AM71: 70196.55989 | AN71: 69778.27479 | AO71: 69395.39635 | AP71: 69044.98025 | AQ71: 68724.33195 | AR71: 68430.98524 | AS71: 68162.68268 | AT71: 67917.35766 | AU71: 67693.11811 | AV71: 67488.2315 | AW71: 67301.11124 | AX71: 67130.30423 | AY71: 66974.47942 | AZ71: 66832.41744 | BA71: 66703.00106 | BB71: 66585.20653 | BC71: 66478.09561 | BD71: 66380.8083 | BE71: 66292.55624 | BF71: 66212.6166 | BG71: 66140.32653 | BH71: 66075.07814 | BI71: 66016.31379 | BJ71: 65963.52191 | BK71: 65916.23306 | BL71: 65874.01645 | BM71: 65836.47662 | BN71: 65803.25055 | BO71: 65774.00486 | BP71: 65748.43341 | BQ71: 65726.25496 | BR71: 65707.21111 | BS71: 65691.06442 | BT71: 65677.59663 | BU71: 65666.6071 | BV71: 65657.9113 | BW71: 65651.33955 | BX71: 65646.73572 | BY71: 65643.95614 | BZ71: 65642.86859 | CA71: 65643.35133 | CB71: 65645.29228 | CC71: =SUM(CC44:CC69) -> 65648.58816 | CD71: 65653.14386 | CE71: 65658.87168 | CF71: 65665.69082 | CG71: 65673.52674 | CH71: 65682.31071 | CI71: 65691.9793 | CJ71: 65702.47398 | CK71: 65713.74072 | CL71: 65725.72962 | CM71: 65738.39459 | CN71: 65751.69304 | CO71: 65765.58561 | CP71: 65780.03589 | CQ71: 65795.01023 | CR71: 65810.47749 | CS71: 65826.40884 | CT71: 65842.7776 | CU71: 65859.55905 | CV71: 65876.73032
B73: Proporción de Abonados por Departamento
E75: 1 | F75: 2 | G75: 3 | H75: 4 | I75: 5 | J75: 6 | K75: 7 | L75: 8 | M75: 9 | N75: 10 | O75: 11 | P75: 12 | Q75: 13 | R75: 14 | S75: 15 | T75: 16 | U75: 17 | V75: 18 | W75: 19 | X75: 20 | Y75: 21 | Z75: 22 | AA75: 23 | AB75: 24 | AC75: 25 | AD75: 26 | AE75: 27 | AF75: 28 | AG75: 29 | AH75: 30 | AI75: 31 | AJ75: 32 | AK75: 33 | AL75: 34 | AM75: 35 | AN75: 36 | AO75: 37 | AP75: 38 | AQ75: 39 | AR75: 40 | AS75: 41 | AT75: 42 | AU75: 43 | AV75: 44 | AW75: 45 | AX75: 46 | AY75: 47 | AZ75: 48 | BA75: 49 | BB75: 50 | BC75: 51 | BD75: 52 | BE75: 53 | BF75: 54 | BG75: 55 | BH75: 56 | BI75: 57 | BJ75: 58 | BK75: 59 | BL75: 60 | BM75: 61 | BN75: 62 | BO75: 63 | BP75: 64 | BQ75: 65 | BR75: 66 | BS75: 67 | BT75: 68 | BU75: 69 | BV75: 70 | BW75: 71 | BX75: 72 | BY75: 73 | BZ75: 74 | CA75: 75 | CB75: 76 | CC75: 77 | CD75: 78 | CE75: 79 | CF75: 80 | CG75: 81 | CH75: 82 | CI75: 83 | CJ75: 84 | CK75: 85 | CL75: 86 | CM75: 87 | CN75: 88 | CO75: 89 | CP75: 90 | CQ75: 91 | CR75: 92 | CS75: 93 | CT75: 94 | CU75: 95 | CV75: 96
B76: id | C76: Departamento | E76: 201401 | F76: 201402 | G76: 201403 | H76: 201404 | I76: 201405 | J76: 201406 | K76: 201407 | L76: 201408 | M76: 201409 | N76: 201410 | O76: 201411 | P76: 201412 | Q76: 201501 | R76: 201502 | S76: 201503 | T76: 201504 | U76: 201505 | V76: 201506 | W76: 201507 | X76: 201508 | Y76: 201509 | Z76: 201510 | AA76: 201511 | AB76: 201512 | AC76: 201601 | AD76: 201602 | AE76: 201603 | AF76: 201604 | AG76: 201605 | AH76: 201606 | AI76: 201607 | AJ76: 201608 | AK76: 201609 | AL76: 201610 | AM76: 201611 | AN76: 201612 | AO76: 201701 | AP76: 201702 | AQ76: 201703 | AR76: 201704 | AS76: 201705 | AT76: 201706 | AU76: 201707 | AV76: 201708 | AW76: 201709 | AX76: 201710 | AY76: 201711 | AZ76: 201712 | BA76: 201801 | BB76: 201802 | BC76: 201803 | BD76: 201804 | BE76: 201805 | BF76: 201806 | BG76: 201807 | BH76: 201808 | BI76: 201809 | BJ76: 201810 | BK76: 201811 | BL76: 201812 | BM76: 201901 | BN76: 201902 | BO76: 201903 | BP76: 201904 | BQ76: 201905 | BR76: 201906 | BS76: 201907 | BT76: 201908 | BU76: 201909 | BV76: 201910 | BW76: 201911 | BX76: 201912 | BY76: 202001 | BZ76: 202002 | CA76: 202003 | CB76: 202004 | CC76: 202005 | CD76: 202006 | CE76: 202007 | CF76: 202008 | CG76: 202009 | CH76: 202010 | CI76: 202011 | CJ76: 202012 | CK76: 202101 | CL76: 202102 | CM76: 202103 | CN76: 202104 | CO76: 202105 | CP76: 202106 | CQ76: 202107 | CR76: 202108 | CS76: 202109 | CT76: 202110 | CU76: 202111 | CV76: 202112
B77: 1 | C77: Amazonas | D77: [%] | E77: =IFERROR(E12/(E$39-E$37),0) -> 0.007394544402 | F77: 0.008040121524 | G77: 0.008590762817 | H77: 0.009529244383 | I77: 0.01146445877 | J77: 0.01676419966 | K77: 0.01944530957 | L77: 0.03674861532 | M77: 0.0373856169 | N77: 0.03670762041 | O77: 0.03754876714 | P77: 0.03763465789 | Q77: 0.03715912039 | R77: 0.03563549231 | S77: 0.03437359298 | T77: 0.03317452153 | U77: 0.0319225111 | V77: 0.03050679238 | W77: 0.02935434721 | X77: 0.0284847716 | Y77: 0.02801269697 | Z77: 0.02944330585 | AA77: 0.0341220112 | AB77: 0.03454056262 | AC77: 0.03415311936 | AD77: 0.03445814497 | AE77: 0.03464064185 | AF77: 0.03455955016 | AG77: 0.03680743898 | AH77: 0.03686389742 | AI77: 0.0368653389 | AJ77: 0.0369361276 | AK77: 0.03689961435 | AL77: 0.03718691608 | AM77: 0.03745591436 | AN77: 0.03770765472 | AO77: 0.03794315644 | AP77: 0.03816340725 | AQ77: 0.03836935925 | AR77: 0.03856192585 | AS77: 0.03874197975 | AT77: 0.03891035162 | AU77: 0.03906782954 | AV77: 0.0392151589 | AW77: 0.03935304289 | AX77: 0.03948214325 | AY77: 0.03960308139 | AZ77: 0.03971643972 | BA77: 0.0398227631 | BB77: 0.0399225605 | BC77: 0.04001630666 | BD77: 0.04010444384 | BE77: 0.04018738356 | BF77: 0.04026550831 | BG77: 0.04033917332 | BH77: 0.0404087082 | BI77: 0.04047441854 | BJ77: 0.04053658751 | BK77: 0.04059547732 | BL77: 0.04065133065 | BM77: 0.04070437201 | BN77: 0.04075480902 | BO77: 0.04080283359 | BP77: 0.04084862307 | BQ77: =IFERROR(BQ12/(BQ$39-BQ$37),0) -> 0.04089234131 | BR77: 0.04093413968 | BS77: 0.04097415793 | BT77: 0.04101252513 | BU77: 0.04104936046 | BV77: 0.04108477393 | BW77: 0.04111886709 | BX77: 0.04115173371 | BY77: 0.04118346034 | BZ77: 0.04121412689 | CA77: 0.04124380712 | CB77: 0.04127256914 | CC77: 0.04130047586 | CD77: 0.04132758535 | CE77: 0.04135395124 | CF77: 0.04137962311 | CG77: 0.04140464671 | CH77: 0.04142906436 | CI77: 0.04145291514 | CJ77: 0.0414762352 | CK77: 0.04149905795 | CL77: 0.04152141428 | CM77: 0.04154333279 | CN77: 0.0415648399 | CO77: 0.04158596011 | CP77: 0.04160671605 | CQ77: 0.0416271287 | CR77: 0.04164721749 | CS77: 0.04166700043 | CT77: 0.04168649417 | CU77: 0.04170571419 | CV77: 0.04172467482
B78: 2 | C78: Ancash | D78: [%] | E78: 0.02242304673 | F78: 0.02374471955 | G78: 0.02489560815 | H78: 0.02675849346 | I78: 0.02789669285 | J78: 0.03144234079 | K78: 0.03215862901 | L78: 0.03857472722 | M78: 0.03879813302 | N78: 0.0384261702 | O78: 0.03893660658 | P78: 0.03890202624 | Q78: 0.03897511026 | R78: 0.03838230352 | S78: 0.03852431337 | T78: 0.03853441975 | U78: 0.03869237479 | V78: 0.03941442839 | W78: 0.04125797543 | X78: 0.04020158454 | Y78: 0.03863507539 | Z78: 0.03852294934 | AA78: 0.03759534296 | AB78: 0.03758328755 | AC78: 0.03737668473 | AD78: 0.03787316827 | AE78: 0.03748302273 | AF78: 0.03787214497 | AG78: 0.03926623551 | AH78: 0.03897125388 | AI78: 0.03874034813 | AJ78: 0.0381879501 | AK78: 0.03798060068 | AL78: 0.03808148204 | AM78: 0.03817238325 | AN78: 0.03825407911 | AO78: 0.03832730153 | AP78: 0.03839273903 | AQ78: 0.0384510368 | AR78: 0.03850279731 | AS78: 0.03854858133 | AT78: 0.03858890932 | AU78: 0.03862426298 | AV78: 0.03865508707 | AW78: 0.03868179129 | AX78: 0.03870475227 | AY78: 0.03872431554 | AZ78: 0.03874079756 | BA78: 0.03875448762 | BB78: 0.03876564984 | BC78: 0.03877452493 | BD78: 0.03878133203 | BE78: 0.03878627033 | BF78: 0.03878952071 | BG78: 0.03879124722 | BH78: 0.03879159849 | BI78: 0.03879070903 | BJ78: 0.03878870046 | BK78: 0.03878568265 | BL78: 0.03878175477 | BM78: 0.03877700623 | BN78: 0.0387715176 | BO78: 0.03876536141 | BP78: 0.03875860293 | BQ78: 0.03875130082 | BR78: 0.03874350777 | BS78: 0.03873527108 | BT78: 0.0387266332 | BU78: 0.03871763217 | BV78: 0.03870830206 | BW78: 0.0386986734 | BX78: 0.0386887735 | BY78: 0.03867862675 | BZ78: 0.038668255 | CA78: 0.03865767772 | CB78: 0.03864691233 | CC78: 0.03863597435 | CD78: 0.03862487762 | CE78: 0.03861363449 | CF78: 0.03860225597 | CG78: 0.03859075184 | CH78: 0.03857913082 | CI78: 0.03856740069 | CJ78: 0.03855556835 | CK78: 0.03854363994 | CL78: 0.03853162094 | CM78: 0.0385195162 | CN78: 0.03850733006 | CO78: 0.03849506636 | CP78: 0.03848272853 | CQ78: 0.03847031961 | CR78: 0.03845784232 | CS78: 0.03844529909 | CT78: 0.03843269206 | CU78: 0.03842002317 | CV78: 0.03840729414
B79: 3 | C79: Apurímac | D79: [%] | E79: 0.007394544402 | F79: 0.008040121524 | G79: 0.008583721209 | H79: 0.009529244383 | I79: 0.0114550501 | J79: 0.01676419966 | K79: 0.01944530957 | L79: 0.03674861532 | M79: 0.0373856169 | N79: 0.03670762041 | O79: 0.03754876714 | P79: 0.03766556931 | Q79: 0.03718964123 | R79: 0.03562088161 | S79: 0.0343454525 | T79: 0.03310684605 | U79: 0.03185741626 | V79: 0.03039513678 | W79: 0.0291400819 | X79: 0.02826565798 | Y79: 0.02784264823 | Z79: 0.02927648825 | AA79: 0.03402475791 | AB79: 0.03449830255 | AC79: 0.03398638322 | AD79: 0.03417822503 | AE79: 0.03420658368 | AF79: 0.03403064846 | AG79: 0.03644979585 | AH79: 0.03640384073 | AI79: 0.03623049326 | AJ79: 0.03621448874 | AK79: 0.03597931518 | AL79: 0.03623984475 | AM79: 0.03648227379 | AN79: 0.0367076496 | AO79: 0.03691699165 | AP79: 0.03711128649 | AQ79: 0.0372914839 | AR79: 0.03745849405 | AS79: 0.03761318555 | AT79: 0.03775638441 | AU79: 0.03788887347 | AV79: 0.03801139257 | AW79: 0.03812463902 | AX79: 0.03822926852 | AY79: 0.03832589631 | AZ79: 0.03841509859 | BA79: 0.03849741401 | BB79: 0.03857334542 | BC79: 0.03864336148 | BD79: 0.03870789854 | BE79: 0.03876736234 | BF79: 0.03882212977 | BG79: 0.03887255066 | BH79: 0.03891894937 | BI79: 0.03896162651 | BJ79: 0.03900086042 | BK79: 0.03903690873 | BL79: 0.03907000975 | BM79: 0.0391003838 | BN79: 0.03912823454 | BO79: 0.03915375011 | BP79: 0.03917710432 | BQ79: 0.03919845763 | BR79: 0.03921795822 | BS79: 0.03923574283 | BT79: 0.0392519377 | BU79: 0.03926665932 | BV79: 0.03928001518 | BW79: 0.03929210447 | BX79: 0.03930301873 | BY79: 0.03931284241 | BZ79: 0.03932165345 | CA79: 0.03932952377 | CB79: 0.03933651977 | CC79: 0.03934270271 | CD79: 0.03934812915 | CE79: 0.0393528513 | CF79: 0.0393569174 | CG79: 0.03936037198 | CH79: 0.03936325616 | CI79: 0.03936560795 | CJ79: 0.03936746248 | CK79: 0.0393688522 | CL79: 0.03936980713 | CM79: 0.03937035501 | CN79: 0.03937052151 | CO79: 0.0393703304 | CP79: 0.03936980363 | CQ79: 0.03936896157 | CR79: 0.03936782305 | CS79: 0.03936640552 | CT79: 0.03936472516 | CU79: 0.03936279694 | CV79: 0.03936063477
B80: 4 | C80: Arequipa | D80: [%] | E80: 0.015098205 | F80: 0.01616921161 | G80: 0.01716744242 | H80: 0.01825721924 | I80: 0.01990403161 | J80: 0.02527366609 | K80: 0.02739113422 | L80: 0.03849926805 | M80: 0.03892096051 | N80: 0.03880304515 | O80: 0.03921417447 | P80: 0.039504799 | Q80: 0.03953974576 | R80: 0.03914205982 | S80: 0.03979063485 | T80: 0.04041579816 | U80: 0.04103578914 | V80: 0.04302462626 | W80: 0.04317445958 | X80: 0.04581781278 | Y80: 0.04721686884 | Z80: 0.04689957581 | AA80: 0.0440418467 | AB80: 0.04203468143 | AC80: 0.04101709045 | AD80: 0.04046242775 | AE80: 0.04001736233 | AF80: 0.04044706112 | AG80: 0.04044347748 | AH80: 0.04038110503 | AI80: 0.03996574786 | AJ80: 0.03969013711 | AK80: 0.0397481594 | AL80: 0.03990166462 | AM80: 0.04003720038 | AN80: 0.04015606872 | AO80: 0.04025951657 | AP80: 0.04034873229 | AQ80: 0.0404248434 | AR80: 0.04048891543 | AS80: 0.04054195171 | AT80: 0.04058489392 | AU80: 0.04061862316 | AV80: 0.04064396164 | AW80: 0.04066167466 | AX80: 0.04067247287 | AY80: 0.04067701476 | AZ80: 0.04067590924 | BA80: 0.04066971837 | BB80: 0.04065895996 | BC80: 0.04064411036 | BD80: 0.04062560699 | BE80: 0.04060385098 | BF80: 0.04057920962 | BG80: 0.04055201876 | BH80: 0.04052258503 | BI80: 0.04049118808 | BJ80: 0.04045808253 | BK80: 0.04042349996 | BL80: 0.04038765068 | BM80: 0.04035072542 | BN80: 0.04031289694 | BO80: 0.04027432142 | BP80: =IFERROR(BP15/(BP$39-BP$37),0) -> 0.04023513992 | BQ80: 0.04019547957 | BR80: 0.0401554548 | BS80: 0.04011516836 | BT80: 0.04007471238 | BU80: 0.04003416928 | BV80: 0.03999361259 | BW80: 0.03995310776 | BX80: 0.03991271288 | BY80: 0.03987247932 | BZ80: 0.03983245238 | CA80: 0.03979267178 | CB80: 0.03975317225 | CC80: 0.0397139839 | CD80: 0.03967513276 | CE80: 0.03963664107 | CF80: 0.03959852771 | CG80: 0.03956080848 | CH80: 0.03952349642 | CI80: 0.03948660208 | CJ80: 0.03945013377 | CK80: 0.03941409778 | CL80: 0.03937849859 | CM80: 0.03934333906 | CN80: 0.03930862059 | CO80: 0.0392743433 | CP80: 0.03924050616 | CQ80: 0.03920710709 | CR80: 0.03917414314 | CS80: 0.03914161054 | CT80: 0.03910950481 | CU80: 0.03907782087 | CV80: 0.03904655309
B81: 5 | C81: Ayacucho | D81: [%] | E81: =IFERROR(E16/(E$39-E$37),0) -> 0.007427880463 | F81: 0.008076367974 | G81: 0.008611887644 | H81: 0.009552696174 | I81: 0.01148798043 | J81: 0.01677796902 | K81: 0.01946926683 | L81: 0.03679389083 | M81: 0.03741632377 | N81: 0.03673777041 | O81: 0.03756418757 | P81: 0.03763465789 | Q81: 0.03715912039 | R81: 0.03562088161 | S81: 0.03430324178 | T81: 0.03299856528 | U81: 0.03177930244 | V81: 0.03032069971 | W81: 0.02912817827 | X81: 0.02826565798 | Y81: 0.02781997506 | Z81: 0.02928840379 | AA81: 0.03402475791 | AB81: 0.03448421586 | AC81: 0.03413922468 | AD81: 0.03440216098 | AE81: 0.03434660244 | AF81: 0.03425334391 | AG81: 0.03661371561 | AH81: 0.03652256504 | AI81: 0.03643718719 | AJ81: 0.03630285268 | AK81: 0.0360523548 | AL81: 0.03631649024 | AM81: 0.03656252821 | AN81: 0.03679151375 | AO81: 0.03700446439 | AP81: 0.037202365 | AQ81: 0.03738616393 | AR81: 0.03755677011 | AS81: 0.03771505117 | AT81: 0.03786183226 | AU81: 0.03799789554 | AV81: 0.03812398032 | AW81: 0.03824078349 | AX81: 0.03834896044 | AY81: 0.03844912619 | AZ81: 0.03854185681 | BA81: 0.03862769089 | BB81: 0.03870713125 | BC81: 0.03878064662 | BD81: 0.03884867343 | BE81: 0.03891161751 | BF81: 0.03896985594 | BG81: 0.03902373869 | BH81: 0.03907359033 | BI81: 0.03911971164 | BJ81: 0.03916238119 | BK81: 0.03920185683 | BL81: 0.03923837708 | BM81: 0.0392721625 | BN81: 0.03930341695 | BO81: 0.03933232882 | BP81: 0.03935907211 | BQ81: 0.03938380752 | BR81: 0.0394066834 | BS81: 0.03942783674 | BT81: 0.03944739395 | BU81: 0.03946547171 | BV81: 0.0394821777 | BW81: 0.03949761129 | BX81: 0.03951186417 | BY81: 0.03952502097 | BZ81: 0.03953715977 | CA81: 0.03954835266 | CB81: 0.03955866615 | CC81: 0.03956816165 | CD81: 0.03957689584 | CE81: 0.03958492107 | CF81: 0.03959228566 | CG81: 0.03959903425 | CH81: 0.03960520809 | CI81: 0.03961084526 | CJ81: 0.03961598099 | CK81: 0.03962064781 | CL81: 0.03962487581 | CM81: 0.03962869283 | CN81: 0.0396321246 | CO81: 0.03963519494 | CP81: 0.03963792589 | CQ81: 0.03964033784 | CR81: 0.03964244971 | CS81: 0.03964427898 | CT81: 0.03964584188 | CU81: 0.03964715344 | CV81: 0.03964822758
B82: 6 | C82: Cajamarca | D82: [%] | E82: 0.007652141236 | F82: 0.008290551539 | G82: 0.008851302346 | H82: 0.009806757243 | I82: 0.0117137884 | J82: 0.01701204819 | K82: 0.01970085368 | L82: 0.03685425816 | M82: 0.03749309095 | N82: 0.03685837039 | O82: 0.03771839196 | P82: 0.03777375929 | Q82: 0.03747958919 | R82: 0.03655596628 | S82: 0.03616051328 | T82: 0.03557023362 | U82: 0.0349949877 | V82: 0.03411699026 | W82: 0.03390153319 | X82: 0.03321301304 | Y82: 0.03268336923 | Z82: 0.03369715457 | AA82: 0.03606707698 | AB82: 0.03690712646 | AC82: 0.03720994859 | AD82: 0.03706140044 | AE82: 0.03688094205 | AF82: 0.03663340153 | AG82: 0.03810389533 | AH82: 0.03808082157 | AI82: 0.03810550249 | AJ82: 0.03796704025 | AK82: 0.03777608975 | AL82: 0.038135283 | AM82: 0.03847657954 | AN82: 0.03880095737 | AO82: 0.039109375 | AP82: 0.03940276574 | AQ82: 0.03968203318 | AR82: 0.03994804767 | AS82: 0.04020164388 | AT82: 0.04044361905 | AU82: 0.04067473197 | AV82: 0.0408957026 | AW82: 0.04110721205 | AX82: 0.04130990312 | AY82: 0.04150438099 | AZ82: 0.04169121431 | BA82: 0.04187093637 | BB82: 0.0420440465 | BC82: 0.0422110115 | BD82: 0.0423722672 | BE82: 0.04252821997 | BF82: 0.04267924835 | BG82: 0.04282570455 | BH82: 0.04296791606 | BI82: 0.04310618707 | BJ82: 0.04324079998 | BK82: 0.04337201676 | BL82: 0.04350008032 | BM82: 0.04362521575 | BN82: 0.04374763158 | BO82: 0.04386752087 | BP82: 0.04398506234 | BQ82: 0.04410042138 | BR82: 0.04421375098 | BS82: 0.04432519267 | BT82: 0.04443487731 | BU82: 0.04454292592 | BV82: 0.04464945038 | BW82: 0.04475455414 | BX82: 0.04485833281 | BY82: 0.04496087478 | BZ82: 0.04506226177 | CA82: 0.04516256932 | CB82: 0.04526186726 | CC82: 0.04536022016 | CD82: 0.0454576877 | CE82: 0.04555432508 | CF82: 0.04565018335 | CG82: 0.04574530973 | CH82: 0.04583974788 | CI82: 0.04593353821 | CJ82: 0.04602671811 | CK82: 0.04611932216 | CL82: 0.0462113824 | CM82: 0.04630292848 | CN82: 0.04639398785 | CO82: 0.04648458594 | CP82: 0.0465747463 | CQ82: 0.04666449074 | CR82: 0.04675383951 | CS82: 0.04684281134 | CT82: 0.04693142361 | CU82: 0.04701969244 | CV82: 0.04710763278
B83: 7 | C83: Callao | D83: [%] | E83: 0.1031690472 | F83: 0.1015955028 | G83: 0.09904727032 | H83: 0.09627741905 | I83: 0.09173448746 | J83: 0.08123924269 | K83: 0.07629588814 | L83: 0.04316264469 | M83: 0.04222194927 | N83: 0.04263209467 | O83: 0.04194359204 | P83: 0.04146767438 | Q83: 0.04169146485 | R83: 0.0421226422 | S83: 0.04243583971 | T83: 0.04291979102 | U83: 0.04349637422 | V83: 0.04337199926 | W83: 0.04400771355 | X83: 0.04434167887 | Y83: 0.04572043986 | Z83: 0.04506458224 | AA83: 0.04318046042 | AB83: 0.04292214287 | AC83: 0.04250382104 | AD83: 0.04292572324 | AE83: 0.04341981826 | AF83: 0.04330034657 | AG83: 0.04144189789 | AH83: 0.0409895671 | AI83: 0.04101398137 | AJ83: 0.04095668694 | AK83: 0.04109208835 | AL83: 0.04082692256 | AM83: 0.04058926679 | AN83: 0.04037655296 | AO83: 0.0401864043 | AP83: 0.04001662865 | AQ83: 0.03986521046 | AR83: 0.03973030197 | AS83: 0.03961021386 | AT83: 0.0395034055 | AU83: 0.03940847521 | AV83: 0.0393241505 | AW83: 0.03924927858 | AX83: 0.03918281707 | AY83: 0.03912382521 | AZ83: 0.03907145543 | BA83: 0.03902494532 | BB83: 0.03898361027 | BC83: 0.03894683638 | BD83: 0.03891407403 | BE83: 0.03888483184 | BF83: 0.03885867112 | BG83: 0.0388352008 | BH83: 0.03881407271 | BI83: 0.03879497732 | BJ83: 0.03877763985 | BK83: 0.0387618167 | BL83: 0.03874729227 | BM83: 0.03873387596 | BN83: 0.03872139961 | BO83: 0.03870971505 | BP83: 0.03869869198 | BQ83: 0.03868821602 | BR83: 0.03867818695 | BS83: 0.03866851717 | BT83: 0.03865913024 | BU83: 0.03864995969 | BV83: 0.03864094782 | BW83: 0.03863204475 | BX83: 0.03862320746 | BY83: 0.03861439902 | BZ83: 0.03860558786 | CA83: 0.03859674711 | CB83: 0.03858785407 | CC83: 0.03857888966 | CD83: 0.038569838 | CE83: 0.03856068598 | CF83: 0.03855142293 | CG83: 0.0385420403 | CH83: 0.03853253137 | CI83: 0.038522891 | CJ83: 0.03851311544 | CK83: 0.03850320211 | CL83: 0.03849314944 | CM83: 0.03848295672 | CN83: 0.03847262397 | CO83: 0.03846215185 | CP83: 0.03845154149 | CQ83: 0.03844079449 | CR83: 0.03842991278 | CS83: 0.03841889858 | CT83: 0.03840775432 | CU83: 0.03839648264 | CV83: 0.03838508627
B84: 8 | C84: Cusco | D84: [%] | E84: 0.00849766496 | F84: 0.009193417645 | G84: 0.009777273912 | H84: 0.01039696065 | I84: 0.01229242132 | J84: 0.01763166954 | K84: 0.0202119419 | L84: 0.03741265601 | M84: 0.03809187496 | N84: 0.0376271953 | O84: 0.03824268686 | P84: 0.03820651922 | Q84: 0.03780005799 | R84: 0.03643908069 | S84: 0.03538665016 | T84: 0.03423025906 | U84: 0.03336761662 | V84: 0.03219403263 | W84: 0.03128273498 | X84: 0.03077969855 | Y84: 0.03084684276 | Z84: 0.03230303608 | AA84: 0.03646998347 | AB84: 0.03669582611 | AC84: 0.03648742532 | AD84: 0.03658553654 | AE84: 0.03671291953 | AF84: 0.03687001545 | AG84: 0.0382380115 | AH84: 0.03831827019 | AI84: 0.03834172412 | AJ84: 0.03826158672 | AK84: 0.03809746406 | AL84: 0.03839305376 | AM84: 0.03867004756 | AN84: 0.03892953557 | AO84: 0.03917257994 | AP84: 0.0394002095 | AQ84: 0.03961341557 | AR84: 0.03981314896 | AS84: 0.04000031788 | AT84: 0.04017578667 | AU84: 0.04034037526 | AV84: 0.04049485917 | AW84: 0.04063996999 | AX84: 0.04077639628 | AY84: 0.0409047847 | AZ84: 0.04102574145 | BA84: 0.04113983384 | BB84: 0.04124759194 | BC84: 0.0413495104 | BD84: 0.04144605025 | BE84: 0.04153764069 | BF84: 0.04162468097 | BG84: 0.0417075421 | BH84: 0.04178656864 | BI84: 0.04186208037 | BJ84: 0.0419343739 | BK84: 0.04200372422 | BL84: 0.04207038621 | BM84: 0.04213459598 | BN84: 0.04219657226 | BO84: 0.04225651758 | BP84: =IFERROR(BP19/(BP$39-BP$37),0) -> 0.04231461951 | BQ84: 0.04237105172 | BR84: 0.04242597501 | BS84: 0.0424795383 | BT84: 0.04253187949 | BU84: 0.04258312633 | BV84: 0.04263339718 | BW84: 0.04268280172 | BX84: 0.04273144164 | BY84: 0.04277941126 | BZ84: 0.04282679808 | CA84: 0.04287368334 | CB84: 0.0429201425 | CC84: 0.04296624569 | CD84: 0.04301205814 | CE84: 0.04305764056 | CF84: 0.04310304949 | CG84: 0.04314833766 | CH84: 0.04319355425 | CI84: 0.04323874521 | CJ84: 0.0432839535 | CK84: 0.04332921932 | CL84: 0.04337458036 | CM84: 0.04342007197 | CN84: 0.04346572735 | CO84: 0.04351157775 | CP84: 0.04355765259 | CQ84: 0.04360397964 | CR84: 0.04365058513 | CS84: 0.04369749387 | CT84: 0.04374472941 | CU84: 0.04379231407 | CV84: =IFERROR(CV19/(CV$39-CV$37),0) -> 0.0438402691
B85: 9 | C85: Huancavelica | D85: [%] | E85: =IFERROR(E20/(E$39-E$37),0) -> 0.007403636055 | F85: 0.008046711788 | G85: 0.008594283622 | H85: 0.009540970279 | I85: 0.0114691631 | J85: 0.0167848537 | K85: 0.01946926683 | L85: 0.03674861532 | M85: 0.03741632377 | N85: 0.03673777041 | O85: 0.03757960801 | P85: 0.03766556931 | Q85: 0.03717438081 | R85: 0.03559166021 | S85: 0.03431731202 | T85: 0.03303917057 | U85: 0.03181835935 | V85: 0.03043235531 | W85: 0.02928292544 | X85: 0.02840404553 | Y85: 0.02799002381 | Z85: 0.02943139031 | AA85: 0.03408033122 | AB85: 0.03452647593 | AC85: 0.03418090871 | AD85: 0.03440216098 | AE85: 0.03436060432 | AF85: 0.03421158851 | AG85: 0.03653920663 | AH85: 0.03634447858 | AI85: 0.03620096556 | AJ85: 0.03608194283 | AK85: 0.03581862802 | AL85: 0.03607996925 | AM85: 0.03632331634 | AN85: 0.03654970909 | AO85: 0.03676015985 | AP85: 0.03695564841 | AQ85: 0.03713711814 | AR85: 0.03730547316 | AS85: 0.03746157646 | AT85: 0.0376062487 | AU85: 0.0377402678 | AV85: 0.03786436897 | AW85: 0.03797924524 | AX85: 0.03808554831 | AY85: 0.03818388976 | AZ85: 0.03827484235 | BA85: 0.0383589416 | BB85: 0.03843668744 | BC85: 0.03850854588 | BD85: 0.03857495077 | BE85: 0.03863630561 | BF85: 0.03869298521 | BG85: 0.03874533748 | BH85: 0.03879368504 | BI85: 0.03883832687 | BJ85: 0.03887953988 | BK85: 0.03891758032 | BL85: 0.03895268527 | BM85: 0.03898507394 | BN85: 0.03901494895 | BO85: 0.0390424975 | BP85: 0.03906789252 | BQ85: =IFERROR(BQ20/(BQ$39-BQ$37),0) -> 0.03909129371 | BR85: 0.03911284849 | BS85: 0.03913269299 | BT85: 0.03915095281 | BU85: 0.0391677439 | BV85: 0.03918317325 | BW85: 0.0391973396 | BX85: 0.03921033405 | BY85: 0.03922224068 | BZ85: 0.03923313708 | CA85: 0.03924309485 | CB85: 0.03925218008 | CC85: 0.03926045377 | CD85: 0.03926797225 | CE85: 0.0392747875 | CF85: 0.03928094754 | CG85: 0.03928649671 | CH85: 0.03929147598 | CI85: 0.03929592318 | CJ85: 0.03929987331 | CK85: 0.03930335868 | CL85: 0.03930640918 | CM85: 0.03930905246 | CN85: 0.03931131407 | CO85: 0.03931321768 | CP85: 0.03931478517 | CQ85: 0.03931603682 | CR85: 0.03931699139 | CS85: 0.03931766625 | CT85: 0.03931807753 | CU85: 0.03931824014 | CV85: 0.03931816793
B86: 10 | C86: Huánuco | D86: [%] | E86: 0.007533949747 | F86: 0.008181812191 | G86: 0.008731594995 | H86: 0.009642594706 | I86: 0.01157265842 | J86: 0.01683304647 | K86: 0.01948523833 | L86: 0.03679389083 | M86: 0.03743167721 | N86: 0.03675284541 | O86: 0.03754876714 | P86: 0.03763465789 | Q86: 0.03715912039 | R86: 0.03563549231 | S86: 0.03437359298 | T86: 0.03309331096 | U86: 0.03185741626 | V86: 0.03040754296 | W86: 0.02922340729 | X86: 0.02834638405 | Y86: 0.02794467747 | Z86: 0.02943139031 | AA86: 0.03419147783 | AB86: 0.03490681655 | AC86: 0.03480616924 | AD86: 0.03515794483 | AE86: 0.03507470001 | AF86: 0.03481008254 | AG86: 0.03688194796 | AH86: 0.03677485419 | AI86: 0.03667340883 | AJ86: 0.03680358169 | AK86: 0.03665127965 | AL86: 0.03692756721 | AM86: 0.03718555705 | AN86: 0.03742630057 | AO86: 0.03765082205 | AP86: 0.03786011345 | AQ86: 0.03805513036 | AR86: 0.03823678911 | AS86: 0.03840596471 | AT86: 0.03856348968 | AU86: 0.03871015346 | AV86: 0.03884670247 | AW86: 0.03897384057 | AX86: 0.03909222989 | AY86: 0.03920249199 | AZ86: 0.03930520918 | BA86: 0.0394009261 | BB86: 0.03949015133 | BC86: 0.03957335909 | BD86: 0.03965099102 | BE86: 0.03972345795 | BF86: 0.03979114164 | BG86: 0.03985439651 | BH86: 0.03991355134 | BI86: 0.03996891087 | BJ86: 0.04002075742 | BK86: 0.04006935232 | BL86: 0.04011493742 | BM86: 0.04015773636 | BN86: 0.04019795592 | BO86: 0.0402357872 | BP86: 0.04027140676 | BQ86: 0.04030497768 | BR86: 0.04033665056 | BS86: 0.04036656446 | BT86: 0.04039484774 | BU86: 0.04042161891 | BV86: 0.04044698735 | BW86: 0.040471054 | BX86: 0.04049391206 | BY86: 0.04051564751 | BZ86: 0.04053633974 | CA86: 0.04055606203 | CB86: 0.040574882 | CC86: 0.04059286211 | CD86: 0.04061006 | CE86: 0.04062652893 | CF86: 0.04064231807 | CG86: 0.04065747283 | CH86: 0.04067203519 | CI86: 0.04068604392 | CJ86: 0.04069953486 | CK86: 0.04071254115 | CL86: 0.04072509342 | CM86: 0.04073722 | CN86: 0.04074894712 | CO86: 0.04076029902 | CP86: 0.04077129815 | CQ86: 0.04078196531 | CR86: 0.04079231974 | CS86: 0.04080237927 | CT86: 0.04081216042 | CU86: 0.04082167851 | CV86: 0.04083094773
B87: 11 | C87: Ica | D87: [%] | E87: 0.03737275474 | F87: 0.0372943014 | G87: 0.03696140494 | H87: 0.0368349463 | I87: 0.0370983676 | J87: 0.04144578313 | K87: 0.04285155283 | L87: 0.03991790042 | M87: 0.03987287355 | N87: 0.03964724504 | O87: 0.04006229857 | P87: 0.03987573608 | Q87: 0.0395702666 | R87: 0.04007714449 | S87: 0.04087404322 | T87: 0.04152567608 | U87: 0.04185598417 | V87: 0.0414614478 | W87: 0.04128178269 | X87: 0.04136634645 | Y87: 0.04197936742 | Z87: 0.04154949716 | AA87: 0.04092974145 | AB87: 0.04117539337 | AC87: 0.04078088092 | AD87: 0.04060238772 | AE87: 0.03975132668 | AF87: 0.03962587164 | AG87: 0.04019014693 | AH87: 0.04047014826 | AI87: 0.04060059351 | AJ87: 0.03992577429 | AK87: 0.0393099217 | AL87: 0.03931454187 | AM87: 0.03931542822 | AN87: 0.03931304903 | AO87: 0.03930783018 | AP87: 0.0393001572 | AQ87: 0.03929037767 | AR87: 0.03927880355 | AS87: 0.03926571374 | AT87: 0.03925135647 | AU87: 0.03923595178 | AV87: 0.03921969388 | AW87: 0.03920275339 | AX87: 0.03918527952 | AY87: 0.03916740214 | AZ87: 0.0391492336 | BA87: 0.03913087063 | BB87: 0.03911239589 | BC87: 0.03909387953 | BD87: 0.03907538058 | BE87: 0.03905694823 | BF87: 0.03903862297 | BG87: 0.03902043766 | BH87: 0.03900241846 | BI87: 0.0389845857 | BJ87: 0.03896695464 | BK87: 0.03894953616 | BL87: 0.03893233739 | BM87: 0.0389153622 | BN87: 0.03889861178 | BO87: 0.03888208497 | BP87: 0.03886577871 | BQ87: 0.03884968834 | BR87: 0.0388338079 | BS87: 0.03881813038 | BT87: 0.03880264797 | BU87: 0.03878735223 | BV87: 0.03877223423 | BW87: 0.03875728475 | BX87: 0.03874249439 | BY87: 0.03872785364 | BZ87: 0.038713353 | CA87: 0.03869898305 | CB87: 0.03868473449 | CC87: 0.03867059823 | CD87: 0.03865656539 | CE87: 0.03864262738 | CF87: 0.03862877588 | CG87: 0.03861500286 | CH87: 0.03860130065 | CI87: 0.03858766188 | CJ87: 0.03857407953 | CK87: 0.0385605469 | CL87: 0.03854705765 | CM87: 0.03853360575 | CN87: 0.03852018552 | CO87: 0.03850679157 | CP87: 0.03849341885 | CQ87: 0.03848006258 | CR87: 0.03846671831 | CS87: 0.03845338184 | CT87: 0.03844004926 | CU87: 0.03842671688 | CV87: 0.03841338132
B88: 12 | C88: Junín | D88: [%] | E88: 0.009676549293 | F88: 0.01043568232 | G88: 0.01108349236 | H88: 0.01227310392 | I88: 0.014649292 | J88: 0.02004130809 | K88: 0.02244795285 | L88: 0.03766921719 | M88: 0.03824540932 | N88: 0.03779302028 | O88: 0.03859735694 | P88: 0.03867019057 | Q88: 0.03870042271 | R88: 0.0392735561 | S88: 0.04019867177 | T88: 0.04061882461 | U88: 0.04055408731 | V88: 0.04063023386 | W88: 0.0399366727 | X88: 0.03980948647 | Y88: 0.03921324113 | Z88: 0.03914255755 | AA88: 0.03880406241 | AB88: 0.03828762203 | AC88: 0.03793247186 | AD88: 0.03804112024 | AE88: 0.03793108277 | AF88: 0.0379417373 | AG88: 0.03890859238 | AH88: 0.03880800795 | AI88: 0.03875511198 | AJ88: 0.03868867911 | AK88: 0.03871099684 | AL88: 0.03895474254 | AM88: 0.03917878863 | AN88: 0.03938431606 | AO88: 0.039572471 | AP88: 0.0397443596 | AQ88: 0.03990104412 | AR88: 0.04004354013 | AS88: 0.04017281475 | AT88: 0.04028978572 | AU88: 0.04039532115 | AV88: 0.04049023991 | AW88: 0.04057531241 | AX88: 0.04065126181 | AY88: 0.04071876554 | AZ88: 0.04077845695 | BA88: 0.04083092723 | BB88: 0.04087672732 | BC88: 0.04091637 | BD88: 0.04095033188 | BE88: 0.0409790555 | BF88: 0.04100295132 | BG88: 0.04102239972 | BH88: 0.0410377529 | BI88: 0.04104933671 | BJ88: 0.04105745247 | BK88: 0.04106237859 | BL88: 0.04106437223 | BM88: 0.04106367078 | BN88: 0.04106049327 | BO88: 0.04105504178 | BP88: =IFERROR(BP23/(BP$39-BP$37),0) -> 0.0410475026 | BQ88: 0.0410380475 | BR88: 0.04102683476 | BS88: 0.04101401022 | BT88: 0.04099970825 | BU88: 0.0409840526 | BV88: 0.04096715724 | BW88: 0.04094912712 | BX88: 0.04093005887 | BY88: 0.04091004148 | BZ88: 0.04088915685 | CA88: 0.04086748038 | CB88: 0.0408450815 | CC88: 0.0408220241 | CD88: 0.04079836702 | CE88: 0.04077416439 | CF88: 0.04074946607 | CG88: 0.04072431795 | CH88: 0.04069876226 | CI88: 0.04067283788 | CJ88: 0.04064658062 | CK88: 0.04062002342 | CL88: 0.04059319663 | CM88: 0.04056612815 | CN88: 0.0405388437 | CO88: 0.04051136695 | CP88: 0.04048371966 | CQ88: 0.04045592189 | CR88: 0.04042799208 | CS88: 0.04039994723 | CT88: 0.04037180294 | CU88: 0.0403435736 | CV88: 0.04031527242
B89: 13 | C89: La Libertad | D89: [%] | E89: =IFERROR(E24/(E$39-E$37),0) -> 0.01950159559 | F89: 0.02083841333 | G89: 0.02200502771 | H89: 0.02367458295 | I89: 0.02410970504 | J89: 0.02797934596 | K89: 0.03016219065 | L89: 0.03904257406 | M89: 0.03919732236 | N89: 0.03904424512 | O89: 0.03939921973 | P89: 0.03953571042 | Q89: 0.03979917289 | R89: 0.04038396914 | S89: 0.04111323728 | T89: 0.04113315828 | U89: 0.04064522009 | V89: 0.04172197754 | W89: 0.04347205028 | X89: 0.04265796363 | Y89: 0.04172996259 | Z89: 0.04134693294 | AA89: 0.03948483543 | AB89: 0.03963994422 | AC89: 0.03984993747 | AD89: 0.03987459587 | AE89: 0.04008737171 | AF89: 0.04000167022 | AG89: 0.04011563795 | AH89: 0.04018817803 | AI89: 0.04015767794 | AJ89: 0.03970486443 | AK89: 0.03954364847 | AL89: 0.03962596482 | AM89: 0.03969533254 | AN89: 0.03975289321 | AO89: 0.039799722 | AP89: 0.03983682701 | AQ89: 0.03986514958 | AR89: 0.03988556542 | AS89: 0.03989888631 | AT89: 0.03990586228 | AU89: 0.0399071842 | AV89: 0.03990348656 | AW89: 0.03989535048 | AX89: 0.03988330681 | AY89: 0.03986783918 | AZ89: 0.03984938715 | BA89: 0.03982834925 | BB89: 0.03980508592 | BC89: 0.03977992241 | BD89: 0.03975315146 | BE89: 0.03972503593 | BF89: 0.03969581126 | BG89: 0.03966568775 | BH89: 0.03963485277 | BI89: 0.03960347277 | BJ89: 0.03957169512 | BK89: 0.03953964991 | BL89: 0.03950745153 | BM89: 0.03947520017 | BN89: 0.03944298318 | BO89: 0.03941087635 | BP89: 0.03937894503 | BQ89: 0.03934724521 | BR89: 0.03931582448 | BS89: 0.03928472289 | BT89: 0.03925397378 | BU89: 0.0392236045 | BV89: 0.03919363704 | BW89: 0.03916408867 | BX89: 0.03913497246 | BY89: 0.03910629779 | BZ89: 0.03907807077 | CA89: 0.03905029465 | CB89: 0.03902297017 | CC89: 0.03899609593 | CD89: 0.0389696686 | CE89: 0.03894368327 | CF89: 0.03891813362 | CG89: 0.03889301216 | CH89: 0.0388683104 | CI89: 0.03884401903 | CJ89: 0.03882012806 | CK89: 0.03879662698 | CL89: 0.03877350482 | CM89: 0.0387507503 | CN89: 0.0387283519 | CO89: 0.03870629797 | CP89: 0.03868457676 | CQ89: 0.03866317648 | CR89: 0.0386420854 | CS89: 0.03862129187 | CT89: 0.03860078432 | CU89: 0.03858055137 | CV89: 0.03856058181
B90: 14 | C90: Lambayeque | D90: [%] | E90: 0.01329199662 | F90: 0.0142811011 | G90: 0.01510425102 | H90: 0.0162989947 | I90: 0.01740132662 | J90: 0.02254733219 | K90: 0.02458014901 | L90: 0.03766921719 | M90: 0.03829146963 | N90: 0.03779302028 | O90: 0.0383814708 | P90: 0.03843835489 | Q90: 0.03810526637 | R90: 0.03787092909 | S90: 0.0379896443 | T90: 0.03723505049 | U90: 0.03666141568 | V90: 0.03659822592 | W90: 0.03748452528 | X90: 0.03686875094 | Y90: 0.03576691985 | Z90: 0.03648539154 | AA90: 0.03745640969 | AB90: 0.03742833397 | AC90: 0.03719605391 | AD90: 0.03728533639 | AE90: 0.03707696831 | AF90: 0.03681434159 | AG90: 0.03808899353 | AH90: 0.03803629996 | AI90: 0.03792833626 | AJ90: 0.03795231293 | AK90: 0.0377468739 | AL90: 0.03791494541 | AM90: 0.03806697104 | AN90: 0.03820408455 | AO90: 0.03832737145 | AP90: 0.03843786591 | AQ90: 0.03853654888 | AR90: 0.03862434711 | AS90: 0.03870213296 | AT90: 0.03877072494 | AU90: 0.03883088872 | AV90: 0.03888333856 | AW90: 0.0389287391 | AX90: 0.03896770741 | AY90: 0.03900081513 | AZ90: 0.0390285908 | BA90: 0.03905152219 | BB90: 0.03907005869 | BC90: 0.03908461369 | BD90: 0.03909556684 | BE90: 0.03910326635 | BF90: 0.03910803116 | BG90: 0.039110153 | BH90: 0.03910989841 | BI90: 0.03910751063 | BJ90: 0.03910321134 | BK90: 0.03909720238 | BL90: 0.03908966733 | BM90: 0.03908077295 | BN90: 0.03907067055 | BO90: 0.03905949731 | BP90: 0.03904737742 | BQ90: 0.03903442323 | BR90: 0.03902073619 | BS90: 0.03900640788 | BT90: 0.03899152078 | BU90: 0.03897614918 | BV90: 0.03896035978 | BW90: 0.0389442125 | BX90: 0.03892776098 | BY90: 0.03891105323 | BZ90: 0.03889413212 | CA90: 0.03887703584 | CB90: 0.03885979837 | CC90: 0.03884244983 | CD90: 0.03882501691 | CE90: 0.03880752312 | CF90: 0.03878998918 | CG90: 0.03877243322 | CH90: 0.03875487107 | CI90: 0.03873731649 | CJ90: 0.03871978136 | CK90: 0.03870227587 | CL90: 0.03868480873 | CM90: 0.03866738726 | CN90: 0.03865001759 | CO90: 0.03863270477 | CP90: 0.03861545286 | CQ90: 0.03859826508 | CR90: 0.03858114388 | CS90: 0.03856409103 | CT90: 0.03854710768 | CU90: 0.03853019449 | CV90: 0.03851335161
B91: 15 | C91: Lima | D91: [%] | E91: 0.6316698639 | F91: 0.6160446556 | G91: 0.6038285227 | H91: 0.5834844671 | I91: 0.548713365 | J91: 0.4412943201 | K91: 0.3918928631 | L91: 0.09399194096 | M91: 0.0832770374 | N91: 0.09444486319 | O91: 0.07961572268 | P91: 0.07866957234 | Q91: 0.08605350303 | R91: 0.1072717444 | S91: 0.1224532868 | T91: 0.1396415906 | U91: 0.1571780084 | V91: 0.1722225668 | W91: 0.1821374155 | X91: 0.1955531466 | Y91: 0.2057249745 | Z91: 0.1858109718 | AA91: 0.1251233033 | AB91: 0.1202017214 | AC91: 0.127386411 | AD91: 0.1230668029 | AE91: 0.1240426217 | AF91: 0.1247790444 | AG91: 0.08920215778 | AH91: 0.09048276271 | AI91: 0.09249553393 | AJ91: 0.09484396401 | AK91: 0.09901250438 | AL91: 0.09424768714 | AM91: 0.08983175032 | AN91: 0.08574337833 | AO91: 0.08196189435 | AP91: 0.07846735605 | AQ91: 0.07524062705 | AR91: 0.07226342725 | AS91: 0.06951836499 | AT91: 0.06698895369 | AU91: 0.06465961561 | AV91: 0.06251567488 | AW91: 0.06054334188 | AX91: 0.05872969079 | AY91: 0.05706263181 | AZ91: 0.05553087931 | BA91: 0.05412391728 | BB91: 0.05283196277 | BC91: 0.05164592831 | BD91: 0.05055738386 | BE91: 0.04955851895 | BF91: 0.04864210524 | BG91: 0.04780146004 | BH91: 0.04703041095 | BI91: 0.04632326176 | BJ91: 0.04567475989 | BK91: 0.04508006532 | BL91: 0.04453472115 | BM91: 0.04403462573 | BN91: 0.04357600648 | BO91: 0.04315539524 | BP91: 0.04276960522 | BQ91: 0.04241570943 | BR91: 0.04209102057 | BS91: 0.04179307228 | BT91: 0.04151960181 | BU91: 0.04126853375 | BV91: 0.04103796518 | BW91: 0.0408261517 | BX91: 0.0406314947 | BY91: 0.04045252943 | BZ91: 0.04028791414 | CA91: 0.04013641997 | CB91: 0.03999692165 | CC91: 0.03986838893 | CD91: 0.03974987874 | CE91: 0.03964052793 | CF91: 0.03953954659 | CG91: 0.03944621194 | CH91: 0.03935986272 | CI91: 0.03927989401 | CJ91: 0.03920575248 | CK91: 0.03913693206 | CL91: 0.03907296995 | CM91: 0.03901344296 | CN91: 0.03895796414 | CO91: 0.03890617973 | CP91: 0.0388577663 | CQ91: 0.03881242824 | CR91: 0.03876989533 | CS91: 0.03872992059 | CT91: 0.03869227832 | CU91: 0.03865676226 | CV91: 0.03862318394
B92: 16 | C92: Loreto | D92: [%] | E92: 0.007436972116 | F92: 0.008079663106 | G92: 0.008633012471 | H92: 0.009568330702 | I92: 0.01146445877 | J92: 0.01677108434 | K92: 0.01945329532 | L92: 0.03674861532 | M92: 0.0373856169 | N92: 0.03670762041 | O92: 0.03754876714 | P92: 0.0376501136 | Q92: 0.03717438081 | R92: 0.03562088161 | S92: 0.03438766321 | T92: 0.03307977586 | U92: 0.03183137832 | V92: 0.03040754296 | W92: 0.02919960004 | X92: 0.02827719027 | Y92: 0.02793334089 | Z92: 0.02944330585 | AA92: 0.03452491768 | AB92: 0.0352448971 | AC92: 0.03505627345 | AD92: 0.03573178071 | AE92: 0.03583080133 | AF92: 0.03585396746 | AG92: 0.03756743063 | AH92: 0.03750204057 | AI92: 0.03752971225 | AJ92: 0.03762831181 | AK92: 0.03733785205 | AL92: 0.03765779725 | AM92: 0.03795959966 | AN92: 0.03824427573 | AO92: 0.03851281868 | AP92: 0.03876619298 | AQ92: 0.03900533007 | AR92: 0.03923112513 | AS92: 0.03944443483 | AT92: 0.03964607581 | AU92: 0.03983682395 | AV92: 0.04001741411 | AW92: 0.04018854042 | AX92: 0.04035085689 | AY92: 0.0405049784 | AZ92: 0.04065148188 | BA92: 0.04079090765 | BB92: 0.04092376095 | BC92: 0.04105051355 | BD92: 0.04117160533 | BE92: 0.041287446 | BF92: 0.04139841674 | BG92: 0.04150487186 | BH92: 0.0416071404 | BI92: 0.04170552769 | BJ92: 0.0418003169 | BK92: 0.04189177045 | BL92: 0.04198013142 | BM92: 0.04206562484 | BN92: 0.04214845899 | BO92: 0.04222882654 | BP92: =IFERROR(BP27/(BP$39-BP$37),0) -> 0.04230690566 | BQ92: 0.04238286109 | BR92: 0.04245684511 | BS92: 0.04252899844 | BT92: 0.04259945112 | BU92: 0.04266832328 | BV92: 0.04273572591 | BW92: 0.04280176155 | BX92: 0.04286652488 | BY92: 0.04293010342 | BZ92: 0.04299257795 | CA92: 0.04305402315 | CB92: 0.04311450797 | CC92: 0.04317409613 | CD92: 0.04323284652 | CE92: 0.04329081352 | CF92: 0.04334804744 | CG92: 0.04340459474 | CH92: 0.0434604984 | CI92: 0.04351579814 | CJ92: 0.04357053071 | CK92: 0.04362473008 | CL92: 0.04367842771 | CM92: 0.04373165269 | CN92: 0.04378443195 | CO92: 0.04383679041 | CP92: 0.04388875117 | CQ92: 0.0439403356 | CR92: 0.04399156352 | CS92: 0.04404245328 | CT92: 0.04409302188 | CU92: 0.04414328512 | CV92: =IFERROR(CV27/(CV$39-CV$37),0) -> 0.0441932576
B93: 17 | C93: Madre de Dios | D93: [%] | E93: =IFERROR(E28/(E$39-E$37),0) -> 0.0073884833 | F93: 0.008033531261 | G93: 0.0085766796 | H93: 0.00952142712 | I93: 0.0114550501 | J93: 0.01676419966 | K93: 0.01944530957 | L93: 0.03674861532 | M93: 0.0373856169 | N93: 0.03670762041 | O93: 0.03754876714 | P93: 0.03763465789 | Q93: 0.03715912039 | R93: 0.03557704952 | S93: 0.03426103107 | T93: 0.03295795999 | U93: 0.03170118863 | V93: 0.03022145028 | W93: 0.02900914199 | X93: 0.02812727042 | Y93: 0.02768393606 | Z93: 0.02910967065 | AA93: 0.03398307793 | AB93: 0.03447012917 | AC93: 0.03409754064 | AD93: 0.034332181 | AE93: 0.03438860807 | AF93: 0.03419767005 | AG93: 0.03653920663 | AH93: 0.03647804342 | AI93: 0.03636336793 | AJ93: 0.03627339804 | AK93: 0.03595009933 | AL93: 0.03621406577 | AM93: 0.03645999356 | AN93: 0.03668892397 | AO93: 0.03690187088 | AP93: 0.03709981567 | AQ93: 0.03728370338 | AR93: 0.03745443977 | AS93: 0.03761288949 | AT93: 0.03775987486 | AU93: 0.03789617543 | AV93: 0.038022528 | AW93: 0.03813962714 | AX93: 0.03824812608 | AY93: 0.03834863782 | AZ93: 0.03844173654 | BA93: 0.0385279591 | BB93: 0.03860780668 | BC93: 0.03868174653 | BD93: 0.03875021367 | BE93: 0.03881361267 | BF93: 0.0388723194 | BG93: 0.03892668274 | BH93: 0.03897702626 | BI93: 0.03902364982 | BJ93: 0.03906683111 | BK93: 0.0391068272 | BL93: 0.03914387589 | BM93: 0.03917819706 | BN93: 0.03920999397 | BO93: 0.03923945443 | BP93: 0.03926675193 | BQ93: =IFERROR(BQ28/(BQ$39-BQ$37),0) -> 0.03929204669 | BR93: 0.03931548663 | BS93: 0.03933720833 | BT93: 0.03935733783 | BU93: 0.03937599147 | BV93: 0.03939327663 | BW93: 0.03940929237 | BX93: 0.03942413014 | BY93: 0.03943787431 | BZ93: 0.03945060275 | CA93: 0.03946238734 | CB93: 0.03947329441 | CC93: 0.03948338518 | CD93: 0.03949271619 | CE93: 0.03950133963 | CF93: 0.0395093037 | CG93: 0.03951665291 | CH93: 0.03952342839 | CI93: 0.03952966812 | CJ93: 0.03953540723 | CK93: 0.03954067818 | CL93: 0.03954551096 | CM93: 0.03954993333 | CN93: 0.03955397096 | CO93: 0.0395576476 | CP93: 0.03956098523 | CQ93: 0.03956400421 | CR93: 0.03956672337 | CS93: 0.03956916017 | CT93: 0.03957133079 | CU93: 0.03957325022 | CV93: 0.03957493234
B94: 18 | C94: Moquegua | D94: [%] | E94: 0.008476451104 | F94: 0.009160466327 | G94: 0.009752628281 | H94: 0.01063538719 | I94: 0.01258879428 | J94: 0.0177555938 | K94: 0.02043554299 | L94: 0.03697499283 | M94: 0.03756985813 | N94: 0.03696389538 | O94: 0.03771839196 | P94: 0.03786649356 | Q94: 0.03752537045 | R94: 0.03614686674 | S94: 0.03488012157 | T94: 0.03374299559 | U94: 0.03249534572 | V94: 0.03126356926 | W94: 0.0301518903 | X94: 0.029395823 | Y94: 0.02885160413 | Z94: 0.03020590058 | AA94: 0.03442766439 | AB94: 0.03478003634 | AC94: 0.03429206614 | AD94: 0.03458410894 | AE94: 0.03461263809 | AF94: 0.03475440867 | AG94: 0.03688194796 | AH94: 0.03677485419 | AI94: 0.03659958956 | AJ94: 0.0364353986 | AK94: 0.03621304195 | AL94: 0.03644327041 | AM94: 0.03665575571 | AN94: 0.03685158022 | AO94: 0.03703179283 | AP94: 0.0371974043 | AQ94: 0.03734938391 | AR94: 0.03748865704 | AS94: 0.03761610371 | AT94: 0.03773255789 | AU94: 0.03783880737 | AV94: 0.03793559425 | AW94: 0.03802361575 | AX94: 0.03810352544 | AY94: 0.03817593468 | AZ94: 0.03824141423 | BA94: 0.03830049607 | BB94: 0.03835367524 | BC94: 0.03840141174 | BD94: 0.03844413247 | BE94: 0.03848223315 | BF94: 0.03851608019 | BG94: 0.03854601256 | BH94: 0.03857234352 | BI94: 0.0385953624 | BJ94: 0.03861533616 | BK94: 0.03863251103 | BL94: 0.03864711391 | BM94: 0.03865935382 | BN94: 0.03866942321 | BO94: 0.03867749916 | BP94: 0.03868374456 | BQ94: 0.0386883092 | BR94: 0.03869133075 | BS94: 0.03869293571 | BT94: 0.0386932403 | BU94: 0.03869235124 | BV94: 0.03869036652 | BW94: 0.03868737607 | BX94: 0.03868346244 | BY94: 0.03867870138 | BZ94: 0.03867316236 | CA94: 0.03866690912 | CB94: 0.0386600001 | CC94: 0.0386524889 | CD94: 0.03864442466 | CE94: 0.0386358524 | CF94: 0.03862681343 | CG94: 0.03861734557 | CH94: 0.03860748349 | CI94: 0.03859725897 | CJ94: 0.03858670109 | CK94: 0.03857583651 | CL94: 0.03856468964 | CM94: 0.03855328285 | CN94: 0.03854163659 | CO94: 0.0385297696 | CP94: 0.03851769903 | CQ94: 0.03850544058 | CR94: 0.0384930086 | CS94: 0.03848041623 | CT94: 0.03846767548 | CU94: 0.03845479734 | CV94: 0.03844179184
B95: 19 | C95: Pasco | D95: [%] | E95: 0.007385452749 | F95: 0.008026940997 | G95: 0.0085766796 | H95: 0.00952142712 | I95: 0.01145975443 | J95: 0.01677108434 | K95: 0.01945329532 | L95: 0.03674861532 | M95: 0.0373856169 | N95: 0.03670762041 | O95: 0.03754876714 | P95: 0.03763465789 | Q95: 0.03715912039 | R95: 0.03559166021 | S95: 0.03433138226 | T95: 0.03305270567 | U95: 0.03181835935 | V95: 0.03030829353 | W95: 0.02911627464 | X95: 0.02820799649 | Y95: 0.02772928239 | Z95: 0.02919307945 | AA95: 0.03394139795 | AB95: 0.03439969573 | AC95: 0.03405585661 | AD95: 0.03434617699 | AE95: 0.03436060432 | AF95: 0.03425334391 | AG95: 0.03647959944 | AH95: 0.03635931912 | AI95: 0.0361862017 | AJ95: 0.03615557945 | AK95: 0.03590627556 | AL95: 0.03616810061 | AM95: 0.03641188546 | AN95: 0.03663867271 | AO95: 0.03684947736 | AP95: 0.03704528179 | AQ95: 0.03722703186 | AR95: 0.03739563405 | AS95: 0.0375519536 | AT95: 0.03769681331 | AU95: 0.03783099312 | AV95: 0.03795523014 | AW95: 0.03807021918 | AX95: 0.03817661364 | AY95: 0.03827502665 | AZ95: 0.03836603244 | BA95: 0.03845016791 | BB95: 0.03852793425 | BC95: 0.03859979866 | BD95: 0.03866619611 | BE95: 0.0387275311 | BF95: 0.0387841794 | BG95: 0.0388364898 | BH95: 0.03888478572 | BI95: 0.03892936692 | BJ95: 0.03897051097 | BK95: 0.03900847479 | BL95: 0.03904349604 | BM95: 0.03907579449 | BN95: 0.03910557325 | BO95: 0.03913301999 | BP95: 0.03915830808 | BQ95: 0.0391815976 | BR95: 0.03920303635 | BS95: 0.03922276079 | BT95: 0.03924089683 | BU95: 0.03925756072 | BV95: 0.03927285969 | BW95: 0.03928689274 | BX95: 0.03929975119 | BY95: 0.03931151932 | BZ95: 0.03932227491 | CA95: 0.03933208975 | CB95: 0.03934103008 | CC95: 0.03934915705 | CD95: 0.03935652712 | CE95: 0.03936319241 | CF95: 0.03936920105 | CG95: 0.03937459749 | CH95: 0.0393794228 | CI95: 0.0393837149 | CJ95: 0.03938750887 | CK95: 0.0393908371 | CL95: 0.03939372956 | CM95: 0.03939621396 | CN95: 0.03939831591 | CO95: 0.03940005914 | CP95: 0.03940146559 | CQ95: 0.03940255557 | CR95: 0.0394033479 | CS95: 0.03940386 | CT95: 0.03940410802 | CU95: 0.03940410691 | CV95: 0.03940387055
B96: 20 | C96: Piura | D96: [%] | E96: 0.02203210566 | F96: 0.02337566479 | G96: 0.02465267264 | H96: 0.02620346774 | I96: 0.02762384156 | J96: 0.03271600688 | K96: 0.03365196489 | L96: 0.04112524713 | M96: 0.04079407972 | N96: 0.04124519484 | O96: 0.04086416136 | P96: 0.0406948888 | Q96: 0.04030276671 | R96: 0.04128983242 | S96: 0.04150720396 | T96: 0.04187758859 | U96: 0.04188202211 | V96: 0.04405433906 | W96: 0.04699552424 | X96: 0.04644055678 | Y96: 0.04433737671 | Z96: 0.04340832181 | AA96: 0.04086027481 | AB96: 0.04037245207 | AC96: 0.04021119911 | AD96: 0.04000055984 | AE96: 0.04011537546 | AF96: 0.04075326736 | AG96: 0.0408607278 | AH96: 0.04133089949 | AI96: 0.04141260538 | AJ96: 0.04148687059 | AK96: 0.04142807059 | AL96: 0.04140307023 | AM96: 0.04137003389 | AN96: 0.04133001688 | AO96: 0.04128398963 | AP96: 0.04123284036 | AQ96: 0.04117737841 | AR96: 0.04111833798 | AS96: 0.04105638223 | AT96: 0.04099210762 | AU96: 0.04092604822 | AV96: 0.0408586802 | AW96: 0.0407904261 | AX96: 0.04072165908 | AY96: 0.04065270704 | AZ96: 0.04058385647 | BA96: 0.04051535617 | BB96: 0.04044742074 | BC96: 0.04038023383 | BD96: 0.04031395123 | BE96: 0.04024870362 | BF96: 0.04018459927 | BG96: 0.04012172635 | BH96: 0.04006015521 | BI96: 0.03999994035 | BJ96: 0.03994112227 | BK96: 0.03988372914 | BL96: 0.03982777833 | BM96: 0.03977327773 | BN96: 0.03972022705 | BO96: 0.03966861889 | BP96: =IFERROR(BP31/(BP$39-BP$37),0) -> 0.03961843976 | BQ96: 0.03956967097 | BR96: 0.0395222894 | BS96: 0.03947626828 | BT96: 0.03943157776 | BU96: 0.03938818552 | BV96: 0.03934605723 | BW96: 0.03930515703 | BX96: 0.03926544789 | BY96: 0.03922689196 | BZ96: 0.03918945086 | CA96: 0.03915308597 | CB96: 0.0391177586 | CC96: 0.03908343023 | CD96: 0.03905006266 | CE96: 0.03901761814 | CF96: 0.03898605953 | CG96: 0.03895535034 | CH96: 0.03892545485 | CI96: 0.03889633819 | CJ96: 0.03886796637 | CK96: 0.03884030631 | CL96: 0.03881332592 | CM96: 0.03878699407 | CN96: 0.03876128064 | CO96: 0.03873615652 | CP96: 0.03871159359 | CQ96: 0.03868756474 | CR96: 0.03866404388 | CS96: 0.03864100588 | CT96: 0.03861842659 | CU96: 0.0385962828 | CV96: 0.03857455225
B97: 21 | C97: Puno | D97: [%] | E97: =IFERROR(E32/(E$39-E$37),0) -> 0.009118927912 | F97: 0.009855739131 | G97: 0.01049551802 | H97: 0.01149528619 | I97: 0.01356729548 | J97: 0.01930464716 | K97: 0.02200873641 | L97: 0.03757866618 | M97: 0.03806116809 | N97: 0.0375668953 | O97: 0.03821184598 | P97: 0.03819106351 | Q97: 0.03778479757 | R97: 0.03651213418 | S97: 0.03545700135 | T97: 0.03444682061 | U97: 0.03341969249 | V97: 0.03250418709 | W97: 0.03135415675 | X97: 0.03073356936 | Y97: 0.0302800136 | Z97: 0.03151661027 | AA97: 0.03537241063 | AB97: 0.03565341109 | AC97: 0.03530637766 | AD97: 0.03570378872 | AE97: 0.03574679007 | AF97: 0.03586788592 | AG97: 0.03761213602 | AH97: 0.03745751896 | AI97: 0.03736730988 | AJ97: 0.0374368566 | AK97: 0.03733785205 | AL97: 0.03754625781 | AM97: 0.03773670416 | AN97: 0.03791034566 | AO97: 0.03806829708 | AP97: 0.038211629 | AQ97: 0.03834136473 | AR97: 0.03845847824 | AS97: 0.03856389299 | AT97: 0.0386584816 | AU97: 0.03874306606 | AV97: 0.03881841854 | AW97: 0.03888526254 | AX97: 0.03894427438 | AY97: 0.03899608501 | AZ97: 0.03904128186 | BA97: 0.03908041093 | BB97: 0.03911397887 | BC97: 0.03914245514 | BD97: 0.03916627413 | BE97: 0.03918583729 | BF97: 0.03920151523 | BG97: 0.03921364964 | BH97: 0.03922255534 | BI97: 0.03922852202 | BJ97: 0.03923181608 | BK97: 0.03923268229 | BL97: 0.03923134534 | BM97: 0.03922801138 | BN97: 0.03922286937 | BO97: 0.03921609244 | BP97: 0.03920783909 | BQ97: 0.0391982543 | BR97: 0.03918747068 | BS97: 0.03917560937 | BT97: 0.03916278101 | BU97: 0.03914908656 | BV97: 0.03913461811 | BW97: 0.03911945959 | BX97: 0.03910368745 | BY97: 0.03908737129 | BZ97: 0.03907057438 | CA97: 0.03905335427 | CB97: 0.03903576319 | CC97: 0.03901784854 | CD97: 0.03899965331 | CE97: 0.03898121643 | CF97: 0.0389625731 | CG97: 0.03894375517 | CH97: 0.03892479137 | CI97: 0.03890570761 | CJ97: 0.0388865272 | CK97: 0.03886727111 | CL97: 0.03884795814 | CM97: 0.03882860513 | CN97: 0.03880922714 | CO97: 0.03878983758 | CP97: 0.03877044838 | CQ97: 0.03875107011 | CR97: 0.03873171211 | CS97: 0.03871238259 | CT97: 0.03869308875 | CU97: 0.03867383686 | CV97: 0.03865463234
B98: 22 | C98: San Martín | D98: [%] | E98: 0.007406666606 | F98: 0.008046711788 | G98: 0.008594283622 | H98: 0.009540970279 | I98: 0.0114832761 | J98: 0.01677796902 | K98: 0.01945329532 | L98: 0.03674861532 | M98: 0.0373856169 | N98: 0.03670762041 | O98: 0.03754876714 | P98: 0.03763465789 | Q98: 0.03715912039 | R98: 0.03560627091 | S98: 0.03428917154 | T98: 0.03303917057 | U98: 0.03189647316 | V98: 0.03043235531 | W98: 0.02928292544 | X98: 0.02836944864 | Y98: 0.02787665798 | Z98: 0.02934798151 | AA98: 0.03395529127 | AB98: 0.0344419558 | AC98: 0.03419480339 | AD98: 0.03451412896 | AE98: 0.03444461558 | AF98: 0.03416983312 | AG98: 0.03646469764 | AH98: 0.03643352181 | AI98: 0.0364667149 | AJ98: 0.03661212648 | AK98: 0.03654902419 | AL98: 0.03682183122 | AM98: 0.03707635655 | AN98: 0.03731365247 | AO98: 0.03753474395 | AP98: 0.03774062343 | AQ98: 0.03793224679 | AR98: 0.0381105305 | AS98: 0.03827634958 | AT98: 0.03843053643 | AU98: 0.03857388031 | AV98: 0.03870712734 | AW98: 0.03883098103 | AX98: 0.0389461031 | AY98: 0.03905311467 | AZ98: 0.03915259759 | BA98: 0.03924509599 | BB98: 0.03933111793 | BC98: 0.03941113711 | BD98: 0.03948559465 | BE98: 0.03955490085 | BF98: 0.03961943695 | BG98: 0.03967955685 | BH98: 0.03973558884 | BI98: 0.03978783717 | BJ98: 0.03983658367 | BK98: 0.03988208923 | BL98: 0.03992459523 | BM98: 0.03996432491 | BN98: 0.04000148463 | BO98: 0.0400362651 | BP98: 0.0400688425 | BQ98: 0.04009937956 | BR98: 0.04012802654 | BS98: 0.04015492217 | BT98: 0.04018019451 | BU98: 0.04020396179 | BV98: 0.04022633309 | BW98: 0.04024740913 | BX98: 0.04026728282 | BY98: 0.04028603995 | BZ98: 0.04030375967 | CA98: 0.04032051505 | CB98: 0.04033637353 | CC98: 0.04035139738 | CD98: 0.04036564409 | CE98: 0.04037916673 | CF98: 0.04039201433 | CG98: 0.04040423217 | CH98: 0.04041586208 | CI98: 0.04042694272 | CJ98: 0.04043750981 | CK98: 0.04044759638 | CL98: 0.04045723296 | CM98: 0.04046644779 | CN98: 0.04047526699 | CO98: 0.04048371474 | CP98: 0.04049181341 | CQ98: 0.04049958371 | CR98: 0.04050704482 | CS98: 0.04051421451 | CT98: 0.04052110925 | CU98: 0.04052774429 | CV98: 0.04053413378
B99: 23 | C99: Tacna | D99: [%] | E99: 0.009215905544 | F99: 0.009803017023 | G99: 0.01041453951 | H99: 0.01126467691 | I99: 0.01319094886 | J99: 0.01866437177 | K99: 0.02120217532 | L99: 0.03711081934 | M99: 0.0377233925 | N99: 0.03712972036 | O99: 0.03787259634 | P99: 0.03802105068 | Q99: 0.03770849548 | R99: 0.0363952486 | S99: 0.03518966682 | T99: 0.03404076771 | U99: 0.03295100962 | V99: 0.03213200174 | W99: 0.03093752976 | X99: 0.02992630863 | Y99: 0.02902165287 | Z99: 0.03036080263 | AA99: 0.0344832377 | AB99: 0.03499133669 | AC99: 0.03484785327 | AD99: 0.03505997285 | AE99: 0.03504669626 | AF99: 0.03483791947 | AG99: 0.03685214437 | AH99: 0.03674517311 | AI99: 0.0364962426 | AJ99: 0.03656794451 | AK99: 0.03631529742 | AL99: 0.03653290769 | AM99: 0.03673352262 | AN99: 0.03691820397 | AO99: 0.03708797796 | AP99: 0.03724383106 | AQ99: 0.03738670707 | AR99: 0.03751750502 | AS99: 0.03763707809 | AT99: 0.03774623312 | AU99: 0.0378457308 | AV99: 0.03793628629 | AW99: 0.03801857025 | AX99: 0.03809321016 | AY99: 0.03816079192 | AZ99: 0.03822186154 | BA99: 0.038276927 | BB99: 0.03832646018 | BC99: 0.03837089878 | BD99: 0.03841064829 | BE99: 0.03844608392 | BF99: 0.03847755249 | BG99: 0.03850537426 | BH99: 0.0385298447 | BI99: 0.03855123622 | BJ99: 0.03856979973 | BK99: 0.03858576622 | BL99: 0.03859934823 | BM99: 0.03861074114 | BN99: 0.03862012455 | BO99: 0.03862766342 | BP99: 0.03863350923 | BQ99: 0.038637801 | BR99: 0.0386406663 | BS99: 0.03864222215 | BT99: 0.03864257582 | BU99: 0.03864182569 | BV99: 0.03864006191 | BW99: 0.03863736708 | BX99: 0.03863381689 | BY99: 0.03862948066 | BZ99: 0.03862442187 | CA99: 0.03861869867 | CB99: 0.03861236429 | CC99: 0.03860546747 | CD99: 0.03859805281 | CE99: 0.03859016115 | CF99: 0.03858182988 | CG99: 0.0385730932 | CH99: 0.03856398241 | CI99: 0.03855452617 | CJ99: 0.03854475069 | CK99: 0.03853467996 | CL99: 0.03852433594 | CM99: 0.03851373872 | CN99: 0.03850290668 | CO99: 0.03849185663 | CP99: 0.03848060398 | CQ99: 0.0384691628 | CR99: 0.03845754598 | CS99: 0.03844576532 | CT99: 0.03843383161 | CU99: 0.03842175472 | CV99: 0.03840954369
B100: 24 | C100: Tumbes | D100: [%] | E100: 0.00858858149 | F100: 0.00925932028 | G100: 0.009844169196 | H100: 0.01082691015 | I100: 0.01270169826 | J100: 0.01784509466 | K100: 0.02042755724 | L100: 0.03682407449 | M100: 0.03747773752 | N100: 0.0368282204 | O100: 0.03767213064 | P100: 0.03774284787 | Q100: 0.03729646416 | R100: 0.03604459185 | S100: 0.03473941918 | T100: 0.03351289895 | U100: 0.03239119397 | V100: 0.03117672601 | W100: 0.03017569755 | X100: 0.02925743545 | Y100: 0.02872690171 | Z100: 0.02991992755 | AA100: 0.0342748378 | AB100: 0.03479412303 | AC100: 0.03433375017 | AD100: 0.03454212095 | AE100: 0.03451462496 | AF100: 0.03430901777 | AG100: 0.03649450124 | AH100: 0.03637415965 | AI100: 0.0361862017 | AJ100: 0.0361261248 | AK100: 0.03593549141 | AL100: 0.03616819374 | AM100: 0.03638350088 | AN100: 0.03658246108 | AO100: 0.03676609065 | AP100: 0.03693536946 | AQ100: 0.03709123755 | AR100: 0.03723459279 | AS100: 0.03736628944 | AT100: 0.03748713735 | AU100: 0.03759790191 | AV100: 0.03769930439 | AW100: 0.03779202278 | AX100: 0.03787669289 | AY100: 0.03795390976 | AZ100: 0.03802422919 | BA100: 0.03808816948 | BB100: 0.0381462132 | BC100: 0.03819880903 | BD100: 0.03824637361 | BE100: 0.0382892934 | BF100: 0.03832792647 | BG100: 0.03836260433 | BH100: 0.03839363357 | BI100: 0.03842129759 | BJ100: 0.03844585814 | BK100: 0.03846755682 | BL100: 0.03848661654 | BM100: 0.03850324285 | BN100: 0.0385176252 | BO100: 0.03852993814 | BP100: =IFERROR(BP35/(BP$39-BP$37),0) -> 0.03854034247 | BQ100: 0.03854898622 | BR100: 0.0385560057 | BS100: 0.03856152633 | BT100: 0.03856566354 | BU100: 0.03856852354 | BV100: 0.03857020403 | BW100: 0.03857079488 | BX100: 0.03857037877 | BY100: 0.03856903172 | BZ100: 0.03856682367 | CA100: 0.03856381896 | CB100: 0.03856007675 | CC100: 0.03855565146 | CD100: 0.03855059316 | CE100: 0.03854494791 | CF100: 0.03853875808 | CG100: 0.03853206266 | CH100: 0.03852489756 | CI100: 0.03851729579 | CJ100: 0.03850928775 | CK100: 0.03850090146 | CL100: 0.03849216268 | CM100: 0.03848309518 | CN100: 0.03847372081 | CO100: 0.03846405974 | CP100: 0.03845413056 | CQ100: 0.03844395039 | CR100: 0.03843353503 | CS100: 0.03842289904 | CT100: 0.03841205587 | CU100: 0.03840101792 | CV100: =IFERROR(CV35/(CV$39-CV$37),0) -> 0.03838979664
B101: 25 | C101: Ucayali | D101: [%] | E101: =IFERROR(E36/(E$39-E$37),0) -> 0.007443033218 | F101: 0.008086253369 | G101: 0.008625970862 | H101: 0.00956442207 | I101: 0.01150209343 | J101: 0.01679862306 | K101: 0.01946128107 | L101: 0.03676370716 | M101: 0.0373856169 | N101: 0.03672269541 | O101: 0.03756418757 | P101: 0.0376501136 | Q101: 0.03717438081 | R101: 0.03559166021 | S101: 0.03431731202 | T101: 0.03301210038 | U101: 0.03189647316 | V101: 0.03068047888 | W101: 0.02971145605 | X101: 0.02888840197 | Y101: 0.02843215055 | Z101: 0.02980077213 | AA101: 0.03458049099 | AB101: 0.03501951006 | AC101: 0.03459774906 | AD101: 0.0348080449 | AE101: 0.03490667749 | AF101: 0.03485183793 | AG101: 0.03695645695 | AH101: 0.03690841904 | AI101: 0.03688010276 | AJ101: 0.03675939971 | AK101: 0.03660745588 | AL101: 0.03689742996 | AM101: 0.03716930948 | AN101: 0.03742412468 | AO101: 0.03766288031 | AP101: 0.03788655036 | AQ101: 0.03809607397 | AR101: 0.03829235241 | AS101: 0.03847624699 | AT101: 0.03864857779 | AU101: 0.03881012296 | AV101: 0.03896161873 | AW101: 0.03910375978 | AX101: 0.03923719996 | AY101: 0.03936255341 | AZ101: 0.03948039582 | BA101: 0.0395912659 | BB101: 0.03969566691 | BC101: 0.0397940684 | BD101: 0.03988690781 | BE101: 0.03997459227 | BF101: 0.04005750027 | BG101: 0.04013598335 | BH101: 0.04021036774 | BI101: 0.04028095596 | BJ101: 0.04034802838 | BK101: 0.04041184462 | BL101: 0.04047264504 | BM101: 0.040530652 | BN101: 0.04058607117 | BO101: 0.04063909267 | BP101: 0.04068989226 | BQ101: =IFERROR(BQ36/(BQ$39-BQ$37),0) -> 0.04073863229 | BR101: 0.04078546278 | BS101: 0.04083052227 | BT101: 0.04087393872 | BU101: 0.04091583026 | BV101: 0.04095630598 | BW101: 0.04099546661 | BX101: 0.04103340513 | BY101: 0.04107020739 | BZ101: 0.04110595266 | CA101: 0.04114071412 | CB101: 0.04117455936 | CC101: 0.04120755079 | CD101: 0.04123974603 | CE101: 0.04127119834 | CF101: 0.04130195689 | CG101: 0.04133206712 | CH101: 0.04136157104 | CI101: 0.04139050745 | CJ101: 0.04141891223 | CK101: 0.04144681857 | CL101: 0.04147425715 | CM101: 0.04150125635 | CN101: 0.04152784243 | CO101: 0.04155403971 | CP101: 0.04157987068 | CQ101: 0.04160535619 | CR101: 0.04163051552 | CS101: 0.04165536656 | CT101: 0.04167992587 | CU101: 0.04170420882 | CV101: 0.04172822965
B102: 26 | C102: Sin Localización | D102: [%] | CW102: Dda.Abo.Distr.Dpto
C104: Total | D104: [%] | E104: =SUM(E77:E102) -> 1 | F104: 1 | G104: 1 | H104: 1 | I104: 1 | J104: 1 | K104: 1 | L104: 1 | M104: 1 | N104: 1 | O104: 1 | P104: 1 | Q104: 1 | R104: 1 | S104: 1 | T104: 1 | U104: 1 | V104: 1 | W104: 1 | X104: 1 | Y104: 1 | Z104: 1 | AA104: 1 | AB104: 1 | AC104: 1 | AD104: 1 | AE104: 1 | AF104: 1 | AG104: 1 | AH104: 1 | AI104: 1 | AJ104: 1 | AK104: 1 | AL104: 1 | AM104: 1 | AN104: 1 | AO104: 1 | AP104: 1 | AQ104: 1 | AR104: 1 | AS104: 1 | AT104: 1 | AU104: 1 | AV104: 1 | AW104: 1 | AX104: 1 | AY104: 1 | AZ104: 1 | BA104: 1 | BB104: 1 | BC104: 1 | BD104: 1 | BE104: 1 | BF104: 1 | BG104: 1 | BH104: 1 | BI104: 1 | BJ104: 1 | BK104: 1 | BL104: 1 | BM104: 1 | BN104: 1 | BO104: 1 | BP104: 1 | BQ104: =SUM(BQ77:BQ102) -> 1 | BR104: 1 | BS104: 1 | BT104: 1 | BU104: 1 | BV104: 1 | BW104: 1 | BX104: 1 | BY104: 1 | BZ104: 1 | CA104: 1 | CB104: 1 | CC104: 1 | CD104: 1 | CE104: 1 | CF104: 1 | CG104: 1 | CH104: 1 | CI104: 1 | CJ104: 1 | CK104: 1 | CL104: 1 | CM104: 1 | CN104: 1 | CO104: 1 | CP104: 1 | CQ104: 1 | CR104: 1 | CS104: 1 | CT104: 1 | CU104: 1 | CV104: 1
B107: Abonados GSM/3G/4G
B110: id | C110: Departamento | E110: 201401 | F110: 201402 | G110: 201403 | H110: 201404 | I110: 201405 | J110: 201406 | K110: 201407 | L110: 201408 | M110: 201409 | N110: 201410 | O110: 201411 | P110: 201412 | Q110: 201501 | R110: 201502 | S110: 201503 | T110: 201504 | U110: 201505 | V110: 201506 | W110: 201507 | X110: 201508 | Y110: 201509 | Z110: 201510 | AA110: 201511 | AB110: 201512 | AC110: 201601 | AD110: 201602 | AE110: 201603 | AF110: 201604 | AG110: 201605 | AH110: 201606 | AI110: 201607 | AJ110: 201608 | AK110: 201609 | AL110: 201610 | AM110: 201611 | AN110: 201612 | AO110: 201701 | AP110: 201702 | AQ110: 201703 | AR110: 201704 | AS110: 201705 | AT110: 201706 | AU110: 201707 | AV110: 201708 | AW110: 201709 | AX110: 201710 | AY110: 201711 | AZ110: 201712 | BA110: 201801 | BB110: 201802 | BC110: 201803 | BD110: 201804 | BE110: 201805 | BF110: 201806 | BG110: 201807 | BH110: 201808 | BI110: 201809 | BJ110: 201810 | BK110: 201811 | BL110: 201812 | BM110: 201901 | BN110: 201902 | BO110: 201903 | BP110: 201904 | BQ110: 201905 | BR110: 201906 | BS110: 201907 | BT110: 201908 | BU110: 201909 | BV110: 201910 | BW110: 201911 | BX110: 201912 | BY110: 202001 | BZ110: 202002 | CA110: 202003 | CB110: 202004 | CC110: 202005 | CD110: 202006 | CE110: 202007 | CF110: 202008 | CG110: 202009 | CH110: 202010 | CI110: 202011 | CJ110: 202012 | CK110: 202101 | CL110: 202102 | CM110: 202103 | CN110: 202104 | CO110: 202105 | CP110: 202106 | CQ110: 202107 | CR110: 202108 | CS110: 202109 | CT110: 202110 | CU110: 202111 | CV110: 202112
B111: 1 | C111: Amazonas | D111: [Abonados] | E111: =E145+E179+E213 -> 800 | F111: 800 | G111: 800 | H111: 800 | I111: 800 | J111: 800 | K111: 800 | L111: 800 | M111: 800 | N111: 800 | O111: 800 | P111: 800 | Q111: 800 | R111: 800 | S111: 800 | T111: 800 | U111: 800 | V111: 800 | W111: 800 | X111: 800 | Y111: 800 | Z111: 800 | AA111: 800 | AB111: 800 | AC111: 800 | AD111: 800 | AE111: 800 | AF111: 800 | AG111: 800 | AH111: 800 | AI111: 800 | AJ111: 800 | AK111: 800 | AL111: 800 | AM111: 800 | AN111: 800 | AO111: 800 | AP111: 800 | AQ111: 800 | AR111: 800 | AS111: 800 | AT111: 800 | AU111: 800 | AV111: 800 | AW111: 800 | AX111: 800 | AY111: 800 | AZ111: 800 | BA111: 800 | BB111: 800 | BC111: 800 | BD111: 800 | BE111: 800 | BF111: 800 | BG111: 800 | BH111: 800 | BI111: 800 | BJ111: 800 | BK111: 800 | BL111: 800 | BM111: 800 | BN111: 800 | BO111: 800 | BP111: 800 | BQ111: =BQ145+BQ179+BQ213 -> 800 | BR111: 800 | BS111: 800 | BT111: 800 | BU111: 800 | BV111: 800 | BW111: 800 | BX111: 800 | BY111: 800 | BZ111: 800 | CA111: 800 | CB111: 800 | CC111: 800 | CD111: 800 | CE111: 800 | CF111: 800 | CG111: 800 | CH111: 800 | CI111: 800 | CJ111: 800 | CK111: 800 | CL111: 800 | CM111: 800 | CN111: 800 | CO111: 800 | CP111: 800 | CQ111: 800 | CR111: 800 | CS111: 800 | CT111: 800 | CU111: 800 | CV111: 800
B112: 2 | C112: Ancash | D112: [Abonados] | E112: 800 | F112: 800 | G112: 800 | H112: 800 | I112: 800 | J112: 800 | K112: 800 | L112: 800 | M112: 800 | N112: 800 | O112: 800 | P112: 800 | Q112: 800 | R112: 800 | S112: 800 | T112: 800 | U112: 800 | V112: 800 | W112: 800 | X112: 800 | Y112: 800 | Z112: 800 | AA112: 800 | AB112: 800 | AC112: 800 | AD112: 800 | AE112: 800 | AF112: 800 | AG112: 800 | AH112: 800 | AI112: 800 | AJ112: 800 | AK112: 800 | AL112: 800 | AM112: 800 | AN112: 800 | AO112: 800 | AP112: 800 | AQ112: 800 | AR112: 800 | AS112: 800 | AT112: 800 | AU112: 800 | AV112: 800 | AW112: 800 | AX112: 800 | AY112: 800 | AZ112: 800 | BA112: 800 | BB112: 800 | BC112: 800 | BD112: 800 | BE112: 800 | BF112: 800 | BG112: 800 | BH112: 800 | BI112: 800 | BJ112: 800 | BK112: 800 | BL112: 800 | BM112: 800 | BN112: 800 | BO112: 800 | BP112: 800 | BQ112: 800 | BR112: 800 | BS112: 800 | BT112: 800 | BU112: 800 | BV112: 800 | BW112: 800 | BX112: 800 | BY112: 800 | BZ112: 800 | CA112: 800 | CB112: 800 | CC112: 800 | CD112: 800 | CE112: 800 | CF112: 800 | CG112: 800 | CH112: 800 | CI112: 800 | CJ112: 800 | CK112: 800 | CL112: 800 | CM112: 800 | CN112: 800 | CO112: 800 | CP112: 800 | CQ112: 800 | CR112: 800 | CS112: 800 | CT112: 800 | CU112: 800 | CV112: 800
B113: 3 | C113: Apurímac | D113: [Abonados] | E113: 800 | F113: 800 | G113: 800 | H113: 800 | I113: 800 | J113: 800 | K113: 800 | L113: 800 | M113: 800 | N113: 800 | O113: 800 | P113: 800 | Q113: 800 | R113: 800 | S113: 800 | T113: 800 | U113: 800 | V113: 800 | W113: 800 | X113: 800 | Y113: 800 | Z113: 800 | AA113: 800 | AB113: 800 | AC113: 800 | AD113: 800 | AE113: 800 | AF113: 800 | AG113: 800 | AH113: 800 | AI113: 800 | AJ113: 800 | AK113: 800 | AL113: 800 | AM113: 800 | AN113: 800 | AO113: 800 | AP113: 800 | AQ113: 800 | AR113: 800 | AS113: 800 | AT113: 800 | AU113: 800 | AV113: 800 | AW113: 800 | AX113: 800 | AY113: 800 | AZ113: 800 | BA113: 800 | BB113: 800 | BC113: 800 | BD113: 800 | BE113: 800 | BF113: 800 | BG113: 800 | BH113: 800 | BI113: 800 | BJ113: 800 | BK113: 800 | BL113: 800 | BM113: 800 | BN113: 800 | BO113: 800 | BP113: 800 | BQ113: 800 | BR113: 800 | BS113: 800 | BT113: 800 | BU113: 800 | BV113: 800 | BW113: 800 | BX113: 800 | BY113: 800 | BZ113: 800 | CA113: 800 | CB113: 800 | CC113: 800 | CD113: 800 | CE113: 800 | CF113: 800 | CG113: 800 | CH113: 800 | CI113: 800 | CJ113: 800 | CK113: 800 | CL113: 800 | CM113: 800 | CN113: 800 | CO113: 800 | CP113: 800 | CQ113: 800 | CR113: 800 | CS113: 800 | CT113: 800 | CU113: 800 | CV113: 800
B114: 4 | C114: Arequipa | D114: [Abonados] | E114: 800 | F114: 800 | G114: 800 | H114: 800 | I114: 800 | J114: 800 | K114: 800 | L114: 800 | M114: 800 | N114: 800 | O114: 800 | P114: 800 | Q114: 800 | R114: 800 | S114: 800 | T114: 800 | U114: 800 | V114: 800 | W114: 800 | X114: 800 | Y114: 800 | Z114: 800 | AA114: 800 | AB114: 800 | AC114: 800 | AD114: 800 | AE114: 800 | AF114: 800 | AG114: 800 | AH114: 800 | AI114: 800 | AJ114: 800 | AK114: 800 | AL114: 800 | AM114: 800 | AN114: 800 | AO114: 800 | AP114: 800 | AQ114: 800 | AR114: 800 | AS114: 800 | AT114: 800 | AU114: 800 | AV114: 800 | AW114: 800 | AX114: 800 | AY114: 800 | AZ114: 800 | BA114: 800 | BB114: 800 | BC114: 800 | BD114: 800 | BE114: 800 | BF114: 800 | BG114: 800 | BH114: 800 | BI114: 800 | BJ114: 800 | BK114: 800 | BL114: 800 | BM114: 800 | BN114: 800 | BO114: 800 | BP114: =BP148+BP182+BP216 -> 800 | BQ114: 800 | BR114: 800 | BS114: 800 | BT114: 800 | BU114: 800 | BV114: 800 | BW114: 800 | BX114: 800 | BY114: 800 | BZ114: 800 | CA114: 800 | CB114: 800 | CC114: 800 | CD114: 800 | CE114: 800 | CF114: 800 | CG114: 800 | CH114: 800 | CI114: 800 | CJ114: 800 | CK114: 800 | CL114: 800 | CM114: 800 | CN114: 800 | CO114: 800 | CP114: 800 | CQ114: 800 | CR114: 800 | CS114: 800 | CT114: 800 | CU114: 800 | CV114: 800
B115: 5 | C115: Ayacucho | D115: [Abonados] | E115: =E149+E183+E217 -> 800 | F115: 800 | G115: 800 | H115: 800 | I115: 800 | J115: 800 | K115: 800 | L115: 800 | M115: 800 | N115: 800 | O115: 800 | P115: 800 | Q115: 800 | R115: 800 | S115: 800 | T115: 800 | U115: 800 | V115: 800 | W115: 800 | X115: 800 | Y115: 800 | Z115: 800 | AA115: 800 | AB115: 800 | AC115: 800 | AD115: 800 | AE115: 800 | AF115: 800 | AG115: 800 | AH115: 800 | AI115: 800 | AJ115: 800 | AK115: 800 | AL115: 800 | AM115: 800 | AN115: 800 | AO115: 800 | AP115: 800 | AQ115: 800 | AR115: 800 | AS115: 800 | AT115: 800 | AU115: 800 | AV115: 800 | AW115: 800 | AX115: 800 | AY115: 800 | AZ115: 800 | BA115: 800 | BB115: 800 | BC115: 800 | BD115: 800 | BE115: 800 | BF115: 800 | BG115: 800 | BH115: 800 | BI115: 800 | BJ115: 800 | BK115: 800 | BL115: 800 | BM115: 800 | BN115: 800 | BO115: 800 | BP115: 800 | BQ115: 800 | BR115: 800 | BS115: 800 | BT115: 800 | BU115: 800 | BV115: 800 | BW115: 800 | BX115: 800 | BY115: 800 | BZ115: 800 | CA115: 800 | CB115: 800 | CC115: 800 | CD115: 800 | CE115: 800 | CF115: 800 | CG115: 800 | CH115: 800 | CI115: 800 | CJ115: 800 | CK115: 800 | CL115: 800 | CM115: 800 | CN115: 800 | CO115: 800 | CP115: 800 | CQ115: 800 | CR115: 800 | CS115: 800 | CT115: 800 | CU115: 800 | CV115: 800
B116: 6 | C116: Cajamarca | D116: [Abonados] | E116: 800 | F116: 800 | G116: 800 | H116: 800 | I116: 800 | J116: 800 | K116: 800 | L116: 800 | M116: 800 | N116: 800 | O116: 800 | P116: 800 | Q116: 800 | R116: 800 | S116: 800 | T116: 800 | U116: 800 | V116: 800 | W116: 800 | X116: 800 | Y116: 800 | Z116: 800 | AA116: 800 | AB116: 800 | AC116: 800 | AD116: 800 | AE116: 800 | AF116: 800 | AG116: 800 | AH116: 800 | AI116: 800 | AJ116: 800 | AK116: 800 | AL116: 800 | AM116: 800 | AN116: 800 | AO116: 800 | AP116: 800 | AQ116: 800 | AR116: 800 | AS116: 800 | AT116: 800 | AU116: 800 | AV116: 800 | AW116: 800 | AX116: 800 | AY116: 800 | AZ116: 800 | BA116: 800 | BB116: 800 | BC116: 800 | BD116: 800 | BE116: 800 | BF116: 800 | BG116: 800 | BH116: 800 | BI116: 800 | BJ116: 800 | BK116: 800 | BL116: 800 | BM116: 800 | BN116: 800 | BO116: 800 | BP116: 800 | BQ116: 800 | BR116: 800 | BS116: 800 | BT116: 800 | BU116: 800 | BV116: 800 | BW116: 800 | BX116: 800 | BY116: 800 | BZ116: 800 | CA116: 800 | CB116: 800 | CC116: 800 | CD116: 800 | CE116: 800 | CF116: 800 | CG116: 800 | CH116: 800 | CI116: 800 | CJ116: 800 | CK116: 800 | CL116: 800 | CM116: 800 | CN116: 800 | CO116: 800 | CP116: 800 | CQ116: 800 | CR116: 800 | CS116: 800 | CT116: 800 | CU116: 800 | CV116: 800
B117: 7 | C117: Callao | D117: [Abonados] | E117: 800 | F117: 800 | G117: 800 | H117: 800 | I117: 800 | J117: 800 | K117: 800 | L117: 800 | M117: 800 | N117: 800 | O117: 800 | P117: 800 | Q117: 800 | R117: 800 | S117: 800 | T117: 800 | U117: 800 | V117: 800 | W117: 800 | X117: 800 | Y117: 800 | Z117: 800 | AA117: 800 | AB117: 800 | AC117: 800 | AD117: 800 | AE117: 800 | AF117: 800 | AG117: 800 | AH117: 800 | AI117: 800 | AJ117: 800 | AK117: 800 | AL117: 800 | AM117: 800 | AN117: 800 | AO117: 800 | AP117: 800 | AQ117: 800 | AR117: 800 | AS117: 800 | AT117: 800 | AU117: 800 | AV117: 800 | AW117: 800 | AX117: 800 | AY117: 800 | AZ117: 800 | BA117: 800 | BB117: 800 | BC117: 800 | BD117: 800 | BE117: 800 | BF117: 800 | BG117: 800 | BH117: 800 | BI117: 800 | BJ117: 800 | BK117: 800 | BL117: 800 | BM117: 800 | BN117: 800 | BO117: 800 | BP117: 800 | BQ117: 800 | BR117: 800 | BS117: 800 | BT117: 800 | BU117: 800 | BV117: 800 | BW117: 800 | BX117: 800 | BY117: 800 | BZ117: 800 | CA117: 800 | CB117: 800 | CC117: 800 | CD117: 800 | CE117: 800 | CF117: 800 | CG117: 800 | CH117: 800 | CI117: 800 | CJ117: 800 | CK117: 800 | CL117: 800 | CM117: 800 | CN117: 800 | CO117: 800 | CP117: 800 | CQ117: 800 | CR117: 800 | CS117: 800 | CT117: 800 | CU117: 800 | CV117: 800
B118: 8 | C118: Cusco | D118: [Abonados] | E118: 800 | F118: 800 | G118: 800 | H118: 800 | I118: 800 | J118: 800 | K118: 800 | L118: 800 | M118: 800 | N118: 800 | O118: 800 | P118: 800 | Q118: 800 | R118: 800 | S118: 800 | T118: 800 | U118: 800 | V118: 800 | W118: 800 | X118: 800 | Y118: 800 | Z118: 800 | AA118: 800 | AB118: 800 | AC118: 800 | AD118: 800 | AE118: 800 | AF118: 800 | AG118: 800 | AH118: 800 | AI118: 800 | AJ118: 800 | AK118: 800 | AL118: 800 | AM118: 800 | AN118: 800 | AO118: 800 | AP118: 800 | AQ118: 800 | AR118: 800 | AS118: 800 | AT118: 800 | AU118: 800 | AV118: 800 | AW118: 800 | AX118: 800 | AY118: 800 | AZ118: 800 | BA118: 800 | BB118: 800 | BC118: 800 | BD118: 800 | BE118: 800 | BF118: 800 | BG118: 800 | BH118: 800 | BI118: 800 | BJ118: 800 | BK118: 800 | BL118: 800 | BM118: 800 | BN118: 800 | BO118: 800 | BP118: =BP152+BP186+BP220 -> 800 | BQ118: 800 | BR118: 800 | BS118: 800 | BT118: 800 | BU118: 800 | BV118: 800 | BW118: 800 | BX118: 800 | BY118: 800 | BZ118: 800 | CA118: 800 | CB118: 800 | CC118: 800 | CD118: 800 | CE118: 800 | CF118: 800 | CG118: 800 | CH118: 800 | CI118: 800 | CJ118: 800 | CK118: 800 | CL118: 800 | CM118: 800 | CN118: 800 | CO118: 800 | CP118: 800 | CQ118: 800 | CR118: 800 | CS118: 800 | CT118: 800 | CU118: 800 | CV118: 800
B119: 9 | C119: Huancavelica | D119: [Abonados] | E119: =E153+E187+E221 -> 800 | F119: 800 | G119: 800 | H119: 800 | I119: 800 | J119: 800 | K119: 800 | L119: 800 | M119: 800 | N119: 800 | O119: 800 | P119: 800 | Q119: 800 | R119: 800 | S119: 800 | T119: 800 | U119: 800 | V119: 800 | W119: 800 | X119: 800 | Y119: 800 | Z119: 800 | AA119: 800 | AB119: 800 | AC119: 800 | AD119: 800 | AE119: 800 | AF119: 800 | AG119: 800 | AH119: 800 | AI119: 800 | AJ119: 800 | AK119: 800 | AL119: 800 | AM119: 800 | AN119: 800 | AO119: 800 | AP119: 800 | AQ119: 800 | AR119: 800 | AS119: 800 | AT119: 800 | AU119: 800 | AV119: 800 | AW119: 800 | AX119: 800 | AY119: 800 | AZ119: 800 | BA119: 800 | BB119: 800 | BC119: 800 | BD119: 800 | BE119: 800 | BF119: 800 | BG119: 800 | BH119: 800 | BI119: 800 | BJ119: 800 | BK119: 800 | BL119: 800 | BM119: 800 | BN119: 800 | BO119: 800 | BP119: 800 | BQ119: 800 | BR119: 800 | BS119: 800 | BT119: 800 | BU119: 800 | BV119: 800 | BW119: 800 | BX119: 800 | BY119: 800 | BZ119: 800 | CA119: 800 | CB119: 800 | CC119: 800 | CD119: 800 | CE119: 800 | CF119: 800 | CG119: 800 | CH119: 800 | CI119: 800 | CJ119: 800 | CK119: 800 | CL119: 800 | CM119: 800 | CN119: 800 | CO119: 800 | CP119: 800 | CQ119: 800 | CR119: 800 | CS119: 800 | CT119: 800 | CU119: 800 | CV119: 800
B120: 10 | C120: Huánuco | D120: [Abonados] | E120: 800 | F120: 800 | G120: 800 | H120: 800 | I120: 800 | J120: 800 | K120: 800 | L120: 800 | M120: 800 | N120: 800 | O120: 800 | P120: 800 | Q120: 800 | R120: 800 | S120: 800 | T120: 800 | U120: 800 | V120: 800 | W120: 800 | X120: 800 | Y120: 800 | Z120: 800 | AA120: 800 | AB120: 800 | AC120: 800 | AD120: 800 | AE120: 800 | AF120: 800 | AG120: 800 | AH120: 800 | AI120: 800 | AJ120: 800 | AK120: 800 | AL120: 800 | AM120: 800 | AN120: 800 | AO120: 800 | AP120: 800 | AQ120: 800 | AR120: 800 | AS120: 800 | AT120: 800 | AU120: 800 | AV120: 800 | AW120: 800 | AX120: 800 | AY120: 800 | AZ120: 800 | BA120: 800 | BB120: 800 | BC120: 800 | BD120: 800 | BE120: 800 | BF120: 800 | BG120: 800 | BH120: 800 | BI120: 800 | BJ120: 800 | BK120: 800 | BL120: 800 | BM120: 800 | BN120: 800 | BO120: 800 | BP120: 800 | BQ120: 800 | BR120: 800 | BS120: 800 | BT120: 800 | BU120: 800 | BV120: 800 | BW120: 800 | BX120: 800 | BY120: 800 | BZ120: 800 | CA120: 800 | CB120: 800 | CC120: 800 | CD120: 800 | CE120: 800 | CF120: 800 | CG120: 800 | CH120: 800 | CI120: 800 | CJ120: 800 | CK120: 800 | CL120: 800 | CM120: 800 | CN120: 800 | CO120: 800 | CP120: 800 | CQ120: 800 | CR120: 800 | CS120: 800 | CT120: 800 | CU120: 800 | CV120: 800
B121: 11 | C121: Ica | D121: [Abonados] | E121: 800 | F121: 800 | G121: 800 | H121: 800 | I121: 800 | J121: 800 | K121: 800 | L121: 800 | M121: 800 | N121: 800 | O121: 800 | P121: 800 | Q121: 800 | R121: 800 | S121: 800 | T121: 800 | U121: 800 | V121: 800 | W121: 800 | X121: 800 | Y121: 800 | Z121: 800 | AA121: 800 | AB121: 800 | AC121: 800 | AD121: 800 | AE121: 800 | AF121: 800 | AG121: 800 | AH121: 800 | AI121: 800 | AJ121: 800 | AK121: 800 | AL121: 800 | AM121: 800 | AN121: 800 | AO121: 800 | AP121: 800 | AQ121: 800 | AR121: 800 | AS121: 800 | AT121: 800 | AU121: 800 | AV121: 800 | AW121: 800 | AX121: 800 | AY121: 800 | AZ121: 800 | BA121: 800 | BB121: 800 | BC121: 800 | BD121: 800 | BE121: 800 | BF121: 800 | BG121: 800 | BH121: 800 | BI121: 800 | BJ121: 800 | BK121: 800 | BL121: 800 | BM121: 800 | BN121: 800 | BO121: 800 | BP121: 800 | BQ121: 800 | BR121: 800 | BS121: 800 | BT121: 800 | BU121: 800 | BV121: 800 | BW121: 800 | BX121: 800 | BY121: 800 | BZ121: 800 | CA121: 800 | CB121: 800 | CC121: 800 | CD121: 800 | CE121: 800 | CF121: 800 | CG121: 800 | CH121: 800 | CI121: 800 | CJ121: 800 | CK121: 800 | CL121: 800 | CM121: 800 | CN121: 800 | CO121: 800 | CP121: 800 | CQ121: 800 | CR121: 800 | CS121: 800 | CT121: 800 | CU121: 800 | CV121: 800
B122: 12 | C122: Junín | D122: [Abonados] | E122: 800 | F122: 800 | G122: 800 | H122: 800 | I122: 800 | J122: 800 | K122: 800 | L122: 800 | M122: 800 | N122: 800 | O122: 800 | P122: 800 | Q122: 800 | R122: 800 | S122: 800 | T122: 800 | U122: 800 | V122: 800 | W122: 800 | X122: 800 | Y122: 800 | Z122: 800 | AA122: 800 | AB122: 800 | AC122: 800 | AD122: 800 | AE122: 800 | AF122: 800 | AG122: 800 | AH122: 800 | AI122: 800 | AJ122: 800 | AK122: 800 | AL122: 800 | AM122: 800 | AN122: 800 | AO122: 800 | AP122: 800 | AQ122: 800 | AR122: 800 | AS122: 800 | AT122: 800 | AU122: 800 | AV122: 800 | AW122: 800 | AX122: 800 | AY122: 800 | AZ122: 800 | BA122: 800 | BB122: 800 | BC122: 800 | BD122: 800 | BE122: 800 | BF122: 800 | BG122: 800 | BH122: 800 | BI122: 800 | BJ122: 800 | BK122: 800 | BL122: 800 | BM122: 800 | BN122: 800 | BO122: 800 | BP122: =BP156+BP190+BP224 -> 800 | BQ122: 800 | BR122: 800 | BS122: 800 | BT122: 800 | BU122: 800 | BV122: 800 | BW122: 800 | BX122: 800 | BY122: 800 | BZ122: 800 | CA122: 800 | CB122: 800 | CC122: 800 | CD122: 800 | CE122: 800 | CF122: 800 | CG122: 800 | CH122: 800 | CI122: 800 | CJ122: 800 | CK122: 800 | CL122: 800 | CM122: 800 | CN122: 800 | CO122: 800 | CP122: 800 | CQ122: 800 | CR122: 800 | CS122: 800 | CT122: 800 | CU122: 800 | CV122: 800
B123: 13 | C123: La Libertad | D123: [Abonados] | E123: =E157+E191+E225 -> 800 | F123: 800 | G123: 800 | H123: 800 | I123: 800 | J123: 800 | K123: 800 | L123: 800 | M123: 800 | N123: 800 | O123: 800 | P123: 800 | Q123: 800 | R123: 800 | S123: 800 | T123: 800 | U123: 800 | V123: 800 | W123: 800 | X123: 800 | Y123: 800 | Z123: 800 | AA123: 800 | AB123: 800 | AC123: 800 | AD123: 800 | AE123: 800 | AF123: 800 | AG123: 800 | AH123: 800 | AI123: 800 | AJ123: 800 | AK123: 800 | AL123: 800 | AM123: 800 | AN123: 800 | AO123: 800 | AP123: 800 | AQ123: 800 | AR123: 800 | AS123: 800 | AT123: 800 | AU123: 800 | AV123: 800 | AW123: 800 | AX123: 800 | AY123: 800 | AZ123: 800 | BA123: 800 | BB123: 800 | BC123: 800 | BD123: 800 | BE123: 800 | BF123: 800 | BG123: 800 | BH123: 800 | BI123: 800 | BJ123: 800 | BK123: 800 | BL123: 800 | BM123: 800 | BN123: 800 | BO123: 800 | BP123: 800 | BQ123: 800 | BR123: 800 | BS123: 800 | BT123: 800 | BU123: 800 | BV123: 800 | BW123: 800 | BX123: 800 | BY123: 800 | BZ123: 800 | CA123: 800 | CB123: 800 | CC123: 800 | CD123: 800 | CE123: 800 | CF123: 800 | CG123: 800 | CH123: 800 | CI123: 800 | CJ123: 800 | CK123: 800 | CL123: 800 | CM123: 800 | CN123: 800 | CO123: 800 | CP123: 800 | CQ123: 800 | CR123: 800 | CS123: 800 | CT123: 800 | CU123: 800 | CV123: 800
B124: 14 | C124: Lambayeque | D124: [Abonados] | E124: 800 | F124: 800 | G124: 800 | H124: 800 | I124: 800 | J124: 800 | K124: 800 | L124: 800 | M124: 800 | N124: 800 | O124: 800 | P124: 800 | Q124: 800 | R124: 800 | S124: 800 | T124: 800 | U124: 800 | V124: 800 | W124: 800 | X124: 800 | Y124: 800 | Z124: 800 | AA124: 800 | AB124: 800 | AC124: 800 | AD124: 800 | AE124: 800 | AF124: 800 | AG124: 800 | AH124: 800 | AI124: 800 | AJ124: 800 | AK124: 800 | AL124: 800 | AM124: 800 | AN124: 800 | AO124: 800 | AP124: 800 | AQ124: 800 | AR124: 800 | AS124: 800 | AT124: 800 | AU124: 800 | AV124: 800 | AW124: 800 | AX124: 800 | AY124: 800 | AZ124: 800 | BA124: 800 | BB124: 800 | BC124: 800 | BD124: 800 | BE124: 800 | BF124: 800 | BG124: 800 | BH124: 800 | BI124: 800 | BJ124: 800 | BK124: 800 | BL124: 800 | BM124: 800 | BN124: 800 | BO124: 800 | BP124: 800 | BQ124: 800 | BR124: 800 | BS124: 800 | BT124: 800 | BU124: 800 | BV124: 800 | BW124: 800 | BX124: 800 | BY124: 800 | BZ124: 800 | CA124: 800 | CB124: 800 | CC124: 800 | CD124: 800 | CE124: 800 | CF124: 800 | CG124: 800 | CH124: 800 | CI124: 800 | CJ124: 800 | CK124: 800 | CL124: 800 | CM124: 800 | CN124: 800 | CO124: 800 | CP124: 800 | CQ124: 800 | CR124: 800 | CS124: 800 | CT124: 800 | CU124: 800 | CV124: 800
B125: 15 | C125: Lima | D125: [Abonados] | E125: 800 | F125: 800 | G125: 800 | H125: 800 | I125: 800 | J125: 800 | K125: 800 | L125: 800 | M125: 800 | N125: 800 | O125: 800 | P125: 800 | Q125: 800 | R125: 800 | S125: 800 | T125: 800 | U125: 800 | V125: 800 | W125: 800 | X125: 800 | Y125: 800 | Z125: 800 | AA125: 800 | AB125: 800 | AC125: 800 | AD125: 800 | AE125: 800 | AF125: 800 | AG125: 800 | AH125: 800 | AI125: 800 | AJ125: 800 | AK125: 800 | AL125: 800 | AM125: 800 | AN125: 800 | AO125: 800 | AP125: 800 | AQ125: 800 | AR125: 800 | AS125: 800 | AT125: 800 | AU125: 800 | AV125: 800 | AW125: 800 | AX125: 800 | AY125: 800 | AZ125: 800 | BA125: 800 | BB125: 800 | BC125: 800 | BD125: 800 | BE125: 800 | BF125: 800 | BG125: 800 | BH125: 800 | BI125: 800 | BJ125: 800 | BK125: 800 | BL125: 800 | BM125: 800 | BN125: 800 | BO125: 800 | BP125: 800 | BQ125: 800 | BR125: 800 | BS125: 800 | BT125: 800 | BU125: 800 | BV125: 800 | BW125: 800 | BX125: 800 | BY125: 800 | BZ125: 800 | CA125: 800 | CB125: 800 | CC125: 800 | CD125: 800 | CE125: 800 | CF125: 800 | CG125: 800 | CH125: 800 | CI125: 800 | CJ125: 800 | CK125: 800 | CL125: 800 | CM125: 800 | CN125: 800 | CO125: 800 | CP125: 800 | CQ125: 800 | CR125: 800 | CS125: 800 | CT125: 800 | CU125: 800 | CV125: 800
B126: 16 | C126: Loreto | D126: [Abonados] | E126: 800 | F126: 800 | G126: 800 | H126: 800 | I126: 800 | J126: 800 | K126: 800 | L126: 800 | M126: 800 | N126: 800 | O126: 800 | P126: 800 | Q126: 800 | R126: 800 | S126: 800 | T126: 800 | U126: 800 | V126: 800 | W126: 800 | X126: 800 | Y126: 800 | Z126: 800 | AA126: 800 | AB126: 800 | AC126: 800 | AD126: 800 | AE126: 800 | AF126: 800 | AG126: 800 | AH126: 800 | AI126: 800 | AJ126: 800 | AK126: 800 | AL126: 800 | AM126: 800 | AN126: 800 | AO126: 800 | AP126: 800 | AQ126: 800 | AR126: 800 | AS126: 800 | AT126: 800 | AU126: 800 | AV126: 800 | AW126: 800 | AX126: 800 | AY126: 800 | AZ126: 800 | BA126: 800 | BB126: 800 | BC126: 800 | BD126: 800 | BE126: 800 | BF126: 800 | BG126: 800 | BH126: 800 | BI126: 800 | BJ126: 800 | BK126: 800 | BL126: 800 | BM126: 800 | BN126: 800 | BO126: 800 | BP126: =BP160+BP194+BP228 -> 800 | BQ126: 800 | BR126: 800 | BS126: 800 | BT126: 800 | BU126: 800 | BV126: 800 | BW126: 800 | BX126: 800 | BY126: 800 | BZ126: 800 | CA126: 800 | CB126: 800 | CC126: 800 | CD126: 800 | CE126: 800 | CF126: 800 | CG126: 800 | CH126: 800 | CI126: 800 | CJ126: 800 | CK126: 800 | CL126: 800 | CM126: 800 | CN126: 800 | CO126: 800 | CP126: 800 | CQ126: 800 | CR126: 800 | CS126: 800 | CT126: 800 | CU126: 800 | CV126: 800
B127: 17 | C127: Madre de Dios | D127: [Abonados] | E127: =E161+E195+E229 -> 800 | F127: 800 | G127: 800 | H127: 800 | I127: 800 | J127: 800 | K127: 800 | L127: 800 | M127: 800 | N127: 800 | O127: 800 | P127: 800 | Q127: 800 | R127: 800 | S127: 800 | T127: 800 | U127: 800 | V127: 800 | W127: 800 | X127: 800 | Y127: 800 | Z127: 800 | AA127: 800 | AB127: 800 | AC127: 800 | AD127: 800 | AE127: 800 | AF127: 800 | AG127: 800 | AH127: 800 | AI127: 800 | AJ127: 800 | AK127: 800 | AL127: 800 | AM127: 800 | AN127: 800 | AO127: 800 | AP127: 800 | AQ127: 800 | AR127: 800 | AS127: 800 | AT127: 800 | AU127: 800 | AV127: 800 | AW127: 800 | AX127: 800 | AY127: 800 | AZ127: 800 | BA127: 800 | BB127: 800 | BC127: 800 | BD127: 800 | BE127: 800 | BF127: 800 | BG127: 800 | BH127: 800 | BI127: 800 | BJ127: 800 | BK127: 800 | BL127: 800 | BM127: 800 | BN127: 800 | BO127: 800 | BP127: 800 | BQ127: 800 | BR127: 800 | BS127: 800 | BT127: 800 | BU127: 800 | BV127: 800 | BW127: 800 | BX127: 800 | BY127: 800 | BZ127: 800 | CA127: 800 | CB127: 800 | CC127: 800 | CD127: 800 | CE127: 800 | CF127: 800 | CG127: 800 | CH127: 800 | CI127: 800 | CJ127: 800 | CK127: 800 | CL127: 800 | CM127: 800 | CN127: 800 | CO127: 800 | CP127: 800 | CQ127: 800 | CR127: 800 | CS127: 800 | CT127: 800 | CU127: 800 | CV127: 800
B128: 18 | C128: Moquegua | D128: [Abonados] | E128: 800 | F128: 800 | G128: 800 | H128: 800 | I128: 800 | J128: 800 | K128: 800 | L128: 800 | M128: 800 | N128: 800 | O128: 800 | P128: 800 | Q128: 800 | R128: 800 | S128: 800 | T128: 800 | U128: 800 | V128: 800 | W128: 800 | X128: 800 | Y128: 800 | Z128: 800 | AA128: 800 | AB128: 800 | AC128: 800 | AD128: 800 | AE128: 800 | AF128: 800 | AG128: 800 | AH128: 800 | AI128: 800 | AJ128: 800 | AK128: 800 | AL128: 800 | AM128: 800 | AN128: 800 | AO128: 800 | AP128: 800 | AQ128: 800 | AR128: 800 | AS128: 800 | AT128: 800 | AU128: 800 | AV128: 800 | AW128: 800 | AX128: 800 | AY128: 800 | AZ128: 800 | BA128: 800 | BB128: 800 | BC128: 800 | BD128: 800 | BE128: 800 | BF128: 800 | BG128: 800 | BH128: 800 | BI128: 800 | BJ128: 800 | BK128: 800 | BL128: 800 | BM128: 800 | BN128: 800 | BO128: 800 | BP128: 800 | BQ128: 800 | BR128: 800 | BS128: 800 | BT128: 800 | BU128: 800 | BV128: 800 | BW128: 800 | BX128: 800 | BY128: 800 | BZ128: 800 | CA128: 800 | CB128: 800 | CC128: 800 | CD128: 800 | CE128: 800 | CF128: 800 | CG128: 800 | CH128: 800 | CI128: 800 | CJ128: 800 | CK128: 800 | CL128: 800 | CM128: 800 | CN128: 800 | CO128: 800 | CP128: 800 | CQ128: 800 | CR128: 800 | CS128: 800 | CT128: 800 | CU128: 800 | CV128: 800
B129: 19 | C129: Pasco | D129: [Abonados] | E129: 800 | F129: 800 | G129: 800 | H129: 800 | I129: 800 | J129: 800 | K129: 800 | L129: 800 | M129: 800 | N129: 800 | O129: 800 | P129: 800 | Q129: 800 | R129: 800 | S129: 800 | T129: 800 | U129: 800 | V129: 800 | W129: 800 | X129: 800 | Y129: 800 | Z129: 800 | AA129: 800 | AB129: 800 | AC129: 800 | AD129: 800 | AE129: 800 | AF129: 800 | AG129: 800 | AH129: 800 | AI129: 800 | AJ129: 800 | AK129: 800 | AL129: 800 | AM129: 800 | AN129: 800 | AO129: 800 | AP129: 800 | AQ129: 800 | AR129: 800 | AS129: 800 | AT129: 800 | AU129: 800 | AV129: 800 | AW129: 800 | AX129: 800 | AY129: 800 | AZ129: 800 | BA129: 800 | BB129: 800 | BC129: 800 | BD129: 800 | BE129: 800 | BF129: 800 | BG129: 800 | BH129: 800 | BI129: 800 | BJ129: 800 | BK129: 800 | BL129: 800 | BM129: 800 | BN129: 800 | BO129: 800 | BP129: 800 | BQ129: 800 | BR129: 800 | BS129: 800 | BT129: 800 | BU129: 800 | BV129: 800 | BW129: 800 | BX129: 800 | BY129: 800 | BZ129: 800 | CA129: 800 | CB129: 800 | CC129: 800 | CD129: 800 | CE129: 800 | CF129: 800 | CG129: 800 | CH129: 800 | CI129: 800 | CJ129: 800 | CK129: 800 | CL129: 800 | CM129: 800 | CN129: 800 | CO129: 800 | CP129: 800 | CQ129: 800 | CR129: 800 | CS129: 800 | CT129: 800 | CU129: 800 | CV129: 800
B130: 20 | C130: Piura | D130: [Abonados] | E130: 800 | F130: 800 | G130: 800 | H130: 800 | I130: 800 | J130: 800 | K130: 800 | L130: 800 | M130: 800 | N130: 800 | O130: 800 | P130: 800 | Q130: 800 | R130: 800 | S130: 800 | T130: 800 | U130: 800 | V130: 800 | W130: 800 | X130: 800 | Y130: 800 | Z130: 800 | AA130: 800 | AB130: 800 | AC130: 800 | AD130: 800 | AE130: 800 | AF130: 800 | AG130: 800 | AH130: 800 | AI130: 800 | AJ130: 800 | AK130: 800 | AL130: 800 | AM130: 800 | AN130: 800 | AO130: 800 | AP130: 800 | AQ130: 800 | AR130: 800 | AS130: 800 | AT130: 800 | AU130: 800 | AV130: 800 | AW130: 800 | AX130: 800 | AY130: 800 | AZ130: 800 | BA130: 800 | BB130: 800 | BC130: 800 | BD130: 800 | BE130: 800 | BF130: 800 | BG130: 800 | BH130: 800 | BI130: 800 | BJ130: 800 | BK130: 800 | BL130: 800 | BM130: 800 | BN130: 800 | BO130: 800 | BP130: =BP164+BP198+BP232 -> 800 | BQ130: 800 | BR130: 800 | BS130: 800 | BT130: 800 | BU130: 800 | BV130: 800 | BW130: 800 | BX130: 800 | BY130: 800 | BZ130: 800 | CA130: 800 | CB130: 800 | CC130: 800 | CD130: 800 | CE130: 800 | CF130: 800 | CG130: 800 | CH130: 800 | CI130: 800 | CJ130: 800 | CK130: 800 | CL130: 800 | CM130: 800 | CN130: 800 | CO130: 800 | CP130: 800 | CQ130: 800 | CR130: 800 | CS130: 800 | CT130: 800 | CU130: 800 | CV130: 800
B131: 21 | C131: Puno | D131: [Abonados] | E131: =E165+E199+E233 -> 800 | F131: 800 | G131: 800 | H131: 800 | I131: 800 | J131: 800 | K131: 800 | L131: 800 | M131: 800 | N131: 800 | O131: 800 | P131: 800 | Q131: 800 | R131: 800 | S131: 800 | T131: 800 | U131: 800 | V131: 800 | W131: 800 | X131: 800 | Y131: 800 | Z131: 800 | AA131: 800 | AB131: 800 | AC131: 800 | AD131: 800 | AE131: 800 | AF131: 800 | AG131: 800 | AH131: 800 | AI131: 800 | AJ131: 800 | AK131: 800 | AL131: 800 | AM131: 800 | AN131: 800 | AO131: 800 | AP131: 800 | AQ131: 800 | AR131: 800 | AS131: 800 | AT131: 800 | AU131: 800 | AV131: 800 | AW131: 800 | AX131: 800 | AY131: 800 | AZ131: 800 | BA131: 800 | BB131: 800 | BC131: 800 | BD131: 800 | BE131: 800 | BF131: 800 | BG131: 800 | BH131: 800 | BI131: 800 | BJ131: 800 | BK131: 800 | BL131: 800 | BM131: 800 | BN131: 800 | BO131: 800 | BP131: 800 | BQ131: 800 | BR131: 800 | BS131: 800 | BT131: 800 | BU131: 800 | BV131: 800 | BW131: 800 | BX131: 800 | BY131: 800 | BZ131: 800 | CA131: 800 | CB131: 800 | CC131: 800 | CD131: 800 | CE131: 800 | CF131: 800 | CG131: 800 | CH131: 800 | CI131: 800 | CJ131: 800 | CK131: 800 | CL131: 800 | CM131: 800 | CN131: 800 | CO131: 800 | CP131: 800 | CQ131: 800 | CR131: 800 | CS131: 800 | CT131: 800 | CU131: 800 | CV131: 800
B132: 22 | C132: San Martín | D132: [Abonados] | E132: 800 | F132: 800 | G132: 800 | H132: 800 | I132: 800 | J132: 800 | K132: 800 | L132: 800 | M132: 800 | N132: 800 | O132: 800 | P132: 800 | Q132: 800 | R132: 800 | S132: 800 | T132: 800 | U132: 800 | V132: 800 | W132: 800 | X132: 800 | Y132: 800 | Z132: 800 | AA132: 800 | AB132: 800 | AC132: 800 | AD132: 800 | AE132: 800 | AF132: 800 | AG132: 800 | AH132: 800 | AI132: 800 | AJ132: 800 | AK132: 800 | AL132: 800 | AM132: 800 | AN132: 800 | AO132: 800 | AP132: 800 | AQ132: 800 | AR132: 800 | AS132: 800 | AT132: 800 | AU132: 800 | AV132: 800 | AW132: 800 | AX132: 800 | AY132: 800 | AZ132: 800 | BA132: 800 | BB132: 800 | BC132: 800 | BD132: 800 | BE132: 800 | BF132: 800 | BG132: 800 | BH132: 800 | BI132: 800 | BJ132: 800 | BK132: 800 | BL132: 800 | BM132: 800 | BN132: 800 | BO132: 800 | BP132: 800 | BQ132: 800 | BR132: 800 | BS132: 800 | BT132: 800 | BU132: 800 | BV132: 800 | BW132: 800 | BX132: 800 | BY132: 800 | BZ132: 800 | CA132: 800 | CB132: 800 | CC132: 800 | CD132: 800 | CE132: 800 | CF132: 800 | CG132: 800 | CH132: 800 | CI132: 800 | CJ132: 800 | CK132: 800 | CL132: 800 | CM132: 800 | CN132: 800 | CO132: 800 | CP132: 800 | CQ132: 800 | CR132: 800 | CS132: 800 | CT132: 800 | CU132: 800 | CV132: 800
B133: 23 | C133: Tacna | D133: [Abonados] | E133: 800 | F133: 800 | G133: 800 | H133: 800 | I133: 800 | J133: 800 | K133: 800 | L133: 800 | M133: 800 | N133: 800 | O133: 800 | P133: 800 | Q133: 800 | R133: 800 | S133: 800 | T133: 800 | U133: 800 | V133: 800 | W133: 800 | X133: 800 | Y133: 800 | Z133: 800 | AA133: 800 | AB133: 800 | AC133: 800 | AD133: 800 | AE133: 800 | AF133: 800 | AG133: 800 | AH133: 800 | AI133: 800 | AJ133: 800 | AK133: 800 | AL133: 800 | AM133: 800 | AN133: 800 | AO133: 800 | AP133: 800 | AQ133: 800 | AR133: 800 | AS133: 800 | AT133: 800 | AU133: 800 | AV133: 800 | AW133: 800 | AX133: 800 | AY133: 800 | AZ133: 800 | BA133: 800 | BB133: 800 | BC133: 800 | BD133: 800 | BE133: 800 | BF133: 800 | BG133: 800 | BH133: 800 | BI133: 800 | BJ133: 800 | BK133: 800 | BL133: 800 | BM133: 800 | BN133: 800 | BO133: 800 | BP133: 800 | BQ133: 800 | BR133: 800 | BS133: 800 | BT133: 800 | BU133: 800 | BV133: 800 | BW133: 800 | BX133: 800 | BY133: 800 | BZ133: 800 | CA133: 800 | CB133: 800 | CC133: 800 | CD133: 800 | CE133: 800 | CF133: 800 | CG133: 800 | CH133: 800 | CI133: 800 | CJ133: 800 | CK133: 800 | CL133: 800 | CM133: 800 | CN133: 800 | CO133: 800 | CP133: 800 | CQ133: 800 | CR133: 800 | CS133: 800 | CT133: 800 | CU133: 800 | CV133: 800
B134: 24 | C134: Tumbes | D134: [Abonados] | E134: 800 | F134: 800 | G134: 800 | H134: 800 | I134: 800 | J134: 800 | K134: 800 | L134: 800 | M134: 800 | N134: 800 | O134: 800 | P134: 800 | Q134: 800 | R134: 800 | S134: 800 | T134: 800 | U134: 800 | V134: 800 | W134: 800 | X134: 800 | Y134: 800 | Z134: 800 | AA134: 800 | AB134: 800 | AC134: 800 | AD134: 800 | AE134: 800 | AF134: 800 | AG134: 800 | AH134: 800 | AI134: 800 | AJ134: 800 | AK134: 800 | AL134: 800 | AM134: 800 | AN134: 800 | AO134: 800 | AP134: 800 | AQ134: 800 | AR134: 800 | AS134: 800 | AT134: 800 | AU134: 800 | AV134: 800 | AW134: 800 | AX134: 800 | AY134: 800 | AZ134: 800 | BA134: 800 | BB134: 800 | BC134: 800 | BD134: 800 | BE134: 800 | BF134: 800 | BG134: 800 | BH134: 800 | BI134: 800 | BJ134: 800 | BK134: 800 | BL134: 800 | BM134: 800 | BN134: 800 | BO134: 800 | BP134: =BP168+BP202+BP236 -> 800 | BQ134: 800 | BR134: 800 | BS134: 800 | BT134: 800 | BU134: 800 | BV134: 800 | BW134: 800 | BX134: 800 | BY134: 800 | BZ134: 800 | CA134: 800 | CB134: 800 | CC134: 800 | CD134: 800 | CE134: 800 | CF134: 800 | CG134: 800 | CH134: 800 | CI134: 800 | CJ134: 800 | CK134: 800 | CL134: 800 | CM134: 800 | CN134: 800 | CO134: 800 | CP134: 800 | CQ134: 800 | CR134: 800 | CS134: 800 | CT134: 800 | CU134: 800 | CV134: 800
B135: 25 | C135: Ucayali | D135: [Abonados] | E135: =E169+E203+E237 -> 800 | F135: 800 | G135: 800 | H135: 800 | I135: 800 | J135: 800 | K135: 800 | L135: 800 | M135: 800 | N135: 800 | O135: 800 | P135: 800 | Q135: 800 | R135: 800 | S135: 800 | T135: 800 | U135: 800 | V135: 800 | W135: 800 | X135: 800 | Y135: 800 | Z135: 800 | AA135: 800 | AB135: 800 | AC135: 800 | AD135: 800 | AE135: 800 | AF135: 800 | AG135: 800 | AH135: 800 | AI135: 800 | AJ135: 800 | AK135: 800 | AL135: 800 | AM135: 800 | AN135: 800 | AO135: 800 | AP135: 800 | AQ135: 800 | AR135: 800 | AS135: 800 | AT135: 800 | AU135: 800 | AV135: 800 | AW135: 800 | AX135: 800 | AY135: 800 | AZ135: 800 | BA135: 800 | BB135: 800 | BC135: 800 | BD135: 800 | BE135: 800 | BF135: 800 | BG135: 800 | BH135: 800 | BI135: 800 | BJ135: 800 | BK135: 800 | BL135: 800 | BM135: 800 | BN135: 800 | BO135: 800 | BP135: 800 | BQ135: 800 | BR135: 800 | BS135: 800 | BT135: 800 | BU135: 800 | BV135: 800 | BW135: 800 | BX135: 800 | BY135: 800 | BZ135: 800 | CA135: 800 | CB135: 800 | CC135: 800 | CD135: 800 | CE135: 800 | CF135: 800 | CG135: 800 | CH135: 800 | CI135: 800 | CJ135: 800 | CK135: 800 | CL135: 800 | CM135: 800 | CN135: 800 | CO135: 800 | CP135: 800 | CQ135: 800 | CR135: 800 | CS135: 800 | CT135: 800 | CU135: 800 | CV135: 800
B136: 26 | C136: Sin Localización | D136: [Abonados] | E136: 800 | F136: 800 | G136: 800 | H136: 800 | I136: 800 | J136: 800 | K136: 800 | L136: 800 | M136: 800 | N136: 800 | O136: 800 | P136: 800 | Q136: 800 | R136: 800 | S136: 800 | T136: 800 | U136: 800 | V136: 800 | W136: 800 | X136: 800 | Y136: 800 | Z136: 800 | AA136: 800 | AB136: 800 | AC136: 800 | AD136: 800 | AE136: 800 | AF136: 800 | AG136: 800 | AH136: 800 | AI136: 800 | AJ136: 800 | AK136: 800 | AL136: 800 | AM136: 800 | AN136: 800 | AO136: 800 | AP136: 800 | AQ136: 800 | AR136: 800 | AS136: 800 | AT136: 800 | AU136: 800 | AV136: 800 | AW136: 800 | AX136: 800 | AY136: 800 | AZ136: 800 | BA136: 800 | BB136: 800 | BC136: 800 | BD136: 800 | BE136: 800 | BF136: 800 | BG136: 800 | BH136: 800 | BI136: 800 | BJ136: 800 | BK136: 800 | BL136: 800 | BM136: 800 | BN136: 800 | BO136: 800 | BP136: 800 | BQ136: 800 | BR136: 800 | BS136: 800 | BT136: 800 | BU136: 800 | BV136: 800 | BW136: 800 | BX136: 800 | BY136: 800 | BZ136: 800 | CA136: 800 | CB136: 800 | CC136: 800 | CD136: 800 | CE136: 800 | CF136: 800 | CG136: 800 | CH136: 800 | CI136: 800 | CJ136: 800 | CK136: 800 | CL136: 800 | CM136: 800 | CN136: 800 | CO136: 800 | CP136: 800 | CQ136: 800 | CR136: 800 | CS136: 800 | CT136: 800 | CU136: 800 | CV136: 800
C138: Total EOP | D138: [Abonados] | E138: =SUM(E111:E136) -> 20800 | F138: =SUM(F111:F136) -> 20800 | G138: 20800 | H138: 20800 | I138: 20800 | J138: 20800 | K138: 20800 | L138: 20800 | M138: 20800 | N138: 20800 | O138: 20800 | P138: =SUM(P111:P136) -> 20800 | Q138: 20800 | R138: 20800 | S138: 20800 | T138: 20800 | U138: 20800 | V138: 20800 | W138: 20800 | X138: 20800 | Y138: 20800 | Z138: 20800 | AA138: 20800 | AB138: 20800 | AC138: 20800 | AD138: 20800 | AE138: 20800 | AF138: 20800 | AG138: 20800 | AH138: 20800 | AI138: 20800 | AJ138: 20800 | AK138: 20800 | AL138: 20800 | AM138: 20800 | AN138: 20800 | AO138: 20800 | AP138: 20800 | AQ138: 20800 | AR138: 20800 | AS138: 20800 | AT138: 20800 | AU138: 20800 | AV138: 20800 | AW138: 20800 | AX138: 20800 | AY138: 20800 | AZ138: 20800 | BA138: 20800 | BB138: 20800 | BC138: 20800 | BD138: 20800 | BE138: 20800 | BF138: 20800 | BG138: 20800 | BH138: 20800 | BI138: 20800 | BJ138: 20800 | BK138: 20800 | BL138: 20800 | BM138: 20800 | BN138: 20800 | BO138: 20800 | BP138: 20800 | BQ138: 20800 | BR138: =SUM(BR111:BR136) -> 20800 | BS138: 20800 | BT138: 20800 | BU138: 20800 | BV138: 20800 | BW138: 20800 | BX138: 20800 | BY138: 20800 | BZ138: 20800 | CA138: 20800 | CB138: 20800 | CC138: 20800 | CD138: 20800 | CE138: 20800 | CF138: 20800 | CG138: 20800 | CH138: 20800 | CI138: 20800 | CJ138: 20800 | CK138: 20800 | CL138: 20800 | CM138: 20800 | CN138: 20800 | CO138: 20800 | CP138: 20800 | CQ138: 20800 | CR138: 20800 | CS138: 20800 | CT138: 20800 | CU138: 20800 | CV138: 20800 | CW138: abo.mov.tot.eop
C139: Total AVG | D139: [Abonados] | E139: =+E138 -> 20800 | F139: =(E138+F138)/2 -> 20800 | G139: =(F138+G138)/2 -> 20800 | H139: 20800 | I139: 20800 | J139: 20800 | K139: 20800 | L139: 20800 | M139: 20800 | N139: 20800 | O139: 20800 | P139: 20800 | Q139: 20800 | R139: 20800 | S139: 20800 | T139: 20800 | U139: 20800 | V139: 20800 | W139: 20800 | X139: 20800 | Y139: 20800 | Z139: 20800 | AA139: 20800 | AB139: 20800 | AC139: 20800 | AD139: 20800 | AE139: 20800 | AF139: 20800 | AG139: 20800 | AH139: 20800 | AI139: 20800 | AJ139: 20800 | AK139: 20800 | AL139: 20800 | AM139: 20800 | AN139: 20800 | AO139: 20800 | AP139: 20800 | AQ139: 20800 | AR139: 20800 | AS139: 20800 | AT139: 20800 | AU139: 20800 | AV139: 20800 | AW139: 20800 | AX139: 20800 | AY139: 20800 | AZ139: 20800 | BA139: 20800 | BB139: 20800 | BC139: 20800 | BD139: 20800 | BE139: 20800 | BF139: 20800 | BG139: 20800 | BH139: 20800 | BI139: 20800 | BJ139: 20800 | BK139: 20800 | BL139: 20800 | BM139: 20800 | BN139: 20800 | BO139: 20800 | BP139: 20800 | BQ139: 20800 | BR139: 20800 | BS139: =(BR138+BS138)/2 -> 20800 | BT139: 20800 | BU139: 20800 | BV139: 20800 | BW139: 20800 | BX139: 20800 | BY139: 20800 | BZ139: 20800 | CA139: 20800 | CB139: 20800 | CC139: 20800 | CD139: 20800 | CE139: 20800 | CF139: 20800 | CG139: 20800 | CH139: 20800 | CI139: 20800 | CJ139: 20800 | CK139: 20800 | CL139: 20800 | CM139: 20800 | CN139: 20800 | CO139: 20800 | CP139: 20800 | CQ139: 20800 | CR139: 20800 | CS139: 20800 | CT139: 20800 | CU139: 20800 | CV139: 20800 | CW139: abo.mov.tot.avg
B141: Prepago
E142: =LN(E143) -> 0 | F142: 0.6931471806 | G142: 1.098612289 | H142: 1.386294361 | I142: 1.609437912 | J142: 1.791759469 | K142: 1.945910149 | L142: 2.079441542 | M142: 2.197224577 | N142: 2.302585093 | O142: 2.397895273 | P142: 2.48490665 | Q142: 2.564949357 | R142: 2.63905733 | S142: 2.708050201 | T142: 2.772588722 | U142: 2.833213344 | V142: 2.890371758 | W142: 2.944438979 | X142: 2.995732274 | Y142: 3.044522438 | Z142: 3.091042453 | AA142: 3.135494216 | AB142: 3.17805383 | AC142: 3.218875825 | AD142: 3.258096538 | AE142: 3.295836866 | AF142: 3.33220451 | AG142: 3.36729583 | AH142: 3.401197382 | AI142: 3.433987204 | AJ142: 3.465735903 | AK142: 3.496507561 | AL142: 3.526360525 | AM142: 3.555348061 | AN142: 3.583518938 | AO142: 3.610917913 | AP142: 3.63758616 | AQ142: 3.663561646 | AR142: 3.688879454 | AS142: 3.713572067 | AT142: 3.737669618 | AU142: 3.761200116 | AV142: 3.784189634 | AW142: 3.80666249 | AX142: 3.828641396 | AY142: 3.850147602 | AZ142: 3.871201011 | BA142: 3.891820298 | BB142: 3.912023005 | BC142: 3.931825633 | BD142: 3.951243719 | BE142: 3.970291914 | BF142: 3.988984047 | BG142: 4.007333185 | BH142: 4.025351691 | BI142: 4.043051268 | BJ142: 4.060443011 | BK142: 4.077537444 | BL142: 4.094344562 | BM142: 4.110873864 | BN142: 4.127134385 | BO142: 4.143134726 | BP142: 4.158883083 | BQ142: =LN(BQ143) -> 4.17438727 | BR142: 4.189654742 | BS142: 4.204692619 | BT142: 4.219507705 | BU142: 4.234106505 | BV142: 4.248495242 | BW142: 4.262679877 | BX142: 4.276666119 | BY142: 4.290459441 | BZ142: 4.304065093 | CA142: 4.317488114 | CB142: 4.33073334 | CC142: 4.343805422 | CD142: 4.356708827 | CE142: 4.369447852 | CF142: 4.382026635 | CG142: 4.394449155 | CH142: 4.406719247 | CI142: 4.418840608 | CJ142: 4.430816799 | CK142: 4.442651256 | CL142: 4.454347296 | CM142: 4.465908119 | CN142: 4.477336814 | CO142: 4.48863637 | CP142: 4.49980967 | CQ142: 4.510859507 | CR142: 4.521788577 | CS142: 4.532599493 | CT142: 4.543294782 | CU142: 4.553876892 | CV142: =LN(CV143) -> 4.564348191
E143: 1 | F143: 2 | G143: 3 | H143: 4 | I143: 5 | J143: 6 | K143: 7 | L143: 8 | M143: 9 | N143: 10 | O143: 11 | P143: 12 | Q143: 13 | R143: 14 | S143: 15 | T143: 16 | U143: 17 | V143: 18 | W143: 19 | X143: 20 | Y143: 21 | Z143: 22 | AA143: 23 | AB143: 24 | AC143: 25 | AD143: 26 | AE143: 27 | AF143: 28 | AG143: 29 | AH143: 30 | AI143: 31 | AJ143: 32 | AK143: 33 | AL143: 34 | AM143: 35 | AN143: 36 | AO143: 37 | AP143: 38 | AQ143: 39 | AR143: 40 | AS143: 41 | AT143: 42 | AU143: 43 | AV143: 44 | AW143: 45 | AX143: 46 | AY143: 47 | AZ143: 48 | BA143: 49 | BB143: 50 | BC143: 51 | BD143: 52 | BE143: 53 | BF143: 54 | BG143: 55 | BH143: 56 | BI143: 57 | BJ143: 58 | BK143: 59 | BL143: 60 | BM143: 61 | BN143: 62 | BO143: 63 | BP143: 64 | BQ143: 65 | BR143: 66 | BS143: 67 | BT143: 68 | BU143: 69 | BV143: 70 | BW143: 71 | BX143: 72 | BY143: 73 | BZ143: 74 | CA143: 75 | CB143: 76 | CC143: 77 | CD143: 78 | CE143: 79 | CF143: 80 | CG143: 81 | CH143: 82 | CI143: 83 | CJ143: 84 | CK143: 85 | CL143: 86 | CM143: 87 | CN143: 88 | CO143: 89 | CP143: 90 | CQ143: 91 | CR143: 92 | CS143: 93 | CT143: 94 | CU143: 95 | CV143: 96 | CZ143: Lineal | DC143: Logarítmica | DF143: Exponencial
B144: id | C144: Departamento | E144: 201401 | F144: 201402 | G144: 201403 | H144: 201404 | I144: 201405 | J144: 201406 | K144: 201407 | L144: 201408 | M144: 201409 | N144: 201410 | O144: 201411 | P144: 201412 | Q144: 201501 | R144: 201502 | S144: 201503 | T144: 201504 | U144: 201505 | V144: 201506 | W144: 201507 | X144: 201508 | Y144: 201509 | Z144: 201510 | AA144: 201511 | AB144: 201512 | AC144: 201601 | AD144: 201602 | AE144: 201603 | AF144: 201604 | AG144: 201605 | AH144: 201606 | AI144: 201607 | AJ144: 201608 | AK144: 201609 | AL144: 201610 | AM144: 201611 | AN144: 201612 | AO144: 201701 | AP144: 201702 | AQ144: 201703 | AR144: 201704 | AS144: 201705 | AT144: 201706 | AU144: 201707 | AV144: 201708 | AW144: 201709 | AX144: 201710 | AY144: 201711 | AZ144: 201712 | BA144: 201801 | BB144: 201802 | BC144: 201803 | BD144: 201804 | BE144: 201805 | BF144: 201806 | BG144: 201807 | BH144: 201808 | BI144: 201809 | BJ144: 201810 | BK144: 201811 | BL144: 201812 | BM144: 201901 | BN144: 201902 | BO144: 201903 | BP144: 201904 | BQ144: 201905 | BR144: 201906 | BS144: 201907 | BT144: 201908 | BU144: 201909 | BV144: 201910 | BW144: 201911 | BX144: 201912 | BY144: 202001 | BZ144: 202002 | CA144: 202003 | CB144: 202004 | CC144: 202005 | CD144: 202006 | CE144: 202007 | CF144: 202008 | CG144: 202009 | CH144: 202010 | CI144: 202011 | CJ144: 202012 | CK144: 202101 | CL144: 202102 | CM144: 202103 | CN144: 202104 | CO144: 202105 | CP144: 202106 | CQ144: 202107 | CR144: 202108 | CS144: 202109 | CT144: 202110 | CU144: 202111 | CV144: 202112 | CX144: Adopción | CY144: Tendencia | CZ144: Constante | DA144: Pendiente | DB144: R2 | DC144: Constante | DD144: Pendiente | DE144: R2 | DF144: Constante | DG144: Pendiente | DH144: R2
B145: 1 | C145: Amazonas | D145: [Abonados] | E145: 500 | F145: 500 | G145: 500 | H145: 500 | I145: 500 | J145: 500 | K145: 500 | L145: 500 | M145: 500 | N145: 500 | O145: 500 | P145: 500 | Q145: 500 | R145: 500 | S145: 500 | T145: 500 | U145: 500 | V145: 500 | W145: 500 | X145: 500 | Y145: 500 | Z145: 500 | AA145: 500 | AB145: 500 | AC145: 500 | AD145: 500 | AE145: 500 | AF145: 500 | AG145: 500 | AH145: 500 | AI145: 500 | AJ145: 500 | AK145: 500 | AL145: 500 | AM145: 500 | AN145: 500 | AO145: 500 | AP145: 500 | AQ145: 500 | AR145: 500 | AS145: 500 | AT145: 500 | AU145: 500 | AV145: 500 | AW145: 500 | AX145: 500 | AY145: 500 | AZ145: 500 | BA145: 500 | BB145: 500 | BC145: 500 | BD145: 500 | BE145: 500 | BF145: 500 | BG145: 500 | BH145: 500 | BI145: 500 | BJ145: 500 | BK145: 500 | BL145: 500 | BM145: 500 | BN145: 500 | BO145: 500 | BP145: 500 | BQ145: 500 | BR145: 500 | BS145: 500 | BT145: 500 | BU145: 500 | BV145: 500 | BW145: 500 | BX145: 500 | BY145: 500 | BZ145: 500 | CA145: 500 | CB145: 500 | CC145: 500 | CD145: 500 | CE145: 500 | CF145: 500 | CG145: 500 | CH145: 500 | CI145: 500 | CJ145: 500 | CK145: 500 | CL145: 500 | CM145: 500 | CN145: 500 | CO145: 500 | CP145: 500 | CQ145: 500 | CR145: 500 | CS145: 500 | CT145: 500 | CU145: 500 | CV145: 500 | CX145: lineal | CY145: =IF(AND($DB145>$DE145,$DB145>$DH145),"lineal",IF(AND($DE145>$DB145,$DE145>$DH145),"logaritmica",IF(AND($DH145>$DB145,$DH145>$DE145),"exponencial","-"))) -> - | CZ145: =$AK145-$DA145*$AK$143 -> 500 | DA145: =IFERROR(SLOPE($E145:$AK145,$E$143:$AK$143),0) -> 0 | DB145: =IFERROR(RSQ($E145:$AK145,$E$143:$AK$143),0) -> 0 | DC145: =$AK145-$DD145*$AK$143 -> 500 | DD145: =IFERROR(SLOPE($E145:$AK145,$E$142:$AK$142),0) -> 0 | DE145: =IFERROR(RSQ($E145:$AK145,$E$142:$AK$142),0) -> 0 | DF145: =IFERROR(LN($AK145)-$DG145*$AK$143,0) -> 6.214608098 | DG145: =IFERROR(SLOPE(LN($E145:$AK145),$E$143:$AK$143),0) -> 0 | DH145: =IFERROR(RSQ(LN($E145:$AK145),$E$143:$AK$143),0) -> 0
B146: 2 | C146: Ancash | D146: [Abonados] | E146: 500 | F146: 500 | G146: 500 | H146: 500 | I146: 500 | J146: 500 | K146: 500 | L146: 500 | M146: 500 | N146: 500 | O146: 500 | P146: 500 | Q146: 500 | R146: 500 | S146: 500 | T146: 500 | U146: 500 | V146: 500 | W146: 500 | X146: 500 | Y146: 500 | Z146: 500 | AA146: 500 | AB146: 500 | AC146: 500 | AD146: 500 | AE146: 500 | AF146: 500 | AG146: 500 | AH146: 500 | AI146: 500 | AJ146: 500 | AK146: 500 | AL146: 500 | AM146: 500 | AN146: 500 | AO146: 500 | AP146: 500 | AQ146: 500 | AR146: 500 | AS146: 500 | AT146: 500 | AU146: 500 | AV146: 500 | AW146: 500 | AX146: 500 | AY146: 500 | AZ146: 500 | BA146: 500 | BB146: 500 | BC146: 500 | BD146: 500 | BE146: 500 | BF146: 500 | BG146: 500 | BH146: 500 | BI146: 500 | BJ146: 500 | BK146: 500 | BL146: 500 | BM146: 500 | BN146: 500 | BO146: 500 | BP146: 500 | BQ146: 500 | BR146: 500 | BS146: 500 | BT146: 500 | BU146: 500 | BV146: 500 | BW146: 500 | BX146: 500 | BY146: 500 | BZ146: 500 | CA146: 500 | CB146: 500 | CC146: 500 | CD146: 500 | CE146: 500 | CF146: 500 | CG146: 500 | CH146: 500 | CI146: 500 | CJ146: 500 | CK146: 500 | CL146: 500 | CM146: 500 | CN146: 500 | CO146: 500 | CP146: 500 | CQ146: 500 | CR146: 500 | CS146: 500 | CT146: 500 | CU146: 500 | CV146: 500 | CX146: lineal | CY146: =IF(AND($DB146>$DE146,$DB146>$DH146),"lineal",IF(AND($DE146>$DB146,$DE146>$DH146),"logaritmica",IF(AND($DH146>$DB146,$DH146>$DE146),"exponencial","-"))) -> - | CZ146: =$AK146-$DA146*$AK$143 -> 500 | DA146: =IFERROR(SLOPE($E146:$AK146,$E$143:$AK$143),0) -> 0 | DB146: =IFERROR(RSQ($E146:$AK146,$E$143:$AK$143),0) -> 0 | DC146: =$AK146-$DD146*$AK$143 -> 500 | DD146: =IFERROR(SLOPE($E146:$AK146,$E$142:$AK$142),0) -> 0 | DE146: =IFERROR(RSQ($E146:$AK146,$E$142:$AK$142),0) -> 0 | DF146: 6.214608098 | DG146: =IFERROR(SLOPE(LN($E146:$AK146),$E$143:$AK$143),0) -> 0 | DH146: =IFERROR(RSQ(LN($E146:$AK146),$E$143:$AK$143),0) -> 0
B147: 3 | C147: Apurímac | D147: [Abonados] | E147: 500 | F147: 500 | G147: 500 | H147: 500 | I147: 500 | J147: 500 | K147: 500 | L147: 500 | M147: 500 | N147: 500 | O147: 500 | P147: 500 | Q147: 500 | R147: 500 | S147: 500 | T147: 500 | U147: 500 | V147: 500 | W147: 500 | X147: 500 | Y147: 500 | Z147: 500 | AA147: 500 | AB147: 500 | AC147: 500 | AD147: 500 | AE147: 500 | AF147: 500 | AG147: 500 | AH147: 500 | AI147: 500 | AJ147: 500 | AK147: 500 | AL147: 500 | AM147: 500 | AN147: 500 | AO147: 500 | AP147: 500 | AQ147: 500 | AR147: 500 | AS147: 500 | AT147: 500 | AU147: 500 | AV147: 500 | AW147: 500 | AX147: 500 | AY147: 500 | AZ147: 500 | BA147: 500 | BB147: 500 | BC147: 500 | BD147: 500 | BE147: 500 | BF147: 500 | BG147: 500 | BH147: 500 | BI147: 500 | BJ147: 500 | BK147: 500 | BL147: 500 | BM147: 500 | BN147: 500 | BO147: 500 | BP147: 500 | BQ147: 500 | BR147: 500 | BS147: 500 | BT147: 500 | BU147: 500 | BV147: 500 | BW147: 500 | BX147: 500 | BY147: 500 | BZ147: 500 | CA147: 500 | CB147: 500 | CC147: 500 | CD147: 500 | CE147: 500 | CF147: 500 | CG147: 500 | CH147: 500 | CI147: 500 | CJ147: 500 | CK147: 500 | CL147: 500 | CM147: 500 | CN147: 500 | CO147: 500 | CP147: 500 | CQ147: 500 | CR147: 500 | CS147: 500 | CT147: 500 | CU147: 500 | CV147: 500 | CX147: lineal | CY147: - | CZ147: 500 | DA147: 0 | DB147: 0 | DC147: 500 | DD147: =IFERROR(SLOPE($E147:$AK147,$E$142:$AK$142),0) -> 0 | DE147: =IFERROR(RSQ($E147:$AK147,$E$142:$AK$142),0) -> 0 | DF147: 6.214608098 | DG147: 0 | DH147: =IFERROR(RSQ(LN($E147:$AK147),$E$143:$AK$143),0) -> 0
B148: 4 | C148: Arequipa | D148: [Abonados] | E148: 500 | F148: 500 | G148: 500 | H148: 500 | I148: 500 | J148: 500 | K148: 500 | L148: 500 | M148: 500 | N148: 500 | O148: 500 | P148: 500 | Q148: 500 | R148: 500 | S148: 500 | T148: 500 | U148: 500 | V148: 500 | W148: 500 | X148: 500 | Y148: 500 | Z148: 500 | AA148: 500 | AB148: 500 | AC148: 500 | AD148: 500 | AE148: 500 | AF148: 500 | AG148: 500 | AH148: 500 | AI148: 500 | AJ148: 500 | AK148: 500 | AL148: 500 | AM148: 500 | AN148: 500 | AO148: 500 | AP148: 500 | AQ148: 500 | AR148: 500 | AS148: 500 | AT148: 500 | AU148: 500 | AV148: 500 | AW148: 500 | AX148: 500 | AY148: 500 | AZ148: 500 | BA148: 500 | BB148: 500 | BC148: 500 | BD148: 500 | BE148: 500 | BF148: 500 | BG148: 500 | BH148: 500 | BI148: 500 | BJ148: 500 | BK148: 500 | BL148: 500 | BM148: 500 | BN148: 500 | BO148: 500 | BP148: 500 | BQ148: 500 | BR148: 500 | BS148: 500 | BT148: 500 | BU148: 500 | BV148: 500 | BW148: 500 | BX148: 500 | BY148: 500 | BZ148: 500 | CA148: 500 | CB148: 500 | CC148: 500 | CD148: 500 | CE148: 500 | CF148: 500 | CG148: 500 | CH148: 500 | CI148: 500 | CJ148: 500 | CK148: 500 | CL148: 500 | CM148: 500 | CN148: 500 | CO148: 500 | CP148: 500 | CQ148: 500 | CR148: 500 | CS148: 500 | CT148: 500 | CU148: 500 | CV148: 500 | CX148: lineal | CY148: - | CZ148: 500 | DA148: 0 | DB148: 0 | DC148: 500 | DD148: 0 | DE148: 0 | DF148: 6.214608098 | DG148: 0 | DH148: 0
B149: 5 | C149: Ayacucho | D149: [Abonados] | E149: 500 | F149: 500 | G149: 500 | H149: 500 | I149: 500 | J149: 500 | K149: 500 | L149: 500 | M149: 500 | N149: 500 | O149: 500 | P149: 500 | Q149: 500 | R149: 500 | S149: 500 | T149: 500 | U149: 500 | V149: 500 | W149: 500 | X149: 500 | Y149: 500 | Z149: 500 | AA149: 500 | AB149: 500 | AC149: 500 | AD149: 500 | AE149: 500 | AF149: 500 | AG149: 500 | AH149: 500 | AI149: 500 | AJ149: 500 | AK149: 500 | AL149: 500 | AM149: 500 | AN149: 500 | AO149: 500 | AP149: 500 | AQ149: 500 | AR149: 500 | AS149: 500 | AT149: 500 | AU149: 500 | AV149: 500 | AW149: 500 | AX149: 500 | AY149: 500 | AZ149: 500 | BA149: 500 | BB149: 500 | BC149: 500 | BD149: 500 | BE149: 500 | BF149: 500 | BG149: 500 | BH149: 500 | BI149: 500 | BJ149: 500 | BK149: 500 | BL149: 500 | BM149: 500 | BN149: 500 | BO149: 500 | BP149: 500 | BQ149: 500 | BR149: 500 | BS149: 500 | BT149: 500 | BU149: 500 | BV149: 500 | BW149: 500 | BX149: 500 | BY149: 500 | BZ149: 500 | CA149: 500 | CB149: 500 | CC149: 500 | CD149: 500 | CE149: 500 | CF149: 500 | CG149: 500 | CH149: 500 | CI149: 500 | CJ149: 500 | CK149: 500 | CL149: 500 | CM149: 500 | CN149: 500 | CO149: 500 | CP149: 500 | CQ149: 500 | CR149: 500 | CS149: 500 | CT149: 500 | CU149: 500 | CV149: 500 | CX149: lineal | CY149: - | CZ149: 500 | DA149: 0 | DB149: 0 | DC149: 500 | DD149: 0 | DE149: 0 | DF149: 6.214608098 | DG149: 0 | DH149: 0
B150: 6 | C150: Cajamarca | D150: [Abonados] | E150: 500 | F150: 500 | G150: 500 | H150: 500 | I150: 500 | J150: 500 | K150: 500 | L150: 500 | M150: 500 | N150: 500 | O150: 500 | P150: 500 | Q150: 500 | R150: 500 | S150: 500 | T150: 500 | U150: 500 | V150: 500 | W150: 500 | X150: 500 | Y150: 500 | Z150: 500 | AA150: 500 | AB150: 500 | AC150: 500 | AD150: 500 | AE150: 500 | AF150: 500 | AG150: 500 | AH150: 500 | AI150: 500 | AJ150: 500 | AK150: 500 | AL150: 500 | AM150: 500 | AN150: 500 | AO150: 500 | AP150: 500 | AQ150: 500 | AR150: 500 | AS150: 500 | AT150: 500 | AU150: 500 | AV150: 500 | AW150: 500 | AX150: 500 | AY150: 500 | AZ150: 500 | BA150: 500 | BB150: 500 | BC150: 500 | BD150: 500 | BE150: 500 | BF150: 500 | BG150: 500 | BH150: 500 | BI150: 500 | BJ150: 500 | BK150: 500 | BL150: 500 | BM150: 500 | BN150: 500 | BO150: 500 | BP150: 500 | BQ150: 500 | BR150: 500 | BS150: 500 | BT150: 500 | BU150: 500 | BV150: 500 | BW150: 500 | BX150: 500 | BY150: 500 | BZ150: 500 | CA150: 500 | CB150: 500 | CC150: 500 | CD150: 500 | CE150: 500 | CF150: 500 | CG150: 500 | CH150: 500 | CI150: 500 | CJ150: 500 | CK150: 500 | CL150: 500 | CM150: 500 | CN150: 500 | CO150: 500 | CP150: 500 | CQ150: 500 | CR150: 500 | CS150: 500 | CT150: 500 | CU150: 500 | CV150: 500 | CX150: lineal | CY150: - | CZ150: 500 | DA150: 0 | DB150: 0 | DC150: 500 | DD150: 0 | DE150: 0 | DF150: 6.214608098 | DG150: 0 | DH150: 0
B151: 7 | C151: Callao | D151: [Abonados] | E151: 500 | F151: 500 | G151: 500 | H151: 500 | I151: 500 | J151: 500 | K151: 500 | L151: 500 | M151: 500 | N151: 500 | O151: 500 | P151: 500 | Q151: 500 | R151: 500 | S151: 500 | T151: 500 | U151: 500 | V151: 500 | W151: 500 | X151: 500 | Y151: 500 | Z151: 500 | AA151: 500 | AB151: 500 | AC151: 500 | AD151: 500 | AE151: 500 | AF151: 500 | AG151: 500 | AH151: 500 | AI151: 500 | AJ151: 500 | AK151: 500 | AL151: 500 | AM151: 500 | AN151: 500 | AO151: 500 | AP151: 500 | AQ151: 500 | AR151: 500 | AS151: 500 | AT151: 500 | AU151: 500 | AV151: 500 | AW151: 500 | AX151: 500 | AY151: 500 | AZ151: 500 | BA151: 500 | BB151: 500 | BC151: 500 | BD151: 500 | BE151: 500 | BF151: 500 | BG151: 500 | BH151: 500 | BI151: 500 | BJ151: 500 | BK151: 500 | BL151: 500 | BM151: 500 | BN151: 500 | BO151: 500 | BP151: 500 | BQ151: 500 | BR151: 500 | BS151: 500 | BT151: 500 | BU151: 500 | BV151: 500 | BW151: 500 | BX151: 500 | BY151: 500 | BZ151: 500 | CA151: 500 | CB151: 500 | CC151: 500 | CD151: 500 | CE151: 500 | CF151: 500 | CG151: 500 | CH151: 500 | CI151: 500 | CJ151: 500 | CK151: 500 | CL151: 500 | CM151: 500 | CN151: 500 | CO151: 500 | CP151: 500 | CQ151: 500 | CR151: 500 | CS151: 500 | CT151: 500 | CU151: 500 | CV151: 500 | CX151: lineal | CY151: - | CZ151: 500 | DA151: 0 | DB151: 0 | DC151: 500 | DD151: 0 | DE151: 0 | DF151: 6.214608098 | DG151: 0 | DH151: 0
B152: 8 | C152: Cusco | D152: [Abonados] | E152: 500 | F152: 500 | G152: 500 | H152: 500 | I152: 500 | J152: 500 | K152: 500 | L152: 500 | M152: 500 | N152: 500 | O152: 500 | P152: 500 | Q152: 500 | R152: 500 | S152: 500 | T152: 500 | U152: 500 | V152: 500 | W152: 500 | X152: 500 | Y152: 500 | Z152: 500 | AA152: 500 | AB152: 500 | AC152: 500 | AD152: 500 | AE152: 500 | AF152: 500 | AG152: 500 | AH152: 500 | AI152: 500 | AJ152: 500 | AK152: 500 | AL152: 500 | AM152: 500 | AN152: 500 | AO152: 500 | AP152: 500 | AQ152: 500 | AR152: 500 | AS152: 500 | AT152: 500 | AU152: 500 | AV152: 500 | AW152: 500 | AX152: 500 | AY152: 500 | AZ152: 500 | BA152: 500 | BB152: 500 | BC152: 500 | BD152: 500 | BE152: 500 | BF152: 500 | BG152: 500 | BH152: 500 | BI152: 500 | BJ152: 500 | BK152: 500 | BL152: 500 | BM152: 500 | BN152: 500 | BO152: 500 | BP152: 500 | BQ152: 500 | BR152: 500 | BS152: 500 | BT152: 500 | BU152: 500 | BV152: 500 | BW152: 500 | BX152: 500 | BY152: 500 | BZ152: 500 | CA152: 500 | CB152: 500 | CC152: 500 | CD152: 500 | CE152: 500 | CF152: 500 | CG152: 500 | CH152: 500 | CI152: 500 | CJ152: 500 | CK152: 500 | CL152: 500 | CM152: 500 | CN152: 500 | CO152: 500 | CP152: 500 | CQ152: 500 | CR152: 500 | CS152: 500 | CT152: 500 | CU152: 500 | CV152: 500 | CX152: lineal | CY152: - | CZ152: 500 | DA152: 0 | DB152: 0 | DC152: 500 | DD152: 0 | DE152: 0 | DF152: 6.214608098 | DG152: 0 | DH152: 0
B153: 9 | C153: Huancavelica | D153: [Abonados] | E153: 500 | F153: 500 | G153: 500 | H153: 500 | I153: 500 | J153: 500 | K153: 500 | L153: 500 | M153: 500 | N153: 500 | O153: 500 | P153: 500 | Q153: 500 | R153: 500 | S153: 500 | T153: 500 | U153: 500 | V153: 500 | W153: 500 | X153: 500 | Y153: 500 | Z153: 500 | AA153: 500 | AB153: 500 | AC153: 500 | AD153: 500 | AE153: 500 | AF153: 500 | AG153: 500 | AH153: 500 | AI153: 500 | AJ153: 500 | AK153: 500 | AL153: 500 | AM153: 500 | AN153: 500 | AO153: 500 | AP153: 500 | AQ153: 500 | AR153: 500 | AS153: 500 | AT153: 500 | AU153: 500 | AV153: 500 | AW153: 500 | AX153: 500 | AY153: 500 | AZ153: 500 | BA153: 500 | BB153: 500 | BC153: 500 | BD153: 500 | BE153: 500 | BF153: 500 | BG153: 500 | BH153: 500 | BI153: 500 | BJ153: 500 | BK153: 500 | BL153: 500 | BM153: 500 | BN153: 500 | BO153: 500 | BP153: 500 | BQ153: 500 | BR153: 500 | BS153: 500 | BT153: 500 | BU153: 500 | BV153: 500 | BW153: 500 | BX153: 500 | BY153: 500 | BZ153: 500 | CA153: 500 | CB153: 500 | CC153: 500 | CD153: 500 | CE153: 500 | CF153: 500 | CG153: 500 | CH153: 500 | CI153: 500 | CJ153: 500 | CK153: 500 | CL153: 500 | CM153: 500 | CN153: 500 | CO153: 500 | CP153: 500 | CQ153: 500 | CR153: 500 | CS153: 500 | CT153: 500 | CU153: 500 | CV153: 500 | CX153: lineal | CY153: - | CZ153: 500 | DA153: 0 | DB153: 0 | DC153: 500 | DD153: 0 | DE153: 0 | DF153: 6.214608098 | DG153: 0 | DH153: 0
B154: 10 | C154: Huánuco | D154: [Abonados] | E154: 500 | F154: 500 | G154: 500 | H154: 500 | I154: 500 | J154: 500 | K154: 500 | L154: 500 | M154: 500 | N154: 500 | O154: 500 | P154: 500 | Q154: 500 | R154: 500 | S154: 500 | T154: 500 | U154: 500 | V154: 500 | W154: 500 | X154: 500 | Y154: 500 | Z154: 500 | AA154: 500 | AB154: 500 | AC154: 500 | AD154: 500 | AE154: 500 | AF154: 500 | AG154: 500 | AH154: 500 | AI154: 500 | AJ154: 500 | AK154: 500 | AL154: 500 | AM154: 500 | AN154: 500 | AO154: 500 | AP154: 500 | AQ154: 500 | AR154: 500 | AS154: 500 | AT154: 500 | AU154: 500 | AV154: 500 | AW154: 500 | AX154: 500 | AY154: 500 | AZ154: 500 | BA154: 500 | BB154: 500 | BC154: 500 | BD154: 500 | BE154: 500 | BF154: 500 | BG154: 500 | BH154: 500 | BI154: 500 | BJ154: 500 | BK154: 500 | BL154: 500 | BM154: 500 | BN154: 500 | BO154: 500 | BP154: 500 | BQ154: 500 | BR154: 500 | BS154: 500 | BT154: 500 | BU154: 500 | BV154: 500 | BW154: 500 | BX154: 500 | BY154: 500 | BZ154: 500 | CA154: 500 | CB154: 500 | CC154: 500 | CD154: 500 | CE154: 500 | CF154: 500 | CG154: 500 | CH154: 500 | CI154: 500 | CJ154: 500 | CK154: 500 | CL154: 500 | CM154: 500 | CN154: 500 | CO154: 500 | CP154: 500 | CQ154: 500 | CR154: 500 | CS154: 500 | CT154: 500 | CU154: 500 | CV154: 500 | CX154: lineal | CY154: - | CZ154: 500 | DA154: 0 | DB154: 0 | DC154: 500 | DD154: 0 | DE154: 0 | DF154: 6.214608098 | DG154: 0 | DH154: 0
B155: 11 | C155: Ica | D155: [Abonados] | E155: 500 | F155: 500 | G155: 500 | H155: 500 | I155: 500 | J155: 500 | K155: 500 | L155: 500 | M155: 500 | N155: 500 | O155: 500 | P155: 500 | Q155: 500 | R155: 500 | S155: 500 | T155: 500 | U155: 500 | V155: 500 | W155: 500 | X155: 500 | Y155: 500 | Z155: 500 | AA155: 500 | AB155: 500 | AC155: 500 | AD155: 500 | AE155: 500 | AF155: 500 | AG155: 500 | AH155: 500 | AI155: 500 | AJ155: 500 | AK155: 500 | AL155: 500 | AM155: 500 | AN155: 500 | AO155: 500 | AP155: 500 | AQ155: 500 | AR155: 500 | AS155: 500 | AT155: 500 | AU155: 500 | AV155: 500 | AW155: 500 | AX155: 500 | AY155: 500 | AZ155: 500 | BA155: 500 | BB155: 500 | BC155: 500 | BD155: 500 | BE155: 500 | BF155: 500 | BG155: 500 | BH155: 500 | BI155: 500 | BJ155: 500 | BK155: 500 | BL155: 500 | BM155: 500 | BN155: 500 | BO155: 500 | BP155: 500 | BQ155: 500 | BR155: 500 | BS155: 500 | BT155: 500 | BU155: 500 | BV155: 500 | BW155: 500 | BX155: 500 | BY155: 500 | BZ155: 500 | CA155: 500 | CB155: 500 | CC155: 500 | CD155: 500 | CE155: 500 | CF155: 500 | CG155: 500 | CH155: 500 | CI155: 500 | CJ155: 500 | CK155: 500 | CL155: 500 | CM155: 500 | CN155: 500 | CO155: 500 | CP155: 500 | CQ155: 500 | CR155: 500 | CS155: 500 | CT155: 500 | CU155: 500 | CV155: 500 | CX155: lineal | CY155: - | CZ155: 500 | DA155: 0 | DB155: 0 | DC155: 500 | DD155: 0 | DE155: 0 | DF155: 6.214608098 | DG155: 0 | DH155: 0
B156: 12 | C156: Junín | D156: [Abonados] | E156: 500 | F156: 500 | G156: 500 | H156: 500 | I156: 500 | J156: 500 | K156: 500 | L156: 500 | M156: 500 | N156: 500 | O156: 500 | P156: 500 | Q156: 500 | R156: 500 | S156: 500 | T156: 500 | U156: 500 | V156: 500 | W156: 500 | X156: 500 | Y156: 500 | Z156: 500 | AA156: 500 | AB156: 500 | AC156: 500 | AD156: 500 | AE156: 500 | AF156: 500 | AG156: 500 | AH156: 500 | AI156: 500 | AJ156: 500 | AK156: 500 | AL156: 500 | AM156: 500 | AN156: 500 | AO156: 500 | AP156: 500 | AQ156: 500 | AR156: 500 | AS156: 500 | AT156: 500 | AU156: 500 | AV156: 500 | AW156: 500 | AX156: 500 | AY156: 500 | AZ156: 500 | BA156: 500 | BB156: 500 | BC156: 500 | BD156: 500 | BE156: 500 | BF156: 500 | BG156: 500 | BH156: 500 | BI156: 500 | BJ156: 500 | BK156: 500 | BL156: 500 | BM156: 500 | BN156: 500 | BO156: 500 | BP156: 500 | BQ156: 500 | BR156: 500 | BS156: 500 | BT156: 500 | BU156: 500 | BV156: 500 | BW156: 500 | BX156: 500 | BY156: 500 | BZ156: 500 | CA156: 500 | CB156: 500 | CC156: 500 | CD156: 500 | CE156: 500 | CF156: 500 | CG156: 500 | CH156: 500 | CI156: 500 | CJ156: 500 | CK156: 500 | CL156: 500 | CM156: 500 | CN156: 500 | CO156: 500 | CP156: 500 | CQ156: 500 | CR156: 500 | CS156: 500 | CT156: 500 | CU156: 500 | CV156: 500 | CX156: lineal | CY156: - | CZ156: 500 | DA156: 0 | DB156: 0 | DC156: 500 | DD156: 0 | DE156: 0 | DF156: 6.214608098 | DG156: 0 | DH156: 0
B157: 13 | C157: La Libertad | D157: [Abonados] | E157: 500 | F157: 500 | G157: 500 | H157: 500 | I157: 500 | J157: 500 | K157: 500 | L157: 500 | M157: 500 | N157: 500 | O157: 500 | P157: 500 | Q157: 500 | R157: 500 | S157: 500 | T157: 500 | U157: 500 | V157: 500 | W157: 500 | X157: 500 | Y157: 500 | Z157: 500 | AA157: 500 | AB157: 500 | AC157: 500 | AD157: 500 | AE157: 500 | AF157: 500 | AG157: 500 | AH157: 500 | AI157: 500 | AJ157: 500 | AK157: 500 | AL157: 500 | AM157: 500 | AN157: 500 | AO157: 500 | AP157: 500 | AQ157: 500 | AR157: 500 | AS157: 500 | AT157: 500 | AU157: 500 | AV157: 500 | AW157: 500 | AX157: 500 | AY157: 500 | AZ157: 500 | BA157: 500 | BB157: 500 | BC157: 500 | BD157: 500 | BE157: 500 | BF157: 500 | BG157: 500 | BH157: 500 | BI157: 500 | BJ157: 500 | BK157: 500 | BL157: 500 | BM157: 500 | BN157: 500 | BO157: 500 | BP157: 500 | BQ157: 500 | BR157: 500 | BS157: 500 | BT157: 500 | BU157: 500 | BV157: 500 | BW157: 500 | BX157: 500 | BY157: 500 | BZ157: 500 | CA157: 500 | CB157: 500 | CC157: 500 | CD157: 500 | CE157: 500 | CF157: 500 | CG157: 500 | CH157: 500 | CI157: 500 | CJ157: 500 | CK157: 500 | CL157: 500 | CM157: 500 | CN157: 500 | CO157: 500 | CP157: 500 | CQ157: 500 | CR157: 500 | CS157: 500 | CT157: 500 | CU157: 500 | CV157: 500 | CX157: lineal | CY157: - | CZ157: 500 | DA157: 0 | DB157: 0 | DC157: 500 | DD157: 0 | DE157: 0 | DF157: 6.214608098 | DG157: 0 | DH157: 0
B158: 14 | C158: Lambayeque | D158: [Abonados] | E158: 500 | F158: 500 | G158: 500 | H158: 500 | I158: 500 | J158: 500 | K158: 500 | L158: 500 | M158: 500 | N158: 500 | O158: 500 | P158: 500 | Q158: 500 | R158: 500 | S158: 500 | T158: 500 | U158: 500 | V158: 500 | W158: 500 | X158: 500 | Y158: 500 | Z158: 500 | AA158: 500 | AB158: 500 | AC158: 500 | AD158: 500 | AE158: 500 | AF158: 500 | AG158: 500 | AH158: 500 | AI158: 500 | AJ158: 500 | AK158: 500 | AL158: 500 | AM158: 500 | AN158: 500 | AO158: 500 | AP158: 500 | AQ158: 500 | AR158: 500 | AS158: 500 | AT158: 500 | AU158: 500 | AV158: 500 | AW158: 500 | AX158: 500 | AY158: 500 | AZ158: 500 | BA158: 500 | BB158: 500 | BC158: 500 | BD158: 500 | BE158: 500 | BF158: 500 | BG158: 500 | BH158: 500 | BI158: 500 | BJ158: 500 | BK158: 500 | BL158: 500 | BM158: 500 | BN158: 500 | BO158: 500 | BP158: 500 | BQ158: 500 | BR158: 500 | BS158: 500 | BT158: 500 | BU158: 500 | BV158: 500 | BW158: 500 | BX158: 500 | BY158: 500 | BZ158: 500 | CA158: 500 | CB158: 500 | CC158: 500 | CD158: 500 | CE158: 500 | CF158: 500 | CG158: 500 | CH158: 500 | CI158: 500 | CJ158: 500 | CK158: 500 | CL158: 500 | CM158: 500 | CN158: 500 | CO158: 500 | CP158: 500 | CQ158: 500 | CR158: 500 | CS158: 500 | CT158: 500 | CU158: 500 | CV158: 500 | CX158: lineal | CY158: - | CZ158: 500 | DA158: 0 | DB158: 0 | DC158: 500 | DD158: 0 | DE158: 0 | DF158: 6.214608098 | DG158: 0 | DH158: 0
B159: 15 | C159: Lima | D159: [Abonados] | E159: 500 | F159: 500 | G159: 500 | H159: 500 | I159: 500 | J159: 500 | K159: 500 | L159: 500 | M159: 500 | N159: 500 | O159: 500 | P159: 500 | Q159: 500 | R159: 500 | S159: 500 | T159: 500 | U159: 500 | V159: 500 | W159: 500 | X159: 500 | Y159: 500 | Z159: 500 | AA159: 500 | AB159: 500 | AC159: 500 | AD159: 500 | AE159: 500 | AF159: 500 | AG159: 500 | AH159: 500 | AI159: 500 | AJ159: 500 | AK159: 500 | AL159: 500 | AM159: 500 | AN159: 500 | AO159: 500 | AP159: 500 | AQ159: 500 | AR159: 500 | AS159: 500 | AT159: 500 | AU159: 500 | AV159: 500 | AW159: 500 | AX159: 500 | AY159: 500 | AZ159: 500 | BA159: 500 | BB159: 500 | BC159: 500 | BD159: 500 | BE159: 500 | BF159: 500 | BG159: 500 | BH159: 500 | BI159: 500 | BJ159: 500 | BK159: 500 | BL159: 500 | BM159: 500 | BN159: 500 | BO159: 500 | BP159: 500 | BQ159: 500 | BR159: 500 | BS159: 500 | BT159: 500 | BU159: 500 | BV159: 500 | BW159: 500 | BX159: 500 | BY159: 500 | BZ159: 500 | CA159: 500 | CB159: 500 | CC159: 500 | CD159: 500 | CE159: 500 | CF159: 500 | CG159: 500 | CH159: 500 | CI159: 500 | CJ159: 500 | CK159: 500 | CL159: 500 | CM159: 500 | CN159: 500 | CO159: 500 | CP159: 500 | CQ159: 500 | CR159: 500 | CS159: 500 | CT159: 500 | CU159: 500 | CV159: 500 | CX159: lineal | CY159: - | CZ159: 500 | DA159: 0 | DB159: 0 | DC159: 500 | DD159: 0 | DE159: 0 | DF159: 6.214608098 | DG159: 0 | DH159: 0
B160: 16 | C160: Loreto | D160: [Abonados] | E160: 500 | F160: 500 | G160: 500 | H160: 500 | I160: 500 | J160: 500 | K160: 500 | L160: 500 | M160: 500 | N160: 500 | O160: 500 | P160: 500 | Q160: 500 | R160: 500 | S160: 500 | T160: 500 | U160: 500 | V160: 500 | W160: 500 | X160: 500 | Y160: 500 | Z160: 500 | AA160: 500 | AB160: 500 | AC160: 500 | AD160: 500 | AE160: 500 | AF160: 500 | AG160: 500 | AH160: 500 | AI160: 500 | AJ160: 500 | AK160: 500 | AL160: 500 | AM160: 500 | AN160: 500 | AO160: 500 | AP160: 500 | AQ160: 500 | AR160: 500 | AS160: 500 | AT160: 500 | AU160: 500 | AV160: 500 | AW160: 500 | AX160: 500 | AY160: 500 | AZ160: 500 | BA160: 500 | BB160: 500 | BC160: 500 | BD160: 500 | BE160: 500 | BF160: 500 | BG160: 500 | BH160: 500 | BI160: 500 | BJ160: 500 | BK160: 500 | BL160: 500 | BM160: 500 | BN160: 500 | BO160: 500 | BP160: 500 | BQ160: 500 | BR160: 500 | BS160: 500 | BT160: 500 | BU160: 500 | BV160: 500 | BW160: 500 | BX160: 500 | BY160: 500 | BZ160: 500 | CA160: 500 | CB160: 500 | CC160: 500 | CD160: 500 | CE160: 500 | CF160: 500 | CG160: 500 | CH160: 500 | CI160: 500 | CJ160: 500 | CK160: 500 | CL160: 500 | CM160: 500 | CN160: 500 | CO160: 500 | CP160: 500 | CQ160: 500 | CR160: 500 | CS160: 500 | CT160: 500 | CU160: 500 | CV160: 500 | CX160: lineal | CY160: - | CZ160: 500 | DA160: 0 | DB160: 0 | DC160: 500 | DD160: 0 | DE160: 0 | DF160: 6.214608098 | DG160: 0 | DH160: 0
B161: 17 | C161: Madre de Dios | D161: [Abonados] | E161: 500 | F161: 500 | G161: 500 | H161: 500 | I161: 500 | J161: 500 | K161: 500 | L161: 500 | M161: 500 | N161: 500 | O161: 500 | P161: 500 | Q161: 500 | R161: 500 | S161: 500 | T161: 500 | U161: 500 | V161: 500 | W161: 500 | X161: 500 | Y161: 500 | Z161: 500 | AA161: 500 | AB161: 500 | AC161: 500 | AD161: 500 | AE161: 500 | AF161: 500 | AG161: 500 | AH161: 500 | AI161: 500 | AJ161: 500 | AK161: 500 | AL161: 500 | AM161: 500 | AN161: 500 | AO161: 500 | AP161: 500 | AQ161: 500 | AR161: 500 | AS161: 500 | AT161: 500 | AU161: 500 | AV161: 500 | AW161: 500 | AX161: 500 | AY161: 500 | AZ161: 500 | BA161: 500 | BB161: 500 | BC161: 500 | BD161: 500 | BE161: 500 | BF161: 500 | BG161: 500 | BH161: 500 | BI161: 500 | BJ161: 500 | BK161: 500 | BL161: 500 | BM161: 500 | BN161: 500 | BO161: 500 | BP161: 500 | BQ161: 500 | BR161: 500 | BS161: 500 | BT161: 500 | BU161: 500 | BV161: 500 | BW161: 500 | BX161: 500 | BY161: 500 | BZ161: 500 | CA161: 500 | CB161: 500 | CC161: 500 | CD161: 500 | CE161: 500 | CF161: 500 | CG161: 500 | CH161: 500 | CI161: 500 | CJ161: 500 | CK161: 500 | CL161: 500 | CM161: 500 | CN161: 500 | CO161: 500 | CP161: 500 | CQ161: 500 | CR161: 500 | CS161: 500 | CT161: 500 | CU161: 500 | CV161: 500 | CX161: lineal | CY161: - | CZ161: 500 | DA161: 0 | DB161: 0 | DC161: 500 | DD161: 0 | DE161: 0 | DF161: 6.214608098 | DG161: 0 | DH161: 0
B162: 18 | C162: Moquegua | D162: [Abonados] | E162: 500 | F162: 500 | G162: 500 | H162: 500 | I162: 500 | J162: 500 | K162: 500 | L162: 500 | M162: 500 | N162: 500 | O162: 500 | P162: 500 | Q162: 500 | R162: 500 | S162: 500 | T162: 500 | U162: 500 | V162: 500 | W162: 500 | X162: 500 | Y162: 500 | Z162: 500 | AA162: 500 | AB162: 500 | AC162: 500 | AD162: 500 | AE162: 500 | AF162: 500 | AG162: 500 | AH162: 500 | AI162: 500 | AJ162: 500 | AK162: 500 | AL162: 500 | AM162: 500 | AN162: 500 | AO162: 500 | AP162: 500 | AQ162: 500 | AR162: 500 | AS162: 500 | AT162: 500 | AU162: 500 | AV162: 500 | AW162: 500 | AX162: 500 | AY162: 500 | AZ162: 500 | BA162: 500 | BB162: 500 | BC162: 500 | BD162: 500 | BE162: 500 | BF162: 500 | BG162: 500 | BH162: 500 | BI162: 500 | BJ162: 500 | BK162: 500 | BL162: 500 | BM162: 500 | BN162: 500 | BO162: 500 | BP162: 500 | BQ162: 500 | BR162: 500 | BS162: 500 | BT162: 500 | BU162: 500 | BV162: 500 | BW162: 500 | BX162: 500 | BY162: 500 | BZ162: 500 | CA162: 500 | CB162: 500 | CC162: 500 | CD162: 500 | CE162: 500 | CF162: 500 | CG162: 500 | CH162: 500 | CI162: 500 | CJ162: 500 | CK162: 500 | CL162: 500 | CM162: 500 | CN162: 500 | CO162: 500 | CP162: 500 | CQ162: 500 | CR162: 500 | CS162: 500 | CT162: 500 | CU162: 500 | CV162: 500 | CX162: lineal | CY162: - | CZ162: 500 | DA162: 0 | DB162: 0 | DC162: 500 | DD162: 0 | DE162: 0 | DF162: 6.214608098 | DG162: 0 | DH162: 0
B163: 19 | C163: Pasco | D163: [Abonados] | E163: 500 | F163: 500 | G163: 500 | H163: 500 | I163: 500 | J163: 500 | K163: 500 | L163: 500 | M163: 500 | N163: 500 | O163: 500 | P163: 500 | Q163: 500 | R163: 500 | S163: 500 | T163: 500 | U163: 500 | V163: 500 | W163: 500 | X163: 500 | Y163: 500 | Z163: 500 | AA163: 500 | AB163: 500 | AC163: 500 | AD163: 500 | AE163: 500 | AF163: 500 | AG163: 500 | AH163: 500 | AI163: 500 | AJ163: 500 | AK163: 500 | AL163: 500 | AM163: 500 | AN163: 500 | AO163: 500 | AP163: 500 | AQ163: 500 | AR163: 500 | AS163: 500 | AT163: 500 | AU163: 500 | AV163: 500 | AW163: 500 | AX163: 500 | AY163: 500 | AZ163: 500 | BA163: 500 | BB163: 500 | BC163: 500 | BD163: 500 | BE163: 500 | BF163: 500 | BG163: 500 | BH163: 500 | BI163: 500 | BJ163: 500 | BK163: 500 | BL163: 500 | BM163: 500 | BN163: 500 | BO163: 500 | BP163: 500 | BQ163: 500 | BR163: 500 | BS163: 500 | BT163: 500 | BU163: 500 | BV163: 500 | BW163: 500 | BX163: 500 | BY163: 500 | BZ163: 500 | CA163: 500 | CB163: 500 | CC163: 500 | CD163: 500 | CE163: 500 | CF163: 500 | CG163: 500 | CH163: 500 | CI163: 500 | CJ163: 500 | CK163: 500 | CL163: 500 | CM163: 500 | CN163: 500 | CO163: 500 | CP163: 500 | CQ163: 500 | CR163: 500 | CS163: 500 | CT163: 500 | CU163: 500 | CV163: 500 | CX163: =+CY163 -> - | CY163: - | CZ163: 500 | DA163: 0 | DB163: 0 | DC163: 500 | DD163: 0 | DE163: 0 | DF163: 6.214608098 | DG163: 0 | DH163: 0
B164: 20 | C164: Piura | D164: [Abonados] | E164: 500 | F164: 500 | G164: 500 | H164: 500 | I164: 500 | J164: 500 | K164: 500 | L164: 500 | M164: 500 | N164: 500 | O164: 500 | P164: 500 | Q164: 500 | R164: 500 | S164: 500 | T164: 500 | U164: 500 | V164: 500 | W164: 500 | X164: 500 | Y164: 500 | Z164: 500 | AA164: 500 | AB164: 500 | AC164: 500 | AD164: 500 | AE164: 500 | AF164: 500 | AG164: 500 | AH164: 500 | AI164: 500 | AJ164: 500 | AK164: 500 | AL164: 500 | AM164: 500 | AN164: 500 | AO164: 500 | AP164: 500 | AQ164: 500 | AR164: 500 | AS164: 500 | AT164: 500 | AU164: 500 | AV164: 500 | AW164: 500 | AX164: 500 | AY164: 500 | AZ164: 500 | BA164: 500 | BB164: 500 | BC164: 500 | BD164: 500 | BE164: 500 | BF164: 500 | BG164: 500 | BH164: 500 | BI164: 500 | BJ164: 500 | BK164: 500 | BL164: 500 | BM164: 500 | BN164: 500 | BO164: 500 | BP164: 500 | BQ164: 500 | BR164: 500 | BS164: 500 | BT164: 500 | BU164: 500 | BV164: 500 | BW164: 500 | BX164: 500 | BY164: 500 | BZ164: 500 | CA164: 500 | CB164: 500 | CC164: 500 | CD164: 500 | CE164: 500 | CF164: 500 | CG164: 500 | CH164: 500 | CI164: 500 | CJ164: 500 | CK164: 500 | CL164: 500 | CM164: 500 | CN164: 500 | CO164: 500 | CP164: 500 | CQ164: 500 | CR164: 500 | CS164: 500 | CT164: 500 | CU164: 500 | CV164: 500 | CX164: lineal | CY164: - | CZ164: 500 | DA164: 0 | DB164: 0 | DC164: 500 | DD164: 0 | DE164: 0 | DF164: 6.214608098 | DG164: 0 | DH164: 0
B165: 21 | C165: Puno | D165: [Abonados] | E165: 500 | F165: 500 | G165: 500 | H165: 500 | I165: 500 | J165: 500 | K165: 500 | L165: 500 | M165: 500 | N165: 500 | O165: 500 | P165: 500 | Q165: 500 | R165: 500 | S165: 500 | T165: 500 | U165: 500 | V165: 500 | W165: 500 | X165: 500 | Y165: 500 | Z165: 500 | AA165: 500 | AB165: 500 | AC165: 500 | AD165: 500 | AE165: 500 | AF165: 500 | AG165: 500 | AH165: 500 | AI165: 500 | AJ165: 500 | AK165: 500 | AL165: 500 | AM165: 500 | AN165: 500 | AO165: 500 | AP165: 500 | AQ165: 500 | AR165: 500 | AS165: 500 | AT165: 500 | AU165: 500 | AV165: 500 | AW165: 500 | AX165: 500 | AY165: 500 | AZ165: 500 | BA165: 500 | BB165: 500 | BC165: 500 | BD165: 500 | BE165: 500 | BF165: 500 | BG165: 500 | BH165: 500 | BI165: 500 | BJ165: 500 | BK165: 500 | BL165: 500 | BM165: 500 | BN165: 500 | BO165: 500 | BP165: 500 | BQ165: 500 | BR165: 500 | BS165: 500 | BT165: 500 | BU165: 500 | BV165: 500 | BW165: 500 | BX165: 500 | BY165: 500 | BZ165: 500 | CA165: 500 | CB165: 500 | CC165: 500 | CD165: 500 | CE165: 500 | CF165: 500 | CG165: 500 | CH165: 500 | CI165: 500 | CJ165: 500 | CK165: 500 | CL165: 500 | CM165: 500 | CN165: 500 | CO165: 500 | CP165: 500 | CQ165: 500 | CR165: 500 | CS165: 500 | CT165: 500 | CU165: 500 | CV165: 500 | CX165: lineal | CY165: - | CZ165: 500 | DA165: 0 | DB165: 0 | DC165: 500 | DD165: 0 | DE165: 0 | DF165: 6.214608098 | DG165: 0 | DH165: 0
B166: 22 | C166: San Martín | D166: [Abonados] | E166: 500 | F166: 500 | G166: 500 | H166: 500 | I166: 500 | J166: 500 | K166: 500 | L166: 500 | M166: 500 | N166: 500 | O166: 500 | P166: 500 | Q166: 500 | R166: 500 | S166: 500 | T166: 500 | U166: 500 | V166: 500 | W166: 500 | X166: 500 | Y166: 500 | Z166: 500 | AA166: 500 | AB166: 500 | AC166: 500 | AD166: 500 | AE166: 500 | AF166: 500 | AG166: 500 | AH166: 500 | AI166: 500 | AJ166: 500 | AK166: 500 | AL166: 500 | AM166: 500 | AN166: 500 | AO166: 500 | AP166: 500 | AQ166: 500 | AR166: 500 | AS166: 500 | AT166: 500 | AU166: 500 | AV166: 500 | AW166: 500 | AX166: 500 | AY166: 500 | AZ166: 500 | BA166: 500 | BB166: 500 | BC166: 500 | BD166: 500 | BE166: 500 | BF166: 500 | BG166: 500 | BH166: 500 | BI166: 500 | BJ166: 500 | BK166: 500 | BL166: 500 | BM166: 500 | BN166: 500 | BO166: 500 | BP166: 500 | BQ166: 500 | BR166: 500 | BS166: 500 | BT166: 500 | BU166: 500 | BV166: 500 | BW166: 500 | BX166: 500 | BY166: 500 | BZ166: 500 | CA166: 500 | CB166: 500 | CC166: 500 | CD166: 500 | CE166: 500 | CF166: 500 | CG166: 500 | CH166: 500 | CI166: 500 | CJ166: 500 | CK166: 500 | CL166: 500 | CM166: 500 | CN166: 500 | CO166: 500 | CP166: 500 | CQ166: 500 | CR166: 500 | CS166: 500 | CT166: 500 | CU166: 500 | CV166: 500 | CX166: lineal | CY166: - | CZ166: 500 | DA166: 0 | DB166: 0 | DC166: 500 | DD166: 0 | DE166: 0 | DF166: 6.214608098 | DG166: 0 | DH166: 0
B167: 23 | C167: Tacna | D167: [Abonados] | E167: 500 | F167: 500 | G167: 500 | H167: 500 | I167: 500 | J167: 500 | K167: 500 | L167: 500 | M167: 500 | N167: 500 | O167: 500 | P167: 500 | Q167: 500 | R167: 500 | S167: 500 | T167: 500 | U167: 500 | V167: 500 | W167: 500 | X167: 500 | Y167: 500 | Z167: 500 | AA167: 500 | AB167: 500 | AC167: 500 | AD167: 500 | AE167: 500 | AF167: 500 | AG167: 500 | AH167: 500 | AI167: 500 | AJ167: 500 | AK167: 500 | AL167: 500 | AM167: 500 | AN167: 500 | AO167: 500 | AP167: 500 | AQ167: 500 | AR167: 500 | AS167: 500 | AT167: 500 | AU167: 500 | AV167: 500 | AW167: 500 | AX167: 500 | AY167: 500 | AZ167: 500 | BA167: 500 | BB167: 500 | BC167: 500 | BD167: 500 | BE167: 500 | BF167: 500 | BG167: 500 | BH167: 500 | BI167: 500 | BJ167: 500 | BK167: 500 | BL167: 500 | BM167: 500 | BN167: 500 | BO167: 500 | BP167: 500 | BQ167: 500 | BR167: 500 | BS167: 500 | BT167: 500 | BU167: 500 | BV167: 500 | BW167: 500 | BX167: 500 | BY167: 500 | BZ167: 500 | CA167: 500 | CB167: 500 | CC167: 500 | CD167: 500 | CE167: 500 | CF167: 500 | CG167: 500 | CH167: 500 | CI167: 500 | CJ167: 500 | CK167: 500 | CL167: 500 | CM167: 500 | CN167: 500 | CO167: 500 | CP167: 500 | CQ167: 500 | CR167: 500 | CS167: 500 | CT167: 500 | CU167: 500 | CV167: 500 | CX167: lineal | CY167: - | CZ167: 500 | DA167: 0 | DB167: 0 | DC167: 500 | DD167: 0 | DE167: 0 | DF167: 6.214608098 | DG167: 0 | DH167: 0
B168: 24 | C168: Tumbes | D168: [Abonados] | E168: 500 | F168: 500 | G168: 500 | H168: 500 | I168: 500 | J168: 500 | K168: 500 | L168: 500 | M168: 500 | N168: 500 | O168: 500 | P168: 500 | Q168: 500 | R168: 500 | S168: 500 | T168: 500 | U168: 500 | V168: 500 | W168: 500 | X168: 500 | Y168: 500 | Z168: 500 | AA168: 500 | AB168: 500 | AC168: 500 | AD168: 500 | AE168: 500 | AF168: 500 | AG168: 500 | AH168: 500 | AI168: 500 | AJ168: 500 | AK168: 500 | AL168: 500 | AM168: 500 | AN168: 500 | AO168: 500 | AP168: 500 | AQ168: 500 | AR168: 500 | AS168: 500 | AT168: 500 | AU168: 500 | AV168: 500 | AW168: 500 | AX168: 500 | AY168: 500 | AZ168: 500 | BA168: 500 | BB168: 500 | BC168: 500 | BD168: 500 | BE168: 500 | BF168: 500 | BG168: 500 | BH168: 500 | BI168: 500 | BJ168: 500 | BK168: 500 | BL168: 500 | BM168: 500 | BN168: 500 | BO168: 500 | BP168: 500 | BQ168: 500 | BR168: 500 | BS168: 500 | BT168: 500 | BU168: 500 | BV168: 500 | BW168: 500 | BX168: 500 | BY168: 500 | BZ168: 500 | CA168: 500 | CB168: 500 | CC168: 500 | CD168: 500 | CE168: 500 | CF168: 500 | CG168: 500 | CH168: 500 | CI168: 500 | CJ168: 500 | CK168: 500 | CL168: 500 | CM168: 500 | CN168: 500 | CO168: 500 | CP168: 500 | CQ168: 500 | CR168: 500 | CS168: 500 | CT168: 500 | CU168: 500 | CV168: 500 | CX168: lineal | CY168: - | CZ168: 500 | DA168: 0 | DB168: 0 | DC168: 500 | DD168: 0 | DE168: 0 | DF168: 6.214608098 | DG168: 0 | DH168: 0
B169: 25 | C169: Ucayali | D169: [Abonados] | E169: 500 | F169: 500 | G169: 500 | H169: 500 | I169: 500 | J169: 500 | K169: 500 | L169: 500 | M169: 500 | N169: 500 | O169: 500 | P169: 500 | Q169: 500 | R169: 500 | S169: 500 | T169: 500 | U169: 500 | V169: 500 | W169: 500 | X169: 500 | Y169: 500 | Z169: 500 | AA169: 500 | AB169: 500 | AC169: 500 | AD169: 500 | AE169: 500 | AF169: 500 | AG169: 500 | AH169: 500 | AI169: 500 | AJ169: 500 | AK169: 500 | AL169: 500 | AM169: 500 | AN169: 500 | AO169: 500 | AP169: 500 | AQ169: 500 | AR169: 500 | AS169: 500 | AT169: 500 | AU169: 500 | AV169: 500 | AW169: 500 | AX169: 500 | AY169: 500 | AZ169: 500 | BA169: 500 | BB169: 500 | BC169: 500 | BD169: 500 | BE169: 500 | BF169: 500 | BG169: 500 | BH169: 500 | BI169: 500 | BJ169: 500 | BK169: 500 | BL169: 500 | BM169: 500 | BN169: 500 | BO169: 500 | BP169: 500 | BQ169: 500 | BR169: 500 | BS169: 500 | BT169: 500 | BU169: 500 | BV169: 500 | BW169: 500 | BX169: 500 | BY169: 500 | BZ169: 500 | CA169: 500 | CB169: 500 | CC169: 500 | CD169: 500 | CE169: 500 | CF169: 500 | CG169: 500 | CH169: 500 | CI169: 500 | CJ169: 500 | CK169: 500 | CL169: 500 | CM169: 500 | CN169: 500 | CO169: 500 | CP169: 500 | CQ169: 500 | CR169: 500 | CS169: 500 | CT169: 500 | CU169: 500 | CV169: 500 | CX169: lineal | CY169: - | CZ169: 500 | DA169: 0 | DB169: 0 | DC169: 500 | DD169: 0 | DE169: 0 | DF169: 6.214608098 | DG169: 0 | DH169: 0
B170: 26 | C170: Sin Localización | D170: [Abonados] | E170: 500 | F170: 500 | G170: 500 | H170: 500 | I170: 500 | J170: 500 | K170: 500 | L170: 500 | M170: 500 | N170: 500 | O170: 500 | P170: 500 | Q170: 500 | R170: 500 | S170: 500 | T170: 500 | U170: 500 | V170: 500 | W170: 500 | X170: 500 | Y170: 500 | Z170: 500 | AA170: 500 | AB170: 500 | AC170: 500 | AD170: 500 | AE170: 500 | AF170: 500 | AG170: 500 | AH170: 500 | AI170: 500 | AJ170: 500 | AK170: 500 | AL170: 500 | AM170: 500 | AN170: 500 | AO170: 500 | AP170: 500 | AQ170: 500 | AR170: 500 | AS170: 500 | AT170: 500 | AU170: 500 | AV170: 500 | AW170: 500 | AX170: 500 | AY170: 500 | AZ170: 500 | BA170: 500 | BB170: 500 | BC170: 500 | BD170: 500 | BE170: 500 | BF170: 500 | BG170: 500 | BH170: 500 | BI170: 500 | BJ170: 500 | BK170: 500 | BL170: 500 | BM170: 500 | BN170: 500 | BO170: 500 | BP170: 500 | BQ170: 500 | BR170: 500 | BS170: 500 | BT170: 500 | BU170: 500 | BV170: 500 | BW170: 500 | BX170: 500 | BY170: 500 | BZ170: 500 | CA170: 500 | CB170: 500 | CC170: 500 | CD170: 500 | CE170: 500 | CF170: 500 | CG170: 500 | CH170: 500 | CI170: 500 | CJ170: 500 | CK170: 500 | CL170: 500 | CM170: 500 | CN170: 500 | CO170: 500 | CP170: 500 | CQ170: 500 | CR170: 500 | CS170: 500 | CT170: 500 | CU170: 500 | CV170: 500 | CX170: lineal | CY170: - | CZ170: 500 | DA170: 0 | DB170: 0 | DC170: 500 | DD170: 0 | DE170: 0 | DF170: =IFERROR(LN($AK170)-$DG170*$AK$143,0) -> 6.214608098 | DG170: 0 | DH170: =IFERROR(RSQ(LN($E170:$AK170),$E$143:$AK$143),0) -> 0
C172: Total EOP | D172: [Abonados] | E172: =SUM(E145:E170) -> 13000 | F172: =SUM(F145:F170) -> 13000 | G172: 13000 | H172: 13000 | I172: 13000 | J172: 13000 | K172: 13000 | L172: 13000 | M172: 13000 | N172: 13000 | O172: 13000 | P172: 13000 | Q172: 13000 | R172: 13000 | S172: 13000 | T172: 13000 | U172: 13000 | V172: 13000 | W172: 13000 | X172: 13000 | Y172: 13000 | Z172: 13000 | AA172: 13000 | AB172: 13000 | AC172: 13000 | AD172: 13000 | AE172: 13000 | AF172: 13000 | AG172: 13000 | AH172: 13000 | AI172: 13000 | AJ172: 13000 | AK172: 13000 | AL172: 13000 | AM172: 13000 | AN172: 13000 | AO172: 13000 | AP172: 13000 | AQ172: 13000 | AR172: 13000 | AS172: 13000 | AT172: 13000 | AU172: 13000 | AV172: 13000 | AW172: 13000 | AX172: 13000 | AY172: 13000 | AZ172: 13000 | BA172: 13000 | BB172: 13000 | BC172: 13000 | BD172: 13000 | BE172: 13000 | BF172: 13000 | BG172: 13000 | BH172: 13000 | BI172: 13000 | BJ172: 13000 | BK172: 13000 | BL172: 13000 | BM172: 13000 | BN172: 13000 | BO172: 13000 | BP172: 13000 | BQ172: 13000 | BR172: =SUM(BR145:BR170) -> 13000 | BS172: 13000 | BT172: 13000 | BU172: 13000 | BV172: 13000 | BW172: 13000 | BX172: 13000 | BY172: 13000 | BZ172: 13000 | CA172: 13000 | CB172: 13000 | CC172: 13000 | CD172: 13000 | CE172: 13000 | CF172: 13000 | CG172: 13000 | CH172: 13000 | CI172: 13000 | CJ172: 13000 | CK172: 13000 | CL172: 13000 | CM172: 13000 | CN172: 13000 | CO172: 13000 | CP172: 13000 | CQ172: 13000 | CR172: 13000 | CS172: 13000 | CT172: 13000 | CU172: 13000 | CV172: 13000 | CW172: abo.mov.pre.eop
C173: Total AVG | D173: [Abonados] | E173: =+E172 -> 13000 | F173: =(E172+F172)/2 -> 13000 | G173: =(F172+G172)/2 -> 13000 | H173: 13000 | I173: 13000 | J173: 13000 | K173: 13000 | L173: 13000 | M173: 13000 | N173: 13000 | O173: 13000 | P173: 13000 | Q173: 13000 | R173: 13000 | S173: 13000 | T173: 13000 | U173: 13000 | V173: 13000 | W173: 13000 | X173: 13000 | Y173: 13000 | Z173: 13000 | AA173: 13000 | AB173: 13000 | AC173: 13000 | AD173: 13000 | AE173: 13000 | AF173: 13000 | AG173: 13000 | AH173: 13000 | AI173: 13000 | AJ173: 13000 | AK173: 13000 | AL173: 13000 | AM173: 13000 | AN173: =(AM172+AN172)/2 -> 13000 | AO173: =(AN172+AO172)/2 -> 13000 | AP173: 13000 | AQ173: 13000 | AR173: 13000 | AS173: 13000 | AT173: 13000 | AU173: 13000 | AV173: 13000 | AW173: 13000 | AX173: 13000 | AY173: 13000 | AZ173: 13000 | BA173: 13000 | BB173: 13000 | BC173: 13000 | BD173: 13000 | BE173: 13000 | BF173: 13000 | BG173: 13000 | BH173: 13000 | BI173: 13000 | BJ173: 13000 | BK173: 13000 | BL173: 13000 | BM173: 13000 | BN173: 13000 | BO173: 13000 | BP173: 13000 | BQ173: 13000 | BR173: 13000 | BS173: 13000 | BT173: 13000 | BU173: 13000 | BV173: 13000 | BW173: 13000 | BX173: 13000 | BY173: 13000 | BZ173: 13000 | CA173: 13000 | CB173: 13000 | CC173: 13000 | CD173: 13000 | CE173: 13000 | CF173: 13000 | CG173: 13000 | CH173: 13000 | CI173: 13000 | CJ173: 13000 | CK173: 13000 | CL173: 13000 | CM173: 13000 | CN173: 13000 | CO173: 13000 | CP173: 13000 | CQ173: 13000 | CR173: 13000 | CS173: 13000 | CT173: 13000 | CU173: 13000 | CV173: =(CU172+CV172)/2 -> 13000 | CW173: abo.mov.pre.avg
B175: Control
CZ177: Lineal | DC177: Logarítmica | DF177: Exponencial
B178: id | C178: Departamento | E178: 201401 | F178: 201402 | G178: 201403 | H178: 201404 | I178: 201405 | J178: 201406 | K178: 201407 | L178: 201408 | M178: 201409 | N178: 201410 | O178: 201411 | P178: 201412 | Q178: 201501 | R178: 201502 | S178: 201503 | T178: 201504 | U178: 201505 | V178: 201506 | W178: 201507 | X178: 201508 | Y178: 201509 | Z178: 201510 | AA178: 201511 | AB178: 201512 | AC178: 201601 | AD178: 201602 | AE178: 201603 | AF178: 201604 | AG178: 201605 | AH178: 201606 | AI178: 201607 | AJ178: 201608 | AK178: 201609 | AL178: 201610 | AM178: 201611 | AN178: 201612 | AO178: 201701 | AP178: 201702 | AQ178: 201703 | AR178: 201704 | AS178: 201705 | AT178: 201706 | AU178: 201707 | AV178: 201708 | AW178: 201709 | AX178: 201710 | AY178: 201711 | AZ178: 201712 | BA178: 201801 | BB178: 201802 | BC178: 201803 | BD178: 201804 | BE178: 201805 | BF178: 201806 | BG178: 201807 | BH178: 201808 | BI178: 201809 | BJ178: 201810 | BK178: 201811 | BL178: 201812 | BM178: 201901 | BN178: 201902 | BO178: 201903 | BP178: 201904 | BQ178: 201905 | BR178: 201906 | BS178: 201907 | BT178: 201908 | BU178: 201909 | BV178: 201910 | BW178: 201911 | BX178: 201912 | BY178: 202001 | BZ178: 202002 | CA178: 202003 | CB178: 202004 | CC178: 202005 | CD178: 202006 | CE178: 202007 | CF178: 202008 | CG178: 202009 | CH178: 202010 | CI178: 202011 | CJ178: 202012 | CK178: 202101 | CL178: 202102 | CM178: 202103 | CN178: 202104 | CO178: 202105 | CP178: 202106 | CQ178: 202107 | CR178: 202108 | CS178: 202109 | CT178: 202110 | CU178: 202111 | CV178: 202112 | CX178: Adopción | CY178: Tendencia | CZ178: Constante | DA178: Pendiente | DB178: R2 | DC178: Constante | DD178: Pendiente | DE178: R2 | DF178: Constante | DG178: Pendiente | DH178: R2
B179: 1 | C179: Amazonas | D179: [Abonados] | E179: 200 | F179: 200 | G179: 200 | H179: 200 | I179: 200 | J179: 200 | K179: 200 | L179: 200 | M179: 200 | N179: 200 | O179: 200 | P179: 200 | Q179: 200 | R179: 200 | S179: 200 | T179: 200 | U179: 200 | V179: 200 | W179: 200 | X179: 200 | Y179: 200 | Z179: 200 | AA179: 200 | AB179: 200 | AC179: 200 | AD179: 200 | AE179: 200 | AF179: 200 | AG179: 200 | AH179: 200 | AI179: 200 | AJ179: 200 | AK179: 200 | AL179: 200 | AM179: 200 | AN179: 200 | AO179: 200 | AP179: 200 | AQ179: 200 | AR179: 200 | AS179: 200 | AT179: 200 | AU179: 200 | AV179: 200 | AW179: 200 | AX179: 200 | AY179: 200 | AZ179: 200 | BA179: 200 | BB179: 200 | BC179: 200 | BD179: 200 | BE179: 200 | BF179: 200 | BG179: 200 | BH179: 200 | BI179: 200 | BJ179: 200 | BK179: 200 | BL179: 200 | BM179: 200 | BN179: 200 | BO179: 200 | BP179: 200 | BQ179: 200 | BR179: 200 | BS179: 200 | BT179: 200 | BU179: 200 | BV179: 200 | BW179: 200 | BX179: 200 | BY179: 200 | BZ179: 200 | CA179: 200 | CB179: 200 | CC179: 200 | CD179: 200 | CE179: 200 | CF179: 200 | CG179: 200 | CH179: 200 | CI179: 200 | CJ179: 200 | CK179: 200 | CL179: 200 | CM179: 200 | CN179: 200 | CO179: 200 | CP179: 200 | CQ179: 200 | CR179: 200 | CS179: 200 | CT179: 200 | CU179: 200 | CV179: 200 | CX179: lineal | CY179: =IF(AND($DB179>$DE179,$DB179>$DH179),"lineal",IF(AND($DE179>$DB179,$DE179>$DH179),"logaritmica",IF(AND($DH179>$DB179,$DH179>$DE179),"exponencial","-"))) -> - | CZ179: =$AK179-$DA179*$AK$143 -> 200 | DA179: =IFERROR(SLOPE($E179:$AK179,$E$143:$AK$143),0) -> 0 | DB179: =IFERROR(RSQ($E179:$AK179,$E$143:$AK$143),0) -> 0 | DC179: =$AK179-$DD179*$AK$143 -> 200 | DD179: =IFERROR(SLOPE($E179:$AK179,$E$142:$AK$142),0) -> 0 | DE179: =IFERROR(RSQ($E179:$AK179,$E$142:$AK$142),0) -> 0 | DF179: =IFERROR(LN($AK179)-$DG179*$AK$143,0) -> 5.298317367 | DG179: =IFERROR(SLOPE(LN($E179:$AK179),$E$143:$AK$143),0) -> 0 | DH179: =IFERROR(RSQ(LN($E179:$AK179),$E$143:$AK$143),0) -> 0
B180: 2 | C180: Ancash | D180: [Abonados] | E180: 200 | F180: 200 | G180: 200 | H180: 200 | I180: 200 | J180: 200 | K180: 200 | L180: 200 | M180: 200 | N180: 200 | O180: 200 | P180: 200 | Q180: 200 | R180: 200 | S180: 200 | T180: 200 | U180: 200 | V180: 200 | W180: 200 | X180: 200 | Y180: 200 | Z180: 200 | AA180: 200 | AB180: 200 | AC180: 200 | AD180: 200 | AE180: 200 | AF180: 200 | AG180: 200 | AH180: 200 | AI180: 200 | AJ180: 200 | AK180: 200 | AL180: 200 | AM180: 200 | AN180: 200 | AO180: 200 | AP180: 200 | AQ180: 200 | AR180: 200 | AS180: 200 | AT180: 200 | AU180: 200 | AV180: 200 | AW180: 200 | AX180: 200 | AY180: 200 | AZ180: 200 | BA180: 200 | BB180: 200 | BC180: 200 | BD180: 200 | BE180: 200 | BF180: 200 | BG180: 200 | BH180: 200 | BI180: 200 | BJ180: 200 | BK180: 200 | BL180: 200 | BM180: 200 | BN180: 200 | BO180: 200 | BP180: 200 | BQ180: 200 | BR180: 200 | BS180: 200 | BT180: 200 | BU180: 200 | BV180: 200 | BW180: 200 | BX180: 200 | BY180: 200 | BZ180: 200 | CA180: 200 | CB180: 200 | CC180: 200 | CD180: 200 | CE180: 200 | CF180: 200 | CG180: 200 | CH180: 200 | CI180: 200 | CJ180: 200 | CK180: 200 | CL180: 200 | CM180: 200 | CN180: 200 | CO180: 200 | CP180: 200 | CQ180: 200 | CR180: 200 | CS180: 200 | CT180: 200 | CU180: 200 | CV180: 200 | CX180: lineal | CY180: =IF(AND($DB180>$DE180,$DB180>$DH180),"lineal",IF(AND($DE180>$DB180,$DE180>$DH180),"logaritmica",IF(AND($DH180>$DB180,$DH180>$DE180),"exponencial","-"))) -> - | CZ180: =$AK180-$DA180*$AK$143 -> 200 | DA180: =IFERROR(SLOPE($E180:$AK180,$E$143:$AK$143),0) -> 0 | DB180: =IFERROR(RSQ($E180:$AK180,$E$143:$AK$143),0) -> 0 | DC180: =$AK180-$DD180*$AK$143 -> 200 | DD180: =IFERROR(SLOPE($E180:$AK180,$E$142:$AK$142),0) -> 0 | DE180: =IFERROR(RSQ($E180:$AK180,$E$142:$AK$142),0) -> 0 | DF180: 5.298317367 | DG180: =IFERROR(SLOPE(LN($E180:$AK180),$E$143:$AK$143),0) -> 0 | DH180: =IFERROR(RSQ(LN($E180:$AK180),$E$143:$AK$143),0) -> 0
B181: 3 | C181: Apurímac | D181: [Abonados] | E181: 200 | F181: 200 | G181: 200 | H181: 200 | I181: 200 | J181: 200 | K181: 200 | L181: 200 | M181: 200 | N181: 200 | O181: 200 | P181: 200 | Q181: 200 | R181: 200 | S181: 200 | T181: 200 | U181: 200 | V181: 200 | W181: 200 | X181: 200 | Y181: 200 | Z181: 200 | AA181: 200 | AB181: 200 | AC181: 200 | AD181: 200 | AE181: 200 | AF181: 200 | AG181: 200 | AH181: 200 | AI181: 200 | AJ181: 200 | AK181: 200 | AL181: 200 | AM181: 200 | AN181: 200 | AO181: 200 | AP181: 200 | AQ181: 200 | AR181: 200 | AS181: 200 | AT181: 200 | AU181: 200 | AV181: 200 | AW181: 200 | AX181: 200 | AY181: 200 | AZ181: 200 | BA181: 200 | BB181: 200 | BC181: 200 | BD181: 200 | BE181: 200 | BF181: 200 | BG181: 200 | BH181: 200 | BI181: 200 | BJ181: 200 | BK181: 200 | BL181: 200 | BM181: 200 | BN181: 200 | BO181: 200 | BP181: 200 | BQ181: 200 | BR181: 200 | BS181: 200 | BT181: 200 | BU181: 200 | BV181: 200 | BW181: 200 | BX181: 200 | BY181: 200 | BZ181: 200 | CA181: 200 | CB181: 200 | CC181: 200 | CD181: 200 | CE181: 200 | CF181: 200 | CG181: 200 | CH181: 200 | CI181: 200 | CJ181: 200 | CK181: 200 | CL181: 200 | CM181: 200 | CN181: 200 | CO181: 200 | CP181: 200 | CQ181: 200 | CR181: 200 | CS181: 200 | CT181: 200 | CU181: 200 | CV181: 200 | CX181: lineal | CY181: - | CZ181: 200 | DA181: 0 | DB181: 0 | DC181: 200 | DD181: =IFERROR(SLOPE($E181:$AK181,$E$142:$AK$142),0) -> 0 | DE181: =IFERROR(RSQ($E181:$AK181,$E$142:$AK$142),0) -> 0 | DF181: 5.298317367 | DG181: 0 | DH181: =IFERROR(RSQ(LN($E181:$AK181),$E$143:$AK$143),0) -> 0
B182: 4 | C182: Arequipa | D182: [Abonados] | E182: 200 | F182: 200 | G182: 200 | H182: 200 | I182: 200 | J182: 200 | K182: 200 | L182: 200 | M182: 200 | N182: 200 | O182: 200 | P182: 200 | Q182: 200 | R182: 200 | S182: 200 | T182: 200 | U182: 200 | V182: 200 | W182: 200 | X182: 200 | Y182: 200 | Z182: 200 | AA182: 200 | AB182: 200 | AC182: 200 | AD182: 200 | AE182: 200 | AF182: 200 | AG182: 200 | AH182: 200 | AI182: 200 | AJ182: 200 | AK182: 200 | AL182: 200 | AM182: 200 | AN182: 200 | AO182: 200 | AP182: 200 | AQ182: 200 | AR182: 200 | AS182: 200 | AT182: 200 | AU182: 200 | AV182: 200 | AW182: 200 | AX182: 200 | AY182: 200 | AZ182: 200 | BA182: 200 | BB182: 200 | BC182: 200 | BD182: 200 | BE182: 200 | BF182: 200 | BG182: 200 | BH182: 200 | BI182: 200 | BJ182: 200 | BK182: 200 | BL182: 200 | BM182: 200 | BN182: 200 | BO182: 200 | BP182: 200 | BQ182: 200 | BR182: 200 | BS182: 200 | BT182: 200 | BU182: 200 | BV182: 200 | BW182: 200 | BX182: 200 | BY182: 200 | BZ182: 200 | CA182: 200 | CB182: 200 | CC182: 200 | CD182: 200 | CE182: 200 | CF182: 200 | CG182: 200 | CH182: 200 | CI182: 200 | CJ182: 200 | CK182: 200 | CL182: 200 | CM182: 200 | CN182: 200 | CO182: 200 | CP182: 200 | CQ182: 200 | CR182: 200 | CS182: 200 | CT182: 200 | CU182: 200 | CV182: 200 | CX182: lineal | CY182: - | CZ182: 200 | DA182: 0 | DB182: 0 | DC182: 200 | DD182: 0 | DE182: 0 | DF182: 5.298317367 | DG182: 0 | DH182: 0
B183: 5 | C183: Ayacucho | D183: [Abonados] | E183: 200 | F183: 200 | G183: 200 | H183: 200 | I183: 200 | J183: 200 | K183: 200 | L183: 200 | M183: 200 | N183: 200 | O183: 200 | P183: 200 | Q183: 200 | R183: 200 | S183: 200 | T183: 200 | U183: 200 | V183: 200 | W183: 200 | X183: 200 | Y183: 200 | Z183: 200 | AA183: 200 | AB183: 200 | AC183: 200 | AD183: 200 | AE183: 200 | AF183: 200 | AG183: 200 | AH183: 200 | AI183: 200 | AJ183: 200 | AK183: 200 | AL183: 200 | AM183: 200 | AN183: 200 | AO183: 200 | AP183: 200 | AQ183: 200 | AR183: 200 | AS183: 200 | AT183: 200 | AU183: 200 | AV183: 200 | AW183: 200 | AX183: 200 | AY183: 200 | AZ183: 200 | BA183: 200 | BB183: 200 | BC183: 200 | BD183: 200 | BE183: 200 | BF183: 200 | BG183: 200 | BH183: 200 | BI183: 200 | BJ183: 200 | BK183: 200 | BL183: 200 | BM183: 200 | BN183: 200 | BO183: 200 | BP183: 200 | BQ183: 200 | BR183: 200 | BS183: 200 | BT183: 200 | BU183: 200 | BV183: 200 | BW183: 200 | BX183: 200 | BY183: 200 | BZ183: 200 | CA183: 200 | CB183: 200 | CC183: 200 | CD183: 200 | CE183: 200 | CF183: 200 | CG183: 200 | CH183: 200 | CI183: 200 | CJ183: 200 | CK183: 200 | CL183: 200 | CM183: 200 | CN183: 200 | CO183: 200 | CP183: 200 | CQ183: 200 | CR183: 200 | CS183: 200 | CT183: 200 | CU183: 200 | CV183: 200 | CX183: lineal | CY183: - | CZ183: 200 | DA183: 0 | DB183: 0 | DC183: 200 | DD183: 0 | DE183: 0 | DF183: 5.298317367 | DG183: 0 | DH183: 0
B184: 6 | C184: Cajamarca | D184: [Abonados] | E184: 200 | F184: 200 | G184: 200 | H184: 200 | I184: 200 | J184: 200 | K184: 200 | L184: 200 | M184: 200 | N184: 200 | O184: 200 | P184: 200 | Q184: 200 | R184: 200 | S184: 200 | T184: 200 | U184: 200 | V184: 200 | W184: 200 | X184: 200 | Y184: 200 | Z184: 200 | AA184: 200 | AB184: 200 | AC184: 200 | AD184: 200 | AE184: 200 | AF184: 200 | AG184: 200 | AH184: 200 | AI184: 200 | AJ184: 200 | AK184: 200 | AL184: 200 | AM184: 200 | AN184: 200 | AO184: 200 | AP184: 200 | AQ184: 200 | AR184: 200 | AS184: 200 | AT184: 200 | AU184: 200 | AV184: 200 | AW184: 200 | AX184: 200 | AY184: 200 | AZ184: 200 | BA184: 200 | BB184: 200 | BC184: 200 | BD184: 200 | BE184: 200 | BF184: 200 | BG184: 200 | BH184: 200 | BI184: 200 | BJ184: 200 | BK184: 200 | BL184: 200 | BM184: 200 | BN184: 200 | BO184: 200 | BP184: 200 | BQ184: 200 | BR184: 200 | BS184: 200 | BT184: 200 | BU184: 200 | BV184: 200 | BW184: 200 | BX184: 200 | BY184: 200 | BZ184: 200 | CA184: 200 | CB184: 200 | CC184: 200 | CD184: 200 | CE184: 200 | CF184: 200 | CG184: 200 | CH184: 200 | CI184: 200 | CJ184: 200 | CK184: 200 | CL184: 200 | CM184: 200 | CN184: 200 | CO184: 200 | CP184: 200 | CQ184: 200 | CR184: 200 | CS184: 200 | CT184: 200 | CU184: 200 | CV184: 200 | CX184: lineal | CY184: - | CZ184: 200 | DA184: 0 | DB184: 0 | DC184: 200 | DD184: 0 | DE184: 0 | DF184: 5.298317367 | DG184: 0 | DH184: 0
B185: 7 | C185: Callao | D185: [Abonados] | E185: 200 | F185: 200 | G185: 200 | H185: 200 | I185: 200 | J185: 200 | K185: 200 | L185: 200 | M185: 200 | N185: 200 | O185: 200 | P185: 200 | Q185: 200 | R185: 200 | S185: 200 | T185: 200 | U185: 200 | V185: 200 | W185: 200 | X185: 200 | Y185: 200 | Z185: 200 | AA185: 200 | AB185: 200 | AC185: 200 | AD185: 200 | AE185: 200 | AF185: 200 | AG185: 200 | AH185: 200 | AI185: 200 | AJ185: 200 | AK185: 200 | AL185: 200 | AM185: 200 | AN185: 200 | AO185: 200 | AP185: 200 | AQ185: 200 | AR185: 200 | AS185: 200 | AT185: 200 | AU185: 200 | AV185: 200 | AW185: 200 | AX185: 200 | AY185: 200 | AZ185: 200 | BA185: 200 | BB185: 200 | BC185: 200 | BD185: 200 | BE185: 200 | BF185: 200 | BG185: 200 | BH185: 200 | BI185: 200 | BJ185: 200 | BK185: 200 | BL185: 200 | BM185: 200 | BN185: 200 | BO185: 200 | BP185: 200 | BQ185: 200 | BR185: 200 | BS185: 200 | BT185: 200 | BU185: 200 | BV185: 200 | BW185: 200 | BX185: 200 | BY185: 200 | BZ185: 200 | CA185: 200 | CB185: 200 | CC185: 200 | CD185: 200 | CE185: 200 | CF185: 200 | CG185: 200 | CH185: 200 | CI185: 200 | CJ185: 200 | CK185: 200 | CL185: 200 | CM185: 200 | CN185: 200 | CO185: 200 | CP185: 200 | CQ185: 200 | CR185: 200 | CS185: 200 | CT185: 200 | CU185: 200 | CV185: 200 | CX185: lineal | CY185: - | CZ185: 200 | DA185: 0 | DB185: 0 | DC185: 200 | DD185: 0 | DE185: 0 | DF185: 5.298317367 | DG185: 0 | DH185: 0
B186: 8 | C186: Cusco | D186: [Abonados] | E186: 200 | F186: 200 | G186: 200 | H186: 200 | I186: 200 | J186: 200 | K186: 200 | L186: 200 | M186: 200 | N186: 200 | O186: 200 | P186: 200 | Q186: 200 | R186: 200 | S186: 200 | T186: 200 | U186: 200 | V186: 200 | W186: 200 | X186: 200 | Y186: 200 | Z186: 200 | AA186: 200 | AB186: 200 | AC186: 200 | AD186: 200 | AE186: 200 | AF186: 200 | AG186: 200 | AH186: 200 | AI186: 200 | AJ186: 200 | AK186: 200 | AL186: 200 | AM186: 200 | AN186: 200 | AO186: 200 | AP186: 200 | AQ186: 200 | AR186: 200 | AS186: 200 | AT186: 200 | AU186: 200 | AV186: 200 | AW186: 200 | AX186: 200 | AY186: 200 | AZ186: 200 | BA186: 200 | BB186: 200 | BC186: 200 | BD186: 200 | BE186: 200 | BF186: 200 | BG186: 200 | BH186: 200 | BI186: 200 | BJ186: 200 | BK186: 200 | BL186: 200 | BM186: 200 | BN186: 200 | BO186: 200 | BP186: 200 | BQ186: 200 | BR186: 200 | BS186: 200 | BT186: 200 | BU186: 200 | BV186: 200 | BW186: 200 | BX186: 200 | BY186: 200 | BZ186: 200 | CA186: 200 | CB186: 200 | CC186: 200 | CD186: 200 | CE186: 200 | CF186: 200 | CG186: 200 | CH186: 200 | CI186: 200 | CJ186: 200 | CK186: 200 | CL186: 200 | CM186: 200 | CN186: 200 | CO186: 200 | CP186: 200 | CQ186: 200 | CR186: 200 | CS186: 200 | CT186: 200 | CU186: 200 | CV186: 200 | CX186: lineal | CY186: - | CZ186: 200 | DA186: 0 | DB186: 0 | DC186: 200 | DD186: 0 | DE186: 0 | DF186: 5.298317367 | DG186: 0 | DH186: 0
B187: 9 | C187: Huancavelica | D187: [Abonados] | E187: 200 | F187: 200 | G187: 200 | H187: 200 | I187: 200 | J187: 200 | K187: 200 | L187: 200 | M187: 200 | N187: 200 | O187: 200 | P187: 200 | Q187: 200 | R187: 200 | S187: 200 | T187: 200 | U187: 200 | V187: 200 | W187: 200 | X187: 200 | Y187: 200 | Z187: 200 | AA187: 200 | AB187: 200 | AC187: 200 | AD187: 200 | AE187: 200 | AF187: 200 | AG187: 200 | AH187: 200 | AI187: 200 | AJ187: 200 | AK187: 200 | AL187: 200 | AM187: 200 | AN187: 200 | AO187: 200 | AP187: 200 | AQ187: 200 | AR187: 200 | AS187: 200 | AT187: 200 | AU187: 200 | AV187: 200 | AW187: 200 | AX187: 200 | AY187: 200 | AZ187: 200 | BA187: 200 | BB187: 200 | BC187: 200 | BD187: 200 | BE187: 200 | BF187: 200 | BG187: 200 | BH187: 200 | BI187: 200 | BJ187: 200 | BK187: 200 | BL187: 200 | BM187: 200 | BN187: 200 | BO187: 200 | BP187: 200 | BQ187: 200 | BR187: 200 | BS187: 200 | BT187: 200 | BU187: 200 | BV187: 200 | BW187: 200 | BX187: 200 | BY187: 200 | BZ187: 200 | CA187: 200 | CB187: 200 | CC187: 200 | CD187: 200 | CE187: 200 | CF187: 200 | CG187: 200 | CH187: 200 | CI187: 200 | CJ187: 200 | CK187: 200 | CL187: 200 | CM187: 200 | CN187: 200 | CO187: 200 | CP187: 200 | CQ187: 200 | CR187: 200 | CS187: 200 | CT187: 200 | CU187: 200 | CV187: 200 | CX187: lineal | CY187: - | CZ187: 200 | DA187: 0 | DB187: 0 | DC187: 200 | DD187: 0 | DE187: 0 | DF187: 5.298317367 | DG187: 0 | DH187: 0
B188: 10 | C188: Huánuco | D188: [Abonados] | E188: 200 | F188: 200 | G188: 200 | H188: 200 | I188: 200 | J188: 200 | K188: 200 | L188: 200 | M188: 200 | N188: 200 | O188: 200 | P188: 200 | Q188: 200 | R188: 200 | S188: 200 | T188: 200 | U188: 200 | V188: 200 | W188: 200 | X188: 200 | Y188: 200 | Z188: 200 | AA188: 200 | AB188: 200 | AC188: 200 | AD188: 200 | AE188: 200 | AF188: 200 | AG188: 200 | AH188: 200 | AI188: 200 | AJ188: 200 | AK188: 200 | AL188: 200 | AM188: 200 | AN188: 200 | AO188: 200 | AP188: 200 | AQ188: 200 | AR188: 200 | AS188: 200 | AT188: 200 | AU188: 200 | AV188: 200 | AW188: 200 | AX188: 200 | AY188: 200 | AZ188: 200 | BA188: 200 | BB188: 200 | BC188: 200 | BD188: 200 | BE188: 200 | BF188: 200 | BG188: 200 | BH188: 200 | BI188: 200 | BJ188: 200 | BK188: 200 | BL188: 200 | BM188: 200 | BN188: 200 | BO188: 200 | BP188: 200 | BQ188: 200 | BR188: 200 | BS188: 200 | BT188: 200 | BU188: 200 | BV188: 200 | BW188: 200 | BX188: 200 | BY188: 200 | BZ188: 200 | CA188: 200 | CB188: 200 | CC188: 200 | CD188: 200 | CE188: 200 | CF188: 200 | CG188: 200 | CH188: 200 | CI188: 200 | CJ188: 200 | CK188: 200 | CL188: 200 | CM188: 200 | CN188: 200 | CO188: 200 | CP188: 200 | CQ188: 200 | CR188: 200 | CS188: 200 | CT188: 200 | CU188: 200 | CV188: 200 | CX188: lineal | CY188: - | CZ188: 200 | DA188: 0 | DB188: 0 | DC188: 200 | DD188: 0 | DE188: 0 | DF188: 5.298317367 | DG188: 0 | DH188: 0
B189: 11 | C189: Ica | D189: [Abonados] | E189: 200 | F189: 200 | G189: 200 | H189: 200 | I189: 200 | J189: 200 | K189: 200 | L189: 200 | M189: 200 | N189: 200 | O189: 200 | P189: 200 | Q189: 200 | R189: 200 | S189: 200 | T189: 200 | U189: 200 | V189: 200 | W189: 200 | X189: 200 | Y189: 200 | Z189: 200 | AA189: 200 | AB189: 200 | AC189: 200 | AD189: 200 | AE189: 200 | AF189: 200 | AG189: 200 | AH189: 200 | AI189: 200 | AJ189: 200 | AK189: 200 | AL189: 200 | AM189: 200 | AN189: 200 | AO189: 200 | AP189: 200 | AQ189: 200 | AR189: 200 | AS189: 200 | AT189: 200 | AU189: 200 | AV189: 200 | AW189: 200 | AX189: 200 | AY189: 200 | AZ189: 200 | BA189: 200 | BB189: 200 | BC189: 200 | BD189: 200 | BE189: 200 | BF189: 200 | BG189: 200 | BH189: 200 | BI189: 200 | BJ189: 200 | BK189: 200 | BL189: 200 | BM189: 200 | BN189: 200 | BO189: 200 | BP189: 200 | BQ189: 200 | BR189: 200 | BS189: 200 | BT189: 200 | BU189: 200 | BV189: 200 | BW189: 200 | BX189: 200 | BY189: 200 | BZ189: 200 | CA189: 200 | CB189: 200 | CC189: 200 | CD189: 200 | CE189: 200 | CF189: 200 | CG189: 200 | CH189: 200 | CI189: 200 | CJ189: 200 | CK189: 200 | CL189: 200 | CM189: 200 | CN189: 200 | CO189: 200 | CP189: 200 | CQ189: 200 | CR189: 200 | CS189: 200 | CT189: 200 | CU189: 200 | CV189: 200 | CX189: lineal | CY189: - | CZ189: 200 | DA189: 0 | DB189: 0 | DC189: 200 | DD189: 0 | DE189: 0 | DF189: 5.298317367 | DG189: 0 | DH189: 0
B190: 12 | C190: Junín | D190: [Abonados] | E190: 200 | F190: 200 | G190: 200 | H190: 200 | I190: 200 | J190: 200 | K190: 200 | L190: 200 | M190: 200 | N190: 200 | O190: 200 | P190: 200 | Q190: 200 | R190: 200 | S190: 200 | T190: 200 | U190: 200 | V190: 200 | W190: 200 | X190: 200 | Y190: 200 | Z190: 200 | AA190: 200 | AB190: 200 | AC190: 200 | AD190: 200 | AE190: 200 | AF190: 200 | AG190: 200 | AH190: 200 | AI190: 200 | AJ190: 200 | AK190: 200 | AL190: 200 | AM190: 200 | AN190: 200 | AO190: 200 | AP190: 200 | AQ190: 200 | AR190: 200 | AS190: 200 | AT190: 200 | AU190: 200 | AV190: 200 | AW190: 200 | AX190: 200 | AY190: 200 | AZ190: 200 | BA190: 200 | BB190: 200 | BC190: 200 | BD190: 200 | BE190: 200 | BF190: 200 | BG190: 200 | BH190: 200 | BI190: 200 | BJ190: 200 | BK190: 200 | BL190: 200 | BM190: 200 | BN190: 200 | BO190: 200 | BP190: 200 | BQ190: 200 | BR190: 200 | BS190: 200 | BT190: 200 | BU190: 200 | BV190: 200 | BW190: 200 | BX190: 200 | BY190: 200 | BZ190: 200 | CA190: 200 | CB190: 200 | CC190: 200 | CD190: 200 | CE190: 200 | CF190: 200 | CG190: 200 | CH190: 200 | CI190: 200 | CJ190: 200 | CK190: 200 | CL190: 200 | CM190: 200 | CN190: 200 | CO190: 200 | CP190: 200 | CQ190: 200 | CR190: 200 | CS190: 200 | CT190: 200 | CU190: 200 | CV190: 200 | CX190: lineal | CY190: - | CZ190: 200 | DA190: 0 | DB190: 0 | DC190: 200 | DD190: 0 | DE190: 0 | DF190: 5.298317367 | DG190: 0 | DH190: 0
B191: 13 | C191: La Libertad | D191: [Abonados] | E191: 200 | F191: 200 | G191: 200 | H191: 200 | I191: 200 | J191: 200 | K191: 200 | L191: 200 | M191: 200 | N191: 200 | O191: 200 | P191: 200 | Q191: 200 | R191: 200 | S191: 200 | T191: 200 | U191: 200 | V191: 200 | W191: 200 | X191: 200 | Y191: 200 | Z191: 200 | AA191: 200 | AB191: 200 | AC191: 200 | AD191: 200 | AE191: 200 | AF191: 200 | AG191: 200 | AH191: 200 | AI191: 200 | AJ191: 200 | AK191: 200 | AL191: 200 | AM191: 200 | AN191: 200 | AO191: 200 | AP191: 200 | AQ191: 200 | AR191: 200 | AS191: 200 | AT191: 200 | AU191: 200 | AV191: 200 | AW191: 200 | AX191: 200 | AY191: 200 | AZ191: 200 | BA191: 200 | BB191: 200 | BC191: 200 | BD191: 200 | BE191: 200 | BF191: 200 | BG191: 200 | BH191: 200 | BI191: 200 | BJ191: 200 | BK191: 200 | BL191: 200 | BM191: 200 | BN191: 200 | BO191: 200 | BP191: 200 | BQ191: 200 | BR191: 200 | BS191: 200 | BT191: 200 | BU191: 200 | BV191: 200 | BW191: 200 | BX191: 200 | BY191: 200 | BZ191: 200 | CA191: 200 | CB191: 200 | CC191: 200 | CD191: 200 | CE191: 200 | CF191: 200 | CG191: 200 | CH191: 200 | CI191: 200 | CJ191: 200 | CK191: 200 | CL191: 200 | CM191: 200 | CN191: 200 | CO191: 200 | CP191: 200 | CQ191: 200 | CR191: 200 | CS191: 200 | CT191: 200 | CU191: 200 | CV191: 200 | CX191: lineal | CY191: - | CZ191: 200 | DA191: 0 | DB191: 0 | DC191: 200 | DD191: 0 | DE191: 0 | DF191: 5.298317367 | DG191: 0 | DH191: 0
